{"text_format":"1","workbook":"xlsx","n_sheets":34,"sheets":["COVER","INDEX","Basic instructions","Validation rules","Methodology","CEP_CEPA-CReMA","GETTING STARTED","Footnotes list","CCM - CAPEX - FC","CCM - CAPEX - EC","ErrorLog","Codes and labels","Lists","Lists (Specific)","Changelog","MustNotBeNegative","MacroBehaviour","Mandatory","IsNumeric","Summations","Locks","StandardFootnotes","Fill (Specific)","NotInFootNotesList (Specific)","CrossChecks (Specific)","NotStandardRules","x Pre-filling parameters","x ContentInHiddenSheets","x Between2Cells","x ForbiddenStrings","x MandatoryAtLeast","x Thresholds","x IsFormula","x FootnoteContent"],"not_rendered":{"charts":0,"images":4,"macros":1,"external_links":0,"defined_names":22,"comments":0,"pivot_tables":0},"unopened":[],"bounds":{"document_bytes":16777216,"sheet_cells":100000,"rows_first":2000,"rows_last":500,"rows_between":2000,"halvings":0,"cell_chars":16384,"cell_head_chars":4096},"cells_cut":0,"cells_raw":0,"read":"whole","date_system":"1900"}

{"sheet":"COVER","index":0,"n_rows":9,"n_cols":3,"rows_kept":9,"cut":false,"hidden":false,"merged":[]}
["v01"]
[]
[null,null,{"$f":"UPPER(Lists!K3)","v":"STATISTICAL OFFICE OF THE EUROPEAN UNION"}]
[]
[null,null,{"$f":"Lists!K4","v":"Directorate E: Sectoral and regional statistics"}]
[null,null,{"$f":"Lists!K5","v":"Unit E-2: Environmental statistics and accounts; sustainable development"}]
[null,null,{"$f":"UPPER(Lists!K7)","v":"ANNUAL REPORTING OF CLIMATE CHANGE MITIGATION INVESTMENTS (CCM)"}]
[null,null,{"$f":"CONCATENATE(Lists!K8,\" DATA COLLECTION\")","v":"2026 DATA COLLECTION"}]
[null,null,{"$f":"CONCATENATE(\"Launching date: \",Lists!K9)","v":"Launching date: 30 June 2026"}]

{"sheet":"INDEX","index":1,"n_rows":24,"n_cols":5,"rows_kept":24,"cut":false,"hidden":false,"merged":[[15,2,15,4],[1,2,1,4],[3,2,3,4],[4,2,4,4],[6,2,6,4],[8,2,8,4]]}
[]
[]
[null,null,null,null,{"$f":"UPPER(Lists!K3)","v":"STATISTICAL OFFICE OF THE EUROPEAN UNION"}]
[null,null,{"$f":"UPPER(Lists!K7)","v":"ANNUAL REPORTING OF CLIMATE CHANGE MITIGATION INVESTMENTS (CCM)"}]
[null,null,{"$f":"CONCATENATE(Lists!K8,\" DATA COLLECTION\")","v":"2026 DATA COLLECTION"}]
[]
[null,null," INDEX - STRUCTURE OF THE QUESTIONNAIRE"]
[]
[null,null,"I. Basic information"]
[null,null,"TITLE","DESCRIPTION","TYPE"]
[null,null,"Index","Structure of the questionnaire","for information"]
[null,null,"Basic instructions ","Basic instructions","for reading before filling in the questionnaire"]
[null,null,"Validation rules","Validation rules","for reading before filling in the questionnaire"]
[null,null,"Methodology","Explanatory notes and methodology","for reading before filling in the questionnaire"]
[null,null,"CEP_CEPA-CReMA","Conversion table between CEP and CEPA/CReMA","for reading before filling in the questionnaire"]
[null,null,"II. Reporting data (To be filled in by the country)"]
[null,null,"TITLE","DESCRIPTION","TYPE"]
[null,null,"GETTING STARTED","Country and data collection definition. Administrative data.","for filling in"]
[null,null,"Footnotes list","List of country-specific explanatory footnotes","for filling in"]
[null,null,"CCM_CAPEX_FC*","Reporting sheet for full cost - investments in climate change mitigation.","for filling in"]
[null,null,"CCM_CAPEX_EC**","Reporting sheet for extra cost - investments in climate change mitigation.","for filling in"]
[null,null,"ErrorLog","Validation result. List of errors and warnings revealed by the validation process","for consultation"]
[]
[null,null,"*  FC: full cost \n** EC: extra cost"]

{"sheet":"Basic instructions","index":2,"n_rows":93,"n_cols":6,"rows_kept":93,"cut":false,"hidden":false,"merged":[[9,2,9,5],[3,2,3,5],[4,2,4,5],[6,2,6,5],[7,2,7,5],[8,2,8,5],[28,3,28,5],[10,2,10,5],[11,2,11,5],[12,2,12,5],[13,2,13,5],[14,2,14,5],[15,2,15,5],[16,2,16,5],[18,2,18,5],[20,2,20,5],[22,2,22,5],[27,2,27,5],[56,2,56,5],[34,3,34,5],[36,2,36,5],[38,2,38,5],[43,2,43,5],[44,2,44,5],[46,2,46,5],[48,2,48,5],[50,2,50,5],[52,2,52,5],[54,2,54,5],[45,2,45,5],[73,2,73,5],[57,2,57,5],[58,2,58,5],[61,2,61,5],[62,3,62,5],[63,3,63,5],[64,3,64,5],[65,2,65,5],[67,2,67,5],[68,3,68,5],[69,3,69,5],[72,2,72,5],[75,2,75,5],[78,2,78,5],[93,2,93,5],[76,2,76,5],[77,2,77,5],[88,2,88,5],[90,2,90,5],[91,2,91,5],[92,2,92,5],[87,2,87,5],[79,2,79,5],[81,2,81,5],[83,2,83,5],[84,2,84,5],[85,2,85,5],[86,2,86,5]]}
[]
[]
[null,null,null,null,null,{"$f":"UPPER(Lists!K3)","v":"STATISTICAL OFFICE OF THE EUROPEAN UNION"}]
[null,null,{"$f":"UPPER(Lists!K7)","v":"ANNUAL REPORTING OF CLIMATE CHANGE MITIGATION INVESTMENTS (CCM)"}]
[null,null,{"$f":"CONCATENATE(Lists!K8,\" DATA COLLECTION\")","v":"2026 DATA COLLECTION"}]
[]
[null,null,"BASIC INSTRUCTIONS"]
[null,null,"Eurostat invites you to read carefully the “Basic instructions” tab before editing the data worksheets: \"CCM - CAPEX - FC\" and \"CCM - CAPEX - EC\". This EXCEL workbook is the questionnaire. Please do not delete or add rows in the questionnaire. Note also that the questionnaire has hidden columns used for internal data processing."]
[null,null,"This EXCEL workbook contains macros. In order to make them work you need to save the file in your computer and then reopen it and enable macros to make it a trusted document."]
[null,null,"Once you filled in all the required fields, you have to validate the data before submitting the questionnaire (clicking on the button 'Check consistency' on the top left-hand corner of the worksheets). It is of the utmost importance to confirm that there are no pending errors (see 'Errorlog' worksheet), since a questionnaire with errors (red shadowed cells) will be rejected. You can restore the color of the table clicking on 'Restore colours'."]
[null,null,"Table of contents"]
[null,null,"   1. Data transmission"]
[null,null,"   2. Basic reporting conventions"]
[null,null,"   3. Quality Report"]
[" ","  ","   4. Footnotes"]
[null,null,"   5. Methodology and questions"]
[null,null,"   Annex 1: How to fill in the data sheets of the questionnaire\n   Annex 2: Reporting convention for 'not elsewhere classified', zeroes, 'not available' and more"]
[]
[null,null,"1. Data transmission:"]
[]
[null,null,"The standard tool for the transmission of statistical data is the eDAMIS system. The system creates a secure environment for the transmission of data, it records all data submissions and acknowledges the data delivery. The eDAMIS system has been installed in the National Statistical Institutes."]
[]
[null,null,"Please submit this questionnaire to Eurostat using the eDAMIS reporting system. Use the following details: "]
[null,null,"Domain name:",{"$f":"Lists!K12","v":"EGSS"}]
[null,null,"Dataset name:",{"$f":"Lists!K13","v":"ENVDATA_CCM_A"}]
[null,null,"Please note that the Edamis channel will be open from September 1st 2026 onwards."]
[]
[null,null,"Should you have any questions regarding data transmission do not hesitate to contact your local eDAMIS coordinator or the Eurostat eDAMIS helpdesk at: "]
[null,null,"   web page:",{"$f":"Lists!K14","v":"https://webgate.ec.europa.eu/edamis4/contact-form"}]
[null,null,"   e-mail address:",{"$f":"Lists!K15","v":"ESTAT-DATA-METADATA-SERVICES@ec.europa.eu"}]
[null,null,"   telephone:","(+352) 430133213"]
[null,null,"For methodological questions please contact:"]
[null,null,"   e-mail address:",{"$f":"Lists!K18","v":"ESTAT-EGSS@ec.europa.eu"}]
[null,null,"Current reference year: ",2024]
[null,null,"Units of measure: ","Millions of National Currency"]
[]
[null,null,"2.  Basic reporting conventions:"]
[]
[null,null,"Reporting of zeroes and not availble data must follow this convention:"]
[null,null,"Description","Symbol"]
[null,null,"Real zero or negligible",0]
[null,null,"Not available",null," (empty cell)"]
[]
[null,null,"1. White shaded (uncoloured) boxes: Mandatory data provision. All these boxes have to be filled in."]
[null,null,"2. Grey shaded boxes: Calculation is automatic; cells are protected. If, for any technical reason, you were able to modify any of those cells, still please do not do it. The purpose is to facilitate the data reporting. Please note that the related formulae must not be overwritten, excluding exceptional occasions where you have to \"unlock formulas\" and handcode a value to report correctly."]
[null,null,"3. Cyan shaded boxes: Voluntary data provision."]
[null,null,"4. Light yellow boxes: Restricted to footnotes (see details in section 4 of this sheet)."]
[]
[null,null,"3. Quality Report:"]
[]
[null,null,"Please provide data by means of the \"Metadata handler\" online. "]
[]
[null,null,"4. Footnotes:"]
[]
[null,null,"You are asked to report data that follow as closely as possible CCM guidance material and reporting rules (see paragraphs below). Please report problems with the coverage or data quality in the Quality Report."]
[]
[null,null,"Flags (footnote symbols) should be entered in the reporting tables in the footnote columns, next to the value cell. There are three types of footnotes: "]
[null,null,"- Letters for standard footnotes and for confidentiality (both as defined by Eurostat below) "]
[null,null,"- Numbers for country-specific footnotes (to be defined by the data compilers). "]
[]
[null,null,"4.1 Standard footnotes"]
[null,null,"The following footnotes will be used for the automatic data processing and data dissemination. Hence, they cannot be changed:"]
[null,null,"B) break in series","Please use this flag when the reported figure cannot be compared to the data reported for the previous year, e.g. because of new methods or sources being used or when you move from the old calculation rules to the new calculation rules. Please use this flag only when the change in methods, sources or calculation rules has a substantial impact."]
[null,null,"E) estimated data","Please use this flag only when a small subset of data points have been calculated using a significantly different methodology and/or sources than the rest of the data points in the questionnaire. Small methodological deviations should be explained in the Quality Report tab and should not be flagged as estimate."]
[null,null,"P) provisional","Please use this flag when you plan to revise the data. All p) footnotes of data for references years submitted in an earlier data collection, for which no data is not resubmitted in the current data collection, will be systematically removed by Eurostat."]
[null,null,"The drop-down menu includes as well combinations of footnotes. If you need to put more than one footnote in a field, please, use these combinations in the drop-down menu."]
[null,null,"4.2. Confidentiality footnote"]
[null,null,"In case you report a confidential figure in a value cell,  you may add one of the following pre-defined footnote symbols to indicate the level of confidentiality: 'c) Confidential' or 'd) Secondary confidentiality'."]
[null,null,"C) Confidential data ","Please, use C) for confidential statistical information ( i.e. in cases where the value indeed has to be protected due to confidentiality). "]
[null,null,"D) Secondary confidentiality","Please, use C) for confidential statistical information ( i.e. in cases where the value indeed has to be protected due to confidentiality). D) Secondary confidentiality footnotes can be set to hide non-confidential values in order to prevent third parties to indirectly deduce confidential values. Please note that this footnote converts into confidential c) when published in Eurostat’s online database. "]
[null,null,"N) Not for publication","Please, use this flag when data is only for internal use by Eurostat and not to be published."]
[null,null,"4.3 Country-specific explanatory footnotes"]
[null,null,"The explanatory footnotes can be used for any meaning beyond the pre-defined footnotes. This includes the explanation of large year-on-year changes in the data.\n\nTo include an explanatory footnote, please first insert the text in the “Footnote list” sheet starting from number 1. Then, in the data table, please select the corresponding footnote reference number from the drop-down menu in the column for explanatory footnotes (the third of the available footnote columns, i.e. columns J, O, T, Y, etc. ). The text you entered in the “Footnote list” sheet will then appear automatically next to the footnote reference number. The same explanatory footnote can be chosen for multiple values - given the same explanation applies. If a number is chosen from the drop-down menu by accident, it can be removed by pressing the delete key to clean the cell.\n\nPlease do not report footnotes that elaborate on e.g. source data and compilation methods; these are to be described in the Quality Report."]
[null,null,"5. Methodology and questions:"]
[]
[null,null,"Guidance for data compilers can be obtained from the Eurostat guidance documents. "]
[null,null,"The guidelines for data collection on climate change mitigation investments contains definitions, examples and recommendations to ensure that data comply with relevant statistical standards and accounting rules. The guidance note also provides general guidance on how to implement the concepts in practice, in the data compilation process, on which data source and methods to use. The latest version of the guidance note is available here:"]
[null,null,"Guidance note on Climate Change Mitigation Investments (2025)"]
[null,null,"If you have questions, please send them to the following email addresses:"]
[null,null,{"$f":"Lists!K18","v":"ESTAT-EGSS@ec.europa.eu"}]
[]
[null,null,"Annex 1: How to fill in the data sheets of the questionnaire"]
[]
[null,null,"You are kindly requested to:"]
[null,null,"1)    All data cells (whilte cells) must be filled in with a positive value or a zero."]
[null,null,"2)    Cells, which contain sums, are filled in automatically. In case, you realise that a formula should be added in a cell, please, send us an email with this formula. The formula may be helpful for all countries. Please, do not add the formula yourself. "]
[null,null,"3)    Flags (footnote symbols) can be entered in the reporting tables in the footnote columns."]
[null,null,"4)    To include standard footnotes use the drop-down menu."]
[null,null,"5)    The text of specific footnotes can be entered in the worksheet 'Footnotes list'."]
[]
[null,null,"Annex 2: Validation checks by Eurostat after data transmission"]
[]
[null,null,"After receiving the CCM data, Eurostat runs again the same consistency checks as executed in the questionnaire. In addition, Eurostat verifies the formatting of footnotes and checks for completeness, revisions of previously transmitted data, time-series consistency, and the plausibility of parameter ratios. The outcome of this validation process is reported to the data compilers in a validation report, which may also ask for clarification on specific data sources or recording methods. A detailed response of countries to the validation report is very much appreciated because the information shared allows Eurostat to better understand data sources, compilation methods, and comparability issues across countries. "]

{"sheet":"Validation rules","index":3,"n_rows":35,"n_cols":6,"rows_kept":35,"cut":false,"hidden":false,"merged":[[9,2,9,5],[3,2,3,5],[4,2,4,5],[6,2,6,5],[7,2,7,5],[8,2,8,5],[34,2,34,5],[10,2,10,5],[11,2,11,5],[30,2,30,5],[28,2,28,5],[16,2,16,5],[27,2,27,5],[18,2,18,5],[19,2,19,5],[20,2,20,5],[21,2,21,5],[23,2,23,5]]}
[]
[]
[null,null,null,null,null,{"$f":"UPPER(Lists!K3)","v":"STATISTICAL OFFICE OF THE EUROPEAN UNION"}]
[null,null,{"$f":"UPPER(Lists!K7)","v":"ANNUAL REPORTING OF CLIMATE CHANGE MITIGATION INVESTMENTS (CCM)"}]
[null,null,{"$f":"CONCATENATE(Lists!K8,\" DATA COLLECTION\")","v":"2026 DATA COLLECTION"}]
[]
[null,null,"VALIDATION RULES"]
[null,null,"Table of contents"]
[null,null,"  1. Mandatory data"]
[null,null,"  2. Arithmetic rules"]
[null,null,"  3. Explanatory footnotes"]
[null,null,"In data sheets (\"CCM - CAPEX - FC\" and \"CCM - CAPEX - EC\"), the \"check consistency\" button checks values (missing mandatory, etc.), totals and footnotes in the respective sheet where it is located."]
[]
[null,null,"1. Mandatory Data:"]
[]
[]
[null,null,"All the information requested in the sheet 'GETTING STARTED' worksheet must be filled in."]
[]
[null,null,"Data tables in the questionnaire comprise a mandatory part for characteristics that have to be reported under Regulation EU N° 691/2011 and a voluntary/non-mandatory part including other characteristics."]
[]
[null,null,"1)   Mandatory data: all data cells in white shaded or uncoloured boxes must be filled in with a value or a zero. "]
[null,null,"2)   Non-mandatory data: data cells in cyan shaded boxes could be filled in with a value or a zero (i.e. voluntary reporting). "]
[]
[null,null,"The checking tool verifies whether mandatory data cells are completed. If problems are detected (i.e. empty cell or non-numeric value), the cell is highlighted in red."]
[]
[null,null,"2. Arithmetic rules"]
[]
[null,null,"Check for negative values of CCM - CAPEX variables. Cells with negative values will be highlighted in orange (warning) to draw the compiler's attention."]
[null,null," Sums by CEP and out of scope of CEP/SEEA:\n     • CCM = TOT_CEP + CCM_NCEP\n     • CCM_NCEP = NUC_PRD + NUC_RND + NRG_GRID + LWC_TRA_ACT + LWC_TRA_INFR + CCM_NCEP_OTH\n     • TOT_CEP = CEP01 + CEP0201 + CEP0202 + CEP0402 + CEP0501 + CEP0502 + CEP0503 + (CEP0701 + CEP0703 + CEP0705 + CEP0707 + CEP0709) + (CEP0702 + CEP0704 + CEP0706 + CEP0708) + CEP08 + CEP_OTH\n     • CEP01 = CEP0101 + CEP0102\n     • CEP0201 ≥ CEP020101\n     • CEP0202 ≥ CEP020201 + CEP020202 + CEP020203\n     • CEP0402 ≥ CEP040203\n     • CEP0503 ≥ CEP050301 + CEP050302\n     • (CEP0701 + CEP0703 + CEP0705 + CEP0707 + CEP0709) ≥ CEP070101\n     • (CEP0702 + CEP0704 + CEP0706 + CEP0708)  ≥ CEP0702 + CEP0708\n For corporations (S11_S12), sums by NACE for all CEPs, by environmental products and types of activities:\n     • A + B + C + D + E + F +  J +  M + O + P  + G-I_K_L_N_Q-U = TOTAL\n Sums by sector for all CEPs, by environmental products and types of activities:\n     • S1 = S11_S12 + S13 + S14_S15\n     • S14_S15 ≥ S15\n Final consumption and GFCF = GFCF for (characteristic) activities + Final consumption and GFCF for S1"]
[]
[null,null,"Note: All these rules assume all values of the sums are available (i.e. complete set of variables). If not, the aggregate must be greater or equal than the sum of available values."]
[]
[null,null,"3. Explanatory footnotes"]
[]
[null,null,"When an explanatory footnote is referenced (by means of a number selected from the drop-down list), the referenced footnote text in the sheet \"Footnotes list\" must not be empty."]

{"sheet":"Methodology","index":4,"n_rows":13,"n_cols":6,"rows_kept":13,"cut":false,"hidden":false,"merged":[[3,2,3,5],[4,2,4,5],[6,2,6,5],[8,2,8,5],[14,2,14,5],[11,2,11,5],[13,2,13,5],[12,2,12,5],[9,2,9,5],[10,2,10,5]]}
[]
[]
[null,null,null,null,null,{"$f":"UPPER(Lists!K3)","v":"STATISTICAL OFFICE OF THE EUROPEAN UNION"}]
[null,null,{"$f":"UPPER(Lists!K7)","v":"ANNUAL REPORTING OF CLIMATE CHANGE MITIGATION INVESTMENTS (CCM)"}]
[null,null,{"$f":"CONCATENATE(Lists!K8,\" DATA COLLECTION\")","v":"2026 DATA COLLECTION"}]
[]
[null,null,"METHODOLOGY AND LEGAL ACTS"]
[]
[null,null,"The amendment of Regulation (EU) 691/2011 adopted in 2024 requires the Commission (Eurostat) to issue a publication on climate change mitigation, including investments, by 31 December 2024 and at least every two years thereafter. It must have data per Member State and shall cover all sectors of the economy and activities. The Commission is empowered to collect data on investments on climate change mitigation for the publication 2026 and afterwards. The Commission powers are to amend Annex V (environmental goods and services sector – EGSS), Section 3, as regards the list of characteristics to include characteristics regarding other investments on climate change mitigation."]
[null,null,"The Commission delegated Regulation implementing the data collection on investments on climate change mitigation has been adopted on March 26th 2025."]
[null,null,"This reporting template allows data providers to report data on climate change mitigation capital expenditure (CCM CAPEX)."]
[null,null,"Please refer to the methodology described in the technical note:"]
[null,null,"Guidance note on Climate Change Mitigation Investments (2025)"]

{"sheet":"CEP_CEPA-CReMA","index":5,"n_rows":53,"n_cols":8,"rows_kept":53,"cut":false,"hidden":false,"merged":[[6,2,6,7],[33,6,35,7],[36,4,36,5],[37,6,37,7],[38,4,38,5],[13,6,13,7],[14,4,14,5],[15,6,15,7],[27,2,29,2],[27,3,29,3],[44,2,45,2],[44,3,45,3],[44,6,45,7],[9,6,10,7],[46,6,48,6],[46,7,48,7],[39,6,39,7],[40,4,40,5],[3,2,3,7],[9,4,10,4],[9,5,10,5],[50,2,50,5],[32,4,32,5],[11,4,12,5],[41,2,42,2],[41,3,42,3],[41,6,42,7],[43,4,43,5],[30,6,30,7],[16,2,18,2],[16,3,18,3],[24,2,26,2],[24,3,26,3],[4,2,4,7]]}
[]
[]
[null,null,null,null,null,null,null,{"$f":"UPPER(Lists!K3)","v":"STATISTICAL OFFICE OF THE EUROPEAN UNION"}]
[null,null,{"$f":"UPPER(Lists!K7)","v":"ANNUAL REPORTING OF CLIMATE CHANGE MITIGATION INVESTMENTS (CCM)"}]
[null,null,{"$f":"CONCATENATE(Lists!K8,\" DATA COLLECTION\")","v":"2026 DATA COLLECTION"}]
[]
[null,null,"Conversion table between CEP and CEPA/CReMA"]
[]
[null,null,"CEP Code","CEP NAME","CEPA Code","CEPA NAME","CREMA Code","CREMA NAME"]
[null,null,"0101","Reduction and control of greenhouse gases","CEPA 1","Protection of ambient air and climate",""]
[null,null,"0102","Reduction and control of other air pollutants"]
[null,null,"0201","Energy from renewable sources","",null,"CReMA 13A","Production of energy from renewable sources"]
[null,null,"0202","Energy savings and management",null,null,"CReMA 13B","Heat/energy saving and management"]
[null,null,"0301","Wastewater management","CEPA 2","Wastewater management",""]
[null,null,"0302","Water savings and management of natural water resources","",null,"CReMA 10","Management of water"]
[null,null,"0401","Waste management","CEPA 3","Waste management",""]
[null,null,"0402","Materials recovery and savings","",null,"CReMA 11B","Minimisation of the intake of timber resources"]
[null,null,null,null,null,null,"CReMA 13C","Minimisation of the intake of fossil energy resources as raw material"]
[null,null,null,null,null,null,"CReMA 14","Management of minerals"]
[null,null,"040201","Reduction of the intake of wood",null,null,"CReMA 11B","Minimisation of the intake of timber resources"]
[null,null,"040202","Reduction of the intake of mineral (metal, stone, glass, ceramics, other)",null,null,"CReMA 14","Management of minerals"]
[null,null,"040203","Reduction of the intake of fossil fuels for non-energy uses",null,null,"CReMA 13C","Minimisation of the intake of fossil energy resources as raw material"]
[null,null,"040204","Reduction of the intake of natural resources for textiles",null,null,"CReMA 14","Management of minerals"]
[null,null,"040205","Reduction of the intake of other materials",null,null,"CReMA 14","Management of minerals"]
[null,null,"040206","Monitoring and measurement for materials recovery and savings",null,null,"CReMA 11B","Minimisation of the intake of timber resources"]
[null,null,null,null,null,null,"CReMA 13C","Minimisation of the intake of fossil energy resources as raw material"]
[null,null,null,null,null,null,"CReMA 14","Management of minerals"]
[null,null,"040299","Others for materials recovery and savings, n.e.c.",null,null,"CReMA 11B","Minimisation of the intake of timber resources"]
[null,null,null,null,null,null,"CReMA 13C","Minimisation of the intake of fossil energy resources as raw material"]
[null,null,null,null,null,null,"CReMA 14","Management of minerals"]
[null,null,"0501","Protection of soil, surface and groundwater","CEPA 4","Protection and remediation of soil, groundwater and surface water",""]
[null,null,"0502","Protection of biodiversity and landscape","CEPA 6","Protection of biodiversity and landscapes","CReMA 12","Management of wild flora and fauna stocks"]
[null,null,"0503","Management of forest resources","",null,"CReMA 11A","Sustainable management of forest areas"]
[null,null,"0601","Protection against noise and vibration","CEPA 5","Noise and vibration abatement (excluding workplace protection)",""]
[null,null,"0602","Protection against radiation","CEPA 7","Protection against radiation (excluding external safety)"]
[null,null,"0701","R&D for reduction and control of air emissions","CEPA 8.1","Protection of ambient air and climate"]
[null,null,"0702","R&D for energy","",null,"CReMA 15","Research and development activities for resource management"]
[null,null,"0703","R&D for wastewater management","CEPA 8.3","Waste",""]
[null,null,"0704","R&D for water resources","",null,"CReMA 15","Research and development activities for resource management"]
[null,null,"0705","R&D for waste management","CEPA 8.2","Protection of water",""]
[null,null,"0706","R&D for materials recovery and savings","",null,"CReMA 15","Research and development activities for resource management"]
[null,null,"0707","R&D for soil, surface and groundwater and biodiversity","CEPA 8.4","Protection of soil and groundwater",""]
[null,null,null,null,"CEPA 8.6","Protection of species and habitats"]
[null,null,"0708","R&D for forest management","",null,"CReMA 15","Research and development activities for resource management"]
[null,null,"0709","R&D for noise and radiation","CEPA 8.5","Abatement of noise and vibration",""]
[null,null,null,null,"CEPA 8.7","Protection against radiation"]
[null,null,"0801","Environmental education and training","CEPA 9.1","General environmental administration and management","CReMA 16","Other resource management activities"]
[null,null,"0802","General environmental administration, management, regulation, dissemination and consultancy","CEPA 9.2","Education, training and information"]
[null,null,"0803","Other environmental purposes","CEPA 9.4","Activities not elsewhere classified"]
[]
[]
[]
[null,null,"Please note that both CEPA 8.8 and CEPA 9.3 were obsolete codes in the CEPA classification. Therefore, there are not listed here."]

{"sheet":"GETTING STARTED","index":6,"n_rows":24,"n_cols":7,"rows_kept":24,"cut":false,"hidden":false,"merged":[[3,2,3,6],[4,2,4,6],[6,2,6,6],[12,2,12,6],[14,3,14,6],[18,3,18,6],[20,3,20,6],[22,3,22,6],[23,2,23,6],[9,2,9,3],[16,3,16,6]]}
[]
[]
[null,null,null,null,null,null,"STATISTICAL OFFICE OF THE EUROPEAN UNION"]
[null,null,{"$f":"UPPER(Lists!K7)","v":"ANNUAL REPORTING OF CLIMATE CHANGE MITIGATION INVESTMENTS (CCM)"}]
[null,null,{"$f":"CONCATENATE(Lists!K8,\" DATA COLLECTION\")","v":"2026 DATA COLLECTION"}]
[]
[null,null," GETTING STARTED"]
[]
[null,null,"Please select your country (click on the white cell):",null,null,null,{"$f":"IF(E9=\"\",\"\",VLOOKUP(E9,Lists!A2:B41,2,FALSE))","v":""}]
[null,null,"Please select the reference year \n(click on the white cell):"]
[]
[null,null,{"$f":"CONCATENATE(\"The due date for reporting is \",Lists!K10)","v":"The due date for reporting is October 31st 2026"}]
[null,null,{"$f":"\"Who is the primary contact point for the data collection \" &  Lists!K7&\"' in your country?\"","v":"Who is the primary contact point for the data collection Annual reporting of Climate Change Mitigation investments (CCM)' in your country?"}]
[]
[null,null,"Name:"]
[]
[null,null,"Institution:"]
[]
[null,null,"Unit:"]
[]
[null,null,"Telephone:"]
[]
[null,null,"Email adress:"]
[null,null,{"$f":"\"Eurostat would be grateful if you could send us the completed questionnaire by \"  & Lists!K10 & \" at the latest.\"","v":"Eurostat would be grateful if you could send us the completed questionnaire by October 31st 2026 at the latest."}]

{"sheet":"Footnotes list","index":7,"n_rows":58,"n_cols":5,"rows_kept":58,"cut":false,"hidden":false,"merged":[[1,3,1,4],[3,3,3,4],[4,3,4,4],[6,3,6,4],[7,3,7,4]]}
[]
[]
[null,null,null,null,{"$f":"UPPER(Lists!K3)","v":"STATISTICAL OFFICE OF THE EUROPEAN UNION"}]
[null,null,null,{"$f":"UPPER(Lists!K7)","v":"ANNUAL REPORTING OF CLIMATE CHANGE MITIGATION INVESTMENTS (CCM)"}]
[null,null,null,{"$f":"CONCATENATE(Lists!K8,\" DATA COLLECTION\")","v":"2026 DATA COLLECTION"}]
[]
[null,null,null,"EXPLANATORY FOOTNOTES"]
[null,null,null,{"$f":"IF('GETTING STARTED'!E9=\"\",\"\",'GETTING STARTED'!E9)","v":""}]
[null,null,null,1]
[null,null,null,2]
[null,null,null,3]
[null,null,null,4]
[null,null,null,5]
[null,null,null,6]
[null,null,null,7]
[null,null,null,8]
[null,null,null,9]
[null,null,null,10]
[null,null,null,11]
[null,null,null,12]
[null,null,null,13]
[null,null,null,14]
[null,null,null,15]
[null,null,null,16]
[null,null,null,17]
[null,null,null,18]
[null,null,null,19]
[null,null,null,20]
[null,null,null,21]
[null,null,null,22]
[null,null,null,23]
[null,null,null,24]
[null,null,null,25]
[null,null,null,26]
[null,null,null,27]
[null,null,null,28]
[null,null,null,29]
[null,null,null,30]
[null,null,null,31]
[null,null,null,32]
[null,null,null,33]
[null,null,null,34]
[null,null,null,35]
[null,null,null,36]
[null,null,null,37]
[null,null,null,38]
[null,null,null,39]
[null,null,null,40]
[null,null,null,41]
[null,null,null,42]
[null,null,null,43]
[null,null,null,44]
[null,null,null,45]
[null,null,null,46]
[null,null,null,47]
[null,null,null,48]
[null,null,null,49]
[null,null,null,50]

{"sheet":"CCM - CAPEX - FC","index":8,"n_rows":45,"n_cols":171,"rows_kept":45,"cut":false,"hidden":false,"merged":[[5,24,5,25],[4,32,4,35],[5,34,5,35],[4,52,4,55],[5,54,5,55],[5,39,5,40],[5,44,5,45],[5,49,5,50],[5,29,5,30],[5,99,5,100],[4,77,4,80],[4,92,4,95],[5,64,5,65],[5,69,5,70],[5,79,5,80],[5,94,5,95],[4,87,4,90],[5,89,5,90],[5,59,5,60],[4,82,4,85],[5,84,5,85],[4,72,4,75],[5,74,5,75],[1,161,3,165],[4,27,4,30],[4,37,4,40],[4,42,4,45],[4,62,4,65],[4,67,4,70],[4,47,4,50],[4,117,4,120],[4,122,4,125],[4,126,4,160],[4,161,4,165],[4,102,4,105],[4,107,4,110],[4,112,4,115],[4,97,4,100],[5,154,5,155],[5,159,5,160],[5,139,5,140],[5,144,5,145],[5,149,5,150],[42,3,42,5],[4,12,4,15],[5,14,5,15],[41,3,41,5],[29,5,39,5],[18,4,39,4],[14,5,15,5],[8,5,12,5],[18,5,28,5],[5,4,5,5],[4,7,4,10],[5,9,5,10],[16,5,17,5],[1,166,3,170],[4,167,4,170],[5,169,5,170],[4,17,4,20],[5,19,5,20],[4,22,4,25],[1,11,3,160],[4,57,4,60],[5,164,5,165],[5,104,5,105],[5,109,5,110],[5,114,5,115],[5,119,5,120],[5,124,5,125],[5,129,5,130],[5,134,5,135]]}
["CCM_INV_FC"]
[null,null,null,"Country:",{"$f":"\"\" &'GETTING STARTED'!G9","v":""},{"$f":"\"\" &'GETTING STARTED'!E9","v":""},null,null,null,null,null,null,null,null,null,null,null,null,null,null,null,null,null,null,null,null,null,null,null,null,null,null,null,null,null,null,null,null,null,null,null,null,null,null,null,null,null,null,null,null,null,null,null,null,null,null,null,null,null,null,null,null,null,null,null,null,null,null,null,null,null,null,null,null,null,null,null,null,null,null,null,null,null,null,null,null,null,null,null,null,null,null,null,null,null,null,null,null,null,null,null,null,null,null,null,null,null,null,null,null,null,null,null,null,null,null,null,null,null,null,null,null,null,null,null,null,null,null,null,null,null,null,null,null,null,null,null,null,null,null,null,null,null,null,null,null,null,null,null,null,null,null,null,null,null,null,null,null,null,null,null,null,null,null,null,null,"MEMO ITEM"]
[null,null,null,"Year:",{"$f":"\"\" &'GETTING STARTED'!E10","v":""}]
[null,null,null,"Unit:","MIO_NAC","Million units of national currency"]
[null,null,null,"Characteristic / variable","Investments","GFCF/final consumption","CEP 01",null,null,null,null,"CEP 0101",null,null,null,null,"CEP 0102",null,null,null,null,"CEP 0201",null,null,null,null,"CEP 020101",null,null,null,null,"CEP 0202",null,null,null,null,"CEP 020201",null,null,null,null,"CEP 020202",null,null,null,null,"CEP 020203",null,null,null,null,"CEP 0402",null,null,null,null,"CEP 040203",null,null,null,null,"CEP 0501",null,null,null,null,"CEP 0502",null,null,null,null,"CEP 0503",null,null,null,null,"CEP 050301",null,null,null,null,"CEP 050302",null,null,null,null,"CEP 0701 + 0703 + 0705+0707 + 0709",null,null,null,null,"CEP 070101",null,null,null,null,"CEP 0702 + 0704 + 0706+ 0708",null,null,null,null,"CEP 0702",null,null,null,null,"CEP 0708",null,null,null,null,"CEP 08",null,null,null,null,"CEP_OTH",null,null,null,null,"TOT_CEP",null,null,null,null,"OUT OF SCOPE OF CEP/SEEA",null,null,null,null,null,null,null,null,null,null,null,null,null,null,null,null,null,null,null,null,null,null,null,null,null,null,null,null,null,null,null,null,null,null,"Climate change mitigation",null,null,null,null,"CEP020202_NZEB"]
[null,null,null,null,"CCM - CAPITAL EXPENDITURE",null,"Air and climate","Standard footnote","Confidentiality footnote","Explanatory footnote",null,"Reduction and control of greenhouse gases","Standard footnote","Confidentiality footnote","Explanatory footnote",null,"Reduction and control of other air pollutants","Standard footnote","Confidentiality footnote","Explanatory footnote",null,"Energy from renewable sources","Standard footnote","Confidentiality footnote","Explanatory footnote",null,"Production of energy from renewable sources","Standard footnote","Confidentiality footnote","Explanatory footnote",null,"Energy savings and management","Standard footnote","Confidentiality footnote","Explanatory footnote",null,"Energy savings through in-process modifications","Standard footnote","Confidentiality footnote","Explanatory footnote",null,"Energy efficient buildings; other efficient energy-demand technologies","Standard footnote","Confidentiality footnote","Explanatory footnote",null,"Monitoring and measurement for energy savings and management","Standard footnote","Confidentiality footnote","Explanatory footnote",null,"Materials recovery and savings","Standard footnote","Confidentiality footnote","Explanatory footnote",null,"Reduction of the intake of fossil fuels for non-energy use","Standard footnote","Confidentiality footnote","Explanatory footnote",null,"Protection of soil, surface and groundwater","Standard footnote","Confidentiality footnote","Explanatory footnote",null,"Protection of biodiversity and landscape","Standard footnote","Confidentiality footnote","Explanatory footnote",null,"Management of forest resources","Standard footnote","Confidentiality footnote","Explanatory footnote",null,"Reforestation, afforestation and forest-related land management ","Standard footnote","Confidentiality footnote","Explanatory footnote",null,"Protection against forest fires","Standard footnote","Confidentiality footnote","Explanatory footnote",null,"Research and development environmental protection","Standard footnote","Confidentiality footnote","Explanatory footnote",null,"R&D for reduction and control of greenhouse gases","Standard footnote","Confidentiality footnote","Explanatory footnote",null,"Research and development resource management","Standard footnote","Confidentiality footnote","Explanatory footnote",null,"R&D for energy","Standard footnote","Confidentiality footnote","Explanatory footnote",null,"R&D for forest management","Standard footnote","Confidentiality footnote","Explanatory footnote",null,"Cross-cutting and other environmental purposes","Standard footnote","Confidentiality footnote","Explanatory footnote",null,"Other CEP not listed","Standard footnote","Confidentiality footnote","Explanatory footnote",null,"\nTotal environmental purposes","Standard footnote","Confidentiality footnote","Explanatory footnote",null,"Production of nuclear energy","Standard footnote","Confidentiality footnote","Explanatory footnote",null,"R&D for nuclear energy","Standard footnote","Confidentiality footnote","Explanatory footnote",null,"Energy grids","Standard footnote","Confidentiality footnote","Explanatory footnote",null,"Low carbon transport activities","Standard footnote","Confidentiality footnote","Explanatory footnote",null,"Low carbon transport infrastructures","Standard footnote","Confidentiality footnote","Explanatory footnote",null,"Other climate change mitigation out of CEP scope","Standard footnote","Confidentiality footnote","Explanatory footnote",null,"Climate change mitigation out of CEP scope","Standard footnote","Confidentiality footnote","Explanatory footnote",null,"Climate change mitigation","Standard footnote","Confidentiality footnote","Explanatory footnote",null,"\nNearly Zero Energy efficiency buildings  (NZEB)","Standard footnote","Confidentiality footnote","Explanatory footnote"]
["SECTOR","ENV_ECON","NACE_R2",null,null,null,"CEP01",null,null,null,null,"CEP0101",null,null,null,null,"CEP0102",null,null,null,null,"CEP0201",null,null,null,null,"CEP020101",null,null,null,null,"CEP0202",null,null,null,null,"CEP020201",null,null,null,null,"CEP020202",null,null,null,null,"CEP020203",null,null,null,null,"CEP0402",null,null,null,null,"CEP040203",null,null,null,null,"CEP0501",null,null,null,null,"CEP0502",null,null,null,null,"CEP0503",null,null,null,null,"CEP050301",null,null,null,null,"CEP050302",null,null,null,null,"CEP0701_03_05_07_09",null,null,null,null,"CEP070101",null,null,null,null,"CEP0702_04_06_08",null,null,null,null,"CEP0702",null,null,null,null,"CEP0708",null,null,null,null,"CEP08",null,null,null,null,"CEP_OTH",null,null,null,null,"TOT_CEP",null,null,null,null,"NUC_PRD",null,null,null,null,"NUC_RND",null,null,null,null,"NRG_GRID",null,null,null,null,"LWC_TRA_ACT",null,null,null,null,"LWC_TRA_INFR",null,null,null,null,"CCM_NCEP_OTH",null,null,null,null,"CCM_NCEP",null,null,null,null,"CCM",null,null,null,null,"CEP020202_NZEB"]
["S1","P3_P51G_FC","TOTAL","TOTAL","S1 TOTAL ECONOMY, of which:","Final consumption and GFCF",{"$f":"IF(COUNT(G9,G14)=2,SUM(G9,G14),\"\")","v":""},null,null,null,{"$f":"IF(TRIM(J8)=\"\", \"\", IF(VLOOKUP(J8,'Footnotes list'!$D$9:$E$58,2,FALSE)=0,\"\",VLOOKUP(J8,'Footnotes list'!$D$9:$E$58,2,FALSE) ) )","v":""},{"$f":"IF(COUNT(L9,L14)=2,SUM(L9,L14),\"\")","v":""},null,null,null,{"$f":"IF(TRIM(O8)=\"\", \"\", IF(VLOOKUP(O8,'Footnotes list'!$D$9:$E$58,2,FALSE)=0,\"\",VLOOKUP(O8,'Footnotes list'!$D$9:$E$58,2,FALSE) ) )","v":""},{"$f":"IF(COUNT(Q9,Q14)=2,SUM(Q9,Q14),\"\")","v":""},null,null,null,{"$f":"IF(TRIM(T8)=\"\", \"\", IF(VLOOKUP(T8,'Footnotes list'!$D$9:$E$58,2,FALSE)=0,\"\",VLOOKUP(T8,'Footnotes list'!$D$9:$E$58,2,FALSE) ) )","v":""},{"$f":"IF(COUNT(V9,V14)=2,SUM(V9,V14),\"\")","v":""},null,null,null,{"$f":"IF(TRIM(Y8)=\"\", \"\", IF(VLOOKUP(Y8,'Footnotes list'!$D$9:$E$58,2,FALSE)=0,\"\",VLOOKUP(Y8,'Footnotes list'!$D$9:$E$58,2,FALSE) ) )","v":""},{"$f":"IF(COUNT(AA9)=1,SUM(AA9),\"\")","v":""},null,null,null,{"$f":"IF(TRIM(AD8)=\"\", \"\", IF(VLOOKUP(AD8,'Footnotes list'!$D$9:$E$58,2,FALSE)=0,\"\",VLOOKUP(AD8,'Footnotes list'!$D$9:$E$58,2,FALSE) ) )","v":""},{"$f":"IF(COUNT(AF9,AF14)=2,SUM(AF9,AF14),\"\")","v":""},null,null,null,{"$f":"IF(TRIM(AI8)=\"\", \"\", IF(VLOOKUP(AI8,'Footnotes list'!$D$9:$E$58,2,FALSE)=0,\"\",VLOOKUP(AI8,'Footnotes list'!$D$9:$E$58,2,FALSE) ) )","v":""},{"$f":"IF(COUNT(AK9)=1,SUM(AK9),\"\")","v":""},null,null,null,{"$f":"IF(TRIM(AN8)=\"\", \"\", IF(VLOOKUP(AN8,'Footnotes list'!$D$9:$E$58,2,FALSE)=0,\"\",VLOOKUP(AN8,'Footnotes list'!$D$9:$E$58,2,FALSE) ) )","v":""},{"$f":"IF(COUNT(AP9,AP14)=2,SUM(AP9,AP14),\"\")","v":""},null,null,null,{"$f":"IF(TRIM(AS8)=\"\", \"\", IF(VLOOKUP(AS8,'Footnotes list'!$D$9:$E$58,2,FALSE)=0,\"\",VLOOKUP(AS8,'Footnotes list'!$D$9:$E$58,2,FALSE) ) )","v":""},{"$f":"IF(COUNT(AU9,AU14)=2,SUM(AU9,AU14),\"\")","v":""},null,null,null,{"$f":"IF(TRIM(AX8)=\"\", \"\", IF(VLOOKUP(AX8,'Footnotes list'!$D$9:$E$58,2,FALSE)=0,\"\",VLOOKUP(AX8,'Footnotes list'!$D$9:$E$58,2,FALSE) ) )","v":""},{"$f":"IF(COUNT(AZ9,AZ14)=2,SUM(AZ9,AZ14),\"\")","v":""},null,null,null,{"$f":"IF(TRIM(BC8)=\"\", \"\", IF(VLOOKUP(BC8,'Footnotes list'!$D$9:$E$58,2,FALSE)=0,\"\",VLOOKUP(BC8,'Footnotes list'!$D$9:$E$58,2,FALSE) ) )","v":""},{"$f":"IF(COUNT(BE9,BE14)=2,SUM(BE9,BE14),\"\")","v":""},null,null,null,{"$f":"IF(TRIM(BH8)=\"\", \"\", IF(VLOOKUP(BH8,'Footnotes list'!$D$9:$E$58,2,FALSE)=0,\"\",VLOOKUP(BH8,'Footnotes list'!$D$9:$E$58,2,FALSE) ) )","v":""},{"$f":"IF(COUNT(BJ9)=1,SUM(BJ9),\"\")","v":""},null,null,null,{"$f":"IF(TRIM(BM8)=\"\", \"\", IF(VLOOKUP(BM8,'Footnotes list'!$D$9:$E$58,2,FALSE)=0,\"\",VLOOKUP(BM8,'Footnotes list'!$D$9:$E$58,2,FALSE) ) )","v":""},{"$f":"IF(COUNT(BO9)=1,SUM(BO9),\"\")","v":""},null,null,null,{"$f":"IF(TRIM(BR8)=\"\", \"\", IF(VLOOKUP(BR8,'Footnotes list'!$D$9:$E$58,2,FALSE)=0,\"\",VLOOKUP(BR8,'Footnotes list'!$D$9:$E$58,2,FALSE) ) )","v":""},{"$f":"IF(COUNT(BT9)=1,SUM(BT9),\"\")","v":""},null,null,null,{"$f":"IF(TRIM(BW8)=\"\", \"\", IF(VLOOKUP(BW8,'Footnotes list'!$D$9:$E$58,2,FALSE)=0,\"\",VLOOKUP(BW8,'Footnotes list'!$D$9:$E$58,2,FALSE) ) )","v":""},{"$f":"IF(COUNT(BY9)=1,SUM(BY9),\"\")","v":""},null,null,null,{"$f":"IF(TRIM(CB8)=\"\", \"\", IF(VLOOKUP(CB8,'Footnotes list'!$D$9:$E$58,2,FALSE)=0,\"\",VLOOKUP(CB8,'Footnotes list'!$D$9:$E$58,2,FALSE) ) )","v":""},{"$f":"IF(COUNT(CD9)=1,SUM(CD9),\"\")","v":""},null,null,null,{"$f":"IF(TRIM(CG8)=\"\", \"\", IF(VLOOKUP(CG8,'Footnotes list'!$D$9:$E$58,2,FALSE)=0,\"\",VLOOKUP(CG8,'Footnotes list'!$D$9:$E$58,2,FALSE) ) )","v":""},{"$f":"IF(COUNT(CI9)=1,SUM(CI9),\"\")","v":""},null,null,null,{"$f":"IF(TRIM(CL8)=\"\", \"\", IF(VLOOKUP(CL8,'Footnotes list'!$D$9:$E$58,2,FALSE)=0,\"\",VLOOKUP(CL8,'Footnotes list'!$D$9:$E$58,2,FALSE) ) )","v":""},{"$f":"IF(COUNT(CN9)=1,SUM(CN9),\"\")","v":""},null,null,null,{"$f":"IF(TRIM(CQ8)=\"\", \"\", IF(VLOOKUP(CQ8,'Footnotes list'!$D$9:$E$58,2,FALSE)=0,\"\",VLOOKUP(CQ8,'Footnotes list'!$D$9:$E$58,2,FALSE) ) )","v":""},{"$f":"IF(COUNT(CS9)=1,SUM(CS9),\"\")","v":""},null,null,null,{"$f":"IF(TRIM(CV8)=\"\", \"\", IF(VLOOKUP(CV8,'Footnotes list'!$D$9:$E$58,2,FALSE)=0,\"\",VLOOKUP(CV8,'Footnotes list'!$D$9:$E$58,2,FALSE) ) )","v":""},{"$f":"IF(COUNT(CX9)=1,SUM(CX9),\"\")","v":""},null,null,null,{"$f":"IF(TRIM(DA8)=\"\", \"\", IF(VLOOKUP(DA8,'Footnotes list'!$D$9:$E$58,2,FALSE)=0,\"\",VLOOKUP(DA8,'Footnotes list'!$D$9:$E$58,2,FALSE) ) )","v":""},{"$f":"IF(COUNT(DC9)=1,SUM(DC9),\"\")","v":""},null,null,null,{"$f":"IF(TRIM(DF8)=\"\", \"\", IF(VLOOKUP(DF8,'Footnotes list'!$D$9:$E$58,2,FALSE)=0,\"\",VLOOKUP(DF8,'Footnotes list'!$D$9:$E$58,2,FALSE) ) )","v":""},{"$f":"IF(COUNT(DH9)=1,SUM(DH9),\"\")","v":""},null,null,null,{"$f":"IF(TRIM(DK8)=\"\", \"\", IF(VLOOKUP(DK8,'Footnotes list'!$D$9:$E$58,2,FALSE)=0,\"\",VLOOKUP(DK8,'Footnotes list'!$D$9:$E$58,2,FALSE) ) )","v":""},{"$f":"IF(COUNT(DM9,DM14)=2,SUM(DM9,DM14),\"\")","v":""},null,null,null,{"$f":"IF(TRIM(DP8)=\"\", \"\", IF(VLOOKUP(DP8,'Footnotes list'!$D$9:$E$58,2,FALSE)=0,\"\",VLOOKUP(DP8,'Footnotes list'!$D$9:$E$58,2,FALSE) ) )","v":""},{"$f":"IF(COUNT(G8,V8,AF8,AZ8,BJ8,BO8,BT8,CI8,CS8,DH8)=10,SUM(G8,V8,AF8,AZ8,BJ8,BO8,BT8,CI8,CS8,DH8,DM8),\"\")","v":""},null,null,null,{"$f":"IF(TRIM(DU8)=\"\", \"\", IF(VLOOKUP(DU8,'Footnotes list'!$D$9:$E$58,2,FALSE)=0,\"\",VLOOKUP(DU8,'Footnotes list'!$D$9:$E$58,2,FALSE) ) )","v":""},{"$f":"IF(COUNT(DW9)=1,SUM(DW9),\"\")","v":""},null,null,null,{"$f":"IF(TRIM(DZ8)=\"\", \"\", IF(VLOOKUP(DZ8,'Footnotes list'!$D$9:$E$58,2,FALSE)=0,\"\",VLOOKUP(DZ8,'Footnotes list'!$D$9:$E$58,2,FALSE) ) )","v":""},{"$f":"IF(COUNT(EB9)=1,SUM(EB9),\"\")","v":""},null,null,null,{"$f":"IF(TRIM(EE8)=\"\", \"\", IF(VLOOKUP(EE8,'Footnotes list'!$D$9:$E$58,2,FALSE)=0,\"\",VLOOKUP(EE8,'Footnotes list'!$D$9:$E$58,2,FALSE) ) )","v":""},{"$f":"IF(COUNT(EG9)=1,SUM(EG9),\"\")","v":""},null,null,null,{"$f":"IF(TRIM(EJ8)=\"\", \"\", IF(VLOOKUP(EJ8,'Footnotes list'!$D$9:$E$58,2,FALSE)=0,\"\",VLOOKUP(EJ8,'Footnotes list'!$D$9:$E$58,2,FALSE) ) )","v":""},{"$f":"IF(COUNT(EL9)=1,SUM(EL9),\"\")","v":""},null,null,null,{"$f":"IF(TRIM(EO8)=\"\", \"\", IF(VLOOKUP(EO8,'Footnotes list'!$D$9:$E$58,2,FALSE)=0,\"\",VLOOKUP(EO8,'Footnotes list'!$D$9:$E$58,2,FALSE) ) )","v":""},{"$f":"IF(COUNT(EQ9)=1,SUM(EQ9),\"\")","v":""},null,null,null,{"$f":"IF(TRIM(ET8)=\"\", \"\", IF(VLOOKUP(ET8,'Footnotes list'!$D$9:$E$58,2,FALSE)=0,\"\",VLOOKUP(ET8,'Footnotes list'!$D$9:$E$58,2,FALSE) ) )","v":""},{"$f":"IF(COUNT(EV9)=1,SUM(EV9),\"\")","v":""},null,null,null,{"$f":"IF(TRIM(EY8)=\"\", \"\", IF(VLOOKUP(EY8,'Footnotes list'!$D$9:$E$58,2,FALSE)=0,\"\",VLOOKUP(EY8,'Footnotes list'!$D$9:$E$58,2,FALSE) ) )","v":""},{"$f":"IF(COUNT(DW8,EB8,EG8,EL8,EQ8)=5,SUM(DW8,EB8,EG8,EL8,EQ8,EV8),\"\")","v":""},null,null,null,{"$f":"IF(TRIM(FD8)=\"\", \"\", IF(VLOOKUP(FD8,'Footnotes list'!$D$9:$E$58,2,FALSE)=0,\"\",VLOOKUP(FD8,'Footnotes list'!$D$9:$E$58,2,FALSE) ) )","v":""},{"$f":"IF(COUNT(DR8,FA8)=2,SUM(DR8,FA8),\"\")","v":""},null,null,null,{"$f":"IF(TRIM(FI8)=\"\", \"\", IF(VLOOKUP(FI8,'Footnotes list'!$D$9:$E$58,2,FALSE)=0,\"\",VLOOKUP(FI8,'Footnotes list'!$D$9:$E$58,2,FALSE) ) )","v":""},{"$f":"IF(COUNT(FK9,FK14)=2,SUM(FK9,FK14),\"\")","v":""},null,null,null,{"$f":"IF(TRIM(FN8)=\"\", \"\", IF(VLOOKUP(FN8,'Footnotes list'!$D$9:$E$58,2,FALSE)=0,\"\",VLOOKUP(FN8,'Footnotes list'!$D$9:$E$58,2,FALSE) ) )","v":""}]
["S1","P51G_CA_FC","TOTAL","TOTAL","S1 TOTAL ECONOMY, of which:","GFCF for (characteristic) activities",{"$f":"IF(COUNT(G10:G12)=3,SUM(G10:G12),\"\")","v":""},null,null,null,{"$f":"IF(TRIM(J9)=\"\", \"\", IF(VLOOKUP(J9,'Footnotes list'!$D$9:$E$58,2,FALSE)=0,\"\",VLOOKUP(J9,'Footnotes list'!$D$9:$E$58,2,FALSE) ) )","v":""},{"$f":"IF(COUNT(L10:L12)=3,SUM(L10:L12),\"\")","v":""},null,null,null,{"$f":"IF(TRIM(O9)=\"\", \"\", IF(VLOOKUP(O9,'Footnotes list'!$D$9:$E$58,2,FALSE)=0,\"\",VLOOKUP(O9,'Footnotes list'!$D$9:$E$58,2,FALSE) ) )","v":""},{"$f":"IF(COUNT(Q10:Q12)=3,SUM(Q10:Q12),\"\")","v":""},null,null,null,{"$f":"IF(TRIM(T9)=\"\", \"\", IF(VLOOKUP(T9,'Footnotes list'!$D$9:$E$58,2,FALSE)=0,\"\",VLOOKUP(T9,'Footnotes list'!$D$9:$E$58,2,FALSE) ) )","v":""},{"$f":"IF(COUNT(V10:V12)=3,SUM(V10:V12),\"\")","v":""},null,null,null,{"$f":"IF(TRIM(Y9)=\"\", \"\", IF(VLOOKUP(Y9,'Footnotes list'!$D$9:$E$58,2,FALSE)=0,\"\",VLOOKUP(Y9,'Footnotes list'!$D$9:$E$58,2,FALSE) ) )","v":""},{"$f":"IF(COUNT(AA10:AA12)=3,SUM(AA10:AA12),\"\")","v":""},null,null,null,{"$f":"IF(TRIM(AD9)=\"\", \"\", IF(VLOOKUP(AD9,'Footnotes list'!$D$9:$E$58,2,FALSE)=0,\"\",VLOOKUP(AD9,'Footnotes list'!$D$9:$E$58,2,FALSE) ) )","v":""},{"$f":"IF(COUNT(AF10:AF12)=3,SUM(AF10:AF12),\"\")","v":""},null,null,null,{"$f":"IF(TRIM(AI9)=\"\", \"\", IF(VLOOKUP(AI9,'Footnotes list'!$D$9:$E$58,2,FALSE)=0,\"\",VLOOKUP(AI9,'Footnotes list'!$D$9:$E$58,2,FALSE) ) )","v":""},{"$f":"IF(COUNT(AK10:AK12)=3,SUM(AK10:AK12),\"\")","v":""},null,null,null,{"$f":"IF(TRIM(AN9)=\"\", \"\", IF(VLOOKUP(AN9,'Footnotes list'!$D$9:$E$58,2,FALSE)=0,\"\",VLOOKUP(AN9,'Footnotes list'!$D$9:$E$58,2,FALSE) ) )","v":""},{"$f":"IF(COUNT(AP10:AP12)=3,SUM(AP10:AP12),\"\")","v":""},null,null,null,{"$f":"IF(TRIM(AS9)=\"\", \"\", IF(VLOOKUP(AS9,'Footnotes list'!$D$9:$E$58,2,FALSE)=0,\"\",VLOOKUP(AS9,'Footnotes list'!$D$9:$E$58,2,FALSE) ) )","v":""},{"$f":"IF(COUNT(AU10:AU12)=3,SUM(AU10:AU12),\"\")","v":""},null,null,null,{"$f":"IF(TRIM(AX9)=\"\", \"\", IF(VLOOKUP(AX9,'Footnotes list'!$D$9:$E$58,2,FALSE)=0,\"\",VLOOKUP(AX9,'Footnotes list'!$D$9:$E$58,2,FALSE) ) )","v":""},{"$f":"IF(COUNT(AZ10:AZ12)=3,SUM(AZ10:AZ12),\"\")","v":""},null,null,null,{"$f":"IF(TRIM(BC9)=\"\", \"\", IF(VLOOKUP(BC9,'Footnotes list'!$D$9:$E$58,2,FALSE)=0,\"\",VLOOKUP(BC9,'Footnotes list'!$D$9:$E$58,2,FALSE) ) )","v":""},{"$f":"IF(COUNT(BE10:BE12)=3,SUM(BE10:BE12),\"\")","v":""},null,null,null,{"$f":"IF(TRIM(BH9)=\"\", \"\", IF(VLOOKUP(BH9,'Footnotes list'!$D$9:$E$58,2,FALSE)=0,\"\",VLOOKUP(BH9,'Footnotes list'!$D$9:$E$58,2,FALSE) ) )","v":""},{"$f":"IF(COUNT(BJ10:BJ12)=3,SUM(BJ10:BJ12),\"\")","v":""},null,null,null,{"$f":"IF(TRIM(BM9)=\"\", \"\", IF(VLOOKUP(BM9,'Footnotes list'!$D$9:$E$58,2,FALSE)=0,\"\",VLOOKUP(BM9,'Footnotes list'!$D$9:$E$58,2,FALSE) ) )","v":""},{"$f":"IF(COUNT(BO10:BO12)=3,SUM(BO10:BO12),\"\")","v":""},null,null,null,{"$f":"IF(TRIM(BR9)=\"\", \"\", IF(VLOOKUP(BR9,'Footnotes list'!$D$9:$E$58,2,FALSE)=0,\"\",VLOOKUP(BR9,'Footnotes list'!$D$9:$E$58,2,FALSE) ) )","v":""},{"$f":"IF(COUNT(BT10:BT12)=3,SUM(BT10:BT12),\"\")","v":""},null,null,null,{"$f":"IF(TRIM(BW9)=\"\", \"\", IF(VLOOKUP(BW9,'Footnotes list'!$D$9:$E$58,2,FALSE)=0,\"\",VLOOKUP(BW9,'Footnotes list'!$D$9:$E$58,2,FALSE) ) )","v":""},{"$f":"IF(COUNT(BY10:BY12)=3,SUM(BY10:BY12),\"\")","v":""},null,null,null,{"$f":"IF(TRIM(CB9)=\"\", \"\", IF(VLOOKUP(CB9,'Footnotes list'!$D$9:$E$58,2,FALSE)=0,\"\",VLOOKUP(CB9,'Footnotes list'!$D$9:$E$58,2,FALSE) ) )","v":""},{"$f":"IF(COUNT(CD10:CD12)=3,SUM(CD10:CD12),\"\")","v":""},null,null,null,{"$f":"IF(TRIM(CG9)=\"\", \"\", IF(VLOOKUP(CG9,'Footnotes list'!$D$9:$E$58,2,FALSE)=0,\"\",VLOOKUP(CG9,'Footnotes list'!$D$9:$E$58,2,FALSE) ) )","v":""},{"$f":"IF(COUNT(CI10:CI12)=3,SUM(CI10:CI12),\"\")","v":""},null,null,null,{"$f":"IF(TRIM(CL9)=\"\", \"\", IF(VLOOKUP(CL9,'Footnotes list'!$D$9:$E$58,2,FALSE)=0,\"\",VLOOKUP(CL9,'Footnotes list'!$D$9:$E$58,2,FALSE) ) )","v":""},{"$f":"IF(COUNT(CN10:CN12)=3,SUM(CN10:CN12),\"\")","v":""},null,null,null,{"$f":"IF(TRIM(CQ9)=\"\", \"\", IF(VLOOKUP(CQ9,'Footnotes list'!$D$9:$E$58,2,FALSE)=0,\"\",VLOOKUP(CQ9,'Footnotes list'!$D$9:$E$58,2,FALSE) ) )","v":""},{"$f":"IF(COUNT(CS10:CS12)=3,SUM(CS10:CS12),\"\")","v":""},null,null,null,{"$f":"IF(TRIM(CV9)=\"\", \"\", IF(VLOOKUP(CV9,'Footnotes list'!$D$9:$E$58,2,FALSE)=0,\"\",VLOOKUP(CV9,'Footnotes list'!$D$9:$E$58,2,FALSE) ) )","v":""},{"$f":"IF(COUNT(CX10:CX12)=3,SUM(CX10:CX12),\"\")","v":""},null,null,null,{"$f":"IF(TRIM(DA9)=\"\", \"\", IF(VLOOKUP(DA9,'Footnotes list'!$D$9:$E$58,2,FALSE)=0,\"\",VLOOKUP(DA9,'Footnotes list'!$D$9:$E$58,2,FALSE) ) )","v":""},{"$f":"IF(COUNT(DC10:DC12)=3,SUM(DC10:DC12),\"\")","v":""},null,null,null,{"$f":"IF(TRIM(DF9)=\"\", \"\", IF(VLOOKUP(DF9,'Footnotes list'!$D$9:$E$58,2,FALSE)=0,\"\",VLOOKUP(DF9,'Footnotes list'!$D$9:$E$58,2,FALSE) ) )","v":""},{"$f":"IF(COUNT(DH10:DH12)=3,SUM(DH10:DH12),\"\")","v":""},null,null,null,{"$f":"IF(TRIM(DK9)=\"\", \"\", IF(VLOOKUP(DK9,'Footnotes list'!$D$9:$E$58,2,FALSE)=0,\"\",VLOOKUP(DK9,'Footnotes list'!$D$9:$E$58,2,FALSE) ) )","v":""},{"$f":"IF(COUNT(DM10:DM12)=3,SUM(DM10:DM12),\"\")","v":""},null,null,null,{"$f":"IF(TRIM(DP9)=\"\", \"\", IF(VLOOKUP(DP9,'Footnotes list'!$D$9:$E$58,2,FALSE)=0,\"\",VLOOKUP(DP9,'Footnotes list'!$D$9:$E$58,2,FALSE) ) )","v":""},{"$f":"IF(COUNT(G9,V9,AF9,AZ9,BJ9,BO9,BT9,CI9,CS9,DH9)=10,SUM(G9,V9,AF9,AZ9,BJ9,BO9,BT9,CI9,CS9,DH9,DM9),\"\")","v":""},null,null,null,{"$f":"IF(TRIM(DU9)=\"\", \"\", IF(VLOOKUP(DU9,'Footnotes list'!$D$9:$E$58,2,FALSE)=0,\"\",VLOOKUP(DU9,'Footnotes list'!$D$9:$E$58,2,FALSE) ) )","v":""},{"$f":"IF(COUNT(DW10:DW12)=3,SUM(DW10:DW12),\"\")","v":""},null,null,null,{"$f":"IF(TRIM(DZ9)=\"\", \"\", IF(VLOOKUP(DZ9,'Footnotes list'!$D$9:$E$58,2,FALSE)=0,\"\",VLOOKUP(DZ9,'Footnotes list'!$D$9:$E$58,2,FALSE) ) )","v":""},{"$f":"IF(COUNT(EB10:EB12)=3,SUM(EB10:EB12),\"\")","v":""},null,null,null,{"$f":"IF(TRIM(EE9)=\"\", \"\", IF(VLOOKUP(EE9,'Footnotes list'!$D$9:$E$58,2,FALSE)=0,\"\",VLOOKUP(EE9,'Footnotes list'!$D$9:$E$58,2,FALSE) ) )","v":""},{"$f":"IF(COUNT(EG10:EG12)=3,SUM(EG10:EG12),\"\")","v":""},null,null,null,{"$f":"IF(TRIM(EJ9)=\"\", \"\", IF(VLOOKUP(EJ9,'Footnotes list'!$D$9:$E$58,2,FALSE)=0,\"\",VLOOKUP(EJ9,'Footnotes list'!$D$9:$E$58,2,FALSE) ) )","v":""},{"$f":"IF(COUNT(EL10:EL12)=3,SUM(EL10:EL12),\"\")","v":""},null,null,null,{"$f":"IF(TRIM(EO9)=\"\", \"\", IF(VLOOKUP(EO9,'Footnotes list'!$D$9:$E$58,2,FALSE)=0,\"\",VLOOKUP(EO9,'Footnotes list'!$D$9:$E$58,2,FALSE) ) )","v":""},{"$f":"IF(COUNT(EQ10:EQ12)=3,SUM(EQ10:EQ12),\"\")","v":""},null,null,null,{"$f":"IF(TRIM(ET9)=\"\", \"\", IF(VLOOKUP(ET9,'Footnotes list'!$D$9:$E$58,2,FALSE)=0,\"\",VLOOKUP(ET9,'Footnotes list'!$D$9:$E$58,2,FALSE) ) )","v":""},{"$f":"IF(COUNT(EV10:EV12)=3,SUM(EV10:EV12),\"\")","v":""},null,null,null,{"$f":"IF(TRIM(EY9)=\"\", \"\", IF(VLOOKUP(EY9,'Footnotes list'!$D$9:$E$58,2,FALSE)=0,\"\",VLOOKUP(EY9,'Footnotes list'!$D$9:$E$58,2,FALSE) ) )","v":""},{"$f":"IF(COUNT(DW9,EB9,EG9,EL9,EQ9)=5,SUM(DW9,EB9,EG9,EL9,EQ9,EV9),\"\")","v":""},null,null,null,{"$f":"IF(TRIM(FD9)=\"\", \"\", IF(VLOOKUP(FD9,'Footnotes list'!$D$9:$E$58,2,FALSE)=0,\"\",VLOOKUP(FD9,'Footnotes list'!$D$9:$E$58,2,FALSE) ) )","v":""},{"$f":"IF(COUNT(DR9,FA9)=2,SUM(DR9,FA9),\"\")","v":""},null,null,null,{"$f":"IF(TRIM(FI9)=\"\", \"\", IF(VLOOKUP(FI9,'Footnotes list'!$D$9:$E$58,2,FALSE)=0,\"\",VLOOKUP(FI9,'Footnotes list'!$D$9:$E$58,2,FALSE) ) )","v":""},{"$f":"IF(COUNT(FK10:FK12)=3,SUM(FK10:FK12),\"\")","v":""},null,null,null,{"$f":"IF(TRIM(FN9)=\"\", \"\", IF(VLOOKUP(FN9,'Footnotes list'!$D$9:$E$58,2,FALSE)=0,\"\",VLOOKUP(FN9,'Footnotes list'!$D$9:$E$58,2,FALSE) ) )","v":""}]
["S11_S12","P51G_CA_FC","TOTAL","TOTAL","S11_S12 Corporations",null,{"$f":"IF(COUNT(G19:G29)=11,SUM(G19:G29),\"\")","v":""},null,null,null,{"$f":"IF(TRIM(J10)=\"\", \"\", IF(VLOOKUP(J10,'Footnotes list'!$D$9:$E$58,2,FALSE)=0,\"\",VLOOKUP(J10,'Footnotes list'!$D$9:$E$58,2,FALSE) ) )","v":""},{"$f":"IF(COUNT(L19:L29)=11,SUM(L19:L29),\"\")","v":""},null,null,null,{"$f":"IF(TRIM(O10)=\"\", \"\", IF(VLOOKUP(O10,'Footnotes list'!$D$9:$E$58,2,FALSE)=0,\"\",VLOOKUP(O10,'Footnotes list'!$D$9:$E$58,2,FALSE) ) )","v":""},{"$f":"IF(COUNT(Q19:Q29)=11,SUM(Q19:Q29),\"\")","v":""},null,null,null,{"$f":"IF(TRIM(T10)=\"\", \"\", IF(VLOOKUP(T10,'Footnotes list'!$D$9:$E$58,2,FALSE)=0,\"\",VLOOKUP(T10,'Footnotes list'!$D$9:$E$58,2,FALSE) ) )","v":""},{"$f":"IF(COUNT(V19:V29)=11,SUM(V19:V29),\"\")","v":""},null,null,null,{"$f":"IF(TRIM(Y10)=\"\", \"\", IF(VLOOKUP(Y10,'Footnotes list'!$D$9:$E$58,2,FALSE)=0,\"\",VLOOKUP(Y10,'Footnotes list'!$D$9:$E$58,2,FALSE) ) )","v":""},{"$f":"IF(COUNT(AA19:AA29)=11,SUM(AA19:AA29),\"\")","v":""},null,null,null,{"$f":"IF(TRIM(AD10)=\"\", \"\", IF(VLOOKUP(AD10,'Footnotes list'!$D$9:$E$58,2,FALSE)=0,\"\",VLOOKUP(AD10,'Footnotes list'!$D$9:$E$58,2,FALSE) ) )","v":""},{"$f":"IF(COUNT(AF19:AF29)=11,SUM(AF19:AF29),\"\")","v":""},null,null,null,{"$f":"IF(TRIM(AI10)=\"\", \"\", IF(VLOOKUP(AI10,'Footnotes list'!$D$9:$E$58,2,FALSE)=0,\"\",VLOOKUP(AI10,'Footnotes list'!$D$9:$E$58,2,FALSE) ) )","v":""},{"$f":"IF(COUNT(AK19:AK29)=11,SUM(AK19:AK29),\"\")","v":""},null,null,null,{"$f":"IF(TRIM(AN10)=\"\", \"\", IF(VLOOKUP(AN10,'Footnotes list'!$D$9:$E$58,2,FALSE)=0,\"\",VLOOKUP(AN10,'Footnotes list'!$D$9:$E$58,2,FALSE) ) )","v":""},{"$f":"IF(COUNT(AP19:AP29)=11,SUM(AP19:AP29),\"\")","v":""},null,null,null,{"$f":"IF(TRIM(AS10)=\"\", \"\", IF(VLOOKUP(AS10,'Footnotes list'!$D$9:$E$58,2,FALSE)=0,\"\",VLOOKUP(AS10,'Footnotes list'!$D$9:$E$58,2,FALSE) ) )","v":""},{"$f":"IF(COUNT(AU19:AU29)=11,SUM(AU19:AU29),\"\")","v":""},null,null,null,{"$f":"IF(TRIM(AX10)=\"\", \"\", IF(VLOOKUP(AX10,'Footnotes list'!$D$9:$E$58,2,FALSE)=0,\"\",VLOOKUP(AX10,'Footnotes list'!$D$9:$E$58,2,FALSE) ) )","v":""},{"$f":"IF(COUNT(AZ19:AZ29)=11,SUM(AZ19:AZ29),\"\")","v":""},null,null,null,{"$f":"IF(TRIM(BC10)=\"\", \"\", IF(VLOOKUP(BC10,'Footnotes list'!$D$9:$E$58,2,FALSE)=0,\"\",VLOOKUP(BC10,'Footnotes list'!$D$9:$E$58,2,FALSE) ) )","v":""},{"$f":"IF(COUNT(BE19:BE29)=11,SUM(BE19:BE29),\"\")","v":""},null,null,null,{"$f":"IF(TRIM(BH10)=\"\", \"\", IF(VLOOKUP(BH10,'Footnotes list'!$D$9:$E$58,2,FALSE)=0,\"\",VLOOKUP(BH10,'Footnotes list'!$D$9:$E$58,2,FALSE) ) )","v":""},{"$f":"IF(COUNT(BJ19:BJ29)=11,SUM(BJ19:BJ29),\"\")","v":""},null,null,null,{"$f":"IF(TRIM(BM10)=\"\", \"\", IF(VLOOKUP(BM10,'Footnotes list'!$D$9:$E$58,2,FALSE)=0,\"\",VLOOKUP(BM10,'Footnotes list'!$D$9:$E$58,2,FALSE) ) )","v":""},{"$f":"IF(COUNT(BO19:BO29)=11,SUM(BO19:BO29),\"\")","v":""},null,null,null,{"$f":"IF(TRIM(BR10)=\"\", \"\", IF(VLOOKUP(BR10,'Footnotes list'!$D$9:$E$58,2,FALSE)=0,\"\",VLOOKUP(BR10,'Footnotes list'!$D$9:$E$58,2,FALSE) ) )","v":""},{"$f":"IF(COUNT(BT19:BT29)=11,SUM(BT19:BT29),\"\")","v":""},null,null,null,{"$f":"IF(TRIM(BW10)=\"\", \"\", IF(VLOOKUP(BW10,'Footnotes list'!$D$9:$E$58,2,FALSE)=0,\"\",VLOOKUP(BW10,'Footnotes list'!$D$9:$E$58,2,FALSE) ) )","v":""},{"$f":"IF(COUNT(BY19:BY29)=11,SUM(BY19:BY29),\"\")","v":""},null,null,null,{"$f":"IF(TRIM(CB10)=\"\", \"\", IF(VLOOKUP(CB10,'Footnotes list'!$D$9:$E$58,2,FALSE)=0,\"\",VLOOKUP(CB10,'Footnotes list'!$D$9:$E$58,2,FALSE) ) )","v":""},{"$f":"IF(COUNT(CD19:CD29)=11,SUM(CD19:CD29),\"\")","v":""},null,null,null,{"$f":"IF(TRIM(CG10)=\"\", \"\", IF(VLOOKUP(CG10,'Footnotes list'!$D$9:$E$58,2,FALSE)=0,\"\",VLOOKUP(CG10,'Footnotes list'!$D$9:$E$58,2,FALSE) ) )","v":""},{"$f":"IF(COUNT(CI19:CI29)=11,SUM(CI19:CI29),\"\")","v":""},null,null,null,{"$f":"IF(TRIM(CL10)=\"\", \"\", IF(VLOOKUP(CL10,'Footnotes list'!$D$9:$E$58,2,FALSE)=0,\"\",VLOOKUP(CL10,'Footnotes list'!$D$9:$E$58,2,FALSE) ) )","v":""},{"$f":"IF(COUNT(CN19:CN29)=11,SUM(CN19:CN29),\"\")","v":""},null,null,null,{"$f":"IF(TRIM(CQ10)=\"\", \"\", IF(VLOOKUP(CQ10,'Footnotes list'!$D$9:$E$58,2,FALSE)=0,\"\",VLOOKUP(CQ10,'Footnotes list'!$D$9:$E$58,2,FALSE) ) )","v":""},{"$f":"IF(COUNT(CS19:CS29)=11,SUM(CS19:CS29),\"\")","v":""},null,null,null,{"$f":"IF(TRIM(CV10)=\"\", \"\", IF(VLOOKUP(CV10,'Footnotes list'!$D$9:$E$58,2,FALSE)=0,\"\",VLOOKUP(CV10,'Footnotes list'!$D$9:$E$58,2,FALSE) ) )","v":""},{"$f":"IF(COUNT(CX19:CX29)=11,SUM(CX19:CX29),\"\")","v":""},null,null,null,{"$f":"IF(TRIM(DA10)=\"\", \"\", IF(VLOOKUP(DA10,'Footnotes list'!$D$9:$E$58,2,FALSE)=0,\"\",VLOOKUP(DA10,'Footnotes list'!$D$9:$E$58,2,FALSE) ) )","v":""},{"$f":"IF(COUNT(DC19:DC29)=11,SUM(DC19:DC29),\"\")","v":""},null,null,null,{"$f":"IF(TRIM(DF10)=\"\", \"\", IF(VLOOKUP(DF10,'Footnotes list'!$D$9:$E$58,2,FALSE)=0,\"\",VLOOKUP(DF10,'Footnotes list'!$D$9:$E$58,2,FALSE) ) )","v":""},{"$f":"IF(COUNT(DH19:DH29)=11,SUM(DH19:DH29),\"\")","v":""},null,null,null,{"$f":"IF(TRIM(DK10)=\"\", \"\", IF(VLOOKUP(DK10,'Footnotes list'!$D$9:$E$58,2,FALSE)=0,\"\",VLOOKUP(DK10,'Footnotes list'!$D$9:$E$58,2,FALSE) ) )","v":""},{"$f":"IF(COUNT(DM19:DM29)=11,SUM(DM19:DM29),\"\")","v":""},null,null,null,{"$f":"IF(TRIM(DP10)=\"\", \"\", IF(VLOOKUP(DP10,'Footnotes list'!$D$9:$E$58,2,FALSE)=0,\"\",VLOOKUP(DP10,'Footnotes list'!$D$9:$E$58,2,FALSE) ) )","v":""},"",null,null,null,{"$f":"IF(TRIM(DU10)=\"\", \"\", IF(VLOOKUP(DU10,'Footnotes list'!$D$9:$E$58,2,FALSE)=0,\"\",VLOOKUP(DU10,'Footnotes list'!$D$9:$E$58,2,FALSE) ) )","v":""},{"$f":"IF(COUNT(DW19:DW29)=11,SUM(DW19:DW29),\"\")","v":""},null,null,null,{"$f":"IF(TRIM(DZ10)=\"\", \"\", IF(VLOOKUP(DZ10,'Footnotes list'!$D$9:$E$58,2,FALSE)=0,\"\",VLOOKUP(DZ10,'Footnotes list'!$D$9:$E$58,2,FALSE) ) )","v":""},{"$f":"IF(COUNT(EB19:EB29)=11,SUM(EB19:EB29),\"\")","v":""},null,null,null,{"$f":"IF(TRIM(EE10)=\"\", \"\", IF(VLOOKUP(EE10,'Footnotes list'!$D$9:$E$58,2,FALSE)=0,\"\",VLOOKUP(EE10,'Footnotes list'!$D$9:$E$58,2,FALSE) ) )","v":""},{"$f":"IF(COUNT(EG19:EG29)=11,SUM(EG19:EG29),\"\")","v":""},null,null,null,{"$f":"IF(TRIM(EJ10)=\"\", \"\", IF(VLOOKUP(EJ10,'Footnotes list'!$D$9:$E$58,2,FALSE)=0,\"\",VLOOKUP(EJ10,'Footnotes list'!$D$9:$E$58,2,FALSE) ) )","v":""},{"$f":"IF(COUNT(EL19:EL29)=11,SUM(EL19:EL29),\"\")","v":""},null,null,null,{"$f":"IF(TRIM(EO10)=\"\", \"\", IF(VLOOKUP(EO10,'Footnotes list'!$D$9:$E$58,2,FALSE)=0,\"\",VLOOKUP(EO10,'Footnotes list'!$D$9:$E$58,2,FALSE) ) )","v":""},{"$f":"IF(COUNT(EQ19:EQ29)=11,SUM(EQ19:EQ29),\"\")","v":""},null,null,null,{"$f":"IF(TRIM(ET10)=\"\", \"\", IF(VLOOKUP(ET10,'Footnotes list'!$D$9:$E$58,2,FALSE)=0,\"\",VLOOKUP(ET10,'Footnotes list'!$D$9:$E$58,2,FALSE) ) )","v":""},{"$f":"IF(COUNT(EV19:EV29)=11,SUM(EV19:EV29),\"\")","v":""},null,null,null,{"$f":"IF(TRIM(EY10)=\"\", \"\", IF(VLOOKUP(EY10,'Footnotes list'!$D$9:$E$58,2,FALSE)=0,\"\",VLOOKUP(EY10,'Footnotes list'!$D$9:$E$58,2,FALSE) ) )","v":""},"",null,null,null,{"$f":"IF(TRIM(FD10)=\"\", \"\", IF(VLOOKUP(FD10,'Footnotes list'!$D$9:$E$58,2,FALSE)=0,\"\",VLOOKUP(FD10,'Footnotes list'!$D$9:$E$58,2,FALSE) ) )","v":""},"",null,null,null,{"$f":"IF(TRIM(FI10)=\"\", \"\", IF(VLOOKUP(FI10,'Footnotes list'!$D$9:$E$58,2,FALSE)=0,\"\",VLOOKUP(FI10,'Footnotes list'!$D$9:$E$58,2,FALSE) ) )","v":""},{"$f":"IF(COUNT(FK19:FK29)=11,SUM(FK19:FK29),\"\")","v":""},null,null,null,{"$f":"IF(TRIM(FN10)=\"\", \"\", IF(VLOOKUP(FN10,'Footnotes list'!$D$9:$E$58,2,FALSE)=0,\"\",VLOOKUP(FN10,'Footnotes list'!$D$9:$E$58,2,FALSE) ) )","v":""}]
["S13","P51G_CA_FC","TOTAL","TOTAL","S13 General Government",null,null,null,null,null,{"$f":"IF(TRIM(J11)=\"\", \"\", IF(VLOOKUP(J11,'Footnotes list'!$D$9:$E$58,2,FALSE)=0,\"\",VLOOKUP(J11,'Footnotes list'!$D$9:$E$58,2,FALSE) ) )","v":""},null,null,null,null,{"$f":"IF(TRIM(O11)=\"\", \"\", IF(VLOOKUP(O11,'Footnotes list'!$D$9:$E$58,2,FALSE)=0,\"\",VLOOKUP(O11,'Footnotes list'!$D$9:$E$58,2,FALSE) ) )","v":""},null,null,null,null,{"$f":"IF(TRIM(T11)=\"\", \"\", IF(VLOOKUP(T11,'Footnotes list'!$D$9:$E$58,2,FALSE)=0,\"\",VLOOKUP(T11,'Footnotes list'!$D$9:$E$58,2,FALSE) ) )","v":""},null,null,null,null,{"$f":"IF(TRIM(Y11)=\"\", \"\", IF(VLOOKUP(Y11,'Footnotes list'!$D$9:$E$58,2,FALSE)=0,\"\",VLOOKUP(Y11,'Footnotes list'!$D$9:$E$58,2,FALSE) ) )","v":""},null,null,null,null,{"$f":"IF(TRIM(AD11)=\"\", \"\", IF(VLOOKUP(AD11,'Footnotes list'!$D$9:$E$58,2,FALSE)=0,\"\",VLOOKUP(AD11,'Footnotes list'!$D$9:$E$58,2,FALSE) ) )","v":""},null,null,null,null,{"$f":"IF(TRIM(AI11)=\"\", \"\", IF(VLOOKUP(AI11,'Footnotes list'!$D$9:$E$58,2,FALSE)=0,\"\",VLOOKUP(AI11,'Footnotes list'!$D$9:$E$58,2,FALSE) ) )","v":""},null,null,null,null,{"$f":"IF(TRIM(AN11)=\"\", \"\", IF(VLOOKUP(AN11,'Footnotes list'!$D$9:$E$58,2,FALSE)=0,\"\",VLOOKUP(AN11,'Footnotes list'!$D$9:$E$58,2,FALSE) ) )","v":""},null,null,null,null,{"$f":"IF(TRIM(AS11)=\"\", \"\", IF(VLOOKUP(AS11,'Footnotes list'!$D$9:$E$58,2,FALSE)=0,\"\",VLOOKUP(AS11,'Footnotes list'!$D$9:$E$58,2,FALSE) ) )","v":""},null,null,null,null,{"$f":"IF(TRIM(AX11)=\"\", \"\", IF(VLOOKUP(AX11,'Footnotes list'!$D$9:$E$58,2,FALSE)=0,\"\",VLOOKUP(AX11,'Footnotes list'!$D$9:$E$58,2,FALSE) ) )","v":""},null,null,null,null,{"$f":"IF(TRIM(BC11)=\"\", \"\", IF(VLOOKUP(BC11,'Footnotes list'!$D$9:$E$58,2,FALSE)=0,\"\",VLOOKUP(BC11,'Footnotes list'!$D$9:$E$58,2,FALSE) ) )","v":""},null,null,null,null,{"$f":"IF(TRIM(BH11)=\"\", \"\", IF(VLOOKUP(BH11,'Footnotes list'!$D$9:$E$58,2,FALSE)=0,\"\",VLOOKUP(BH11,'Footnotes list'!$D$9:$E$58,2,FALSE) ) )","v":""},null,null,null,null,{"$f":"IF(TRIM(BM11)=\"\", \"\", IF(VLOOKUP(BM11,'Footnotes list'!$D$9:$E$58,2,FALSE)=0,\"\",VLOOKUP(BM11,'Footnotes list'!$D$9:$E$58,2,FALSE) ) )","v":""},null,null,null,null,{"$f":"IF(TRIM(BR11)=\"\", \"\", IF(VLOOKUP(BR11,'Footnotes list'!$D$9:$E$58,2,FALSE)=0,\"\",VLOOKUP(BR11,'Footnotes list'!$D$9:$E$58,2,FALSE) ) )","v":""},null,null,null,null,{"$f":"IF(TRIM(BW11)=\"\", \"\", IF(VLOOKUP(BW11,'Footnotes list'!$D$9:$E$58,2,FALSE)=0,\"\",VLOOKUP(BW11,'Footnotes list'!$D$9:$E$58,2,FALSE) ) )","v":""},null,null,null,null,{"$f":"IF(TRIM(CB11)=\"\", \"\", IF(VLOOKUP(CB11,'Footnotes list'!$D$9:$E$58,2,FALSE)=0,\"\",VLOOKUP(CB11,'Footnotes list'!$D$9:$E$58,2,FALSE) ) )","v":""},null,null,null,null,{"$f":"IF(TRIM(CG11)=\"\", \"\", IF(VLOOKUP(CG11,'Footnotes list'!$D$9:$E$58,2,FALSE)=0,\"\",VLOOKUP(CG11,'Footnotes list'!$D$9:$E$58,2,FALSE) ) )","v":""},null,null,null,null,{"$f":"IF(TRIM(CL11)=\"\", \"\", IF(VLOOKUP(CL11,'Footnotes list'!$D$9:$E$58,2,FALSE)=0,\"\",VLOOKUP(CL11,'Footnotes list'!$D$9:$E$58,2,FALSE) ) )","v":""},null,null,null,null,{"$f":"IF(TRIM(CQ11)=\"\", \"\", IF(VLOOKUP(CQ11,'Footnotes list'!$D$9:$E$58,2,FALSE)=0,\"\",VLOOKUP(CQ11,'Footnotes list'!$D$9:$E$58,2,FALSE) ) )","v":""},null,null,null,null,{"$f":"IF(TRIM(CV11)=\"\", \"\", IF(VLOOKUP(CV11,'Footnotes list'!$D$9:$E$58,2,FALSE)=0,\"\",VLOOKUP(CV11,'Footnotes list'!$D$9:$E$58,2,FALSE) ) )","v":""},null,null,null,null,{"$f":"IF(TRIM(DA11)=\"\", \"\", IF(VLOOKUP(DA11,'Footnotes list'!$D$9:$E$58,2,FALSE)=0,\"\",VLOOKUP(DA11,'Footnotes list'!$D$9:$E$58,2,FALSE) ) )","v":""},null,null,null,null,{"$f":"IF(TRIM(DF11)=\"\", \"\", IF(VLOOKUP(DF11,'Footnotes list'!$D$9:$E$58,2,FALSE)=0,\"\",VLOOKUP(DF11,'Footnotes list'!$D$9:$E$58,2,FALSE) ) )","v":""},null,null,null,null,{"$f":"IF(TRIM(DK11)=\"\", \"\", IF(VLOOKUP(DK11,'Footnotes list'!$D$9:$E$58,2,FALSE)=0,\"\",VLOOKUP(DK11,'Footnotes list'!$D$9:$E$58,2,FALSE) ) )","v":""},null,null,null,null,{"$f":"IF(TRIM(DP11)=\"\", \"\", IF(VLOOKUP(DP11,'Footnotes list'!$D$9:$E$58,2,FALSE)=0,\"\",VLOOKUP(DP11,'Footnotes list'!$D$9:$E$58,2,FALSE) ) )","v":""},"",null,null,null,{"$f":"IF(TRIM(DU11)=\"\", \"\", IF(VLOOKUP(DU11,'Footnotes list'!$D$9:$E$58,2,FALSE)=0,\"\",VLOOKUP(DU11,'Footnotes list'!$D$9:$E$58,2,FALSE) ) )","v":""},null,null,null,null,{"$f":"IF(TRIM(DZ11)=\"\", \"\", IF(VLOOKUP(DZ11,'Footnotes list'!$D$9:$E$58,2,FALSE)=0,\"\",VLOOKUP(DZ11,'Footnotes list'!$D$9:$E$58,2,FALSE) ) )","v":""},null,null,null,null,{"$f":"IF(TRIM(EE11)=\"\", \"\", IF(VLOOKUP(EE11,'Footnotes list'!$D$9:$E$58,2,FALSE)=0,\"\",VLOOKUP(EE11,'Footnotes list'!$D$9:$E$58,2,FALSE) ) )","v":""},null,null,null,null,{"$f":"IF(TRIM(EJ11)=\"\", \"\", IF(VLOOKUP(EJ11,'Footnotes list'!$D$9:$E$58,2,FALSE)=0,\"\",VLOOKUP(EJ11,'Footnotes list'!$D$9:$E$58,2,FALSE) ) )","v":""},null,null,null,null,{"$f":"IF(TRIM(EO11)=\"\", \"\", IF(VLOOKUP(EO11,'Footnotes list'!$D$9:$E$58,2,FALSE)=0,\"\",VLOOKUP(EO11,'Footnotes list'!$D$9:$E$58,2,FALSE) ) )","v":""},null,null,null,null,{"$f":"IF(TRIM(ET11)=\"\", \"\", IF(VLOOKUP(ET11,'Footnotes list'!$D$9:$E$58,2,FALSE)=0,\"\",VLOOKUP(ET11,'Footnotes list'!$D$9:$E$58,2,FALSE) ) )","v":""},null,null,null,null,{"$f":"IF(TRIM(EY11)=\"\", \"\", IF(VLOOKUP(EY11,'Footnotes list'!$D$9:$E$58,2,FALSE)=0,\"\",VLOOKUP(EY11,'Footnotes list'!$D$9:$E$58,2,FALSE) ) )","v":""},"",null,null,null,{"$f":"IF(TRIM(FD11)=\"\", \"\", IF(VLOOKUP(FD11,'Footnotes list'!$D$9:$E$58,2,FALSE)=0,\"\",VLOOKUP(FD11,'Footnotes list'!$D$9:$E$58,2,FALSE) ) )","v":""},"",null,null,null,{"$f":"IF(TRIM(FI11)=\"\", \"\", IF(VLOOKUP(FI11,'Footnotes list'!$D$9:$E$58,2,FALSE)=0,\"\",VLOOKUP(FI11,'Footnotes list'!$D$9:$E$58,2,FALSE) ) )","v":""},null,null,null,null,{"$f":"IF(TRIM(FN11)=\"\", \"\", IF(VLOOKUP(FN11,'Footnotes list'!$D$9:$E$58,2,FALSE)=0,\"\",VLOOKUP(FN11,'Footnotes list'!$D$9:$E$58,2,FALSE) ) )","v":""}]
["S14_S15","P51G_CA_FC","TOTAL","TOTAL","S14_S15 Households and NPISH",null,null,null,null,null,{"$f":"IF(TRIM(J12)=\"\", \"\", IF(VLOOKUP(J12,'Footnotes list'!$D$9:$E$58,2,FALSE)=0,\"\",VLOOKUP(J12,'Footnotes list'!$D$9:$E$58,2,FALSE) ) )","v":""},null,null,null,null,{"$f":"IF(TRIM(O12)=\"\", \"\", IF(VLOOKUP(O12,'Footnotes list'!$D$9:$E$58,2,FALSE)=0,\"\",VLOOKUP(O12,'Footnotes list'!$D$9:$E$58,2,FALSE) ) )","v":""},null,null,null,null,{"$f":"IF(TRIM(T12)=\"\", \"\", IF(VLOOKUP(T12,'Footnotes list'!$D$9:$E$58,2,FALSE)=0,\"\",VLOOKUP(T12,'Footnotes list'!$D$9:$E$58,2,FALSE) ) )","v":""},null,null,null,null,{"$f":"IF(TRIM(Y12)=\"\", \"\", IF(VLOOKUP(Y12,'Footnotes list'!$D$9:$E$58,2,FALSE)=0,\"\",VLOOKUP(Y12,'Footnotes list'!$D$9:$E$58,2,FALSE) ) )","v":""},null,null,null,null,{"$f":"IF(TRIM(AD12)=\"\", \"\", IF(VLOOKUP(AD12,'Footnotes list'!$D$9:$E$58,2,FALSE)=0,\"\",VLOOKUP(AD12,'Footnotes list'!$D$9:$E$58,2,FALSE) ) )","v":""},null,null,null,null,{"$f":"IF(TRIM(AI12)=\"\", \"\", IF(VLOOKUP(AI12,'Footnotes list'!$D$9:$E$58,2,FALSE)=0,\"\",VLOOKUP(AI12,'Footnotes list'!$D$9:$E$58,2,FALSE) ) )","v":""},null,null,null,null,{"$f":"IF(TRIM(AN12)=\"\", \"\", IF(VLOOKUP(AN12,'Footnotes list'!$D$9:$E$58,2,FALSE)=0,\"\",VLOOKUP(AN12,'Footnotes list'!$D$9:$E$58,2,FALSE) ) )","v":""},null,null,null,null,{"$f":"IF(TRIM(AS12)=\"\", \"\", IF(VLOOKUP(AS12,'Footnotes list'!$D$9:$E$58,2,FALSE)=0,\"\",VLOOKUP(AS12,'Footnotes list'!$D$9:$E$58,2,FALSE) ) )","v":""},null,null,null,null,{"$f":"IF(TRIM(AX12)=\"\", \"\", IF(VLOOKUP(AX12,'Footnotes list'!$D$9:$E$58,2,FALSE)=0,\"\",VLOOKUP(AX12,'Footnotes list'!$D$9:$E$58,2,FALSE) ) )","v":""},null,null,null,null,{"$f":"IF(TRIM(BC12)=\"\", \"\", IF(VLOOKUP(BC12,'Footnotes list'!$D$9:$E$58,2,FALSE)=0,\"\",VLOOKUP(BC12,'Footnotes list'!$D$9:$E$58,2,FALSE) ) )","v":""},null,null,null,null,{"$f":"IF(TRIM(BH12)=\"\", \"\", IF(VLOOKUP(BH12,'Footnotes list'!$D$9:$E$58,2,FALSE)=0,\"\",VLOOKUP(BH12,'Footnotes list'!$D$9:$E$58,2,FALSE) ) )","v":""},null,null,null,null,{"$f":"IF(TRIM(BM12)=\"\", \"\", IF(VLOOKUP(BM12,'Footnotes list'!$D$9:$E$58,2,FALSE)=0,\"\",VLOOKUP(BM12,'Footnotes list'!$D$9:$E$58,2,FALSE) ) )","v":""},null,null,null,null,{"$f":"IF(TRIM(BR12)=\"\", \"\", IF(VLOOKUP(BR12,'Footnotes list'!$D$9:$E$58,2,FALSE)=0,\"\",VLOOKUP(BR12,'Footnotes list'!$D$9:$E$58,2,FALSE) ) )","v":""},null,null,null,null,{"$f":"IF(TRIM(BW12)=\"\", \"\", IF(VLOOKUP(BW12,'Footnotes list'!$D$9:$E$58,2,FALSE)=0,\"\",VLOOKUP(BW12,'Footnotes list'!$D$9:$E$58,2,FALSE) ) )","v":""},null,null,null,null,{"$f":"IF(TRIM(CB12)=\"\", \"\", IF(VLOOKUP(CB12,'Footnotes list'!$D$9:$E$58,2,FALSE)=0,\"\",VLOOKUP(CB12,'Footnotes list'!$D$9:$E$58,2,FALSE) ) )","v":""},null,null,null,null,{"$f":"IF(TRIM(CG12)=\"\", \"\", IF(VLOOKUP(CG12,'Footnotes list'!$D$9:$E$58,2,FALSE)=0,\"\",VLOOKUP(CG12,'Footnotes list'!$D$9:$E$58,2,FALSE) ) )","v":""},null,null,null,null,{"$f":"IF(TRIM(CL12)=\"\", \"\", IF(VLOOKUP(CL12,'Footnotes list'!$D$9:$E$58,2,FALSE)=0,\"\",VLOOKUP(CL12,'Footnotes list'!$D$9:$E$58,2,FALSE) ) )","v":""},null,null,null,null,{"$f":"IF(TRIM(CQ12)=\"\", \"\", IF(VLOOKUP(CQ12,'Footnotes list'!$D$9:$E$58,2,FALSE)=0,\"\",VLOOKUP(CQ12,'Footnotes list'!$D$9:$E$58,2,FALSE) ) )","v":""},null,null,null,null,{"$f":"IF(TRIM(CV12)=\"\", \"\", IF(VLOOKUP(CV12,'Footnotes list'!$D$9:$E$58,2,FALSE)=0,\"\",VLOOKUP(CV12,'Footnotes list'!$D$9:$E$58,2,FALSE) ) )","v":""},null,null,null,null,{"$f":"IF(TRIM(DA12)=\"\", \"\", IF(VLOOKUP(DA12,'Footnotes list'!$D$9:$E$58,2,FALSE)=0,\"\",VLOOKUP(DA12,'Footnotes list'!$D$9:$E$58,2,FALSE) ) )","v":""},null,null,null,null,{"$f":"IF(TRIM(DF12)=\"\", \"\", IF(VLOOKUP(DF12,'Footnotes list'!$D$9:$E$58,2,FALSE)=0,\"\",VLOOKUP(DF12,'Footnotes list'!$D$9:$E$58,2,FALSE) ) )","v":""},null,null,null,null,{"$f":"IF(TRIM(DK12)=\"\", \"\", IF(VLOOKUP(DK12,'Footnotes list'!$D$9:$E$58,2,FALSE)=0,\"\",VLOOKUP(DK12,'Footnotes list'!$D$9:$E$58,2,FALSE) ) )","v":""},null,null,null,null,{"$f":"IF(TRIM(DP12)=\"\", \"\", IF(VLOOKUP(DP12,'Footnotes list'!$D$9:$E$58,2,FALSE)=0,\"\",VLOOKUP(DP12,'Footnotes list'!$D$9:$E$58,2,FALSE) ) )","v":""},{"$f":"IF(COUNT(G12,V12,AF12,AZ12,BJ12,BO12,BT12,CI12,CS12,DH12)=10,SUM(G12,V12,AF12,AZ12,BJ12,BO12,BT12,CI12,CS12,DH12,DM12),\"\")","v":""},null,null,null,{"$f":"IF(TRIM(DU12)=\"\", \"\", IF(VLOOKUP(DU12,'Footnotes list'!$D$9:$E$58,2,FALSE)=0,\"\",VLOOKUP(DU12,'Footnotes list'!$D$9:$E$58,2,FALSE) ) )","v":""},null,null,null,null,{"$f":"IF(TRIM(DZ12)=\"\", \"\", IF(VLOOKUP(DZ12,'Footnotes list'!$D$9:$E$58,2,FALSE)=0,\"\",VLOOKUP(DZ12,'Footnotes list'!$D$9:$E$58,2,FALSE) ) )","v":""},null,null,null,null,{"$f":"IF(TRIM(EE12)=\"\", \"\", IF(VLOOKUP(EE12,'Footnotes list'!$D$9:$E$58,2,FALSE)=0,\"\",VLOOKUP(EE12,'Footnotes list'!$D$9:$E$58,2,FALSE) ) )","v":""},null,null,null,null,{"$f":"IF(TRIM(EJ12)=\"\", \"\", IF(VLOOKUP(EJ12,'Footnotes list'!$D$9:$E$58,2,FALSE)=0,\"\",VLOOKUP(EJ12,'Footnotes list'!$D$9:$E$58,2,FALSE) ) )","v":""},null,null,null,null,{"$f":"IF(TRIM(EO12)=\"\", \"\", IF(VLOOKUP(EO12,'Footnotes list'!$D$9:$E$58,2,FALSE)=0,\"\",VLOOKUP(EO12,'Footnotes list'!$D$9:$E$58,2,FALSE) ) )","v":""},null,null,null,null,{"$f":"IF(TRIM(ET12)=\"\", \"\", IF(VLOOKUP(ET12,'Footnotes list'!$D$9:$E$58,2,FALSE)=0,\"\",VLOOKUP(ET12,'Footnotes list'!$D$9:$E$58,2,FALSE) ) )","v":""},null,null,null,null,{"$f":"IF(TRIM(EY12)=\"\", \"\", IF(VLOOKUP(EY12,'Footnotes list'!$D$9:$E$58,2,FALSE)=0,\"\",VLOOKUP(EY12,'Footnotes list'!$D$9:$E$58,2,FALSE) ) )","v":""},{"$f":"IF(COUNT(DW12,EB12,EG12,EL12,EQ12)=5,SUM(DW12,EB12,EG12,EL12,EQ12,EV12),\"\")","v":""},null,null,null,{"$f":"IF(TRIM(FD12)=\"\", \"\", IF(VLOOKUP(FD12,'Footnotes list'!$D$9:$E$58,2,FALSE)=0,\"\",VLOOKUP(FD12,'Footnotes list'!$D$9:$E$58,2,FALSE) ) )","v":""},{"$f":"IF(COUNT(DR12,FA12)=2,SUM(DR12,FA12),\"\")","v":""},null,null,null,{"$f":"IF(TRIM(FI12)=\"\", \"\", IF(VLOOKUP(FI12,'Footnotes list'!$D$9:$E$58,2,FALSE)=0,\"\",VLOOKUP(FI12,'Footnotes list'!$D$9:$E$58,2,FALSE) ) )","v":""},null,null,null,null,{"$f":"IF(TRIM(FN12)=\"\", \"\", IF(VLOOKUP(FN12,'Footnotes list'!$D$9:$E$58,2,FALSE)=0,\"\",VLOOKUP(FN12,'Footnotes list'!$D$9:$E$58,2,FALSE) ) )","v":""}]
["S15","P51G_CA_FC","TOTAL",null,"of which S15 NPISH",null,null,null,null,null,{"$f":"IF(TRIM(J13)=\"\", \"\", IF(VLOOKUP(J13,'Footnotes list'!$D$9:$E$58,2,FALSE)=0,\"\",VLOOKUP(J13,'Footnotes list'!$D$9:$E$58,2,FALSE) ) )","v":""},null,null,null,null,{"$f":"IF(TRIM(O13)=\"\", \"\", IF(VLOOKUP(O13,'Footnotes list'!$D$9:$E$58,2,FALSE)=0,\"\",VLOOKUP(O13,'Footnotes list'!$D$9:$E$58,2,FALSE) ) )","v":""},null,null,null,null,{"$f":"IF(TRIM(T13)=\"\", \"\", IF(VLOOKUP(T13,'Footnotes list'!$D$9:$E$58,2,FALSE)=0,\"\",VLOOKUP(T13,'Footnotes list'!$D$9:$E$58,2,FALSE) ) )","v":""},null,null,null,null,{"$f":"IF(TRIM(Y13)=\"\", \"\", IF(VLOOKUP(Y13,'Footnotes list'!$D$9:$E$58,2,FALSE)=0,\"\",VLOOKUP(Y13,'Footnotes list'!$D$9:$E$58,2,FALSE) ) )","v":""},null,null,null,null,{"$f":"IF(TRIM(AD13)=\"\", \"\", IF(VLOOKUP(AD13,'Footnotes list'!$D$9:$E$58,2,FALSE)=0,\"\",VLOOKUP(AD13,'Footnotes list'!$D$9:$E$58,2,FALSE) ) )","v":""},null,null,null,null,{"$f":"IF(TRIM(AI13)=\"\", \"\", IF(VLOOKUP(AI13,'Footnotes list'!$D$9:$E$58,2,FALSE)=0,\"\",VLOOKUP(AI13,'Footnotes list'!$D$9:$E$58,2,FALSE) ) )","v":""},null,null,null,null,{"$f":"IF(TRIM(AN13)=\"\", \"\", IF(VLOOKUP(AN13,'Footnotes list'!$D$9:$E$58,2,FALSE)=0,\"\",VLOOKUP(AN13,'Footnotes list'!$D$9:$E$58,2,FALSE) ) )","v":""},null,null,null,null,{"$f":"IF(TRIM(AS13)=\"\", \"\", IF(VLOOKUP(AS13,'Footnotes list'!$D$9:$E$58,2,FALSE)=0,\"\",VLOOKUP(AS13,'Footnotes list'!$D$9:$E$58,2,FALSE) ) )","v":""},null,null,null,null,{"$f":"IF(TRIM(AX13)=\"\", \"\", IF(VLOOKUP(AX13,'Footnotes list'!$D$9:$E$58,2,FALSE)=0,\"\",VLOOKUP(AX13,'Footnotes list'!$D$9:$E$58,2,FALSE) ) )","v":""},null,null,null,null,{"$f":"IF(TRIM(BC13)=\"\", \"\", IF(VLOOKUP(BC13,'Footnotes list'!$D$9:$E$58,2,FALSE)=0,\"\",VLOOKUP(BC13,'Footnotes list'!$D$9:$E$58,2,FALSE) ) )","v":""},null,null,null,null,{"$f":"IF(TRIM(BH13)=\"\", \"\", IF(VLOOKUP(BH13,'Footnotes list'!$D$9:$E$58,2,FALSE)=0,\"\",VLOOKUP(BH13,'Footnotes list'!$D$9:$E$58,2,FALSE) ) )","v":""},null,null,null,null,{"$f":"IF(TRIM(BM13)=\"\", \"\", IF(VLOOKUP(BM13,'Footnotes list'!$D$9:$E$58,2,FALSE)=0,\"\",VLOOKUP(BM13,'Footnotes list'!$D$9:$E$58,2,FALSE) ) )","v":""},null,null,null,null,{"$f":"IF(TRIM(BR13)=\"\", \"\", IF(VLOOKUP(BR13,'Footnotes list'!$D$9:$E$58,2,FALSE)=0,\"\",VLOOKUP(BR13,'Footnotes list'!$D$9:$E$58,2,FALSE) ) )","v":""},null,null,null,null,{"$f":"IF(TRIM(BW13)=\"\", \"\", IF(VLOOKUP(BW13,'Footnotes list'!$D$9:$E$58,2,FALSE)=0,\"\",VLOOKUP(BW13,'Footnotes list'!$D$9:$E$58,2,FALSE) ) )","v":""},null,null,null,null,{"$f":"IF(TRIM(CB13)=\"\", \"\", IF(VLOOKUP(CB13,'Footnotes list'!$D$9:$E$58,2,FALSE)=0,\"\",VLOOKUP(CB13,'Footnotes list'!$D$9:$E$58,2,FALSE) ) )","v":""},null,null,null,null,{"$f":"IF(TRIM(CG13)=\"\", \"\", IF(VLOOKUP(CG13,'Footnotes list'!$D$9:$E$58,2,FALSE)=0,\"\",VLOOKUP(CG13,'Footnotes list'!$D$9:$E$58,2,FALSE) ) )","v":""},null,null,null,null,{"$f":"IF(TRIM(CL13)=\"\", \"\", IF(VLOOKUP(CL13,'Footnotes list'!$D$9:$E$58,2,FALSE)=0,\"\",VLOOKUP(CL13,'Footnotes list'!$D$9:$E$58,2,FALSE) ) )","v":""},null,null,null,null,{"$f":"IF(TRIM(CQ13)=\"\", \"\", IF(VLOOKUP(CQ13,'Footnotes list'!$D$9:$E$58,2,FALSE)=0,\"\",VLOOKUP(CQ13,'Footnotes list'!$D$9:$E$58,2,FALSE) ) )","v":""},null,null,null,null,{"$f":"IF(TRIM(CV13)=\"\", \"\", IF(VLOOKUP(CV13,'Footnotes list'!$D$9:$E$58,2,FALSE)=0,\"\",VLOOKUP(CV13,'Footnotes list'!$D$9:$E$58,2,FALSE) ) )","v":""},null,null,null,null,{"$f":"IF(TRIM(DA13)=\"\", \"\", IF(VLOOKUP(DA13,'Footnotes list'!$D$9:$E$58,2,FALSE)=0,\"\",VLOOKUP(DA13,'Footnotes list'!$D$9:$E$58,2,FALSE) ) )","v":""},null,null,null,null,{"$f":"IF(TRIM(DF13)=\"\", \"\", IF(VLOOKUP(DF13,'Footnotes list'!$D$9:$E$58,2,FALSE)=0,\"\",VLOOKUP(DF13,'Footnotes list'!$D$9:$E$58,2,FALSE) ) )","v":""},null,null,null,null,{"$f":"IF(TRIM(DK13)=\"\", \"\", IF(VLOOKUP(DK13,'Footnotes list'!$D$9:$E$58,2,FALSE)=0,\"\",VLOOKUP(DK13,'Footnotes list'!$D$9:$E$58,2,FALSE) ) )","v":""},null,null,null,null,{"$f":"IF(TRIM(DP13)=\"\", \"\", IF(VLOOKUP(DP13,'Footnotes list'!$D$9:$E$58,2,FALSE)=0,\"\",VLOOKUP(DP13,'Footnotes list'!$D$9:$E$58,2,FALSE) ) )","v":""},"",null,null,null,{"$f":"IF(TRIM(DU13)=\"\", \"\", IF(VLOOKUP(DU13,'Footnotes list'!$D$9:$E$58,2,FALSE)=0,\"\",VLOOKUP(DU13,'Footnotes list'!$D$9:$E$58,2,FALSE) ) )","v":""},null,null,null,null,{"$f":"IF(TRIM(DZ13)=\"\", \"\", IF(VLOOKUP(DZ13,'Footnotes list'!$D$9:$E$58,2,FALSE)=0,\"\",VLOOKUP(DZ13,'Footnotes list'!$D$9:$E$58,2,FALSE) ) )","v":""},null,null,null,null,{"$f":"IF(TRIM(EE13)=\"\", \"\", IF(VLOOKUP(EE13,'Footnotes list'!$D$9:$E$58,2,FALSE)=0,\"\",VLOOKUP(EE13,'Footnotes list'!$D$9:$E$58,2,FALSE) ) )","v":""},null,null,null,null,{"$f":"IF(TRIM(EJ13)=\"\", \"\", IF(VLOOKUP(EJ13,'Footnotes list'!$D$9:$E$58,2,FALSE)=0,\"\",VLOOKUP(EJ13,'Footnotes list'!$D$9:$E$58,2,FALSE) ) )","v":""},null,null,null,null,{"$f":"IF(TRIM(EO13)=\"\", \"\", IF(VLOOKUP(EO13,'Footnotes list'!$D$9:$E$58,2,FALSE)=0,\"\",VLOOKUP(EO13,'Footnotes list'!$D$9:$E$58,2,FALSE) ) )","v":""},null,null,null,null,{"$f":"IF(TRIM(ET13)=\"\", \"\", IF(VLOOKUP(ET13,'Footnotes list'!$D$9:$E$58,2,FALSE)=0,\"\",VLOOKUP(ET13,'Footnotes list'!$D$9:$E$58,2,FALSE) ) )","v":""},null,null,null,null,{"$f":"IF(TRIM(EY13)=\"\", \"\", IF(VLOOKUP(EY13,'Footnotes list'!$D$9:$E$58,2,FALSE)=0,\"\",VLOOKUP(EY13,'Footnotes list'!$D$9:$E$58,2,FALSE) ) )","v":""},{"$f":"IF(COUNT(DW13,EB13,EG13,EL13,EQ13)=5,SUM(DW13,EB13,EG13,EL13,EQ13,EV13),\"\")","v":""},null,null,null,{"$f":"IF(TRIM(FD13)=\"\", \"\", IF(VLOOKUP(FD13,'Footnotes list'!$D$9:$E$58,2,FALSE)=0,\"\",VLOOKUP(FD13,'Footnotes list'!$D$9:$E$58,2,FALSE) ) )","v":""},"",null,null,null,{"$f":"IF(TRIM(FI13)=\"\", \"\", IF(VLOOKUP(FI13,'Footnotes list'!$D$9:$E$58,2,FALSE)=0,\"\",VLOOKUP(FI13,'Footnotes list'!$D$9:$E$58,2,FALSE) ) )","v":""},null,null,null,null,{"$f":"IF(TRIM(FN13)=\"\", \"\", IF(VLOOKUP(FN13,'Footnotes list'!$D$9:$E$58,2,FALSE)=0,\"\",VLOOKUP(FN13,'Footnotes list'!$D$9:$E$58,2,FALSE) ) )","v":""}]
["S1","P3_P51G_CREP_FC","TOTAL","TOTAL","S1 TOTAL ECONOMY, of which:","Final consumption and GFCF in products (cleaner/resource efficient products and specific goods)",{"$f":"IF(COUNT(G15:G17)=3,SUM(G15:G17),\"\")","v":""},null,null,null,{"$f":"IF(TRIM(J14)=\"\", \"\", IF(VLOOKUP(J14,'Footnotes list'!$D$9:$E$58,2,FALSE)=0,\"\",VLOOKUP(J14,'Footnotes list'!$D$9:$E$58,2,FALSE) ) )","v":""},{"$f":"IF(COUNT(L15:L17)=3,SUM(L15:L17),\"\")","v":""},null,null,null,{"$f":"IF(TRIM(O14)=\"\", \"\", IF(VLOOKUP(O14,'Footnotes list'!$D$9:$E$58,2,FALSE)=0,\"\",VLOOKUP(O14,'Footnotes list'!$D$9:$E$58,2,FALSE) ) )","v":""},{"$f":"IF(COUNT(Q15:Q17)=3,SUM(Q15:Q17),\"\")","v":""},null,null,null,{"$f":"IF(TRIM(T14)=\"\", \"\", IF(VLOOKUP(T14,'Footnotes list'!$D$9:$E$58,2,FALSE)=0,\"\",VLOOKUP(T14,'Footnotes list'!$D$9:$E$58,2,FALSE) ) )","v":""},{"$f":"IF(COUNT(V15:V17)=3,SUM(V15:V17),\"\")","v":""},null,null,null,{"$f":"IF(TRIM(Y14)=\"\", \"\", IF(VLOOKUP(Y14,'Footnotes list'!$D$9:$E$58,2,FALSE)=0,\"\",VLOOKUP(Y14,'Footnotes list'!$D$9:$E$58,2,FALSE) ) )","v":""},{"$f":"IF(COUNT(AA15:AA17)=3,SUM(AA15:AA17),\"\")","v":""},null,null,null,{"$f":"IF(TRIM(AD14)=\"\", \"\", IF(VLOOKUP(AD14,'Footnotes list'!$D$9:$E$58,2,FALSE)=0,\"\",VLOOKUP(AD14,'Footnotes list'!$D$9:$E$58,2,FALSE) ) )","v":""},{"$f":"IF(COUNT(AF15:AF17)=3,SUM(AF15:AF17),\"\")","v":""},null,null,null,{"$f":"IF(TRIM(AI14)=\"\", \"\", IF(VLOOKUP(AI14,'Footnotes list'!$D$9:$E$58,2,FALSE)=0,\"\",VLOOKUP(AI14,'Footnotes list'!$D$9:$E$58,2,FALSE) ) )","v":""},"@",null,null,null,"",{"$f":"IF(COUNT(AP15:AP17)=3,SUM(AP15:AP17),\"\")","v":""},null,null,null,{"$f":"IF(TRIM(AS14)=\"\", \"\", IF(VLOOKUP(AS14,'Footnotes list'!$D$9:$E$58,2,FALSE)=0,\"\",VLOOKUP(AS14,'Footnotes list'!$D$9:$E$58,2,FALSE) ) )","v":""},{"$f":"IF(COUNT(AU15:AU17)=3,SUM(AU15:AU17),\"\")","v":""},null,null,null,{"$f":"IF(TRIM(AX14)=\"\", \"\", IF(VLOOKUP(AX14,'Footnotes list'!$D$9:$E$58,2,FALSE)=0,\"\",VLOOKUP(AX14,'Footnotes list'!$D$9:$E$58,2,FALSE) ) )","v":""},{"$f":"IF(COUNT(AZ15:AZ17)=3,SUM(AZ15:AZ17),\"\")","v":""},null,null,null,{"$f":"IF(TRIM(BC14)=\"\", \"\", IF(VLOOKUP(BC14,'Footnotes list'!$D$9:$E$58,2,FALSE)=0,\"\",VLOOKUP(BC14,'Footnotes list'!$D$9:$E$58,2,FALSE) ) )","v":""},{"$f":"IF(COUNT(BE15:BE17)=3,SUM(BE15:BE17),\"\")","v":""},null,null,null,{"$f":"IF(TRIM(BH14)=\"\", \"\", IF(VLOOKUP(BH14,'Footnotes list'!$D$9:$E$58,2,FALSE)=0,\"\",VLOOKUP(BH14,'Footnotes list'!$D$9:$E$58,2,FALSE) ) )","v":""},"@",null,null,null,"","@",null,null,null,"","@",null,null,null,"","@",null,null,null,"","@",null,null,null,"","@",null,null,null,"","@",null,null,null,"","@",null,null,null,"","@",null,null,null,"","@",null,null,null,"","@",null,null,null,"",{"$f":"IF(COUNT(DM15:DM17)=3,SUM(DM15:DM17),\"\")","v":""},null,null,null,{"$f":"IF(TRIM(DP14)=\"\", \"\", IF(VLOOKUP(DP14,'Footnotes list'!$D$9:$E$58,2,FALSE)=0,\"\",VLOOKUP(DP14,'Footnotes list'!$D$9:$E$58,2,FALSE) ) )","v":""},{"$f":"IF(COUNT(G14,V14,AF14,AZ14)=4,SUM(G14,V14,AF14,AZ14,DM14),\"\")","v":""},null,null,null,{"$f":"IF(TRIM(DU14)=\"\", \"\", IF(VLOOKUP(DU14,'Footnotes list'!$D$9:$E$58,2,FALSE)=0,\"\",VLOOKUP(DU14,'Footnotes list'!$D$9:$E$58,2,FALSE) ) )","v":""},"@",null,null,null,"","@",null,null,null,"","@",null,null,null,"","@",null,null,null,"","@",null,null,null,"","@",null,null,null,"","@",null,null,null,"",{"$f":"IF(COUNT(DR14)=1,SUM(DR14),\"\")","v":""},null,null,null,{"$f":"IF(TRIM(FI14)=\"\", \"\", IF(VLOOKUP(FI14,'Footnotes list'!$D$9:$E$58,2,FALSE)=0,\"\",VLOOKUP(FI14,'Footnotes list'!$D$9:$E$58,2,FALSE) ) )","v":""},{"$f":"IF(COUNT(FK15:FK17)=3,SUM(FK15:FK17),\"\")","v":""},null,null,null,{"$f":"IF(TRIM(FN14)=\"\", \"\", IF(VLOOKUP(FN14,'Footnotes list'!$D$9:$E$58,2,FALSE)=0,\"\",VLOOKUP(FN14,'Footnotes list'!$D$9:$E$58,2,FALSE) ) )","v":""}]
["S11_S12","P51G_CREP_FC","TOTAL","TOTAL","S11_S12 Corporations","GFCF in products",{"$f":"IF(COUNT(G30:G40)=11,SUM(G30:G40),\"\")","v":""},null,null,null,{"$f":"IF(TRIM(J15)=\"\", \"\", IF(VLOOKUP(J15,'Footnotes list'!$D$9:$E$58,2,FALSE)=0,\"\",VLOOKUP(J15,'Footnotes list'!$D$9:$E$58,2,FALSE) ) )","v":""},{"$f":"IF(COUNT(L30:L40)=11,SUM(L30:L40),\"\")","v":""},null,null,null,{"$f":"IF(TRIM(O15)=\"\", \"\", IF(VLOOKUP(O15,'Footnotes list'!$D$9:$E$58,2,FALSE)=0,\"\",VLOOKUP(O15,'Footnotes list'!$D$9:$E$58,2,FALSE) ) )","v":""},{"$f":"IF(COUNT(Q30:Q40)=11,SUM(Q30:Q40),\"\")","v":""},null,null,null,{"$f":"IF(TRIM(T15)=\"\", \"\", IF(VLOOKUP(T15,'Footnotes list'!$D$9:$E$58,2,FALSE)=0,\"\",VLOOKUP(T15,'Footnotes list'!$D$9:$E$58,2,FALSE) ) )","v":""},{"$f":"IF(COUNT(V30:V40)=11,SUM(V30:V40),\"\")","v":""},null,null,null,{"$f":"IF(TRIM(Y15)=\"\", \"\", IF(VLOOKUP(Y15,'Footnotes list'!$D$9:$E$58,2,FALSE)=0,\"\",VLOOKUP(Y15,'Footnotes list'!$D$9:$E$58,2,FALSE) ) )","v":""},{"$f":"IF(COUNT(AA30:AA40)=11,SUM(AA30:AA40),\"\")","v":""},null,null,null,{"$f":"IF(TRIM(AD15)=\"\", \"\", IF(VLOOKUP(AD15,'Footnotes list'!$D$9:$E$58,2,FALSE)=0,\"\",VLOOKUP(AD15,'Footnotes list'!$D$9:$E$58,2,FALSE) ) )","v":""},{"$f":"IF(COUNT(AF30:AF40)=11,SUM(AF30:AF40),\"\")","v":""},null,null,null,{"$f":"IF(TRIM(AI15)=\"\", \"\", IF(VLOOKUP(AI15,'Footnotes list'!$D$9:$E$58,2,FALSE)=0,\"\",VLOOKUP(AI15,'Footnotes list'!$D$9:$E$58,2,FALSE) ) )","v":""},"@",null,null,null,"",{"$f":"IF(COUNT(AP30:AP40)=11,SUM(AP30:AP40),\"\")","v":""},null,null,null,{"$f":"IF(TRIM(AS15)=\"\", \"\", IF(VLOOKUP(AS15,'Footnotes list'!$D$9:$E$58,2,FALSE)=0,\"\",VLOOKUP(AS15,'Footnotes list'!$D$9:$E$58,2,FALSE) ) )","v":""},{"$f":"IF(COUNT(AU30:AU40)=11,SUM(AU30:AU40),\"\")","v":""},null,null,null,{"$f":"IF(TRIM(AX15)=\"\", \"\", IF(VLOOKUP(AX15,'Footnotes list'!$D$9:$E$58,2,FALSE)=0,\"\",VLOOKUP(AX15,'Footnotes list'!$D$9:$E$58,2,FALSE) ) )","v":""},{"$f":"IF(COUNT(AZ30:AZ40)=11,SUM(AZ30:AZ40),\"\")","v":""},null,null,null,{"$f":"IF(TRIM(BC15)=\"\", \"\", IF(VLOOKUP(BC15,'Footnotes list'!$D$9:$E$58,2,FALSE)=0,\"\",VLOOKUP(BC15,'Footnotes list'!$D$9:$E$58,2,FALSE) ) )","v":""},{"$f":"IF(COUNT(BE30:BE40)=11,SUM(BE30:BE40),\"\")","v":""},null,null,null,{"$f":"IF(TRIM(BH15)=\"\", \"\", IF(VLOOKUP(BH15,'Footnotes list'!$D$9:$E$58,2,FALSE)=0,\"\",VLOOKUP(BH15,'Footnotes list'!$D$9:$E$58,2,FALSE) ) )","v":""},"@",null,null,null,"","@",null,null,null,"","@",null,null,null,"","@",null,null,null,"","@",null,null,null,"","@",null,null,null,"","@",null,null,null,"","@",null,null,null,"","@",null,null,null,"","@",null,null,null,"","@",null,null,null,"",{"$f":"IF(COUNT(DM30:DM40)=11,SUM(DM30:DM40),\"\")","v":""},null,null,null,{"$f":"IF(TRIM(DP15)=\"\", \"\", IF(VLOOKUP(DP15,'Footnotes list'!$D$9:$E$58,2,FALSE)=0,\"\",VLOOKUP(DP15,'Footnotes list'!$D$9:$E$58,2,FALSE) ) )","v":""},{"$f":"IF(COUNT(G15,V15,AF15,AZ15)=4,SUM(G15,V15,AF15,AZ15,DM15),\"\")","v":""},null,null,null,{"$f":"IF(TRIM(DU15)=\"\", \"\", IF(VLOOKUP(DU15,'Footnotes list'!$D$9:$E$58,2,FALSE)=0,\"\",VLOOKUP(DU15,'Footnotes list'!$D$9:$E$58,2,FALSE) ) )","v":""},"@",null,null,null,"","@",null,null,null,"","@",null,null,null,"","@",null,null,null,"","@",null,null,null,"","@",null,null,null,"","@",null,null,null,"",{"$f":"IF(COUNT(DR15)=1,SUM(DR15),\"\")","v":""},null,null,null,{"$f":"IF(TRIM(FI15)=\"\", \"\", IF(VLOOKUP(FI15,'Footnotes list'!$D$9:$E$58,2,FALSE)=0,\"\",VLOOKUP(FI15,'Footnotes list'!$D$9:$E$58,2,FALSE) ) )","v":""},{"$f":"IF(COUNT(FK30:FK40)=11,SUM(FK30:FK40),\"\")","v":""},null,null,null,{"$f":"IF(TRIM(FN15)=\"\", \"\", IF(VLOOKUP(FN15,'Footnotes list'!$D$9:$E$58,2,FALSE)=0,\"\",VLOOKUP(FN15,'Footnotes list'!$D$9:$E$58,2,FALSE) ) )","v":""}]
["S13","P51G_CREP_FC","TOTAL","TOTAL","S13 General Government",null,null,null,null,null,{"$f":"IF(TRIM(J16)=\"\", \"\", IF(VLOOKUP(J16,'Footnotes list'!$D$9:$E$58,2,FALSE)=0,\"\",VLOOKUP(J16,'Footnotes list'!$D$9:$E$58,2,FALSE) ) )","v":""},null,null,null,null,{"$f":"IF(TRIM(O16)=\"\", \"\", IF(VLOOKUP(O16,'Footnotes list'!$D$9:$E$58,2,FALSE)=0,\"\",VLOOKUP(O16,'Footnotes list'!$D$9:$E$58,2,FALSE) ) )","v":""},null,null,null,null,{"$f":"IF(TRIM(T16)=\"\", \"\", IF(VLOOKUP(T16,'Footnotes list'!$D$9:$E$58,2,FALSE)=0,\"\",VLOOKUP(T16,'Footnotes list'!$D$9:$E$58,2,FALSE) ) )","v":""},null,null,null,null,{"$f":"IF(TRIM(Y16)=\"\", \"\", IF(VLOOKUP(Y16,'Footnotes list'!$D$9:$E$58,2,FALSE)=0,\"\",VLOOKUP(Y16,'Footnotes list'!$D$9:$E$58,2,FALSE) ) )","v":""},null,null,null,null,{"$f":"IF(TRIM(AD16)=\"\", \"\", IF(VLOOKUP(AD16,'Footnotes list'!$D$9:$E$58,2,FALSE)=0,\"\",VLOOKUP(AD16,'Footnotes list'!$D$9:$E$58,2,FALSE) ) )","v":""},null,null,null,null,{"$f":"IF(TRIM(AI16)=\"\", \"\", IF(VLOOKUP(AI16,'Footnotes list'!$D$9:$E$58,2,FALSE)=0,\"\",VLOOKUP(AI16,'Footnotes list'!$D$9:$E$58,2,FALSE) ) )","v":""},"@",null,null,null,"",null,null,null,null,{"$f":"IF(TRIM(AS16)=\"\", \"\", IF(VLOOKUP(AS16,'Footnotes list'!$D$9:$E$58,2,FALSE)=0,\"\",VLOOKUP(AS16,'Footnotes list'!$D$9:$E$58,2,FALSE) ) )","v":""},null,null,null,null,{"$f":"IF(TRIM(AX16)=\"\", \"\", IF(VLOOKUP(AX16,'Footnotes list'!$D$9:$E$58,2,FALSE)=0,\"\",VLOOKUP(AX16,'Footnotes list'!$D$9:$E$58,2,FALSE) ) )","v":""},null,null,null,null,{"$f":"IF(TRIM(BC16)=\"\", \"\", IF(VLOOKUP(BC16,'Footnotes list'!$D$9:$E$58,2,FALSE)=0,\"\",VLOOKUP(BC16,'Footnotes list'!$D$9:$E$58,2,FALSE) ) )","v":""},null,null,null,null,{"$f":"IF(TRIM(BH16)=\"\", \"\", IF(VLOOKUP(BH16,'Footnotes list'!$D$9:$E$58,2,FALSE)=0,\"\",VLOOKUP(BH16,'Footnotes list'!$D$9:$E$58,2,FALSE) ) )","v":""},"@",null,null,null,"","@",null,null,null,"","@",null,null,null,"","@",null,null,null,"","@",null,null,null,"","@",null,null,null,"","@",null,null,null,"","@",null,null,null,"","@",null,null,null,"","@",null,null,null,"","@",null,null,null,"",null,null,null,null,{"$f":"IF(TRIM(DP16)=\"\", \"\", IF(VLOOKUP(DP16,'Footnotes list'!$D$9:$E$58,2,FALSE)=0,\"\",VLOOKUP(DP16,'Footnotes list'!$D$9:$E$58,2,FALSE) ) )","v":""},"",null,null,null,{"$f":"IF(TRIM(DU16)=\"\", \"\", IF(VLOOKUP(DU16,'Footnotes list'!$D$9:$E$58,2,FALSE)=0,\"\",VLOOKUP(DU16,'Footnotes list'!$D$9:$E$58,2,FALSE) ) )","v":""},"@",null,null,null,"","@",null,null,null,"","@",null,null,null,"","@",null,null,null,"","@",null,null,null,"","@",null,null,null,"","@",null,null,null,"","",null,null,null,{"$f":"IF(TRIM(FI16)=\"\", \"\", IF(VLOOKUP(FI16,'Footnotes list'!$D$9:$E$58,2,FALSE)=0,\"\",VLOOKUP(FI16,'Footnotes list'!$D$9:$E$58,2,FALSE) ) )","v":""},null,null,null,null,{"$f":"IF(TRIM(FN16)=\"\", \"\", IF(VLOOKUP(FN16,'Footnotes list'!$D$9:$E$58,2,FALSE)=0,\"\",VLOOKUP(FN16,'Footnotes list'!$D$9:$E$58,2,FALSE) ) )","v":""}]
["S14_S15","P3_P51G_CREP_FC","TOTAL","TOTAL","S14_S15 Households and NPISH"," Final consumption and GFCF in products",null,null,null,null,{"$f":"IF(TRIM(J17)=\"\", \"\", IF(VLOOKUP(J17,'Footnotes list'!$D$9:$E$58,2,FALSE)=0,\"\",VLOOKUP(J17,'Footnotes list'!$D$9:$E$58,2,FALSE) ) )","v":""},null,null,null,null,{"$f":"IF(TRIM(O17)=\"\", \"\", IF(VLOOKUP(O17,'Footnotes list'!$D$9:$E$58,2,FALSE)=0,\"\",VLOOKUP(O17,'Footnotes list'!$D$9:$E$58,2,FALSE) ) )","v":""},null,null,null,null,{"$f":"IF(TRIM(T17)=\"\", \"\", IF(VLOOKUP(T17,'Footnotes list'!$D$9:$E$58,2,FALSE)=0,\"\",VLOOKUP(T17,'Footnotes list'!$D$9:$E$58,2,FALSE) ) )","v":""},null,null,null,null,{"$f":"IF(TRIM(Y17)=\"\", \"\", IF(VLOOKUP(Y17,'Footnotes list'!$D$9:$E$58,2,FALSE)=0,\"\",VLOOKUP(Y17,'Footnotes list'!$D$9:$E$58,2,FALSE) ) )","v":""},null,null,null,null,{"$f":"IF(TRIM(AD17)=\"\", \"\", IF(VLOOKUP(AD17,'Footnotes list'!$D$9:$E$58,2,FALSE)=0,\"\",VLOOKUP(AD17,'Footnotes list'!$D$9:$E$58,2,FALSE) ) )","v":""},null,null,null,null,{"$f":"IF(TRIM(AI17)=\"\", \"\", IF(VLOOKUP(AI17,'Footnotes list'!$D$9:$E$58,2,FALSE)=0,\"\",VLOOKUP(AI17,'Footnotes list'!$D$9:$E$58,2,FALSE) ) )","v":""},"@",null,null,null,"",null,null,null,null,{"$f":"IF(TRIM(AS17)=\"\", \"\", IF(VLOOKUP(AS17,'Footnotes list'!$D$9:$E$58,2,FALSE)=0,\"\",VLOOKUP(AS17,'Footnotes list'!$D$9:$E$58,2,FALSE) ) )","v":""},null,null,null,null,{"$f":"IF(TRIM(AX17)=\"\", \"\", IF(VLOOKUP(AX17,'Footnotes list'!$D$9:$E$58,2,FALSE)=0,\"\",VLOOKUP(AX17,'Footnotes list'!$D$9:$E$58,2,FALSE) ) )","v":""},null,null,null,null,{"$f":"IF(TRIM(BC17)=\"\", \"\", IF(VLOOKUP(BC17,'Footnotes list'!$D$9:$E$58,2,FALSE)=0,\"\",VLOOKUP(BC17,'Footnotes list'!$D$9:$E$58,2,FALSE) ) )","v":""},null,null,null,null,{"$f":"IF(TRIM(BH17)=\"\", \"\", IF(VLOOKUP(BH17,'Footnotes list'!$D$9:$E$58,2,FALSE)=0,\"\",VLOOKUP(BH17,'Footnotes list'!$D$9:$E$58,2,FALSE) ) )","v":""},"@",null,null,null,"","@",null,null,null,"","@",null,null,null,"","@",null,null,null,"","@",null,null,null,"","@",null,null,null,"","@",null,null,null,"","@",null,null,null,"","@",null,null,null,"","@",null,null,null,"","@",null,null,null,"",null,null,null,null,{"$f":"IF(TRIM(DP17)=\"\", \"\", IF(VLOOKUP(DP17,'Footnotes list'!$D$9:$E$58,2,FALSE)=0,\"\",VLOOKUP(DP17,'Footnotes list'!$D$9:$E$58,2,FALSE) ) )","v":""},"",null,null,null,{"$f":"IF(TRIM(DU17)=\"\", \"\", IF(VLOOKUP(DU17,'Footnotes list'!$D$9:$E$58,2,FALSE)=0,\"\",VLOOKUP(DU17,'Footnotes list'!$D$9:$E$58,2,FALSE) ) )","v":""},"@",null,null,null,"","@",null,null,null,"","@",null,null,null,"","@",null,null,null,"","@",null,null,null,"","@",null,null,null,"","@",null,null,null,"",{"$f":"IF(COUNT(DR17)=1,SUM(DR17),\"\")","v":""},null,null,null,{"$f":"IF(TRIM(FI17)=\"\", \"\", IF(VLOOKUP(FI17,'Footnotes list'!$D$9:$E$58,2,FALSE)=0,\"\",VLOOKUP(FI17,'Footnotes list'!$D$9:$E$58,2,FALSE) ) )","v":""},null,null,null,null,{"$f":"IF(TRIM(FN17)=\"\", \"\", IF(VLOOKUP(FN17,'Footnotes list'!$D$9:$E$58,2,FALSE)=0,\"\",VLOOKUP(FN17,'Footnotes list'!$D$9:$E$58,2,FALSE) ) )","v":""}]
["S15","P3_P51G_CREP_FC","TOTAL",null,"of which S15 NPISH",null,null,null,null,null,{"$f":"IF(TRIM(J18)=\"\", \"\", IF(VLOOKUP(J18,'Footnotes list'!$D$9:$E$58,2,FALSE)=0,\"\",VLOOKUP(J18,'Footnotes list'!$D$9:$E$58,2,FALSE) ) )","v":""},null,null,null,null,{"$f":"IF(TRIM(O18)=\"\", \"\", IF(VLOOKUP(O18,'Footnotes list'!$D$9:$E$58,2,FALSE)=0,\"\",VLOOKUP(O18,'Footnotes list'!$D$9:$E$58,2,FALSE) ) )","v":""},null,null,null,null,{"$f":"IF(TRIM(T18)=\"\", \"\", IF(VLOOKUP(T18,'Footnotes list'!$D$9:$E$58,2,FALSE)=0,\"\",VLOOKUP(T18,'Footnotes list'!$D$9:$E$58,2,FALSE) ) )","v":""},null,null,null,null,{"$f":"IF(TRIM(Y18)=\"\", \"\", IF(VLOOKUP(Y18,'Footnotes list'!$D$9:$E$58,2,FALSE)=0,\"\",VLOOKUP(Y18,'Footnotes list'!$D$9:$E$58,2,FALSE) ) )","v":""},null,null,null,null,{"$f":"IF(TRIM(AD18)=\"\", \"\", IF(VLOOKUP(AD18,'Footnotes list'!$D$9:$E$58,2,FALSE)=0,\"\",VLOOKUP(AD18,'Footnotes list'!$D$9:$E$58,2,FALSE) ) )","v":""},null,null,null,null,{"$f":"IF(TRIM(AI18)=\"\", \"\", IF(VLOOKUP(AI18,'Footnotes list'!$D$9:$E$58,2,FALSE)=0,\"\",VLOOKUP(AI18,'Footnotes list'!$D$9:$E$58,2,FALSE) ) )","v":""},"@",null,null,null,"",null,null,null,null,{"$f":"IF(TRIM(AS18)=\"\", \"\", IF(VLOOKUP(AS18,'Footnotes list'!$D$9:$E$58,2,FALSE)=0,\"\",VLOOKUP(AS18,'Footnotes list'!$D$9:$E$58,2,FALSE) ) )","v":""},null,null,null,null,{"$f":"IF(TRIM(AX18)=\"\", \"\", IF(VLOOKUP(AX18,'Footnotes list'!$D$9:$E$58,2,FALSE)=0,\"\",VLOOKUP(AX18,'Footnotes list'!$D$9:$E$58,2,FALSE) ) )","v":""},null,null,null,null,{"$f":"IF(TRIM(BC18)=\"\", \"\", IF(VLOOKUP(BC18,'Footnotes list'!$D$9:$E$58,2,FALSE)=0,\"\",VLOOKUP(BC18,'Footnotes list'!$D$9:$E$58,2,FALSE) ) )","v":""},null,null,null,null,{"$f":"IF(TRIM(BH18)=\"\", \"\", IF(VLOOKUP(BH18,'Footnotes list'!$D$9:$E$58,2,FALSE)=0,\"\",VLOOKUP(BH18,'Footnotes list'!$D$9:$E$58,2,FALSE) ) )","v":""},"@",null,null,null,"","@",null,null,null,"","@",null,null,null,"","@",null,null,null,"","@",null,null,null,"","@",null,null,null,"","@",null,null,null,"","@",null,null,null,"","@",null,null,null,"","@",null,null,null,"","@",null,null,null,"",null,null,null,null,{"$f":"IF(TRIM(DP18)=\"\", \"\", IF(VLOOKUP(DP18,'Footnotes list'!$D$9:$E$58,2,FALSE)=0,\"\",VLOOKUP(DP18,'Footnotes list'!$D$9:$E$58,2,FALSE) ) )","v":""},"",null,null,null,{"$f":"IF(TRIM(DU18)=\"\", \"\", IF(VLOOKUP(DU18,'Footnotes list'!$D$9:$E$58,2,FALSE)=0,\"\",VLOOKUP(DU18,'Footnotes list'!$D$9:$E$58,2,FALSE) ) )","v":""},"@",null,null,null,"","@",null,null,null,"","@",null,null,null,"","@",null,null,null,"","@",null,null,null,"","@",null,null,null,"","@",null,null,null,"","",null,null,null,{"$f":"IF(TRIM(FI18)=\"\", \"\", IF(VLOOKUP(FI18,'Footnotes list'!$D$9:$E$58,2,FALSE)=0,\"\",VLOOKUP(FI18,'Footnotes list'!$D$9:$E$58,2,FALSE) ) )","v":""},null,null,null,null,{"$f":"IF(TRIM(FN18)=\"\", \"\", IF(VLOOKUP(FN18,'Footnotes list'!$D$9:$E$58,2,FALSE)=0,\"\",VLOOKUP(FN18,'Footnotes list'!$D$9:$E$58,2,FALSE) ) )","v":""}]
["S11_S12","P51G_CA_FC","A","Total A - Agriculture, forestry and fishing","S11_S12 Corporations\nBy NACE","GFCF for (characteristic) activities",null,null,null,null,{"$f":"IF(TRIM(J19)=\"\", \"\", IF(VLOOKUP(J19,'Footnotes list'!$D$9:$E$58,2,FALSE)=0,\"\",VLOOKUP(J19,'Footnotes list'!$D$9:$E$58,2,FALSE) ) )","v":""},null,null,null,null,{"$f":"IF(TRIM(O19)=\"\", \"\", IF(VLOOKUP(O19,'Footnotes list'!$D$9:$E$58,2,FALSE)=0,\"\",VLOOKUP(O19,'Footnotes list'!$D$9:$E$58,2,FALSE) ) )","v":""},null,null,null,null,{"$f":"IF(TRIM(T19)=\"\", \"\", IF(VLOOKUP(T19,'Footnotes list'!$D$9:$E$58,2,FALSE)=0,\"\",VLOOKUP(T19,'Footnotes list'!$D$9:$E$58,2,FALSE) ) )","v":""},null,null,null,null,{"$f":"IF(TRIM(Y19)=\"\", \"\", IF(VLOOKUP(Y19,'Footnotes list'!$D$9:$E$58,2,FALSE)=0,\"\",VLOOKUP(Y19,'Footnotes list'!$D$9:$E$58,2,FALSE) ) )","v":""},null,null,null,null,{"$f":"IF(TRIM(AD19)=\"\", \"\", IF(VLOOKUP(AD19,'Footnotes list'!$D$9:$E$58,2,FALSE)=0,\"\",VLOOKUP(AD19,'Footnotes list'!$D$9:$E$58,2,FALSE) ) )","v":""},null,null,null,null,{"$f":"IF(TRIM(AI19)=\"\", \"\", IF(VLOOKUP(AI19,'Footnotes list'!$D$9:$E$58,2,FALSE)=0,\"\",VLOOKUP(AI19,'Footnotes list'!$D$9:$E$58,2,FALSE) ) )","v":""},null,null,null,null,{"$f":"IF(TRIM(AN19)=\"\", \"\", IF(VLOOKUP(AN19,'Footnotes list'!$D$9:$E$58,2,FALSE)=0,\"\",VLOOKUP(AN19,'Footnotes list'!$D$9:$E$58,2,FALSE) ) )","v":""},null,null,null,null,{"$f":"IF(TRIM(AS19)=\"\", \"\", IF(VLOOKUP(AS19,'Footnotes list'!$D$9:$E$58,2,FALSE)=0,\"\",VLOOKUP(AS19,'Footnotes list'!$D$9:$E$58,2,FALSE) ) )","v":""},null,null,null,null,{"$f":"IF(TRIM(AX19)=\"\", \"\", IF(VLOOKUP(AX19,'Footnotes list'!$D$9:$E$58,2,FALSE)=0,\"\",VLOOKUP(AX19,'Footnotes list'!$D$9:$E$58,2,FALSE) ) )","v":""},null,null,null,null,{"$f":"IF(TRIM(BC19)=\"\", \"\", IF(VLOOKUP(BC19,'Footnotes list'!$D$9:$E$58,2,FALSE)=0,\"\",VLOOKUP(BC19,'Footnotes list'!$D$9:$E$58,2,FALSE) ) )","v":""},null,null,null,null,{"$f":"IF(TRIM(BH19)=\"\", \"\", IF(VLOOKUP(BH19,'Footnotes list'!$D$9:$E$58,2,FALSE)=0,\"\",VLOOKUP(BH19,'Footnotes list'!$D$9:$E$58,2,FALSE) ) )","v":""},null,null,null,null,{"$f":"IF(TRIM(BM19)=\"\", \"\", IF(VLOOKUP(BM19,'Footnotes list'!$D$9:$E$58,2,FALSE)=0,\"\",VLOOKUP(BM19,'Footnotes list'!$D$9:$E$58,2,FALSE) ) )","v":""},null,null,null,null,{"$f":"IF(TRIM(BR19)=\"\", \"\", IF(VLOOKUP(BR19,'Footnotes list'!$D$9:$E$58,2,FALSE)=0,\"\",VLOOKUP(BR19,'Footnotes list'!$D$9:$E$58,2,FALSE) ) )","v":""},null,null,null,null,{"$f":"IF(TRIM(BW19)=\"\", \"\", IF(VLOOKUP(BW19,'Footnotes list'!$D$9:$E$58,2,FALSE)=0,\"\",VLOOKUP(BW19,'Footnotes list'!$D$9:$E$58,2,FALSE) ) )","v":""},null,null,null,null,{"$f":"IF(TRIM(CB19)=\"\", \"\", IF(VLOOKUP(CB19,'Footnotes list'!$D$9:$E$58,2,FALSE)=0,\"\",VLOOKUP(CB19,'Footnotes list'!$D$9:$E$58,2,FALSE) ) )","v":""},null,null,null,null,{"$f":"IF(TRIM(CG19)=\"\", \"\", IF(VLOOKUP(CG19,'Footnotes list'!$D$9:$E$58,2,FALSE)=0,\"\",VLOOKUP(CG19,'Footnotes list'!$D$9:$E$58,2,FALSE) ) )","v":""},null,null,null,null,{"$f":"IF(TRIM(CL19)=\"\", \"\", IF(VLOOKUP(CL19,'Footnotes list'!$D$9:$E$58,2,FALSE)=0,\"\",VLOOKUP(CL19,'Footnotes list'!$D$9:$E$58,2,FALSE) ) )","v":""},null,null,null,null,{"$f":"IF(TRIM(CQ19)=\"\", \"\", IF(VLOOKUP(CQ19,'Footnotes list'!$D$9:$E$58,2,FALSE)=0,\"\",VLOOKUP(CQ19,'Footnotes list'!$D$9:$E$58,2,FALSE) ) )","v":""},null,null,null,null,{"$f":"IF(TRIM(CV19)=\"\", \"\", IF(VLOOKUP(CV19,'Footnotes list'!$D$9:$E$58,2,FALSE)=0,\"\",VLOOKUP(CV19,'Footnotes list'!$D$9:$E$58,2,FALSE) ) )","v":""},null,null,null,null,{"$f":"IF(TRIM(DA19)=\"\", \"\", IF(VLOOKUP(DA19,'Footnotes list'!$D$9:$E$58,2,FALSE)=0,\"\",VLOOKUP(DA19,'Footnotes list'!$D$9:$E$58,2,FALSE) ) )","v":""},null,null,null,null,{"$f":"IF(TRIM(DF19)=\"\", \"\", IF(VLOOKUP(DF19,'Footnotes list'!$D$9:$E$58,2,FALSE)=0,\"\",VLOOKUP(DF19,'Footnotes list'!$D$9:$E$58,2,FALSE) ) )","v":""},null,null,null,null,{"$f":"IF(TRIM(DK19)=\"\", \"\", IF(VLOOKUP(DK19,'Footnotes list'!$D$9:$E$58,2,FALSE)=0,\"\",VLOOKUP(DK19,'Footnotes list'!$D$9:$E$58,2,FALSE) ) )","v":""},null,null,null,null,{"$f":"IF(TRIM(DP19)=\"\", \"\", IF(VLOOKUP(DP19,'Footnotes list'!$D$9:$E$58,2,FALSE)=0,\"\",VLOOKUP(DP19,'Footnotes list'!$D$9:$E$58,2,FALSE) ) )","v":""},{"$f":"IF(COUNT(G19,V19,AF19,AZ19,BJ19,BO19,BT19,CI19,CS19,DH19)=10,SUM(G19,V19,AF19,AZ19,BJ19,BO19,BT19,CI19,CS19,DH19,DM19),\"\")","v":""},null,null,null,{"$f":"IF(TRIM(DU19)=\"\", \"\", IF(VLOOKUP(DU19,'Footnotes list'!$D$9:$E$58,2,FALSE)=0,\"\",VLOOKUP(DU19,'Footnotes list'!$D$9:$E$58,2,FALSE) ) )","v":""},null,null,null,null,{"$f":"IF(TRIM(DZ19)=\"\", \"\", IF(VLOOKUP(DZ19,'Footnotes list'!$D$9:$E$58,2,FALSE)=0,\"\",VLOOKUP(DZ19,'Footnotes list'!$D$9:$E$58,2,FALSE) ) )","v":""},null,null,null,null,{"$f":"IF(TRIM(EE19)=\"\", \"\", IF(VLOOKUP(EE19,'Footnotes list'!$D$9:$E$58,2,FALSE)=0,\"\",VLOOKUP(EE19,'Footnotes list'!$D$9:$E$58,2,FALSE) ) )","v":""},null,null,null,null,{"$f":"IF(TRIM(EJ19)=\"\", \"\", IF(VLOOKUP(EJ19,'Footnotes list'!$D$9:$E$58,2,FALSE)=0,\"\",VLOOKUP(EJ19,'Footnotes list'!$D$9:$E$58,2,FALSE) ) )","v":""},null,null,null,null,{"$f":"IF(TRIM(EO19)=\"\", \"\", IF(VLOOKUP(EO19,'Footnotes list'!$D$9:$E$58,2,FALSE)=0,\"\",VLOOKUP(EO19,'Footnotes list'!$D$9:$E$58,2,FALSE) ) )","v":""},null,null,null,null,{"$f":"IF(TRIM(ET19)=\"\", \"\", IF(VLOOKUP(ET19,'Footnotes list'!$D$9:$E$58,2,FALSE)=0,\"\",VLOOKUP(ET19,'Footnotes list'!$D$9:$E$58,2,FALSE) ) )","v":""},null,null,null,null,{"$f":"IF(TRIM(EY19)=\"\", \"\", IF(VLOOKUP(EY19,'Footnotes list'!$D$9:$E$58,2,FALSE)=0,\"\",VLOOKUP(EY19,'Footnotes list'!$D$9:$E$58,2,FALSE) ) )","v":""},{"$f":"IF(COUNT(DW19,EB19,EG19,EL19,EQ19)=5,SUM(DW19,EB19,EG19,EL19,EQ19,EV19),\"\")","v":""},null,null,null,{"$f":"IF(TRIM(FD19)=\"\", \"\", IF(VLOOKUP(FD19,'Footnotes list'!$D$9:$E$58,2,FALSE)=0,\"\",VLOOKUP(FD19,'Footnotes list'!$D$9:$E$58,2,FALSE) ) )","v":""},{"$f":"IF(COUNT(DR19,FA19)=2,SUM(DR19,FA19),\"\")","v":""},null,null,null,{"$f":"IF(TRIM(FI19)=\"\", \"\", IF(VLOOKUP(FI19,'Footnotes list'!$D$9:$E$58,2,FALSE)=0,\"\",VLOOKUP(FI19,'Footnotes list'!$D$9:$E$58,2,FALSE) ) )","v":""},null,null,null,null,{"$f":"IF(TRIM(FN19)=\"\", \"\", IF(VLOOKUP(FN19,'Footnotes list'!$D$9:$E$58,2,FALSE)=0,\"\",VLOOKUP(FN19,'Footnotes list'!$D$9:$E$58,2,FALSE) ) )","v":""}]
["S11_S12","P51G_CA_FC","B","Total B - Mining and quarrying",null,null,null,null,null,null,{"$f":"IF(TRIM(J20)=\"\", \"\", IF(VLOOKUP(J20,'Footnotes list'!$D$9:$E$58,2,FALSE)=0,\"\",VLOOKUP(J20,'Footnotes list'!$D$9:$E$58,2,FALSE) ) )","v":""},null,null,null,null,{"$f":"IF(TRIM(O20)=\"\", \"\", IF(VLOOKUP(O20,'Footnotes list'!$D$9:$E$58,2,FALSE)=0,\"\",VLOOKUP(O20,'Footnotes list'!$D$9:$E$58,2,FALSE) ) )","v":""},null,null,null,null,{"$f":"IF(TRIM(T20)=\"\", \"\", IF(VLOOKUP(T20,'Footnotes list'!$D$9:$E$58,2,FALSE)=0,\"\",VLOOKUP(T20,'Footnotes list'!$D$9:$E$58,2,FALSE) ) )","v":""},null,null,null,null,{"$f":"IF(TRIM(Y20)=\"\", \"\", IF(VLOOKUP(Y20,'Footnotes list'!$D$9:$E$58,2,FALSE)=0,\"\",VLOOKUP(Y20,'Footnotes list'!$D$9:$E$58,2,FALSE) ) )","v":""},null,null,null,null,{"$f":"IF(TRIM(AD20)=\"\", \"\", IF(VLOOKUP(AD20,'Footnotes list'!$D$9:$E$58,2,FALSE)=0,\"\",VLOOKUP(AD20,'Footnotes list'!$D$9:$E$58,2,FALSE) ) )","v":""},null,null,null,null,{"$f":"IF(TRIM(AI20)=\"\", \"\", IF(VLOOKUP(AI20,'Footnotes list'!$D$9:$E$58,2,FALSE)=0,\"\",VLOOKUP(AI20,'Footnotes list'!$D$9:$E$58,2,FALSE) ) )","v":""},null,null,null,null,{"$f":"IF(TRIM(AN20)=\"\", \"\", IF(VLOOKUP(AN20,'Footnotes list'!$D$9:$E$58,2,FALSE)=0,\"\",VLOOKUP(AN20,'Footnotes list'!$D$9:$E$58,2,FALSE) ) )","v":""},null,null,null,null,{"$f":"IF(TRIM(AS20)=\"\", \"\", IF(VLOOKUP(AS20,'Footnotes list'!$D$9:$E$58,2,FALSE)=0,\"\",VLOOKUP(AS20,'Footnotes list'!$D$9:$E$58,2,FALSE) ) )","v":""},null,null,null,null,{"$f":"IF(TRIM(AX20)=\"\", \"\", IF(VLOOKUP(AX20,'Footnotes list'!$D$9:$E$58,2,FALSE)=0,\"\",VLOOKUP(AX20,'Footnotes list'!$D$9:$E$58,2,FALSE) ) )","v":""},null,null,null,null,{"$f":"IF(TRIM(BC20)=\"\", \"\", IF(VLOOKUP(BC20,'Footnotes list'!$D$9:$E$58,2,FALSE)=0,\"\",VLOOKUP(BC20,'Footnotes list'!$D$9:$E$58,2,FALSE) ) )","v":""},null,null,null,null,{"$f":"IF(TRIM(BH20)=\"\", \"\", IF(VLOOKUP(BH20,'Footnotes list'!$D$9:$E$58,2,FALSE)=0,\"\",VLOOKUP(BH20,'Footnotes list'!$D$9:$E$58,2,FALSE) ) )","v":""},null,null,null,null,{"$f":"IF(TRIM(BM20)=\"\", \"\", IF(VLOOKUP(BM20,'Footnotes list'!$D$9:$E$58,2,FALSE)=0,\"\",VLOOKUP(BM20,'Footnotes list'!$D$9:$E$58,2,FALSE) ) )","v":""},null,null,null,null,{"$f":"IF(TRIM(BR20)=\"\", \"\", IF(VLOOKUP(BR20,'Footnotes list'!$D$9:$E$58,2,FALSE)=0,\"\",VLOOKUP(BR20,'Footnotes list'!$D$9:$E$58,2,FALSE) ) )","v":""},null,null,null,null,{"$f":"IF(TRIM(BW20)=\"\", \"\", IF(VLOOKUP(BW20,'Footnotes list'!$D$9:$E$58,2,FALSE)=0,\"\",VLOOKUP(BW20,'Footnotes list'!$D$9:$E$58,2,FALSE) ) )","v":""},null,null,null,null,{"$f":"IF(TRIM(CB20)=\"\", \"\", IF(VLOOKUP(CB20,'Footnotes list'!$D$9:$E$58,2,FALSE)=0,\"\",VLOOKUP(CB20,'Footnotes list'!$D$9:$E$58,2,FALSE) ) )","v":""},null,null,null,null,{"$f":"IF(TRIM(CG20)=\"\", \"\", IF(VLOOKUP(CG20,'Footnotes list'!$D$9:$E$58,2,FALSE)=0,\"\",VLOOKUP(CG20,'Footnotes list'!$D$9:$E$58,2,FALSE) ) )","v":""},null,null,null,null,{"$f":"IF(TRIM(CL20)=\"\", \"\", IF(VLOOKUP(CL20,'Footnotes list'!$D$9:$E$58,2,FALSE)=0,\"\",VLOOKUP(CL20,'Footnotes list'!$D$9:$E$58,2,FALSE) ) )","v":""},null,null,null,null,{"$f":"IF(TRIM(CQ20)=\"\", \"\", IF(VLOOKUP(CQ20,'Footnotes list'!$D$9:$E$58,2,FALSE)=0,\"\",VLOOKUP(CQ20,'Footnotes list'!$D$9:$E$58,2,FALSE) ) )","v":""},null,null,null,null,{"$f":"IF(TRIM(CV20)=\"\", \"\", IF(VLOOKUP(CV20,'Footnotes list'!$D$9:$E$58,2,FALSE)=0,\"\",VLOOKUP(CV20,'Footnotes list'!$D$9:$E$58,2,FALSE) ) )","v":""},null,null,null,null,{"$f":"IF(TRIM(DA20)=\"\", \"\", IF(VLOOKUP(DA20,'Footnotes list'!$D$9:$E$58,2,FALSE)=0,\"\",VLOOKUP(DA20,'Footnotes list'!$D$9:$E$58,2,FALSE) ) )","v":""},null,null,null,null,{"$f":"IF(TRIM(DF20)=\"\", \"\", IF(VLOOKUP(DF20,'Footnotes list'!$D$9:$E$58,2,FALSE)=0,\"\",VLOOKUP(DF20,'Footnotes list'!$D$9:$E$58,2,FALSE) ) )","v":""},null,null,null,null,{"$f":"IF(TRIM(DK20)=\"\", \"\", IF(VLOOKUP(DK20,'Footnotes list'!$D$9:$E$58,2,FALSE)=0,\"\",VLOOKUP(DK20,'Footnotes list'!$D$9:$E$58,2,FALSE) ) )","v":""},null,null,null,null,{"$f":"IF(TRIM(DP20)=\"\", \"\", IF(VLOOKUP(DP20,'Footnotes list'!$D$9:$E$58,2,FALSE)=0,\"\",VLOOKUP(DP20,'Footnotes list'!$D$9:$E$58,2,FALSE) ) )","v":""},{"$f":"IF(COUNT(G20,V20,AF20,AZ20,BJ20,BO20,BT20,CI20,CS20,DH20)=10,SUM(G20,V20,AF20,AZ20,BJ20,BO20,BT20,CI20,CS20,DH20,DM20),\"\")","v":""},null,null,null,{"$f":"IF(TRIM(DU20)=\"\", \"\", IF(VLOOKUP(DU20,'Footnotes list'!$D$9:$E$58,2,FALSE)=0,\"\",VLOOKUP(DU20,'Footnotes list'!$D$9:$E$58,2,FALSE) ) )","v":""},null,null,null,null,{"$f":"IF(TRIM(DZ20)=\"\", \"\", IF(VLOOKUP(DZ20,'Footnotes list'!$D$9:$E$58,2,FALSE)=0,\"\",VLOOKUP(DZ20,'Footnotes list'!$D$9:$E$58,2,FALSE) ) )","v":""},null,null,null,null,{"$f":"IF(TRIM(EE20)=\"\", \"\", IF(VLOOKUP(EE20,'Footnotes list'!$D$9:$E$58,2,FALSE)=0,\"\",VLOOKUP(EE20,'Footnotes list'!$D$9:$E$58,2,FALSE) ) )","v":""},null,null,null,null,{"$f":"IF(TRIM(EJ20)=\"\", \"\", IF(VLOOKUP(EJ20,'Footnotes list'!$D$9:$E$58,2,FALSE)=0,\"\",VLOOKUP(EJ20,'Footnotes list'!$D$9:$E$58,2,FALSE) ) )","v":""},null,null,null,null,{"$f":"IF(TRIM(EO20)=\"\", \"\", IF(VLOOKUP(EO20,'Footnotes list'!$D$9:$E$58,2,FALSE)=0,\"\",VLOOKUP(EO20,'Footnotes list'!$D$9:$E$58,2,FALSE) ) )","v":""},null,null,null,null,{"$f":"IF(TRIM(ET20)=\"\", \"\", IF(VLOOKUP(ET20,'Footnotes list'!$D$9:$E$58,2,FALSE)=0,\"\",VLOOKUP(ET20,'Footnotes list'!$D$9:$E$58,2,FALSE) ) )","v":""},null,null,null,null,{"$f":"IF(TRIM(EY20)=\"\", \"\", IF(VLOOKUP(EY20,'Footnotes list'!$D$9:$E$58,2,FALSE)=0,\"\",VLOOKUP(EY20,'Footnotes list'!$D$9:$E$58,2,FALSE) ) )","v":""},{"$f":"IF(COUNT(DW20,EB20,EG20,EL20,EQ20)=5,SUM(DW20,EB20,EG20,EL20,EQ20,EV20),\"\")","v":""},null,null,null,{"$f":"IF(TRIM(FD20)=\"\", \"\", IF(VLOOKUP(FD20,'Footnotes list'!$D$9:$E$58,2,FALSE)=0,\"\",VLOOKUP(FD20,'Footnotes list'!$D$9:$E$58,2,FALSE) ) )","v":""},{"$f":"IF(COUNT(DR20,FA20)=2,SUM(DR20,FA20),\"\")","v":""},null,null,null,{"$f":"IF(TRIM(FI20)=\"\", \"\", IF(VLOOKUP(FI20,'Footnotes list'!$D$9:$E$58,2,FALSE)=0,\"\",VLOOKUP(FI20,'Footnotes list'!$D$9:$E$58,2,FALSE) ) )","v":""},null,null,null,null,{"$f":"IF(TRIM(FN20)=\"\", \"\", IF(VLOOKUP(FN20,'Footnotes list'!$D$9:$E$58,2,FALSE)=0,\"\",VLOOKUP(FN20,'Footnotes list'!$D$9:$E$58,2,FALSE) ) )","v":""}]
["S11_S12","P51G_CA_FC","C","Total C - Manufacturing",null,null,null,null,null,null,{"$f":"IF(TRIM(J21)=\"\", \"\", IF(VLOOKUP(J21,'Footnotes list'!$D$9:$E$58,2,FALSE)=0,\"\",VLOOKUP(J21,'Footnotes list'!$D$9:$E$58,2,FALSE) ) )","v":""},null,null,null,null,{"$f":"IF(TRIM(O21)=\"\", \"\", IF(VLOOKUP(O21,'Footnotes list'!$D$9:$E$58,2,FALSE)=0,\"\",VLOOKUP(O21,'Footnotes list'!$D$9:$E$58,2,FALSE) ) )","v":""},null,null,null,null,{"$f":"IF(TRIM(T21)=\"\", \"\", IF(VLOOKUP(T21,'Footnotes list'!$D$9:$E$58,2,FALSE)=0,\"\",VLOOKUP(T21,'Footnotes list'!$D$9:$E$58,2,FALSE) ) )","v":""},null,null,null,null,{"$f":"IF(TRIM(Y21)=\"\", \"\", IF(VLOOKUP(Y21,'Footnotes list'!$D$9:$E$58,2,FALSE)=0,\"\",VLOOKUP(Y21,'Footnotes list'!$D$9:$E$58,2,FALSE) ) )","v":""},null,null,null,null,{"$f":"IF(TRIM(AD21)=\"\", \"\", IF(VLOOKUP(AD21,'Footnotes list'!$D$9:$E$58,2,FALSE)=0,\"\",VLOOKUP(AD21,'Footnotes list'!$D$9:$E$58,2,FALSE) ) )","v":""},null,null,null,null,{"$f":"IF(TRIM(AI21)=\"\", \"\", IF(VLOOKUP(AI21,'Footnotes list'!$D$9:$E$58,2,FALSE)=0,\"\",VLOOKUP(AI21,'Footnotes list'!$D$9:$E$58,2,FALSE) ) )","v":""},null,null,null,null,{"$f":"IF(TRIM(AN21)=\"\", \"\", IF(VLOOKUP(AN21,'Footnotes list'!$D$9:$E$58,2,FALSE)=0,\"\",VLOOKUP(AN21,'Footnotes list'!$D$9:$E$58,2,FALSE) ) )","v":""},null,null,null,null,{"$f":"IF(TRIM(AS21)=\"\", \"\", IF(VLOOKUP(AS21,'Footnotes list'!$D$9:$E$58,2,FALSE)=0,\"\",VLOOKUP(AS21,'Footnotes list'!$D$9:$E$58,2,FALSE) ) )","v":""},null,null,null,null,{"$f":"IF(TRIM(AX21)=\"\", \"\", IF(VLOOKUP(AX21,'Footnotes list'!$D$9:$E$58,2,FALSE)=0,\"\",VLOOKUP(AX21,'Footnotes list'!$D$9:$E$58,2,FALSE) ) )","v":""},null,null,null,null,{"$f":"IF(TRIM(BC21)=\"\", \"\", IF(VLOOKUP(BC21,'Footnotes list'!$D$9:$E$58,2,FALSE)=0,\"\",VLOOKUP(BC21,'Footnotes list'!$D$9:$E$58,2,FALSE) ) )","v":""},null,null,null,null,{"$f":"IF(TRIM(BH21)=\"\", \"\", IF(VLOOKUP(BH21,'Footnotes list'!$D$9:$E$58,2,FALSE)=0,\"\",VLOOKUP(BH21,'Footnotes list'!$D$9:$E$58,2,FALSE) ) )","v":""},null,null,null,null,{"$f":"IF(TRIM(BM21)=\"\", \"\", IF(VLOOKUP(BM21,'Footnotes list'!$D$9:$E$58,2,FALSE)=0,\"\",VLOOKUP(BM21,'Footnotes list'!$D$9:$E$58,2,FALSE) ) )","v":""},null,null,null,null,{"$f":"IF(TRIM(BR21)=\"\", \"\", IF(VLOOKUP(BR21,'Footnotes list'!$D$9:$E$58,2,FALSE)=0,\"\",VLOOKUP(BR21,'Footnotes list'!$D$9:$E$58,2,FALSE) ) )","v":""},null,null,null,null,{"$f":"IF(TRIM(BW21)=\"\", \"\", IF(VLOOKUP(BW21,'Footnotes list'!$D$9:$E$58,2,FALSE)=0,\"\",VLOOKUP(BW21,'Footnotes list'!$D$9:$E$58,2,FALSE) ) )","v":""},null,null,null,null,{"$f":"IF(TRIM(CB21)=\"\", \"\", IF(VLOOKUP(CB21,'Footnotes list'!$D$9:$E$58,2,FALSE)=0,\"\",VLOOKUP(CB21,'Footnotes list'!$D$9:$E$58,2,FALSE) ) )","v":""},null,null,null,null,{"$f":"IF(TRIM(CG21)=\"\", \"\", IF(VLOOKUP(CG21,'Footnotes list'!$D$9:$E$58,2,FALSE)=0,\"\",VLOOKUP(CG21,'Footnotes list'!$D$9:$E$58,2,FALSE) ) )","v":""},null,null,null,null,{"$f":"IF(TRIM(CL21)=\"\", \"\", IF(VLOOKUP(CL21,'Footnotes list'!$D$9:$E$58,2,FALSE)=0,\"\",VLOOKUP(CL21,'Footnotes list'!$D$9:$E$58,2,FALSE) ) )","v":""},null,null,null,null,{"$f":"IF(TRIM(CQ21)=\"\", \"\", IF(VLOOKUP(CQ21,'Footnotes list'!$D$9:$E$58,2,FALSE)=0,\"\",VLOOKUP(CQ21,'Footnotes list'!$D$9:$E$58,2,FALSE) ) )","v":""},null,null,null,null,{"$f":"IF(TRIM(CV21)=\"\", \"\", IF(VLOOKUP(CV21,'Footnotes list'!$D$9:$E$58,2,FALSE)=0,\"\",VLOOKUP(CV21,'Footnotes list'!$D$9:$E$58,2,FALSE) ) )","v":""},null,null,null,null,{"$f":"IF(TRIM(DA21)=\"\", \"\", IF(VLOOKUP(DA21,'Footnotes list'!$D$9:$E$58,2,FALSE)=0,\"\",VLOOKUP(DA21,'Footnotes list'!$D$9:$E$58,2,FALSE) ) )","v":""},null,null,null,null,{"$f":"IF(TRIM(DF21)=\"\", \"\", IF(VLOOKUP(DF21,'Footnotes list'!$D$9:$E$58,2,FALSE)=0,\"\",VLOOKUP(DF21,'Footnotes list'!$D$9:$E$58,2,FALSE) ) )","v":""},null,null,null,null,{"$f":"IF(TRIM(DK21)=\"\", \"\", IF(VLOOKUP(DK21,'Footnotes list'!$D$9:$E$58,2,FALSE)=0,\"\",VLOOKUP(DK21,'Footnotes list'!$D$9:$E$58,2,FALSE) ) )","v":""},null,null,null,null,{"$f":"IF(TRIM(DP21)=\"\", \"\", IF(VLOOKUP(DP21,'Footnotes list'!$D$9:$E$58,2,FALSE)=0,\"\",VLOOKUP(DP21,'Footnotes list'!$D$9:$E$58,2,FALSE) ) )","v":""},"",null,null,null,{"$f":"IF(TRIM(DU21)=\"\", \"\", IF(VLOOKUP(DU21,'Footnotes list'!$D$9:$E$58,2,FALSE)=0,\"\",VLOOKUP(DU21,'Footnotes list'!$D$9:$E$58,2,FALSE) ) )","v":""},null,null,null,null,{"$f":"IF(TRIM(DZ21)=\"\", \"\", IF(VLOOKUP(DZ21,'Footnotes list'!$D$9:$E$58,2,FALSE)=0,\"\",VLOOKUP(DZ21,'Footnotes list'!$D$9:$E$58,2,FALSE) ) )","v":""},null,null,null,null,{"$f":"IF(TRIM(EE21)=\"\", \"\", IF(VLOOKUP(EE21,'Footnotes list'!$D$9:$E$58,2,FALSE)=0,\"\",VLOOKUP(EE21,'Footnotes list'!$D$9:$E$58,2,FALSE) ) )","v":""},null,null,null,null,{"$f":"IF(TRIM(EJ21)=\"\", \"\", IF(VLOOKUP(EJ21,'Footnotes list'!$D$9:$E$58,2,FALSE)=0,\"\",VLOOKUP(EJ21,'Footnotes list'!$D$9:$E$58,2,FALSE) ) )","v":""},null,null,null,null,{"$f":"IF(TRIM(EO21)=\"\", \"\", IF(VLOOKUP(EO21,'Footnotes list'!$D$9:$E$58,2,FALSE)=0,\"\",VLOOKUP(EO21,'Footnotes list'!$D$9:$E$58,2,FALSE) ) )","v":""},null,null,null,null,{"$f":"IF(TRIM(ET21)=\"\", \"\", IF(VLOOKUP(ET21,'Footnotes list'!$D$9:$E$58,2,FALSE)=0,\"\",VLOOKUP(ET21,'Footnotes list'!$D$9:$E$58,2,FALSE) ) )","v":""},null,null,null,null,{"$f":"IF(TRIM(EY21)=\"\", \"\", IF(VLOOKUP(EY21,'Footnotes list'!$D$9:$E$58,2,FALSE)=0,\"\",VLOOKUP(EY21,'Footnotes list'!$D$9:$E$58,2,FALSE) ) )","v":""},"",null,null,null,{"$f":"IF(TRIM(FD21)=\"\", \"\", IF(VLOOKUP(FD21,'Footnotes list'!$D$9:$E$58,2,FALSE)=0,\"\",VLOOKUP(FD21,'Footnotes list'!$D$9:$E$58,2,FALSE) ) )","v":""},"",null,null,null,{"$f":"IF(TRIM(FI21)=\"\", \"\", IF(VLOOKUP(FI21,'Footnotes list'!$D$9:$E$58,2,FALSE)=0,\"\",VLOOKUP(FI21,'Footnotes list'!$D$9:$E$58,2,FALSE) ) )","v":""},null,null,null,null,{"$f":"IF(TRIM(FN21)=\"\", \"\", IF(VLOOKUP(FN21,'Footnotes list'!$D$9:$E$58,2,FALSE)=0,\"\",VLOOKUP(FN21,'Footnotes list'!$D$9:$E$58,2,FALSE) ) )","v":""}]
["S11_S12","P51G_CA_FC","D","Total D - Electricity, gas, steam and air conditioning supply",null,null,null,null,null,null,{"$f":"IF(TRIM(J22)=\"\", \"\", IF(VLOOKUP(J22,'Footnotes list'!$D$9:$E$58,2,FALSE)=0,\"\",VLOOKUP(J22,'Footnotes list'!$D$9:$E$58,2,FALSE) ) )","v":""},null,null,null,null,{"$f":"IF(TRIM(O22)=\"\", \"\", IF(VLOOKUP(O22,'Footnotes list'!$D$9:$E$58,2,FALSE)=0,\"\",VLOOKUP(O22,'Footnotes list'!$D$9:$E$58,2,FALSE) ) )","v":""},null,null,null,null,{"$f":"IF(TRIM(T22)=\"\", \"\", IF(VLOOKUP(T22,'Footnotes list'!$D$9:$E$58,2,FALSE)=0,\"\",VLOOKUP(T22,'Footnotes list'!$D$9:$E$58,2,FALSE) ) )","v":""},null,null,null,null,{"$f":"IF(TRIM(Y22)=\"\", \"\", IF(VLOOKUP(Y22,'Footnotes list'!$D$9:$E$58,2,FALSE)=0,\"\",VLOOKUP(Y22,'Footnotes list'!$D$9:$E$58,2,FALSE) ) )","v":""},null,null,null,null,{"$f":"IF(TRIM(AD22)=\"\", \"\", IF(VLOOKUP(AD22,'Footnotes list'!$D$9:$E$58,2,FALSE)=0,\"\",VLOOKUP(AD22,'Footnotes list'!$D$9:$E$58,2,FALSE) ) )","v":""},null,null,null,null,{"$f":"IF(TRIM(AI22)=\"\", \"\", IF(VLOOKUP(AI22,'Footnotes list'!$D$9:$E$58,2,FALSE)=0,\"\",VLOOKUP(AI22,'Footnotes list'!$D$9:$E$58,2,FALSE) ) )","v":""},null,null,null,null,{"$f":"IF(TRIM(AN22)=\"\", \"\", IF(VLOOKUP(AN22,'Footnotes list'!$D$9:$E$58,2,FALSE)=0,\"\",VLOOKUP(AN22,'Footnotes list'!$D$9:$E$58,2,FALSE) ) )","v":""},null,null,null,null,{"$f":"IF(TRIM(AS22)=\"\", \"\", IF(VLOOKUP(AS22,'Footnotes list'!$D$9:$E$58,2,FALSE)=0,\"\",VLOOKUP(AS22,'Footnotes list'!$D$9:$E$58,2,FALSE) ) )","v":""},null,null,null,null,{"$f":"IF(TRIM(AX22)=\"\", \"\", IF(VLOOKUP(AX22,'Footnotes list'!$D$9:$E$58,2,FALSE)=0,\"\",VLOOKUP(AX22,'Footnotes list'!$D$9:$E$58,2,FALSE) ) )","v":""},null,null,null,null,{"$f":"IF(TRIM(BC22)=\"\", \"\", IF(VLOOKUP(BC22,'Footnotes list'!$D$9:$E$58,2,FALSE)=0,\"\",VLOOKUP(BC22,'Footnotes list'!$D$9:$E$58,2,FALSE) ) )","v":""},null,null,null,null,{"$f":"IF(TRIM(BH22)=\"\", \"\", IF(VLOOKUP(BH22,'Footnotes list'!$D$9:$E$58,2,FALSE)=0,\"\",VLOOKUP(BH22,'Footnotes list'!$D$9:$E$58,2,FALSE) ) )","v":""},null,null,null,null,{"$f":"IF(TRIM(BM22)=\"\", \"\", IF(VLOOKUP(BM22,'Footnotes list'!$D$9:$E$58,2,FALSE)=0,\"\",VLOOKUP(BM22,'Footnotes list'!$D$9:$E$58,2,FALSE) ) )","v":""},null,null,null,null,{"$f":"IF(TRIM(BR22)=\"\", \"\", IF(VLOOKUP(BR22,'Footnotes list'!$D$9:$E$58,2,FALSE)=0,\"\",VLOOKUP(BR22,'Footnotes list'!$D$9:$E$58,2,FALSE) ) )","v":""},null,null,null,null,{"$f":"IF(TRIM(BW22)=\"\", \"\", IF(VLOOKUP(BW22,'Footnotes list'!$D$9:$E$58,2,FALSE)=0,\"\",VLOOKUP(BW22,'Footnotes list'!$D$9:$E$58,2,FALSE) ) )","v":""},null,null,null,null,{"$f":"IF(TRIM(CB22)=\"\", \"\", IF(VLOOKUP(CB22,'Footnotes list'!$D$9:$E$58,2,FALSE)=0,\"\",VLOOKUP(CB22,'Footnotes list'!$D$9:$E$58,2,FALSE) ) )","v":""},null,null,null,null,{"$f":"IF(TRIM(CG22)=\"\", \"\", IF(VLOOKUP(CG22,'Footnotes list'!$D$9:$E$58,2,FALSE)=0,\"\",VLOOKUP(CG22,'Footnotes list'!$D$9:$E$58,2,FALSE) ) )","v":""},null,null,null,null,{"$f":"IF(TRIM(CL22)=\"\", \"\", IF(VLOOKUP(CL22,'Footnotes list'!$D$9:$E$58,2,FALSE)=0,\"\",VLOOKUP(CL22,'Footnotes list'!$D$9:$E$58,2,FALSE) ) )","v":""},null,null,null,null,{"$f":"IF(TRIM(CQ22)=\"\", \"\", IF(VLOOKUP(CQ22,'Footnotes list'!$D$9:$E$58,2,FALSE)=0,\"\",VLOOKUP(CQ22,'Footnotes list'!$D$9:$E$58,2,FALSE) ) )","v":""},null,null,null,null,{"$f":"IF(TRIM(CV22)=\"\", \"\", IF(VLOOKUP(CV22,'Footnotes list'!$D$9:$E$58,2,FALSE)=0,\"\",VLOOKUP(CV22,'Footnotes list'!$D$9:$E$58,2,FALSE) ) )","v":""},null,null,null,null,{"$f":"IF(TRIM(DA22)=\"\", \"\", IF(VLOOKUP(DA22,'Footnotes list'!$D$9:$E$58,2,FALSE)=0,\"\",VLOOKUP(DA22,'Footnotes list'!$D$9:$E$58,2,FALSE) ) )","v":""},null,null,null,null,{"$f":"IF(TRIM(DF22)=\"\", \"\", IF(VLOOKUP(DF22,'Footnotes list'!$D$9:$E$58,2,FALSE)=0,\"\",VLOOKUP(DF22,'Footnotes list'!$D$9:$E$58,2,FALSE) ) )","v":""},null,null,null,null,{"$f":"IF(TRIM(DK22)=\"\", \"\", IF(VLOOKUP(DK22,'Footnotes list'!$D$9:$E$58,2,FALSE)=0,\"\",VLOOKUP(DK22,'Footnotes list'!$D$9:$E$58,2,FALSE) ) )","v":""},null,null,null,null,{"$f":"IF(TRIM(DP22)=\"\", \"\", IF(VLOOKUP(DP22,'Footnotes list'!$D$9:$E$58,2,FALSE)=0,\"\",VLOOKUP(DP22,'Footnotes list'!$D$9:$E$58,2,FALSE) ) )","v":""},"",null,null,null,{"$f":"IF(TRIM(DU22)=\"\", \"\", IF(VLOOKUP(DU22,'Footnotes list'!$D$9:$E$58,2,FALSE)=0,\"\",VLOOKUP(DU22,'Footnotes list'!$D$9:$E$58,2,FALSE) ) )","v":""},null,null,null,null,{"$f":"IF(TRIM(DZ22)=\"\", \"\", IF(VLOOKUP(DZ22,'Footnotes list'!$D$9:$E$58,2,FALSE)=0,\"\",VLOOKUP(DZ22,'Footnotes list'!$D$9:$E$58,2,FALSE) ) )","v":""},null,null,null,null,{"$f":"IF(TRIM(EE22)=\"\", \"\", IF(VLOOKUP(EE22,'Footnotes list'!$D$9:$E$58,2,FALSE)=0,\"\",VLOOKUP(EE22,'Footnotes list'!$D$9:$E$58,2,FALSE) ) )","v":""},null,null,null,null,{"$f":"IF(TRIM(EJ22)=\"\", \"\", IF(VLOOKUP(EJ22,'Footnotes list'!$D$9:$E$58,2,FALSE)=0,\"\",VLOOKUP(EJ22,'Footnotes list'!$D$9:$E$58,2,FALSE) ) )","v":""},null,null,null,null,{"$f":"IF(TRIM(EO22)=\"\", \"\", IF(VLOOKUP(EO22,'Footnotes list'!$D$9:$E$58,2,FALSE)=0,\"\",VLOOKUP(EO22,'Footnotes list'!$D$9:$E$58,2,FALSE) ) )","v":""},null,null,null,null,{"$f":"IF(TRIM(ET22)=\"\", \"\", IF(VLOOKUP(ET22,'Footnotes list'!$D$9:$E$58,2,FALSE)=0,\"\",VLOOKUP(ET22,'Footnotes list'!$D$9:$E$58,2,FALSE) ) )","v":""},null,null,null,null,{"$f":"IF(TRIM(EY22)=\"\", \"\", IF(VLOOKUP(EY22,'Footnotes list'!$D$9:$E$58,2,FALSE)=0,\"\",VLOOKUP(EY22,'Footnotes list'!$D$9:$E$58,2,FALSE) ) )","v":""},"",null,null,null,{"$f":"IF(TRIM(FD22)=\"\", \"\", IF(VLOOKUP(FD22,'Footnotes list'!$D$9:$E$58,2,FALSE)=0,\"\",VLOOKUP(FD22,'Footnotes list'!$D$9:$E$58,2,FALSE) ) )","v":""},"",null,null,null,{"$f":"IF(TRIM(FI22)=\"\", \"\", IF(VLOOKUP(FI22,'Footnotes list'!$D$9:$E$58,2,FALSE)=0,\"\",VLOOKUP(FI22,'Footnotes list'!$D$9:$E$58,2,FALSE) ) )","v":""},null,null,null,null,{"$f":"IF(TRIM(FN22)=\"\", \"\", IF(VLOOKUP(FN22,'Footnotes list'!$D$9:$E$58,2,FALSE)=0,\"\",VLOOKUP(FN22,'Footnotes list'!$D$9:$E$58,2,FALSE) ) )","v":""}]
["S11_S12","P51G_CA_FC","E","Total E - Water supply; sewerage, waste management and remediation activities",null,null,null,null,null,null,{"$f":"IF(TRIM(J23)=\"\", \"\", IF(VLOOKUP(J23,'Footnotes list'!$D$9:$E$58,2,FALSE)=0,\"\",VLOOKUP(J23,'Footnotes list'!$D$9:$E$58,2,FALSE) ) )","v":""},null,null,null,null,{"$f":"IF(TRIM(O23)=\"\", \"\", IF(VLOOKUP(O23,'Footnotes list'!$D$9:$E$58,2,FALSE)=0,\"\",VLOOKUP(O23,'Footnotes list'!$D$9:$E$58,2,FALSE) ) )","v":""},null,null,null,null,{"$f":"IF(TRIM(T23)=\"\", \"\", IF(VLOOKUP(T23,'Footnotes list'!$D$9:$E$58,2,FALSE)=0,\"\",VLOOKUP(T23,'Footnotes list'!$D$9:$E$58,2,FALSE) ) )","v":""},null,null,null,null,{"$f":"IF(TRIM(Y23)=\"\", \"\", IF(VLOOKUP(Y23,'Footnotes list'!$D$9:$E$58,2,FALSE)=0,\"\",VLOOKUP(Y23,'Footnotes list'!$D$9:$E$58,2,FALSE) ) )","v":""},null,null,null,null,{"$f":"IF(TRIM(AD23)=\"\", \"\", IF(VLOOKUP(AD23,'Footnotes list'!$D$9:$E$58,2,FALSE)=0,\"\",VLOOKUP(AD23,'Footnotes list'!$D$9:$E$58,2,FALSE) ) )","v":""},null,null,null,null,{"$f":"IF(TRIM(AI23)=\"\", \"\", IF(VLOOKUP(AI23,'Footnotes list'!$D$9:$E$58,2,FALSE)=0,\"\",VLOOKUP(AI23,'Footnotes list'!$D$9:$E$58,2,FALSE) ) )","v":""},null,null,null,null,{"$f":"IF(TRIM(AN23)=\"\", \"\", IF(VLOOKUP(AN23,'Footnotes list'!$D$9:$E$58,2,FALSE)=0,\"\",VLOOKUP(AN23,'Footnotes list'!$D$9:$E$58,2,FALSE) ) )","v":""},null,null,null,null,{"$f":"IF(TRIM(AS23)=\"\", \"\", IF(VLOOKUP(AS23,'Footnotes list'!$D$9:$E$58,2,FALSE)=0,\"\",VLOOKUP(AS23,'Footnotes list'!$D$9:$E$58,2,FALSE) ) )","v":""},null,null,null,null,{"$f":"IF(TRIM(AX23)=\"\", \"\", IF(VLOOKUP(AX23,'Footnotes list'!$D$9:$E$58,2,FALSE)=0,\"\",VLOOKUP(AX23,'Footnotes list'!$D$9:$E$58,2,FALSE) ) )","v":""},null,null,null,null,{"$f":"IF(TRIM(BC23)=\"\", \"\", IF(VLOOKUP(BC23,'Footnotes list'!$D$9:$E$58,2,FALSE)=0,\"\",VLOOKUP(BC23,'Footnotes list'!$D$9:$E$58,2,FALSE) ) )","v":""},null,null,null,null,{"$f":"IF(TRIM(BH23)=\"\", \"\", IF(VLOOKUP(BH23,'Footnotes list'!$D$9:$E$58,2,FALSE)=0,\"\",VLOOKUP(BH23,'Footnotes list'!$D$9:$E$58,2,FALSE) ) )","v":""},null,null,null,null,{"$f":"IF(TRIM(BM23)=\"\", \"\", IF(VLOOKUP(BM23,'Footnotes list'!$D$9:$E$58,2,FALSE)=0,\"\",VLOOKUP(BM23,'Footnotes list'!$D$9:$E$58,2,FALSE) ) )","v":""},null,null,null,null,{"$f":"IF(TRIM(BR23)=\"\", \"\", IF(VLOOKUP(BR23,'Footnotes list'!$D$9:$E$58,2,FALSE)=0,\"\",VLOOKUP(BR23,'Footnotes list'!$D$9:$E$58,2,FALSE) ) )","v":""},null,null,null,null,{"$f":"IF(TRIM(BW23)=\"\", \"\", IF(VLOOKUP(BW23,'Footnotes list'!$D$9:$E$58,2,FALSE)=0,\"\",VLOOKUP(BW23,'Footnotes list'!$D$9:$E$58,2,FALSE) ) )","v":""},null,null,null,null,{"$f":"IF(TRIM(CB23)=\"\", \"\", IF(VLOOKUP(CB23,'Footnotes list'!$D$9:$E$58,2,FALSE)=0,\"\",VLOOKUP(CB23,'Footnotes list'!$D$9:$E$58,2,FALSE) ) )","v":""},null,null,null,null,{"$f":"IF(TRIM(CG23)=\"\", \"\", IF(VLOOKUP(CG23,'Footnotes list'!$D$9:$E$58,2,FALSE)=0,\"\",VLOOKUP(CG23,'Footnotes list'!$D$9:$E$58,2,FALSE) ) )","v":""},null,null,null,null,{"$f":"IF(TRIM(CL23)=\"\", \"\", IF(VLOOKUP(CL23,'Footnotes list'!$D$9:$E$58,2,FALSE)=0,\"\",VLOOKUP(CL23,'Footnotes list'!$D$9:$E$58,2,FALSE) ) )","v":""},null,null,null,null,{"$f":"IF(TRIM(CQ23)=\"\", \"\", IF(VLOOKUP(CQ23,'Footnotes list'!$D$9:$E$58,2,FALSE)=0,\"\",VLOOKUP(CQ23,'Footnotes list'!$D$9:$E$58,2,FALSE) ) )","v":""},null,null,null,null,{"$f":"IF(TRIM(CV23)=\"\", \"\", IF(VLOOKUP(CV23,'Footnotes list'!$D$9:$E$58,2,FALSE)=0,\"\",VLOOKUP(CV23,'Footnotes list'!$D$9:$E$58,2,FALSE) ) )","v":""},null,null,null,null,{"$f":"IF(TRIM(DA23)=\"\", \"\", IF(VLOOKUP(DA23,'Footnotes list'!$D$9:$E$58,2,FALSE)=0,\"\",VLOOKUP(DA23,'Footnotes list'!$D$9:$E$58,2,FALSE) ) )","v":""},null,null,null,null,{"$f":"IF(TRIM(DF23)=\"\", \"\", IF(VLOOKUP(DF23,'Footnotes list'!$D$9:$E$58,2,FALSE)=0,\"\",VLOOKUP(DF23,'Footnotes list'!$D$9:$E$58,2,FALSE) ) )","v":""},null,null,null,null,{"$f":"IF(TRIM(DK23)=\"\", \"\", IF(VLOOKUP(DK23,'Footnotes list'!$D$9:$E$58,2,FALSE)=0,\"\",VLOOKUP(DK23,'Footnotes list'!$D$9:$E$58,2,FALSE) ) )","v":""},null,null,null,null,{"$f":"IF(TRIM(DP23)=\"\", \"\", IF(VLOOKUP(DP23,'Footnotes list'!$D$9:$E$58,2,FALSE)=0,\"\",VLOOKUP(DP23,'Footnotes list'!$D$9:$E$58,2,FALSE) ) )","v":""},"",null,null,null,{"$f":"IF(TRIM(DU23)=\"\", \"\", IF(VLOOKUP(DU23,'Footnotes list'!$D$9:$E$58,2,FALSE)=0,\"\",VLOOKUP(DU23,'Footnotes list'!$D$9:$E$58,2,FALSE) ) )","v":""},null,null,null,null,{"$f":"IF(TRIM(DZ23)=\"\", \"\", IF(VLOOKUP(DZ23,'Footnotes list'!$D$9:$E$58,2,FALSE)=0,\"\",VLOOKUP(DZ23,'Footnotes list'!$D$9:$E$58,2,FALSE) ) )","v":""},null,null,null,null,{"$f":"IF(TRIM(EE23)=\"\", \"\", IF(VLOOKUP(EE23,'Footnotes list'!$D$9:$E$58,2,FALSE)=0,\"\",VLOOKUP(EE23,'Footnotes list'!$D$9:$E$58,2,FALSE) ) )","v":""},null,null,null,null,{"$f":"IF(TRIM(EJ23)=\"\", \"\", IF(VLOOKUP(EJ23,'Footnotes list'!$D$9:$E$58,2,FALSE)=0,\"\",VLOOKUP(EJ23,'Footnotes list'!$D$9:$E$58,2,FALSE) ) )","v":""},null,null,null,null,{"$f":"IF(TRIM(EO23)=\"\", \"\", IF(VLOOKUP(EO23,'Footnotes list'!$D$9:$E$58,2,FALSE)=0,\"\",VLOOKUP(EO23,'Footnotes list'!$D$9:$E$58,2,FALSE) ) )","v":""},null,null,null,null,{"$f":"IF(TRIM(ET23)=\"\", \"\", IF(VLOOKUP(ET23,'Footnotes list'!$D$9:$E$58,2,FALSE)=0,\"\",VLOOKUP(ET23,'Footnotes list'!$D$9:$E$58,2,FALSE) ) )","v":""},null,null,null,null,{"$f":"IF(TRIM(EY23)=\"\", \"\", IF(VLOOKUP(EY23,'Footnotes list'!$D$9:$E$58,2,FALSE)=0,\"\",VLOOKUP(EY23,'Footnotes list'!$D$9:$E$58,2,FALSE) ) )","v":""},"",null,null,null,{"$f":"IF(TRIM(FD23)=\"\", \"\", IF(VLOOKUP(FD23,'Footnotes list'!$D$9:$E$58,2,FALSE)=0,\"\",VLOOKUP(FD23,'Footnotes list'!$D$9:$E$58,2,FALSE) ) )","v":""},"",null,null,null,{"$f":"IF(TRIM(FI23)=\"\", \"\", IF(VLOOKUP(FI23,'Footnotes list'!$D$9:$E$58,2,FALSE)=0,\"\",VLOOKUP(FI23,'Footnotes list'!$D$9:$E$58,2,FALSE) ) )","v":""},null,null,null,null,{"$f":"IF(TRIM(FN23)=\"\", \"\", IF(VLOOKUP(FN23,'Footnotes list'!$D$9:$E$58,2,FALSE)=0,\"\",VLOOKUP(FN23,'Footnotes list'!$D$9:$E$58,2,FALSE) ) )","v":""}]
["S11_S12","P51G_CA_FC","F","Total F - Construction",null,null,null,null,null,null,{"$f":"IF(TRIM(J24)=\"\", \"\", IF(VLOOKUP(J24,'Footnotes list'!$D$9:$E$58,2,FALSE)=0,\"\",VLOOKUP(J24,'Footnotes list'!$D$9:$E$58,2,FALSE) ) )","v":""},null,null,null,null,{"$f":"IF(TRIM(O24)=\"\", \"\", IF(VLOOKUP(O24,'Footnotes list'!$D$9:$E$58,2,FALSE)=0,\"\",VLOOKUP(O24,'Footnotes list'!$D$9:$E$58,2,FALSE) ) )","v":""},null,null,null,null,{"$f":"IF(TRIM(T24)=\"\", \"\", IF(VLOOKUP(T24,'Footnotes list'!$D$9:$E$58,2,FALSE)=0,\"\",VLOOKUP(T24,'Footnotes list'!$D$9:$E$58,2,FALSE) ) )","v":""},null,null,null,null,{"$f":"IF(TRIM(Y24)=\"\", \"\", IF(VLOOKUP(Y24,'Footnotes list'!$D$9:$E$58,2,FALSE)=0,\"\",VLOOKUP(Y24,'Footnotes list'!$D$9:$E$58,2,FALSE) ) )","v":""},null,null,null,null,{"$f":"IF(TRIM(AD24)=\"\", \"\", IF(VLOOKUP(AD24,'Footnotes list'!$D$9:$E$58,2,FALSE)=0,\"\",VLOOKUP(AD24,'Footnotes list'!$D$9:$E$58,2,FALSE) ) )","v":""},null,null,null,null,{"$f":"IF(TRIM(AI24)=\"\", \"\", IF(VLOOKUP(AI24,'Footnotes list'!$D$9:$E$58,2,FALSE)=0,\"\",VLOOKUP(AI24,'Footnotes list'!$D$9:$E$58,2,FALSE) ) )","v":""},null,null,null,null,{"$f":"IF(TRIM(AN24)=\"\", \"\", IF(VLOOKUP(AN24,'Footnotes list'!$D$9:$E$58,2,FALSE)=0,\"\",VLOOKUP(AN24,'Footnotes list'!$D$9:$E$58,2,FALSE) ) )","v":""},null,null,null,null,{"$f":"IF(TRIM(AS24)=\"\", \"\", IF(VLOOKUP(AS24,'Footnotes list'!$D$9:$E$58,2,FALSE)=0,\"\",VLOOKUP(AS24,'Footnotes list'!$D$9:$E$58,2,FALSE) ) )","v":""},null,null,null,null,{"$f":"IF(TRIM(AX24)=\"\", \"\", IF(VLOOKUP(AX24,'Footnotes list'!$D$9:$E$58,2,FALSE)=0,\"\",VLOOKUP(AX24,'Footnotes list'!$D$9:$E$58,2,FALSE) ) )","v":""},null,null,null,null,{"$f":"IF(TRIM(BC24)=\"\", \"\", IF(VLOOKUP(BC24,'Footnotes list'!$D$9:$E$58,2,FALSE)=0,\"\",VLOOKUP(BC24,'Footnotes list'!$D$9:$E$58,2,FALSE) ) )","v":""},null,null,null,null,{"$f":"IF(TRIM(BH24)=\"\", \"\", IF(VLOOKUP(BH24,'Footnotes list'!$D$9:$E$58,2,FALSE)=0,\"\",VLOOKUP(BH24,'Footnotes list'!$D$9:$E$58,2,FALSE) ) )","v":""},null,null,null,null,{"$f":"IF(TRIM(BM24)=\"\", \"\", IF(VLOOKUP(BM24,'Footnotes list'!$D$9:$E$58,2,FALSE)=0,\"\",VLOOKUP(BM24,'Footnotes list'!$D$9:$E$58,2,FALSE) ) )","v":""},null,null,null,null,{"$f":"IF(TRIM(BR24)=\"\", \"\", IF(VLOOKUP(BR24,'Footnotes list'!$D$9:$E$58,2,FALSE)=0,\"\",VLOOKUP(BR24,'Footnotes list'!$D$9:$E$58,2,FALSE) ) )","v":""},null,null,null,null,{"$f":"IF(TRIM(BW24)=\"\", \"\", IF(VLOOKUP(BW24,'Footnotes list'!$D$9:$E$58,2,FALSE)=0,\"\",VLOOKUP(BW24,'Footnotes list'!$D$9:$E$58,2,FALSE) ) )","v":""},null,null,null,null,{"$f":"IF(TRIM(CB24)=\"\", \"\", IF(VLOOKUP(CB24,'Footnotes list'!$D$9:$E$58,2,FALSE)=0,\"\",VLOOKUP(CB24,'Footnotes list'!$D$9:$E$58,2,FALSE) ) )","v":""},null,null,null,null,{"$f":"IF(TRIM(CG24)=\"\", \"\", IF(VLOOKUP(CG24,'Footnotes list'!$D$9:$E$58,2,FALSE)=0,\"\",VLOOKUP(CG24,'Footnotes list'!$D$9:$E$58,2,FALSE) ) )","v":""},null,null,null,null,{"$f":"IF(TRIM(CL24)=\"\", \"\", IF(VLOOKUP(CL24,'Footnotes list'!$D$9:$E$58,2,FALSE)=0,\"\",VLOOKUP(CL24,'Footnotes list'!$D$9:$E$58,2,FALSE) ) )","v":""},null,null,null,null,{"$f":"IF(TRIM(CQ24)=\"\", \"\", IF(VLOOKUP(CQ24,'Footnotes list'!$D$9:$E$58,2,FALSE)=0,\"\",VLOOKUP(CQ24,'Footnotes list'!$D$9:$E$58,2,FALSE) ) )","v":""},null,null,null,null,{"$f":"IF(TRIM(CV24)=\"\", \"\", IF(VLOOKUP(CV24,'Footnotes list'!$D$9:$E$58,2,FALSE)=0,\"\",VLOOKUP(CV24,'Footnotes list'!$D$9:$E$58,2,FALSE) ) )","v":""},null,null,null,null,{"$f":"IF(TRIM(DA24)=\"\", \"\", IF(VLOOKUP(DA24,'Footnotes list'!$D$9:$E$58,2,FALSE)=0,\"\",VLOOKUP(DA24,'Footnotes list'!$D$9:$E$58,2,FALSE) ) )","v":""},null,null,null,null,{"$f":"IF(TRIM(DF24)=\"\", \"\", IF(VLOOKUP(DF24,'Footnotes list'!$D$9:$E$58,2,FALSE)=0,\"\",VLOOKUP(DF24,'Footnotes list'!$D$9:$E$58,2,FALSE) ) )","v":""},null,null,null,null,{"$f":"IF(TRIM(DK24)=\"\", \"\", IF(VLOOKUP(DK24,'Footnotes list'!$D$9:$E$58,2,FALSE)=0,\"\",VLOOKUP(DK24,'Footnotes list'!$D$9:$E$58,2,FALSE) ) )","v":""},null,null,null,null,{"$f":"IF(TRIM(DP24)=\"\", \"\", IF(VLOOKUP(DP24,'Footnotes list'!$D$9:$E$58,2,FALSE)=0,\"\",VLOOKUP(DP24,'Footnotes list'!$D$9:$E$58,2,FALSE) ) )","v":""},"",null,null,null,{"$f":"IF(TRIM(DU24)=\"\", \"\", IF(VLOOKUP(DU24,'Footnotes list'!$D$9:$E$58,2,FALSE)=0,\"\",VLOOKUP(DU24,'Footnotes list'!$D$9:$E$58,2,FALSE) ) )","v":""},null,null,null,null,{"$f":"IF(TRIM(DZ24)=\"\", \"\", IF(VLOOKUP(DZ24,'Footnotes list'!$D$9:$E$58,2,FALSE)=0,\"\",VLOOKUP(DZ24,'Footnotes list'!$D$9:$E$58,2,FALSE) ) )","v":""},null,null,null,null,{"$f":"IF(TRIM(EE24)=\"\", \"\", IF(VLOOKUP(EE24,'Footnotes list'!$D$9:$E$58,2,FALSE)=0,\"\",VLOOKUP(EE24,'Footnotes list'!$D$9:$E$58,2,FALSE) ) )","v":""},null,null,null,null,{"$f":"IF(TRIM(EJ24)=\"\", \"\", IF(VLOOKUP(EJ24,'Footnotes list'!$D$9:$E$58,2,FALSE)=0,\"\",VLOOKUP(EJ24,'Footnotes list'!$D$9:$E$58,2,FALSE) ) )","v":""},null,null,null,null,{"$f":"IF(TRIM(EO24)=\"\", \"\", IF(VLOOKUP(EO24,'Footnotes list'!$D$9:$E$58,2,FALSE)=0,\"\",VLOOKUP(EO24,'Footnotes list'!$D$9:$E$58,2,FALSE) ) )","v":""},null,null,null,null,{"$f":"IF(TRIM(ET24)=\"\", \"\", IF(VLOOKUP(ET24,'Footnotes list'!$D$9:$E$58,2,FALSE)=0,\"\",VLOOKUP(ET24,'Footnotes list'!$D$9:$E$58,2,FALSE) ) )","v":""},null,null,null,null,{"$f":"IF(TRIM(EY24)=\"\", \"\", IF(VLOOKUP(EY24,'Footnotes list'!$D$9:$E$58,2,FALSE)=0,\"\",VLOOKUP(EY24,'Footnotes list'!$D$9:$E$58,2,FALSE) ) )","v":""},"",null,null,null,{"$f":"IF(TRIM(FD24)=\"\", \"\", IF(VLOOKUP(FD24,'Footnotes list'!$D$9:$E$58,2,FALSE)=0,\"\",VLOOKUP(FD24,'Footnotes list'!$D$9:$E$58,2,FALSE) ) )","v":""},"",null,null,null,{"$f":"IF(TRIM(FI24)=\"\", \"\", IF(VLOOKUP(FI24,'Footnotes list'!$D$9:$E$58,2,FALSE)=0,\"\",VLOOKUP(FI24,'Footnotes list'!$D$9:$E$58,2,FALSE) ) )","v":""},null,null,null,null,{"$f":"IF(TRIM(FN24)=\"\", \"\", IF(VLOOKUP(FN24,'Footnotes list'!$D$9:$E$58,2,FALSE)=0,\"\",VLOOKUP(FN24,'Footnotes list'!$D$9:$E$58,2,FALSE) ) )","v":""}]
["S11_S12","P51G_CA_FC","J","Total J - Information and communication",null,null,null,null,null,null,{"$f":"IF(TRIM(J25)=\"\", \"\", IF(VLOOKUP(J25,'Footnotes list'!$D$9:$E$58,2,FALSE)=0,\"\",VLOOKUP(J25,'Footnotes list'!$D$9:$E$58,2,FALSE) ) )","v":""},null,null,null,null,{"$f":"IF(TRIM(O25)=\"\", \"\", IF(VLOOKUP(O25,'Footnotes list'!$D$9:$E$58,2,FALSE)=0,\"\",VLOOKUP(O25,'Footnotes list'!$D$9:$E$58,2,FALSE) ) )","v":""},null,null,null,null,{"$f":"IF(TRIM(T25)=\"\", \"\", IF(VLOOKUP(T25,'Footnotes list'!$D$9:$E$58,2,FALSE)=0,\"\",VLOOKUP(T25,'Footnotes list'!$D$9:$E$58,2,FALSE) ) )","v":""},null,null,null,null,{"$f":"IF(TRIM(Y25)=\"\", \"\", IF(VLOOKUP(Y25,'Footnotes list'!$D$9:$E$58,2,FALSE)=0,\"\",VLOOKUP(Y25,'Footnotes list'!$D$9:$E$58,2,FALSE) ) )","v":""},null,null,null,null,{"$f":"IF(TRIM(AD25)=\"\", \"\", IF(VLOOKUP(AD25,'Footnotes list'!$D$9:$E$58,2,FALSE)=0,\"\",VLOOKUP(AD25,'Footnotes list'!$D$9:$E$58,2,FALSE) ) )","v":""},null,null,null,null,{"$f":"IF(TRIM(AI25)=\"\", \"\", IF(VLOOKUP(AI25,'Footnotes list'!$D$9:$E$58,2,FALSE)=0,\"\",VLOOKUP(AI25,'Footnotes list'!$D$9:$E$58,2,FALSE) ) )","v":""},null,null,null,null,{"$f":"IF(TRIM(AN25)=\"\", \"\", IF(VLOOKUP(AN25,'Footnotes list'!$D$9:$E$58,2,FALSE)=0,\"\",VLOOKUP(AN25,'Footnotes list'!$D$9:$E$58,2,FALSE) ) )","v":""},null,null,null,null,{"$f":"IF(TRIM(AS25)=\"\", \"\", IF(VLOOKUP(AS25,'Footnotes list'!$D$9:$E$58,2,FALSE)=0,\"\",VLOOKUP(AS25,'Footnotes list'!$D$9:$E$58,2,FALSE) ) )","v":""},null,null,null,null,{"$f":"IF(TRIM(AX25)=\"\", \"\", IF(VLOOKUP(AX25,'Footnotes list'!$D$9:$E$58,2,FALSE)=0,\"\",VLOOKUP(AX25,'Footnotes list'!$D$9:$E$58,2,FALSE) ) )","v":""},null,null,null,null,{"$f":"IF(TRIM(BC25)=\"\", \"\", IF(VLOOKUP(BC25,'Footnotes list'!$D$9:$E$58,2,FALSE)=0,\"\",VLOOKUP(BC25,'Footnotes list'!$D$9:$E$58,2,FALSE) ) )","v":""},null,null,null,null,{"$f":"IF(TRIM(BH25)=\"\", \"\", IF(VLOOKUP(BH25,'Footnotes list'!$D$9:$E$58,2,FALSE)=0,\"\",VLOOKUP(BH25,'Footnotes list'!$D$9:$E$58,2,FALSE) ) )","v":""},null,null,null,null,{"$f":"IF(TRIM(BM25)=\"\", \"\", IF(VLOOKUP(BM25,'Footnotes list'!$D$9:$E$58,2,FALSE)=0,\"\",VLOOKUP(BM25,'Footnotes list'!$D$9:$E$58,2,FALSE) ) )","v":""},null,null,null,null,{"$f":"IF(TRIM(BR25)=\"\", \"\", IF(VLOOKUP(BR25,'Footnotes list'!$D$9:$E$58,2,FALSE)=0,\"\",VLOOKUP(BR25,'Footnotes list'!$D$9:$E$58,2,FALSE) ) )","v":""},null,null,null,null,{"$f":"IF(TRIM(BW25)=\"\", \"\", IF(VLOOKUP(BW25,'Footnotes list'!$D$9:$E$58,2,FALSE)=0,\"\",VLOOKUP(BW25,'Footnotes list'!$D$9:$E$58,2,FALSE) ) )","v":""},null,null,null,null,{"$f":"IF(TRIM(CB25)=\"\", \"\", IF(VLOOKUP(CB25,'Footnotes list'!$D$9:$E$58,2,FALSE)=0,\"\",VLOOKUP(CB25,'Footnotes list'!$D$9:$E$58,2,FALSE) ) )","v":""},null,null,null,null,{"$f":"IF(TRIM(CG25)=\"\", \"\", IF(VLOOKUP(CG25,'Footnotes list'!$D$9:$E$58,2,FALSE)=0,\"\",VLOOKUP(CG25,'Footnotes list'!$D$9:$E$58,2,FALSE) ) )","v":""},null,null,null,null,{"$f":"IF(TRIM(CL25)=\"\", \"\", IF(VLOOKUP(CL25,'Footnotes list'!$D$9:$E$58,2,FALSE)=0,\"\",VLOOKUP(CL25,'Footnotes list'!$D$9:$E$58,2,FALSE) ) )","v":""},null,null,null,null,{"$f":"IF(TRIM(CQ25)=\"\", \"\", IF(VLOOKUP(CQ25,'Footnotes list'!$D$9:$E$58,2,FALSE)=0,\"\",VLOOKUP(CQ25,'Footnotes list'!$D$9:$E$58,2,FALSE) ) )","v":""},null,null,null,null,{"$f":"IF(TRIM(CV25)=\"\", \"\", IF(VLOOKUP(CV25,'Footnotes list'!$D$9:$E$58,2,FALSE)=0,\"\",VLOOKUP(CV25,'Footnotes list'!$D$9:$E$58,2,FALSE) ) )","v":""},null,null,null,null,{"$f":"IF(TRIM(DA25)=\"\", \"\", IF(VLOOKUP(DA25,'Footnotes list'!$D$9:$E$58,2,FALSE)=0,\"\",VLOOKUP(DA25,'Footnotes list'!$D$9:$E$58,2,FALSE) ) )","v":""},null,null,null,null,{"$f":"IF(TRIM(DF25)=\"\", \"\", IF(VLOOKUP(DF25,'Footnotes list'!$D$9:$E$58,2,FALSE)=0,\"\",VLOOKUP(DF25,'Footnotes list'!$D$9:$E$58,2,FALSE) ) )","v":""},null,null,null,null,{"$f":"IF(TRIM(DK25)=\"\", \"\", IF(VLOOKUP(DK25,'Footnotes list'!$D$9:$E$58,2,FALSE)=0,\"\",VLOOKUP(DK25,'Footnotes list'!$D$9:$E$58,2,FALSE) ) )","v":""},null,null,null,null,{"$f":"IF(TRIM(DP25)=\"\", \"\", IF(VLOOKUP(DP25,'Footnotes list'!$D$9:$E$58,2,FALSE)=0,\"\",VLOOKUP(DP25,'Footnotes list'!$D$9:$E$58,2,FALSE) ) )","v":""},"",null,null,null,{"$f":"IF(TRIM(DU25)=\"\", \"\", IF(VLOOKUP(DU25,'Footnotes list'!$D$9:$E$58,2,FALSE)=0,\"\",VLOOKUP(DU25,'Footnotes list'!$D$9:$E$58,2,FALSE) ) )","v":""},null,null,null,null,{"$f":"IF(TRIM(DZ25)=\"\", \"\", IF(VLOOKUP(DZ25,'Footnotes list'!$D$9:$E$58,2,FALSE)=0,\"\",VLOOKUP(DZ25,'Footnotes list'!$D$9:$E$58,2,FALSE) ) )","v":""},null,null,null,null,{"$f":"IF(TRIM(EE25)=\"\", \"\", IF(VLOOKUP(EE25,'Footnotes list'!$D$9:$E$58,2,FALSE)=0,\"\",VLOOKUP(EE25,'Footnotes list'!$D$9:$E$58,2,FALSE) ) )","v":""},null,null,null,null,{"$f":"IF(TRIM(EJ25)=\"\", \"\", IF(VLOOKUP(EJ25,'Footnotes list'!$D$9:$E$58,2,FALSE)=0,\"\",VLOOKUP(EJ25,'Footnotes list'!$D$9:$E$58,2,FALSE) ) )","v":""},null,null,null,null,{"$f":"IF(TRIM(EO25)=\"\", \"\", IF(VLOOKUP(EO25,'Footnotes list'!$D$9:$E$58,2,FALSE)=0,\"\",VLOOKUP(EO25,'Footnotes list'!$D$9:$E$58,2,FALSE) ) )","v":""},null,null,null,null,{"$f":"IF(TRIM(ET25)=\"\", \"\", IF(VLOOKUP(ET25,'Footnotes list'!$D$9:$E$58,2,FALSE)=0,\"\",VLOOKUP(ET25,'Footnotes list'!$D$9:$E$58,2,FALSE) ) )","v":""},null,null,null,null,{"$f":"IF(TRIM(EY25)=\"\", \"\", IF(VLOOKUP(EY25,'Footnotes list'!$D$9:$E$58,2,FALSE)=0,\"\",VLOOKUP(EY25,'Footnotes list'!$D$9:$E$58,2,FALSE) ) )","v":""},"",null,null,null,{"$f":"IF(TRIM(FD25)=\"\", \"\", IF(VLOOKUP(FD25,'Footnotes list'!$D$9:$E$58,2,FALSE)=0,\"\",VLOOKUP(FD25,'Footnotes list'!$D$9:$E$58,2,FALSE) ) )","v":""},"",null,null,null,{"$f":"IF(TRIM(FI25)=\"\", \"\", IF(VLOOKUP(FI25,'Footnotes list'!$D$9:$E$58,2,FALSE)=0,\"\",VLOOKUP(FI25,'Footnotes list'!$D$9:$E$58,2,FALSE) ) )","v":""},null,null,null,null,{"$f":"IF(TRIM(FN25)=\"\", \"\", IF(VLOOKUP(FN25,'Footnotes list'!$D$9:$E$58,2,FALSE)=0,\"\",VLOOKUP(FN25,'Footnotes list'!$D$9:$E$58,2,FALSE) ) )","v":""}]
["S11_S12","P51G_CA_FC","M","Total M - Professional, scientific and technical activities",null,null,null,null,null,null,{"$f":"IF(TRIM(J26)=\"\", \"\", IF(VLOOKUP(J26,'Footnotes list'!$D$9:$E$58,2,FALSE)=0,\"\",VLOOKUP(J26,'Footnotes list'!$D$9:$E$58,2,FALSE) ) )","v":""},null,null,null,null,{"$f":"IF(TRIM(O26)=\"\", \"\", IF(VLOOKUP(O26,'Footnotes list'!$D$9:$E$58,2,FALSE)=0,\"\",VLOOKUP(O26,'Footnotes list'!$D$9:$E$58,2,FALSE) ) )","v":""},null,null,null,null,{"$f":"IF(TRIM(T26)=\"\", \"\", IF(VLOOKUP(T26,'Footnotes list'!$D$9:$E$58,2,FALSE)=0,\"\",VLOOKUP(T26,'Footnotes list'!$D$9:$E$58,2,FALSE) ) )","v":""},null,null,null,null,{"$f":"IF(TRIM(Y26)=\"\", \"\", IF(VLOOKUP(Y26,'Footnotes list'!$D$9:$E$58,2,FALSE)=0,\"\",VLOOKUP(Y26,'Footnotes list'!$D$9:$E$58,2,FALSE) ) )","v":""},null,null,null,null,{"$f":"IF(TRIM(AD26)=\"\", \"\", IF(VLOOKUP(AD26,'Footnotes list'!$D$9:$E$58,2,FALSE)=0,\"\",VLOOKUP(AD26,'Footnotes list'!$D$9:$E$58,2,FALSE) ) )","v":""},null,null,null,null,{"$f":"IF(TRIM(AI26)=\"\", \"\", IF(VLOOKUP(AI26,'Footnotes list'!$D$9:$E$58,2,FALSE)=0,\"\",VLOOKUP(AI26,'Footnotes list'!$D$9:$E$58,2,FALSE) ) )","v":""},null,null,null,null,{"$f":"IF(TRIM(AN26)=\"\", \"\", IF(VLOOKUP(AN26,'Footnotes list'!$D$9:$E$58,2,FALSE)=0,\"\",VLOOKUP(AN26,'Footnotes list'!$D$9:$E$58,2,FALSE) ) )","v":""},null,null,null,null,{"$f":"IF(TRIM(AS26)=\"\", \"\", IF(VLOOKUP(AS26,'Footnotes list'!$D$9:$E$58,2,FALSE)=0,\"\",VLOOKUP(AS26,'Footnotes list'!$D$9:$E$58,2,FALSE) ) )","v":""},null,null,null,null,{"$f":"IF(TRIM(AX26)=\"\", \"\", IF(VLOOKUP(AX26,'Footnotes list'!$D$9:$E$58,2,FALSE)=0,\"\",VLOOKUP(AX26,'Footnotes list'!$D$9:$E$58,2,FALSE) ) )","v":""},null,null,null,null,{"$f":"IF(TRIM(BC26)=\"\", \"\", IF(VLOOKUP(BC26,'Footnotes list'!$D$9:$E$58,2,FALSE)=0,\"\",VLOOKUP(BC26,'Footnotes list'!$D$9:$E$58,2,FALSE) ) )","v":""},null,null,null,null,{"$f":"IF(TRIM(BH26)=\"\", \"\", IF(VLOOKUP(BH26,'Footnotes list'!$D$9:$E$58,2,FALSE)=0,\"\",VLOOKUP(BH26,'Footnotes list'!$D$9:$E$58,2,FALSE) ) )","v":""},null,null,null,null,{"$f":"IF(TRIM(BM26)=\"\", \"\", IF(VLOOKUP(BM26,'Footnotes list'!$D$9:$E$58,2,FALSE)=0,\"\",VLOOKUP(BM26,'Footnotes list'!$D$9:$E$58,2,FALSE) ) )","v":""},null,null,null,null,{"$f":"IF(TRIM(BR26)=\"\", \"\", IF(VLOOKUP(BR26,'Footnotes list'!$D$9:$E$58,2,FALSE)=0,\"\",VLOOKUP(BR26,'Footnotes list'!$D$9:$E$58,2,FALSE) ) )","v":""},null,null,null,null,{"$f":"IF(TRIM(BW26)=\"\", \"\", IF(VLOOKUP(BW26,'Footnotes list'!$D$9:$E$58,2,FALSE)=0,\"\",VLOOKUP(BW26,'Footnotes list'!$D$9:$E$58,2,FALSE) ) )","v":""},null,null,null,null,{"$f":"IF(TRIM(CB26)=\"\", \"\", IF(VLOOKUP(CB26,'Footnotes list'!$D$9:$E$58,2,FALSE)=0,\"\",VLOOKUP(CB26,'Footnotes list'!$D$9:$E$58,2,FALSE) ) )","v":""},null,null,null,null,{"$f":"IF(TRIM(CG26)=\"\", \"\", IF(VLOOKUP(CG26,'Footnotes list'!$D$9:$E$58,2,FALSE)=0,\"\",VLOOKUP(CG26,'Footnotes list'!$D$9:$E$58,2,FALSE) ) )","v":""},null,null,null,null,{"$f":"IF(TRIM(CL26)=\"\", \"\", IF(VLOOKUP(CL26,'Footnotes list'!$D$9:$E$58,2,FALSE)=0,\"\",VLOOKUP(CL26,'Footnotes list'!$D$9:$E$58,2,FALSE) ) )","v":""},null,null,null,null,{"$f":"IF(TRIM(CQ26)=\"\", \"\", IF(VLOOKUP(CQ26,'Footnotes list'!$D$9:$E$58,2,FALSE)=0,\"\",VLOOKUP(CQ26,'Footnotes list'!$D$9:$E$58,2,FALSE) ) )","v":""},null,null,null,null,{"$f":"IF(TRIM(CV26)=\"\", \"\", IF(VLOOKUP(CV26,'Footnotes list'!$D$9:$E$58,2,FALSE)=0,\"\",VLOOKUP(CV26,'Footnotes list'!$D$9:$E$58,2,FALSE) ) )","v":""},null,null,null,null,{"$f":"IF(TRIM(DA26)=\"\", \"\", IF(VLOOKUP(DA26,'Footnotes list'!$D$9:$E$58,2,FALSE)=0,\"\",VLOOKUP(DA26,'Footnotes list'!$D$9:$E$58,2,FALSE) ) )","v":""},null,null,null,null,{"$f":"IF(TRIM(DF26)=\"\", \"\", IF(VLOOKUP(DF26,'Footnotes list'!$D$9:$E$58,2,FALSE)=0,\"\",VLOOKUP(DF26,'Footnotes list'!$D$9:$E$58,2,FALSE) ) )","v":""},null,null,null,null,{"$f":"IF(TRIM(DK26)=\"\", \"\", IF(VLOOKUP(DK26,'Footnotes list'!$D$9:$E$58,2,FALSE)=0,\"\",VLOOKUP(DK26,'Footnotes list'!$D$9:$E$58,2,FALSE) ) )","v":""},null,null,null,null,{"$f":"IF(TRIM(DP26)=\"\", \"\", IF(VLOOKUP(DP26,'Footnotes list'!$D$9:$E$58,2,FALSE)=0,\"\",VLOOKUP(DP26,'Footnotes list'!$D$9:$E$58,2,FALSE) ) )","v":""},"",null,null,null,{"$f":"IF(TRIM(DU26)=\"\", \"\", IF(VLOOKUP(DU26,'Footnotes list'!$D$9:$E$58,2,FALSE)=0,\"\",VLOOKUP(DU26,'Footnotes list'!$D$9:$E$58,2,FALSE) ) )","v":""},null,null,null,null,{"$f":"IF(TRIM(DZ26)=\"\", \"\", IF(VLOOKUP(DZ26,'Footnotes list'!$D$9:$E$58,2,FALSE)=0,\"\",VLOOKUP(DZ26,'Footnotes list'!$D$9:$E$58,2,FALSE) ) )","v":""},null,null,null,null,{"$f":"IF(TRIM(EE26)=\"\", \"\", IF(VLOOKUP(EE26,'Footnotes list'!$D$9:$E$58,2,FALSE)=0,\"\",VLOOKUP(EE26,'Footnotes list'!$D$9:$E$58,2,FALSE) ) )","v":""},null,null,null,null,{"$f":"IF(TRIM(EJ26)=\"\", \"\", IF(VLOOKUP(EJ26,'Footnotes list'!$D$9:$E$58,2,FALSE)=0,\"\",VLOOKUP(EJ26,'Footnotes list'!$D$9:$E$58,2,FALSE) ) )","v":""},null,null,null,null,{"$f":"IF(TRIM(EO26)=\"\", \"\", IF(VLOOKUP(EO26,'Footnotes list'!$D$9:$E$58,2,FALSE)=0,\"\",VLOOKUP(EO26,'Footnotes list'!$D$9:$E$58,2,FALSE) ) )","v":""},null,null,null,null,{"$f":"IF(TRIM(ET26)=\"\", \"\", IF(VLOOKUP(ET26,'Footnotes list'!$D$9:$E$58,2,FALSE)=0,\"\",VLOOKUP(ET26,'Footnotes list'!$D$9:$E$58,2,FALSE) ) )","v":""},null,null,null,null,{"$f":"IF(TRIM(EY26)=\"\", \"\", IF(VLOOKUP(EY26,'Footnotes list'!$D$9:$E$58,2,FALSE)=0,\"\",VLOOKUP(EY26,'Footnotes list'!$D$9:$E$58,2,FALSE) ) )","v":""},"",null,null,null,{"$f":"IF(TRIM(FD26)=\"\", \"\", IF(VLOOKUP(FD26,'Footnotes list'!$D$9:$E$58,2,FALSE)=0,\"\",VLOOKUP(FD26,'Footnotes list'!$D$9:$E$58,2,FALSE) ) )","v":""},"",null,null,null,{"$f":"IF(TRIM(FI26)=\"\", \"\", IF(VLOOKUP(FI26,'Footnotes list'!$D$9:$E$58,2,FALSE)=0,\"\",VLOOKUP(FI26,'Footnotes list'!$D$9:$E$58,2,FALSE) ) )","v":""},null,null,null,null,{"$f":"IF(TRIM(FN26)=\"\", \"\", IF(VLOOKUP(FN26,'Footnotes list'!$D$9:$E$58,2,FALSE)=0,\"\",VLOOKUP(FN26,'Footnotes list'!$D$9:$E$58,2,FALSE) ) )","v":""}]
["S11_S12","P51G_CA_FC","O","Total O - Public administration and defence, compulsory social security",null,null,null,null,null,null,{"$f":"IF(TRIM(J27)=\"\", \"\", IF(VLOOKUP(J27,'Footnotes list'!$D$9:$E$58,2,FALSE)=0,\"\",VLOOKUP(J27,'Footnotes list'!$D$9:$E$58,2,FALSE) ) )","v":""},null,null,null,null,{"$f":"IF(TRIM(O27)=\"\", \"\", IF(VLOOKUP(O27,'Footnotes list'!$D$9:$E$58,2,FALSE)=0,\"\",VLOOKUP(O27,'Footnotes list'!$D$9:$E$58,2,FALSE) ) )","v":""},null,null,null,null,{"$f":"IF(TRIM(T27)=\"\", \"\", IF(VLOOKUP(T27,'Footnotes list'!$D$9:$E$58,2,FALSE)=0,\"\",VLOOKUP(T27,'Footnotes list'!$D$9:$E$58,2,FALSE) ) )","v":""},null,null,null,null,{"$f":"IF(TRIM(Y27)=\"\", \"\", IF(VLOOKUP(Y27,'Footnotes list'!$D$9:$E$58,2,FALSE)=0,\"\",VLOOKUP(Y27,'Footnotes list'!$D$9:$E$58,2,FALSE) ) )","v":""},null,null,null,null,{"$f":"IF(TRIM(AD27)=\"\", \"\", IF(VLOOKUP(AD27,'Footnotes list'!$D$9:$E$58,2,FALSE)=0,\"\",VLOOKUP(AD27,'Footnotes list'!$D$9:$E$58,2,FALSE) ) )","v":""},null,null,null,null,{"$f":"IF(TRIM(AI27)=\"\", \"\", IF(VLOOKUP(AI27,'Footnotes list'!$D$9:$E$58,2,FALSE)=0,\"\",VLOOKUP(AI27,'Footnotes list'!$D$9:$E$58,2,FALSE) ) )","v":""},null,null,null,null,{"$f":"IF(TRIM(AN27)=\"\", \"\", IF(VLOOKUP(AN27,'Footnotes list'!$D$9:$E$58,2,FALSE)=0,\"\",VLOOKUP(AN27,'Footnotes list'!$D$9:$E$58,2,FALSE) ) )","v":""},null,null,null,null,{"$f":"IF(TRIM(AS27)=\"\", \"\", IF(VLOOKUP(AS27,'Footnotes list'!$D$9:$E$58,2,FALSE)=0,\"\",VLOOKUP(AS27,'Footnotes list'!$D$9:$E$58,2,FALSE) ) )","v":""},null,null,null,null,{"$f":"IF(TRIM(AX27)=\"\", \"\", IF(VLOOKUP(AX27,'Footnotes list'!$D$9:$E$58,2,FALSE)=0,\"\",VLOOKUP(AX27,'Footnotes list'!$D$9:$E$58,2,FALSE) ) )","v":""},null,null,null,null,{"$f":"IF(TRIM(BC27)=\"\", \"\", IF(VLOOKUP(BC27,'Footnotes list'!$D$9:$E$58,2,FALSE)=0,\"\",VLOOKUP(BC27,'Footnotes list'!$D$9:$E$58,2,FALSE) ) )","v":""},null,null,null,null,{"$f":"IF(TRIM(BH27)=\"\", \"\", IF(VLOOKUP(BH27,'Footnotes list'!$D$9:$E$58,2,FALSE)=0,\"\",VLOOKUP(BH27,'Footnotes list'!$D$9:$E$58,2,FALSE) ) )","v":""},null,null,null,null,{"$f":"IF(TRIM(BM27)=\"\", \"\", IF(VLOOKUP(BM27,'Footnotes list'!$D$9:$E$58,2,FALSE)=0,\"\",VLOOKUP(BM27,'Footnotes list'!$D$9:$E$58,2,FALSE) ) )","v":""},null,null,null,null,{"$f":"IF(TRIM(BR27)=\"\", \"\", IF(VLOOKUP(BR27,'Footnotes list'!$D$9:$E$58,2,FALSE)=0,\"\",VLOOKUP(BR27,'Footnotes list'!$D$9:$E$58,2,FALSE) ) )","v":""},null,null,null,null,{"$f":"IF(TRIM(BW27)=\"\", \"\", IF(VLOOKUP(BW27,'Footnotes list'!$D$9:$E$58,2,FALSE)=0,\"\",VLOOKUP(BW27,'Footnotes list'!$D$9:$E$58,2,FALSE) ) )","v":""},null,null,null,null,{"$f":"IF(TRIM(CB27)=\"\", \"\", IF(VLOOKUP(CB27,'Footnotes list'!$D$9:$E$58,2,FALSE)=0,\"\",VLOOKUP(CB27,'Footnotes list'!$D$9:$E$58,2,FALSE) ) )","v":""},null,null,null,null,{"$f":"IF(TRIM(CG27)=\"\", \"\", IF(VLOOKUP(CG27,'Footnotes list'!$D$9:$E$58,2,FALSE)=0,\"\",VLOOKUP(CG27,'Footnotes list'!$D$9:$E$58,2,FALSE) ) )","v":""},null,null,null,null,{"$f":"IF(TRIM(CL27)=\"\", \"\", IF(VLOOKUP(CL27,'Footnotes list'!$D$9:$E$58,2,FALSE)=0,\"\",VLOOKUP(CL27,'Footnotes list'!$D$9:$E$58,2,FALSE) ) )","v":""},null,null,null,null,{"$f":"IF(TRIM(CQ27)=\"\", \"\", IF(VLOOKUP(CQ27,'Footnotes list'!$D$9:$E$58,2,FALSE)=0,\"\",VLOOKUP(CQ27,'Footnotes list'!$D$9:$E$58,2,FALSE) ) )","v":""},null,null,null,null,{"$f":"IF(TRIM(CV27)=\"\", \"\", IF(VLOOKUP(CV27,'Footnotes list'!$D$9:$E$58,2,FALSE)=0,\"\",VLOOKUP(CV27,'Footnotes list'!$D$9:$E$58,2,FALSE) ) )","v":""},null,null,null,null,{"$f":"IF(TRIM(DA27)=\"\", \"\", IF(VLOOKUP(DA27,'Footnotes list'!$D$9:$E$58,2,FALSE)=0,\"\",VLOOKUP(DA27,'Footnotes list'!$D$9:$E$58,2,FALSE) ) )","v":""},null,null,null,null,{"$f":"IF(TRIM(DF27)=\"\", \"\", IF(VLOOKUP(DF27,'Footnotes list'!$D$9:$E$58,2,FALSE)=0,\"\",VLOOKUP(DF27,'Footnotes list'!$D$9:$E$58,2,FALSE) ) )","v":""},null,null,null,null,{"$f":"IF(TRIM(DK27)=\"\", \"\", IF(VLOOKUP(DK27,'Footnotes list'!$D$9:$E$58,2,FALSE)=0,\"\",VLOOKUP(DK27,'Footnotes list'!$D$9:$E$58,2,FALSE) ) )","v":""},null,null,null,null,{"$f":"IF(TRIM(DP27)=\"\", \"\", IF(VLOOKUP(DP27,'Footnotes list'!$D$9:$E$58,2,FALSE)=0,\"\",VLOOKUP(DP27,'Footnotes list'!$D$9:$E$58,2,FALSE) ) )","v":""},"",null,null,null,{"$f":"IF(TRIM(DU27)=\"\", \"\", IF(VLOOKUP(DU27,'Footnotes list'!$D$9:$E$58,2,FALSE)=0,\"\",VLOOKUP(DU27,'Footnotes list'!$D$9:$E$58,2,FALSE) ) )","v":""},null,null,null,null,{"$f":"IF(TRIM(DZ27)=\"\", \"\", IF(VLOOKUP(DZ27,'Footnotes list'!$D$9:$E$58,2,FALSE)=0,\"\",VLOOKUP(DZ27,'Footnotes list'!$D$9:$E$58,2,FALSE) ) )","v":""},null,null,null,null,{"$f":"IF(TRIM(EE27)=\"\", \"\", IF(VLOOKUP(EE27,'Footnotes list'!$D$9:$E$58,2,FALSE)=0,\"\",VLOOKUP(EE27,'Footnotes list'!$D$9:$E$58,2,FALSE) ) )","v":""},null,null,null,null,{"$f":"IF(TRIM(EJ27)=\"\", \"\", IF(VLOOKUP(EJ27,'Footnotes list'!$D$9:$E$58,2,FALSE)=0,\"\",VLOOKUP(EJ27,'Footnotes list'!$D$9:$E$58,2,FALSE) ) )","v":""},null,null,null,null,{"$f":"IF(TRIM(EO27)=\"\", \"\", IF(VLOOKUP(EO27,'Footnotes list'!$D$9:$E$58,2,FALSE)=0,\"\",VLOOKUP(EO27,'Footnotes list'!$D$9:$E$58,2,FALSE) ) )","v":""},null,null,null,null,{"$f":"IF(TRIM(ET27)=\"\", \"\", IF(VLOOKUP(ET27,'Footnotes list'!$D$9:$E$58,2,FALSE)=0,\"\",VLOOKUP(ET27,'Footnotes list'!$D$9:$E$58,2,FALSE) ) )","v":""},null,null,null,null,{"$f":"IF(TRIM(EY27)=\"\", \"\", IF(VLOOKUP(EY27,'Footnotes list'!$D$9:$E$58,2,FALSE)=0,\"\",VLOOKUP(EY27,'Footnotes list'!$D$9:$E$58,2,FALSE) ) )","v":""},"",null,null,null,{"$f":"IF(TRIM(FD27)=\"\", \"\", IF(VLOOKUP(FD27,'Footnotes list'!$D$9:$E$58,2,FALSE)=0,\"\",VLOOKUP(FD27,'Footnotes list'!$D$9:$E$58,2,FALSE) ) )","v":""},"",null,null,null,{"$f":"IF(TRIM(FI27)=\"\", \"\", IF(VLOOKUP(FI27,'Footnotes list'!$D$9:$E$58,2,FALSE)=0,\"\",VLOOKUP(FI27,'Footnotes list'!$D$9:$E$58,2,FALSE) ) )","v":""},null,null,null,null,{"$f":"IF(TRIM(FN27)=\"\", \"\", IF(VLOOKUP(FN27,'Footnotes list'!$D$9:$E$58,2,FALSE)=0,\"\",VLOOKUP(FN27,'Footnotes list'!$D$9:$E$58,2,FALSE) ) )","v":""}]
["S11_S12","P51G_CA_FC","P","Total P - Education",null,null,null,null,null,null,{"$f":"IF(TRIM(J28)=\"\", \"\", IF(VLOOKUP(J28,'Footnotes list'!$D$9:$E$58,2,FALSE)=0,\"\",VLOOKUP(J28,'Footnotes list'!$D$9:$E$58,2,FALSE) ) )","v":""},null,null,null,null,{"$f":"IF(TRIM(O28)=\"\", \"\", IF(VLOOKUP(O28,'Footnotes list'!$D$9:$E$58,2,FALSE)=0,\"\",VLOOKUP(O28,'Footnotes list'!$D$9:$E$58,2,FALSE) ) )","v":""},null,null,null,null,{"$f":"IF(TRIM(T28)=\"\", \"\", IF(VLOOKUP(T28,'Footnotes list'!$D$9:$E$58,2,FALSE)=0,\"\",VLOOKUP(T28,'Footnotes list'!$D$9:$E$58,2,FALSE) ) )","v":""},null,null,null,null,{"$f":"IF(TRIM(Y28)=\"\", \"\", IF(VLOOKUP(Y28,'Footnotes list'!$D$9:$E$58,2,FALSE)=0,\"\",VLOOKUP(Y28,'Footnotes list'!$D$9:$E$58,2,FALSE) ) )","v":""},null,null,null,null,{"$f":"IF(TRIM(AD28)=\"\", \"\", IF(VLOOKUP(AD28,'Footnotes list'!$D$9:$E$58,2,FALSE)=0,\"\",VLOOKUP(AD28,'Footnotes list'!$D$9:$E$58,2,FALSE) ) )","v":""},null,null,null,null,{"$f":"IF(TRIM(AI28)=\"\", \"\", IF(VLOOKUP(AI28,'Footnotes list'!$D$9:$E$58,2,FALSE)=0,\"\",VLOOKUP(AI28,'Footnotes list'!$D$9:$E$58,2,FALSE) ) )","v":""},null,null,null,null,{"$f":"IF(TRIM(AN28)=\"\", \"\", IF(VLOOKUP(AN28,'Footnotes list'!$D$9:$E$58,2,FALSE)=0,\"\",VLOOKUP(AN28,'Footnotes list'!$D$9:$E$58,2,FALSE) ) )","v":""},null,null,null,null,{"$f":"IF(TRIM(AS28)=\"\", \"\", IF(VLOOKUP(AS28,'Footnotes list'!$D$9:$E$58,2,FALSE)=0,\"\",VLOOKUP(AS28,'Footnotes list'!$D$9:$E$58,2,FALSE) ) )","v":""},null,null,null,null,{"$f":"IF(TRIM(AX28)=\"\", \"\", IF(VLOOKUP(AX28,'Footnotes list'!$D$9:$E$58,2,FALSE)=0,\"\",VLOOKUP(AX28,'Footnotes list'!$D$9:$E$58,2,FALSE) ) )","v":""},null,null,null,null,{"$f":"IF(TRIM(BC28)=\"\", \"\", IF(VLOOKUP(BC28,'Footnotes list'!$D$9:$E$58,2,FALSE)=0,\"\",VLOOKUP(BC28,'Footnotes list'!$D$9:$E$58,2,FALSE) ) )","v":""},null,null,null,null,{"$f":"IF(TRIM(BH28)=\"\", \"\", IF(VLOOKUP(BH28,'Footnotes list'!$D$9:$E$58,2,FALSE)=0,\"\",VLOOKUP(BH28,'Footnotes list'!$D$9:$E$58,2,FALSE) ) )","v":""},null,null,null,null,{"$f":"IF(TRIM(BM28)=\"\", \"\", IF(VLOOKUP(BM28,'Footnotes list'!$D$9:$E$58,2,FALSE)=0,\"\",VLOOKUP(BM28,'Footnotes list'!$D$9:$E$58,2,FALSE) ) )","v":""},null,null,null,null,{"$f":"IF(TRIM(BR28)=\"\", \"\", IF(VLOOKUP(BR28,'Footnotes list'!$D$9:$E$58,2,FALSE)=0,\"\",VLOOKUP(BR28,'Footnotes list'!$D$9:$E$58,2,FALSE) ) )","v":""},null,null,null,null,{"$f":"IF(TRIM(BW28)=\"\", \"\", IF(VLOOKUP(BW28,'Footnotes list'!$D$9:$E$58,2,FALSE)=0,\"\",VLOOKUP(BW28,'Footnotes list'!$D$9:$E$58,2,FALSE) ) )","v":""},null,null,null,null,{"$f":"IF(TRIM(CB28)=\"\", \"\", IF(VLOOKUP(CB28,'Footnotes list'!$D$9:$E$58,2,FALSE)=0,\"\",VLOOKUP(CB28,'Footnotes list'!$D$9:$E$58,2,FALSE) ) )","v":""},null,null,null,null,{"$f":"IF(TRIM(CG28)=\"\", \"\", IF(VLOOKUP(CG28,'Footnotes list'!$D$9:$E$58,2,FALSE)=0,\"\",VLOOKUP(CG28,'Footnotes list'!$D$9:$E$58,2,FALSE) ) )","v":""},null,null,null,null,{"$f":"IF(TRIM(CL28)=\"\", \"\", IF(VLOOKUP(CL28,'Footnotes list'!$D$9:$E$58,2,FALSE)=0,\"\",VLOOKUP(CL28,'Footnotes list'!$D$9:$E$58,2,FALSE) ) )","v":""},null,null,null,null,{"$f":"IF(TRIM(CQ28)=\"\", \"\", IF(VLOOKUP(CQ28,'Footnotes list'!$D$9:$E$58,2,FALSE)=0,\"\",VLOOKUP(CQ28,'Footnotes list'!$D$9:$E$58,2,FALSE) ) )","v":""},null,null,null,null,{"$f":"IF(TRIM(CV28)=\"\", \"\", IF(VLOOKUP(CV28,'Footnotes list'!$D$9:$E$58,2,FALSE)=0,\"\",VLOOKUP(CV28,'Footnotes list'!$D$9:$E$58,2,FALSE) ) )","v":""},null,null,null,null,{"$f":"IF(TRIM(DA28)=\"\", \"\", IF(VLOOKUP(DA28,'Footnotes list'!$D$9:$E$58,2,FALSE)=0,\"\",VLOOKUP(DA28,'Footnotes list'!$D$9:$E$58,2,FALSE) ) )","v":""},null,null,null,null,{"$f":"IF(TRIM(DF28)=\"\", \"\", IF(VLOOKUP(DF28,'Footnotes list'!$D$9:$E$58,2,FALSE)=0,\"\",VLOOKUP(DF28,'Footnotes list'!$D$9:$E$58,2,FALSE) ) )","v":""},null,null,null,null,{"$f":"IF(TRIM(DK28)=\"\", \"\", IF(VLOOKUP(DK28,'Footnotes list'!$D$9:$E$58,2,FALSE)=0,\"\",VLOOKUP(DK28,'Footnotes list'!$D$9:$E$58,2,FALSE) ) )","v":""},null,null,null,null,{"$f":"IF(TRIM(DP28)=\"\", \"\", IF(VLOOKUP(DP28,'Footnotes list'!$D$9:$E$58,2,FALSE)=0,\"\",VLOOKUP(DP28,'Footnotes list'!$D$9:$E$58,2,FALSE) ) )","v":""},"",null,null,null,{"$f":"IF(TRIM(DU28)=\"\", \"\", IF(VLOOKUP(DU28,'Footnotes list'!$D$9:$E$58,2,FALSE)=0,\"\",VLOOKUP(DU28,'Footnotes list'!$D$9:$E$58,2,FALSE) ) )","v":""},null,null,null,null,{"$f":"IF(TRIM(DZ28)=\"\", \"\", IF(VLOOKUP(DZ28,'Footnotes list'!$D$9:$E$58,2,FALSE)=0,\"\",VLOOKUP(DZ28,'Footnotes list'!$D$9:$E$58,2,FALSE) ) )","v":""},null,null,null,null,{"$f":"IF(TRIM(EE28)=\"\", \"\", IF(VLOOKUP(EE28,'Footnotes list'!$D$9:$E$58,2,FALSE)=0,\"\",VLOOKUP(EE28,'Footnotes list'!$D$9:$E$58,2,FALSE) ) )","v":""},null,null,null,null,{"$f":"IF(TRIM(EJ28)=\"\", \"\", IF(VLOOKUP(EJ28,'Footnotes list'!$D$9:$E$58,2,FALSE)=0,\"\",VLOOKUP(EJ28,'Footnotes list'!$D$9:$E$58,2,FALSE) ) )","v":""},null,null,null,null,{"$f":"IF(TRIM(EO28)=\"\", \"\", IF(VLOOKUP(EO28,'Footnotes list'!$D$9:$E$58,2,FALSE)=0,\"\",VLOOKUP(EO28,'Footnotes list'!$D$9:$E$58,2,FALSE) ) )","v":""},null,null,null,null,{"$f":"IF(TRIM(ET28)=\"\", \"\", IF(VLOOKUP(ET28,'Footnotes list'!$D$9:$E$58,2,FALSE)=0,\"\",VLOOKUP(ET28,'Footnotes list'!$D$9:$E$58,2,FALSE) ) )","v":""},null,null,null,null,{"$f":"IF(TRIM(EY28)=\"\", \"\", IF(VLOOKUP(EY28,'Footnotes list'!$D$9:$E$58,2,FALSE)=0,\"\",VLOOKUP(EY28,'Footnotes list'!$D$9:$E$58,2,FALSE) ) )","v":""},"",null,null,null,{"$f":"IF(TRIM(FD28)=\"\", \"\", IF(VLOOKUP(FD28,'Footnotes list'!$D$9:$E$58,2,FALSE)=0,\"\",VLOOKUP(FD28,'Footnotes list'!$D$9:$E$58,2,FALSE) ) )","v":""},"",null,null,null,{"$f":"IF(TRIM(FI28)=\"\", \"\", IF(VLOOKUP(FI28,'Footnotes list'!$D$9:$E$58,2,FALSE)=0,\"\",VLOOKUP(FI28,'Footnotes list'!$D$9:$E$58,2,FALSE) ) )","v":""},null,null,null,null,{"$f":"IF(TRIM(FN28)=\"\", \"\", IF(VLOOKUP(FN28,'Footnotes list'!$D$9:$E$58,2,FALSE)=0,\"\",VLOOKUP(FN28,'Footnotes list'!$D$9:$E$58,2,FALSE) ) )","v":""}]
["S11_S12","P51G_CA_FC","G-I_K_L_N_Q-U","Total G + H + I + K + L + N + Q + R + S + T + U -Services (except information and communication, professional, scientific and technical activities, public administration and defence; compulsory social security and education)",null,null,null,null,null,null,{"$f":"IF(TRIM(J29)=\"\", \"\", IF(VLOOKUP(J29,'Footnotes list'!$D$9:$E$58,2,FALSE)=0,\"\",VLOOKUP(J29,'Footnotes list'!$D$9:$E$58,2,FALSE) ) )","v":""},null,null,null,null,{"$f":"IF(TRIM(O29)=\"\", \"\", IF(VLOOKUP(O29,'Footnotes list'!$D$9:$E$58,2,FALSE)=0,\"\",VLOOKUP(O29,'Footnotes list'!$D$9:$E$58,2,FALSE) ) )","v":""},null,null,null,null,{"$f":"IF(TRIM(T29)=\"\", \"\", IF(VLOOKUP(T29,'Footnotes list'!$D$9:$E$58,2,FALSE)=0,\"\",VLOOKUP(T29,'Footnotes list'!$D$9:$E$58,2,FALSE) ) )","v":""},null,null,null,null,{"$f":"IF(TRIM(Y29)=\"\", \"\", IF(VLOOKUP(Y29,'Footnotes list'!$D$9:$E$58,2,FALSE)=0,\"\",VLOOKUP(Y29,'Footnotes list'!$D$9:$E$58,2,FALSE) ) )","v":""},null,null,null,null,{"$f":"IF(TRIM(AD29)=\"\", \"\", IF(VLOOKUP(AD29,'Footnotes list'!$D$9:$E$58,2,FALSE)=0,\"\",VLOOKUP(AD29,'Footnotes list'!$D$9:$E$58,2,FALSE) ) )","v":""},null,null,null,null,{"$f":"IF(TRIM(AI29)=\"\", \"\", IF(VLOOKUP(AI29,'Footnotes list'!$D$9:$E$58,2,FALSE)=0,\"\",VLOOKUP(AI29,'Footnotes list'!$D$9:$E$58,2,FALSE) ) )","v":""},null,null,null,null,{"$f":"IF(TRIM(AN29)=\"\", \"\", IF(VLOOKUP(AN29,'Footnotes list'!$D$9:$E$58,2,FALSE)=0,\"\",VLOOKUP(AN29,'Footnotes list'!$D$9:$E$58,2,FALSE) ) )","v":""},null,null,null,null,{"$f":"IF(TRIM(AS29)=\"\", \"\", IF(VLOOKUP(AS29,'Footnotes list'!$D$9:$E$58,2,FALSE)=0,\"\",VLOOKUP(AS29,'Footnotes list'!$D$9:$E$58,2,FALSE) ) )","v":""},null,null,null,null,{"$f":"IF(TRIM(AX29)=\"\", \"\", IF(VLOOKUP(AX29,'Footnotes list'!$D$9:$E$58,2,FALSE)=0,\"\",VLOOKUP(AX29,'Footnotes list'!$D$9:$E$58,2,FALSE) ) )","v":""},null,null,null,null,{"$f":"IF(TRIM(BC29)=\"\", \"\", IF(VLOOKUP(BC29,'Footnotes list'!$D$9:$E$58,2,FALSE)=0,\"\",VLOOKUP(BC29,'Footnotes list'!$D$9:$E$58,2,FALSE) ) )","v":""},null,null,null,null,{"$f":"IF(TRIM(BH29)=\"\", \"\", IF(VLOOKUP(BH29,'Footnotes list'!$D$9:$E$58,2,FALSE)=0,\"\",VLOOKUP(BH29,'Footnotes list'!$D$9:$E$58,2,FALSE) ) )","v":""},null,null,null,null,{"$f":"IF(TRIM(BM29)=\"\", \"\", IF(VLOOKUP(BM29,'Footnotes list'!$D$9:$E$58,2,FALSE)=0,\"\",VLOOKUP(BM29,'Footnotes list'!$D$9:$E$58,2,FALSE) ) )","v":""},null,null,null,null,{"$f":"IF(TRIM(BR29)=\"\", \"\", IF(VLOOKUP(BR29,'Footnotes list'!$D$9:$E$58,2,FALSE)=0,\"\",VLOOKUP(BR29,'Footnotes list'!$D$9:$E$58,2,FALSE) ) )","v":""},null,null,null,null,{"$f":"IF(TRIM(BW29)=\"\", \"\", IF(VLOOKUP(BW29,'Footnotes list'!$D$9:$E$58,2,FALSE)=0,\"\",VLOOKUP(BW29,'Footnotes list'!$D$9:$E$58,2,FALSE) ) )","v":""},null,null,null,null,{"$f":"IF(TRIM(CB29)=\"\", \"\", IF(VLOOKUP(CB29,'Footnotes list'!$D$9:$E$58,2,FALSE)=0,\"\",VLOOKUP(CB29,'Footnotes list'!$D$9:$E$58,2,FALSE) ) )","v":""},null,null,null,null,{"$f":"IF(TRIM(CG29)=\"\", \"\", IF(VLOOKUP(CG29,'Footnotes list'!$D$9:$E$58,2,FALSE)=0,\"\",VLOOKUP(CG29,'Footnotes list'!$D$9:$E$58,2,FALSE) ) )","v":""},null,null,null,null,{"$f":"IF(TRIM(CL29)=\"\", \"\", IF(VLOOKUP(CL29,'Footnotes list'!$D$9:$E$58,2,FALSE)=0,\"\",VLOOKUP(CL29,'Footnotes list'!$D$9:$E$58,2,FALSE) ) )","v":""},null,null,null,null,{"$f":"IF(TRIM(CQ29)=\"\", \"\", IF(VLOOKUP(CQ29,'Footnotes list'!$D$9:$E$58,2,FALSE)=0,\"\",VLOOKUP(CQ29,'Footnotes list'!$D$9:$E$58,2,FALSE) ) )","v":""},null,null,null,null,{"$f":"IF(TRIM(CV29)=\"\", \"\", IF(VLOOKUP(CV29,'Footnotes list'!$D$9:$E$58,2,FALSE)=0,\"\",VLOOKUP(CV29,'Footnotes list'!$D$9:$E$58,2,FALSE) ) )","v":""},null,null,null,null,{"$f":"IF(TRIM(DA29)=\"\", \"\", IF(VLOOKUP(DA29,'Footnotes list'!$D$9:$E$58,2,FALSE)=0,\"\",VLOOKUP(DA29,'Footnotes list'!$D$9:$E$58,2,FALSE) ) )","v":""},null,null,null,null,{"$f":"IF(TRIM(DF29)=\"\", \"\", IF(VLOOKUP(DF29,'Footnotes list'!$D$9:$E$58,2,FALSE)=0,\"\",VLOOKUP(DF29,'Footnotes list'!$D$9:$E$58,2,FALSE) ) )","v":""},null,null,null,null,{"$f":"IF(TRIM(DK29)=\"\", \"\", IF(VLOOKUP(DK29,'Footnotes list'!$D$9:$E$58,2,FALSE)=0,\"\",VLOOKUP(DK29,'Footnotes list'!$D$9:$E$58,2,FALSE) ) )","v":""},null,null,null,null,{"$f":"IF(TRIM(DP29)=\"\", \"\", IF(VLOOKUP(DP29,'Footnotes list'!$D$9:$E$58,2,FALSE)=0,\"\",VLOOKUP(DP29,'Footnotes list'!$D$9:$E$58,2,FALSE) ) )","v":""},{"$f":"IF(COUNT(G29,V29,AF29,AZ29,BJ29,BO29,BT29,CI29,CS29,DH29)=10,SUM(G29,V29,AF29,AZ29,BJ29,BO29,BT29,CI29,CS29,DH29,DM29),\"\")","v":""},null,null,null,{"$f":"IF(TRIM(DU29)=\"\", \"\", IF(VLOOKUP(DU29,'Footnotes list'!$D$9:$E$58,2,FALSE)=0,\"\",VLOOKUP(DU29,'Footnotes list'!$D$9:$E$58,2,FALSE) ) )","v":""},null,null,null,null,{"$f":"IF(TRIM(DZ29)=\"\", \"\", IF(VLOOKUP(DZ29,'Footnotes list'!$D$9:$E$58,2,FALSE)=0,\"\",VLOOKUP(DZ29,'Footnotes list'!$D$9:$E$58,2,FALSE) ) )","v":""},null,null,null,null,{"$f":"IF(TRIM(EE29)=\"\", \"\", IF(VLOOKUP(EE29,'Footnotes list'!$D$9:$E$58,2,FALSE)=0,\"\",VLOOKUP(EE29,'Footnotes list'!$D$9:$E$58,2,FALSE) ) )","v":""},null,null,null,null,{"$f":"IF(TRIM(EJ29)=\"\", \"\", IF(VLOOKUP(EJ29,'Footnotes list'!$D$9:$E$58,2,FALSE)=0,\"\",VLOOKUP(EJ29,'Footnotes list'!$D$9:$E$58,2,FALSE) ) )","v":""},null,null,null,null,{"$f":"IF(TRIM(EO29)=\"\", \"\", IF(VLOOKUP(EO29,'Footnotes list'!$D$9:$E$58,2,FALSE)=0,\"\",VLOOKUP(EO29,'Footnotes list'!$D$9:$E$58,2,FALSE) ) )","v":""},null,null,null,null,{"$f":"IF(TRIM(ET29)=\"\", \"\", IF(VLOOKUP(ET29,'Footnotes list'!$D$9:$E$58,2,FALSE)=0,\"\",VLOOKUP(ET29,'Footnotes list'!$D$9:$E$58,2,FALSE) ) )","v":""},null,null,null,null,{"$f":"IF(TRIM(EY29)=\"\", \"\", IF(VLOOKUP(EY29,'Footnotes list'!$D$9:$E$58,2,FALSE)=0,\"\",VLOOKUP(EY29,'Footnotes list'!$D$9:$E$58,2,FALSE) ) )","v":""},{"$f":"IF(COUNT(DW29,EB29,EG29,EL29,EQ29)=5,SUM(DW29,EB29,EG29,EL29,EQ29,EV29),\"\")","v":""},null,null,null,{"$f":"IF(TRIM(FD29)=\"\", \"\", IF(VLOOKUP(FD29,'Footnotes list'!$D$9:$E$58,2,FALSE)=0,\"\",VLOOKUP(FD29,'Footnotes list'!$D$9:$E$58,2,FALSE) ) )","v":""},{"$f":"IF(COUNT(DR29,FA29)=2,SUM(DR29,FA29),\"\")","v":""},null,null,null,{"$f":"IF(TRIM(FI29)=\"\", \"\", IF(VLOOKUP(FI29,'Footnotes list'!$D$9:$E$58,2,FALSE)=0,\"\",VLOOKUP(FI29,'Footnotes list'!$D$9:$E$58,2,FALSE) ) )","v":""},null,null,null,null,{"$f":"IF(TRIM(FN29)=\"\", \"\", IF(VLOOKUP(FN29,'Footnotes list'!$D$9:$E$58,2,FALSE)=0,\"\",VLOOKUP(FN29,'Footnotes list'!$D$9:$E$58,2,FALSE) ) )","v":""}]
["S11_S12","P51G_CREP_FC","A","Total A - Agriculture, forestry and fishing",null,"GFCF in products",null,null,null,null,{"$f":"IF(TRIM(J30)=\"\", \"\", IF(VLOOKUP(J30,'Footnotes list'!$D$9:$E$58,2,FALSE)=0,\"\",VLOOKUP(J30,'Footnotes list'!$D$9:$E$58,2,FALSE) ) )","v":""},null,null,null,null,{"$f":"IF(TRIM(O30)=\"\", \"\", IF(VLOOKUP(O30,'Footnotes list'!$D$9:$E$58,2,FALSE)=0,\"\",VLOOKUP(O30,'Footnotes list'!$D$9:$E$58,2,FALSE) ) )","v":""},null,null,null,null,{"$f":"IF(TRIM(T30)=\"\", \"\", IF(VLOOKUP(T30,'Footnotes list'!$D$9:$E$58,2,FALSE)=0,\"\",VLOOKUP(T30,'Footnotes list'!$D$9:$E$58,2,FALSE) ) )","v":""},null,null,null,null,{"$f":"IF(TRIM(Y30)=\"\", \"\", IF(VLOOKUP(Y30,'Footnotes list'!$D$9:$E$58,2,FALSE)=0,\"\",VLOOKUP(Y30,'Footnotes list'!$D$9:$E$58,2,FALSE) ) )","v":""},null,null,null,null,{"$f":"IF(TRIM(AD30)=\"\", \"\", IF(VLOOKUP(AD30,'Footnotes list'!$D$9:$E$58,2,FALSE)=0,\"\",VLOOKUP(AD30,'Footnotes list'!$D$9:$E$58,2,FALSE) ) )","v":""},null,null,null,null,{"$f":"IF(TRIM(AI30)=\"\", \"\", IF(VLOOKUP(AI30,'Footnotes list'!$D$9:$E$58,2,FALSE)=0,\"\",VLOOKUP(AI30,'Footnotes list'!$D$9:$E$58,2,FALSE) ) )","v":""},"@",null,null,null,"",null,null,null,null,{"$f":"IF(TRIM(AS30)=\"\", \"\", IF(VLOOKUP(AS30,'Footnotes list'!$D$9:$E$58,2,FALSE)=0,\"\",VLOOKUP(AS30,'Footnotes list'!$D$9:$E$58,2,FALSE) ) )","v":""},null,null,null,null,{"$f":"IF(TRIM(AX30)=\"\", \"\", IF(VLOOKUP(AX30,'Footnotes list'!$D$9:$E$58,2,FALSE)=0,\"\",VLOOKUP(AX30,'Footnotes list'!$D$9:$E$58,2,FALSE) ) )","v":""},null,null,null,null,{"$f":"IF(TRIM(BC30)=\"\", \"\", IF(VLOOKUP(BC30,'Footnotes list'!$D$9:$E$58,2,FALSE)=0,\"\",VLOOKUP(BC30,'Footnotes list'!$D$9:$E$58,2,FALSE) ) )","v":""},null,null,null,null,{"$f":"IF(TRIM(BH30)=\"\", \"\", IF(VLOOKUP(BH30,'Footnotes list'!$D$9:$E$58,2,FALSE)=0,\"\",VLOOKUP(BH30,'Footnotes list'!$D$9:$E$58,2,FALSE) ) )","v":""},"@",null,null,null,"","@",null,null,null,"","@",null,null,null,"","@",null,null,null,"","@",null,null,null,"","@",null,null,null,"","@",null,null,null,"","@",null,null,null,"","@",null,null,null,"","@",null,null,null,"","@",null,null,null,"",null,null,null,null,{"$f":"IF(TRIM(DP30)=\"\", \"\", IF(VLOOKUP(DP30,'Footnotes list'!$D$9:$E$58,2,FALSE)=0,\"\",VLOOKUP(DP30,'Footnotes list'!$D$9:$E$58,2,FALSE) ) )","v":""},{"$f":"IF(COUNT(G30,V30,AF30,AZ30)=4,SUM(G30,V30,AF30,AZ30,DM30),\"\")","v":""},null,null,null,{"$f":"IF(TRIM(DU30)=\"\", \"\", IF(VLOOKUP(DU30,'Footnotes list'!$D$9:$E$58,2,FALSE)=0,\"\",VLOOKUP(DU30,'Footnotes list'!$D$9:$E$58,2,FALSE) ) )","v":""},"@",null,null,null,"","@",null,null,null,"","@",null,null,null,"","@",null,null,null,"","@",null,null,null,"","@",null,null,null,"","@",null,null,null,"",{"$f":"IF(COUNT(DR30)=1,SUM(DR30),\"\")","v":""},null,null,null,{"$f":"IF(TRIM(FI30)=\"\", \"\", IF(VLOOKUP(FI30,'Footnotes list'!$D$9:$E$58,2,FALSE)=0,\"\",VLOOKUP(FI30,'Footnotes list'!$D$9:$E$58,2,FALSE) ) )","v":""},null,null,null,null,{"$f":"IF(TRIM(FN30)=\"\", \"\", IF(VLOOKUP(FN30,'Footnotes list'!$D$9:$E$58,2,FALSE)=0,\"\",VLOOKUP(FN30,'Footnotes list'!$D$9:$E$58,2,FALSE) ) )","v":""}]
["S11_S12","P51G_CREP_FC","B","Total B - Mining and quarrying",null,null,null,null,null,null,{"$f":"IF(TRIM(J31)=\"\", \"\", IF(VLOOKUP(J31,'Footnotes list'!$D$9:$E$58,2,FALSE)=0,\"\",VLOOKUP(J31,'Footnotes list'!$D$9:$E$58,2,FALSE) ) )","v":""},null,null,null,null,{"$f":"IF(TRIM(O31)=\"\", \"\", IF(VLOOKUP(O31,'Footnotes list'!$D$9:$E$58,2,FALSE)=0,\"\",VLOOKUP(O31,'Footnotes list'!$D$9:$E$58,2,FALSE) ) )","v":""},null,null,null,null,{"$f":"IF(TRIM(T31)=\"\", \"\", IF(VLOOKUP(T31,'Footnotes list'!$D$9:$E$58,2,FALSE)=0,\"\",VLOOKUP(T31,'Footnotes list'!$D$9:$E$58,2,FALSE) ) )","v":""},null,null,null,null,{"$f":"IF(TRIM(Y31)=\"\", \"\", IF(VLOOKUP(Y31,'Footnotes list'!$D$9:$E$58,2,FALSE)=0,\"\",VLOOKUP(Y31,'Footnotes list'!$D$9:$E$58,2,FALSE) ) )","v":""},null,null,null,null,{"$f":"IF(TRIM(AD31)=\"\", \"\", IF(VLOOKUP(AD31,'Footnotes list'!$D$9:$E$58,2,FALSE)=0,\"\",VLOOKUP(AD31,'Footnotes list'!$D$9:$E$58,2,FALSE) ) )","v":""},null,null,null,null,{"$f":"IF(TRIM(AI31)=\"\", \"\", IF(VLOOKUP(AI31,'Footnotes list'!$D$9:$E$58,2,FALSE)=0,\"\",VLOOKUP(AI31,'Footnotes list'!$D$9:$E$58,2,FALSE) ) )","v":""},"@",null,null,null,"",null,null,null,null,{"$f":"IF(TRIM(AS31)=\"\", \"\", IF(VLOOKUP(AS31,'Footnotes list'!$D$9:$E$58,2,FALSE)=0,\"\",VLOOKUP(AS31,'Footnotes list'!$D$9:$E$58,2,FALSE) ) )","v":""},null,null,null,null,{"$f":"IF(TRIM(AX31)=\"\", \"\", IF(VLOOKUP(AX31,'Footnotes list'!$D$9:$E$58,2,FALSE)=0,\"\",VLOOKUP(AX31,'Footnotes list'!$D$9:$E$58,2,FALSE) ) )","v":""},null,null,null,null,{"$f":"IF(TRIM(BC31)=\"\", \"\", IF(VLOOKUP(BC31,'Footnotes list'!$D$9:$E$58,2,FALSE)=0,\"\",VLOOKUP(BC31,'Footnotes list'!$D$9:$E$58,2,FALSE) ) )","v":""},null,null,null,null,{"$f":"IF(TRIM(BH31)=\"\", \"\", IF(VLOOKUP(BH31,'Footnotes list'!$D$9:$E$58,2,FALSE)=0,\"\",VLOOKUP(BH31,'Footnotes list'!$D$9:$E$58,2,FALSE) ) )","v":""},"@",null,null,null,"","@",null,null,null,"","@",null,null,null,"","@",null,null,null,"","@",null,null,null,"","@",null,null,null,"","@",null,null,null,"","@",null,null,null,"","@",null,null,null,"","@",null,null,null,"","@",null,null,null,"",null,null,null,null,{"$f":"IF(TRIM(DP31)=\"\", \"\", IF(VLOOKUP(DP31,'Footnotes list'!$D$9:$E$58,2,FALSE)=0,\"\",VLOOKUP(DP31,'Footnotes list'!$D$9:$E$58,2,FALSE) ) )","v":""},{"$f":"IF(COUNT(G31,V31,AF31,AZ31)=4,SUM(G31,V31,AF31,AZ31,DM31),\"\")","v":""},null,null,null,{"$f":"IF(TRIM(DU31)=\"\", \"\", IF(VLOOKUP(DU31,'Footnotes list'!$D$9:$E$58,2,FALSE)=0,\"\",VLOOKUP(DU31,'Footnotes list'!$D$9:$E$58,2,FALSE) ) )","v":""},"@",null,null,null,"","@",null,null,null,"","@",null,null,null,"","@",null,null,null,"","@",null,null,null,"","@",null,null,null,"","@",null,null,null,"",{"$f":"IF(COUNT(DR31)=1,SUM(DR31),\"\")","v":""},null,null,null,{"$f":"IF(TRIM(FI31)=\"\", \"\", IF(VLOOKUP(FI31,'Footnotes list'!$D$9:$E$58,2,FALSE)=0,\"\",VLOOKUP(FI31,'Footnotes list'!$D$9:$E$58,2,FALSE) ) )","v":""},null,null,null,null,{"$f":"IF(TRIM(FN31)=\"\", \"\", IF(VLOOKUP(FN31,'Footnotes list'!$D$9:$E$58,2,FALSE)=0,\"\",VLOOKUP(FN31,'Footnotes list'!$D$9:$E$58,2,FALSE) ) )","v":""}]
["S11_S12","P51G_CREP_FC","C","Total C - Manufacturing",null,null,null,null,null,null,{"$f":"IF(TRIM(J32)=\"\", \"\", IF(VLOOKUP(J32,'Footnotes list'!$D$9:$E$58,2,FALSE)=0,\"\",VLOOKUP(J32,'Footnotes list'!$D$9:$E$58,2,FALSE) ) )","v":""},null,null,null,null,{"$f":"IF(TRIM(O32)=\"\", \"\", IF(VLOOKUP(O32,'Footnotes list'!$D$9:$E$58,2,FALSE)=0,\"\",VLOOKUP(O32,'Footnotes list'!$D$9:$E$58,2,FALSE) ) )","v":""},null,null,null,null,{"$f":"IF(TRIM(T32)=\"\", \"\", IF(VLOOKUP(T32,'Footnotes list'!$D$9:$E$58,2,FALSE)=0,\"\",VLOOKUP(T32,'Footnotes list'!$D$9:$E$58,2,FALSE) ) )","v":""},null,null,null,null,{"$f":"IF(TRIM(Y32)=\"\", \"\", IF(VLOOKUP(Y32,'Footnotes list'!$D$9:$E$58,2,FALSE)=0,\"\",VLOOKUP(Y32,'Footnotes list'!$D$9:$E$58,2,FALSE) ) )","v":""},null,null,null,null,{"$f":"IF(TRIM(AD32)=\"\", \"\", IF(VLOOKUP(AD32,'Footnotes list'!$D$9:$E$58,2,FALSE)=0,\"\",VLOOKUP(AD32,'Footnotes list'!$D$9:$E$58,2,FALSE) ) )","v":""},null,null,null,null,{"$f":"IF(TRIM(AI32)=\"\", \"\", IF(VLOOKUP(AI32,'Footnotes list'!$D$9:$E$58,2,FALSE)=0,\"\",VLOOKUP(AI32,'Footnotes list'!$D$9:$E$58,2,FALSE) ) )","v":""},"@",null,null,null,"",null,null,null,null,{"$f":"IF(TRIM(AS32)=\"\", \"\", IF(VLOOKUP(AS32,'Footnotes list'!$D$9:$E$58,2,FALSE)=0,\"\",VLOOKUP(AS32,'Footnotes list'!$D$9:$E$58,2,FALSE) ) )","v":""},null,null,null,null,{"$f":"IF(TRIM(AX32)=\"\", \"\", IF(VLOOKUP(AX32,'Footnotes list'!$D$9:$E$58,2,FALSE)=0,\"\",VLOOKUP(AX32,'Footnotes list'!$D$9:$E$58,2,FALSE) ) )","v":""},null,null,null,null,{"$f":"IF(TRIM(BC32)=\"\", \"\", IF(VLOOKUP(BC32,'Footnotes list'!$D$9:$E$58,2,FALSE)=0,\"\",VLOOKUP(BC32,'Footnotes list'!$D$9:$E$58,2,FALSE) ) )","v":""},null,null,null,null,{"$f":"IF(TRIM(BH32)=\"\", \"\", IF(VLOOKUP(BH32,'Footnotes list'!$D$9:$E$58,2,FALSE)=0,\"\",VLOOKUP(BH32,'Footnotes list'!$D$9:$E$58,2,FALSE) ) )","v":""},"@",null,null,null,"","@",null,null,null,"","@",null,null,null,"","@",null,null,null,"","@",null,null,null,"","@",null,null,null,"","@",null,null,null,"","@",null,null,null,"","@",null,null,null,"","@",null,null,null,"","@",null,null,null,"",null,null,null,null,{"$f":"IF(TRIM(DP32)=\"\", \"\", IF(VLOOKUP(DP32,'Footnotes list'!$D$9:$E$58,2,FALSE)=0,\"\",VLOOKUP(DP32,'Footnotes list'!$D$9:$E$58,2,FALSE) ) )","v":""},"",null,null,null,{"$f":"IF(TRIM(DU32)=\"\", \"\", IF(VLOOKUP(DU32,'Footnotes list'!$D$9:$E$58,2,FALSE)=0,\"\",VLOOKUP(DU32,'Footnotes list'!$D$9:$E$58,2,FALSE) ) )","v":""},"@",null,null,null,"","@",null,null,null,"","@",null,null,null,"","@",null,null,null,"","@",null,null,null,"","@",null,null,null,"","@",null,null,null,"","",null,null,null,{"$f":"IF(TRIM(FI32)=\"\", \"\", IF(VLOOKUP(FI32,'Footnotes list'!$D$9:$E$58,2,FALSE)=0,\"\",VLOOKUP(FI32,'Footnotes list'!$D$9:$E$58,2,FALSE) ) )","v":""},null,null,null,null,{"$f":"IF(TRIM(FN32)=\"\", \"\", IF(VLOOKUP(FN32,'Footnotes list'!$D$9:$E$58,2,FALSE)=0,\"\",VLOOKUP(FN32,'Footnotes list'!$D$9:$E$58,2,FALSE) ) )","v":""}]
["S11_S12","P51G_CREP_FC","D","Total D - Electricity, gas, steam and air conditioning supply",null,null,null,null,null,null,{"$f":"IF(TRIM(J33)=\"\", \"\", IF(VLOOKUP(J33,'Footnotes list'!$D$9:$E$58,2,FALSE)=0,\"\",VLOOKUP(J33,'Footnotes list'!$D$9:$E$58,2,FALSE) ) )","v":""},null,null,null,null,{"$f":"IF(TRIM(O33)=\"\", \"\", IF(VLOOKUP(O33,'Footnotes list'!$D$9:$E$58,2,FALSE)=0,\"\",VLOOKUP(O33,'Footnotes list'!$D$9:$E$58,2,FALSE) ) )","v":""},null,null,null,null,{"$f":"IF(TRIM(T33)=\"\", \"\", IF(VLOOKUP(T33,'Footnotes list'!$D$9:$E$58,2,FALSE)=0,\"\",VLOOKUP(T33,'Footnotes list'!$D$9:$E$58,2,FALSE) ) )","v":""},null,null,null,null,{"$f":"IF(TRIM(Y33)=\"\", \"\", IF(VLOOKUP(Y33,'Footnotes list'!$D$9:$E$58,2,FALSE)=0,\"\",VLOOKUP(Y33,'Footnotes list'!$D$9:$E$58,2,FALSE) ) )","v":""},null,null,null,null,{"$f":"IF(TRIM(AD33)=\"\", \"\", IF(VLOOKUP(AD33,'Footnotes list'!$D$9:$E$58,2,FALSE)=0,\"\",VLOOKUP(AD33,'Footnotes list'!$D$9:$E$58,2,FALSE) ) )","v":""},null,null,null,null,{"$f":"IF(TRIM(AI33)=\"\", \"\", IF(VLOOKUP(AI33,'Footnotes list'!$D$9:$E$58,2,FALSE)=0,\"\",VLOOKUP(AI33,'Footnotes list'!$D$9:$E$58,2,FALSE) ) )","v":""},"@",null,null,null,"",null,null,null,null,{"$f":"IF(TRIM(AS33)=\"\", \"\", IF(VLOOKUP(AS33,'Footnotes list'!$D$9:$E$58,2,FALSE)=0,\"\",VLOOKUP(AS33,'Footnotes list'!$D$9:$E$58,2,FALSE) ) )","v":""},null,null,null,null,{"$f":"IF(TRIM(AX33)=\"\", \"\", IF(VLOOKUP(AX33,'Footnotes list'!$D$9:$E$58,2,FALSE)=0,\"\",VLOOKUP(AX33,'Footnotes list'!$D$9:$E$58,2,FALSE) ) )","v":""},null,null,null,null,{"$f":"IF(TRIM(BC33)=\"\", \"\", IF(VLOOKUP(BC33,'Footnotes list'!$D$9:$E$58,2,FALSE)=0,\"\",VLOOKUP(BC33,'Footnotes list'!$D$9:$E$58,2,FALSE) ) )","v":""},null,null,null,null,{"$f":"IF(TRIM(BH33)=\"\", \"\", IF(VLOOKUP(BH33,'Footnotes list'!$D$9:$E$58,2,FALSE)=0,\"\",VLOOKUP(BH33,'Footnotes list'!$D$9:$E$58,2,FALSE) ) )","v":""},"@",null,null,null,"","@",null,null,null,"","@",null,null,null,"","@",null,null,null,"","@",null,null,null,"","@",null,null,null,"","@",null,null,null,"","@",null,null,null,"","@",null,null,null,"","@",null,null,null,"","@",null,null,null,"",null,null,null,null,{"$f":"IF(TRIM(DP33)=\"\", \"\", IF(VLOOKUP(DP33,'Footnotes list'!$D$9:$E$58,2,FALSE)=0,\"\",VLOOKUP(DP33,'Footnotes list'!$D$9:$E$58,2,FALSE) ) )","v":""},"",null,null,null,{"$f":"IF(TRIM(DU33)=\"\", \"\", IF(VLOOKUP(DU33,'Footnotes list'!$D$9:$E$58,2,FALSE)=0,\"\",VLOOKUP(DU33,'Footnotes list'!$D$9:$E$58,2,FALSE) ) )","v":""},"@",null,null,null,"","@",null,null,null,"","@",null,null,null,"","@",null,null,null,"","@",null,null,null,"","@",null,null,null,"","@",null,null,null,"","",null,null,null,{"$f":"IF(TRIM(FI33)=\"\", \"\", IF(VLOOKUP(FI33,'Footnotes list'!$D$9:$E$58,2,FALSE)=0,\"\",VLOOKUP(FI33,'Footnotes list'!$D$9:$E$58,2,FALSE) ) )","v":""},null,null,null,null,{"$f":"IF(TRIM(FN33)=\"\", \"\", IF(VLOOKUP(FN33,'Footnotes list'!$D$9:$E$58,2,FALSE)=0,\"\",VLOOKUP(FN33,'Footnotes list'!$D$9:$E$58,2,FALSE) ) )","v":""}]
["S11_S12","P51G_CREP_FC","E","Total E - Water supply; sewerage, waste management and remediation activities",null,null,null,null,null,null,{"$f":"IF(TRIM(J34)=\"\", \"\", IF(VLOOKUP(J34,'Footnotes list'!$D$9:$E$58,2,FALSE)=0,\"\",VLOOKUP(J34,'Footnotes list'!$D$9:$E$58,2,FALSE) ) )","v":""},null,null,null,null,{"$f":"IF(TRIM(O34)=\"\", \"\", IF(VLOOKUP(O34,'Footnotes list'!$D$9:$E$58,2,FALSE)=0,\"\",VLOOKUP(O34,'Footnotes list'!$D$9:$E$58,2,FALSE) ) )","v":""},null,null,null,null,{"$f":"IF(TRIM(T34)=\"\", \"\", IF(VLOOKUP(T34,'Footnotes list'!$D$9:$E$58,2,FALSE)=0,\"\",VLOOKUP(T34,'Footnotes list'!$D$9:$E$58,2,FALSE) ) )","v":""},null,null,null,null,{"$f":"IF(TRIM(Y34)=\"\", \"\", IF(VLOOKUP(Y34,'Footnotes list'!$D$9:$E$58,2,FALSE)=0,\"\",VLOOKUP(Y34,'Footnotes list'!$D$9:$E$58,2,FALSE) ) )","v":""},null,null,null,null,{"$f":"IF(TRIM(AD34)=\"\", \"\", IF(VLOOKUP(AD34,'Footnotes list'!$D$9:$E$58,2,FALSE)=0,\"\",VLOOKUP(AD34,'Footnotes list'!$D$9:$E$58,2,FALSE) ) )","v":""},null,null,null,null,{"$f":"IF(TRIM(AI34)=\"\", \"\", IF(VLOOKUP(AI34,'Footnotes list'!$D$9:$E$58,2,FALSE)=0,\"\",VLOOKUP(AI34,'Footnotes list'!$D$9:$E$58,2,FALSE) ) )","v":""},"@",null,null,null,"",null,null,null,null,{"$f":"IF(TRIM(AS34)=\"\", \"\", IF(VLOOKUP(AS34,'Footnotes list'!$D$9:$E$58,2,FALSE)=0,\"\",VLOOKUP(AS34,'Footnotes list'!$D$9:$E$58,2,FALSE) ) )","v":""},null,null,null,null,{"$f":"IF(TRIM(AX34)=\"\", \"\", IF(VLOOKUP(AX34,'Footnotes list'!$D$9:$E$58,2,FALSE)=0,\"\",VLOOKUP(AX34,'Footnotes list'!$D$9:$E$58,2,FALSE) ) )","v":""},null,null,null,null,{"$f":"IF(TRIM(BC34)=\"\", \"\", IF(VLOOKUP(BC34,'Footnotes list'!$D$9:$E$58,2,FALSE)=0,\"\",VLOOKUP(BC34,'Footnotes list'!$D$9:$E$58,2,FALSE) ) )","v":""},null,null,null,null,{"$f":"IF(TRIM(BH34)=\"\", \"\", IF(VLOOKUP(BH34,'Footnotes list'!$D$9:$E$58,2,FALSE)=0,\"\",VLOOKUP(BH34,'Footnotes list'!$D$9:$E$58,2,FALSE) ) )","v":""},"@",null,null,null,"","@",null,null,null,"","@",null,null,null,"","@",null,null,null,"","@",null,null,null,"","@",null,null,null,"","@",null,null,null,"","@",null,null,null,"","@",null,null,null,"","@",null,null,null,"","@",null,null,null,"",null,null,null,null,{"$f":"IF(TRIM(DP34)=\"\", \"\", IF(VLOOKUP(DP34,'Footnotes list'!$D$9:$E$58,2,FALSE)=0,\"\",VLOOKUP(DP34,'Footnotes list'!$D$9:$E$58,2,FALSE) ) )","v":""},"",null,null,null,{"$f":"IF(TRIM(DU34)=\"\", \"\", IF(VLOOKUP(DU34,'Footnotes list'!$D$9:$E$58,2,FALSE)=0,\"\",VLOOKUP(DU34,'Footnotes list'!$D$9:$E$58,2,FALSE) ) )","v":""},"@",null,null,null,"","@",null,null,null,"","@",null,null,null,"","@",null,null,null,"","@",null,null,null,"","@",null,null,null,"","@",null,null,null,"","",null,null,null,{"$f":"IF(TRIM(FI34)=\"\", \"\", IF(VLOOKUP(FI34,'Footnotes list'!$D$9:$E$58,2,FALSE)=0,\"\",VLOOKUP(FI34,'Footnotes list'!$D$9:$E$58,2,FALSE) ) )","v":""},null,null,null,null,{"$f":"IF(TRIM(FN34)=\"\", \"\", IF(VLOOKUP(FN34,'Footnotes list'!$D$9:$E$58,2,FALSE)=0,\"\",VLOOKUP(FN34,'Footnotes list'!$D$9:$E$58,2,FALSE) ) )","v":""}]
["S11_S12","P51G_CREP_FC","F","Total F - Construction",null,null,null,null,null,null,{"$f":"IF(TRIM(J35)=\"\", \"\", IF(VLOOKUP(J35,'Footnotes list'!$D$9:$E$58,2,FALSE)=0,\"\",VLOOKUP(J35,'Footnotes list'!$D$9:$E$58,2,FALSE) ) )","v":""},null,null,null,null,{"$f":"IF(TRIM(O35)=\"\", \"\", IF(VLOOKUP(O35,'Footnotes list'!$D$9:$E$58,2,FALSE)=0,\"\",VLOOKUP(O35,'Footnotes list'!$D$9:$E$58,2,FALSE) ) )","v":""},null,null,null,null,{"$f":"IF(TRIM(T35)=\"\", \"\", IF(VLOOKUP(T35,'Footnotes list'!$D$9:$E$58,2,FALSE)=0,\"\",VLOOKUP(T35,'Footnotes list'!$D$9:$E$58,2,FALSE) ) )","v":""},null,null,null,null,{"$f":"IF(TRIM(Y35)=\"\", \"\", IF(VLOOKUP(Y35,'Footnotes list'!$D$9:$E$58,2,FALSE)=0,\"\",VLOOKUP(Y35,'Footnotes list'!$D$9:$E$58,2,FALSE) ) )","v":""},null,null,null,null,{"$f":"IF(TRIM(AD35)=\"\", \"\", IF(VLOOKUP(AD35,'Footnotes list'!$D$9:$E$58,2,FALSE)=0,\"\",VLOOKUP(AD35,'Footnotes list'!$D$9:$E$58,2,FALSE) ) )","v":""},null,null,null,null,{"$f":"IF(TRIM(AI35)=\"\", \"\", IF(VLOOKUP(AI35,'Footnotes list'!$D$9:$E$58,2,FALSE)=0,\"\",VLOOKUP(AI35,'Footnotes list'!$D$9:$E$58,2,FALSE) ) )","v":""},"@",null,null,null,"",null,null,null,null,{"$f":"IF(TRIM(AS35)=\"\", \"\", IF(VLOOKUP(AS35,'Footnotes list'!$D$9:$E$58,2,FALSE)=0,\"\",VLOOKUP(AS35,'Footnotes list'!$D$9:$E$58,2,FALSE) ) )","v":""},null,null,null,null,{"$f":"IF(TRIM(AX35)=\"\", \"\", IF(VLOOKUP(AX35,'Footnotes list'!$D$9:$E$58,2,FALSE)=0,\"\",VLOOKUP(AX35,'Footnotes list'!$D$9:$E$58,2,FALSE) ) )","v":""},null,null,null,null,{"$f":"IF(TRIM(BC35)=\"\", \"\", IF(VLOOKUP(BC35,'Footnotes list'!$D$9:$E$58,2,FALSE)=0,\"\",VLOOKUP(BC35,'Footnotes list'!$D$9:$E$58,2,FALSE) ) )","v":""},null,null,null,null,{"$f":"IF(TRIM(BH35)=\"\", \"\", IF(VLOOKUP(BH35,'Footnotes list'!$D$9:$E$58,2,FALSE)=0,\"\",VLOOKUP(BH35,'Footnotes list'!$D$9:$E$58,2,FALSE) ) )","v":""},"@",null,null,null,"","@",null,null,null,"","@",null,null,null,"","@",null,null,null,"","@",null,null,null,"","@",null,null,null,"","@",null,null,null,"","@",null,null,null,"","@",null,null,null,"","@",null,null,null,"","@",null,null,null,"",null,null,null,null,{"$f":"IF(TRIM(DP35)=\"\", \"\", IF(VLOOKUP(DP35,'Footnotes list'!$D$9:$E$58,2,FALSE)=0,\"\",VLOOKUP(DP35,'Footnotes list'!$D$9:$E$58,2,FALSE) ) )","v":""},"",null,null,null,{"$f":"IF(TRIM(DU35)=\"\", \"\", IF(VLOOKUP(DU35,'Footnotes list'!$D$9:$E$58,2,FALSE)=0,\"\",VLOOKUP(DU35,'Footnotes list'!$D$9:$E$58,2,FALSE) ) )","v":""},"@",null,null,null,"","@",null,null,null,"","@",null,null,null,"","@",null,null,null,"","@",null,null,null,"","@",null,null,null,"","@",null,null,null,"","",null,null,null,{"$f":"IF(TRIM(FI35)=\"\", \"\", IF(VLOOKUP(FI35,'Footnotes list'!$D$9:$E$58,2,FALSE)=0,\"\",VLOOKUP(FI35,'Footnotes list'!$D$9:$E$58,2,FALSE) ) )","v":""},null,null,null,null,{"$f":"IF(TRIM(FN35)=\"\", \"\", IF(VLOOKUP(FN35,'Footnotes list'!$D$9:$E$58,2,FALSE)=0,\"\",VLOOKUP(FN35,'Footnotes list'!$D$9:$E$58,2,FALSE) ) )","v":""}]
["S11_S12","P51G_CREP_FC","J","Total J - Information and communication",null,null,null,null,null,null,{"$f":"IF(TRIM(J36)=\"\", \"\", IF(VLOOKUP(J36,'Footnotes list'!$D$9:$E$58,2,FALSE)=0,\"\",VLOOKUP(J36,'Footnotes list'!$D$9:$E$58,2,FALSE) ) )","v":""},null,null,null,null,{"$f":"IF(TRIM(O36)=\"\", \"\", IF(VLOOKUP(O36,'Footnotes list'!$D$9:$E$58,2,FALSE)=0,\"\",VLOOKUP(O36,'Footnotes list'!$D$9:$E$58,2,FALSE) ) )","v":""},null,null,null,null,{"$f":"IF(TRIM(T36)=\"\", \"\", IF(VLOOKUP(T36,'Footnotes list'!$D$9:$E$58,2,FALSE)=0,\"\",VLOOKUP(T36,'Footnotes list'!$D$9:$E$58,2,FALSE) ) )","v":""},null,null,null,null,{"$f":"IF(TRIM(Y36)=\"\", \"\", IF(VLOOKUP(Y36,'Footnotes list'!$D$9:$E$58,2,FALSE)=0,\"\",VLOOKUP(Y36,'Footnotes list'!$D$9:$E$58,2,FALSE) ) )","v":""},null,null,null,null,{"$f":"IF(TRIM(AD36)=\"\", \"\", IF(VLOOKUP(AD36,'Footnotes list'!$D$9:$E$58,2,FALSE)=0,\"\",VLOOKUP(AD36,'Footnotes list'!$D$9:$E$58,2,FALSE) ) )","v":""},null,null,null,null,{"$f":"IF(TRIM(AI36)=\"\", \"\", IF(VLOOKUP(AI36,'Footnotes list'!$D$9:$E$58,2,FALSE)=0,\"\",VLOOKUP(AI36,'Footnotes list'!$D$9:$E$58,2,FALSE) ) )","v":""},"@",null,null,null,"",null,null,null,null,{"$f":"IF(TRIM(AS36)=\"\", \"\", IF(VLOOKUP(AS36,'Footnotes list'!$D$9:$E$58,2,FALSE)=0,\"\",VLOOKUP(AS36,'Footnotes list'!$D$9:$E$58,2,FALSE) ) )","v":""},null,null,null,null,{"$f":"IF(TRIM(AX36)=\"\", \"\", IF(VLOOKUP(AX36,'Footnotes list'!$D$9:$E$58,2,FALSE)=0,\"\",VLOOKUP(AX36,'Footnotes list'!$D$9:$E$58,2,FALSE) ) )","v":""},null,null,null,null,{"$f":"IF(TRIM(BC36)=\"\", \"\", IF(VLOOKUP(BC36,'Footnotes list'!$D$9:$E$58,2,FALSE)=0,\"\",VLOOKUP(BC36,'Footnotes list'!$D$9:$E$58,2,FALSE) ) )","v":""},null,null,null,null,{"$f":"IF(TRIM(BH36)=\"\", \"\", IF(VLOOKUP(BH36,'Footnotes list'!$D$9:$E$58,2,FALSE)=0,\"\",VLOOKUP(BH36,'Footnotes list'!$D$9:$E$58,2,FALSE) ) )","v":""},"@",null,null,null,"","@",null,null,null,"","@",null,null,null,"","@",null,null,null,"","@",null,null,null,"","@",null,null,null,"","@",null,null,null,"","@",null,null,null,"","@",null,null,null,"","@",null,null,null,"","@",null,null,null,"",null,null,null,null,{"$f":"IF(TRIM(DP36)=\"\", \"\", IF(VLOOKUP(DP36,'Footnotes list'!$D$9:$E$58,2,FALSE)=0,\"\",VLOOKUP(DP36,'Footnotes list'!$D$9:$E$58,2,FALSE) ) )","v":""},"",null,null,null,{"$f":"IF(TRIM(DU36)=\"\", \"\", IF(VLOOKUP(DU36,'Footnotes list'!$D$9:$E$58,2,FALSE)=0,\"\",VLOOKUP(DU36,'Footnotes list'!$D$9:$E$58,2,FALSE) ) )","v":""},"@",null,null,null,"","@",null,null,null,"","@",null,null,null,"","@",null,null,null,"","@",null,null,null,"","@",null,null,null,"","@",null,null,null,"","",null,null,null,{"$f":"IF(TRIM(FI36)=\"\", \"\", IF(VLOOKUP(FI36,'Footnotes list'!$D$9:$E$58,2,FALSE)=0,\"\",VLOOKUP(FI36,'Footnotes list'!$D$9:$E$58,2,FALSE) ) )","v":""},null,null,null,null,{"$f":"IF(TRIM(FN36)=\"\", \"\", IF(VLOOKUP(FN36,'Footnotes list'!$D$9:$E$58,2,FALSE)=0,\"\",VLOOKUP(FN36,'Footnotes list'!$D$9:$E$58,2,FALSE) ) )","v":""}]
["S11_S12","P51G_CREP_FC","M","Total M - Professional, scientific and technical activities",null,null,null,null,null,null,{"$f":"IF(TRIM(J37)=\"\", \"\", IF(VLOOKUP(J37,'Footnotes list'!$D$9:$E$58,2,FALSE)=0,\"\",VLOOKUP(J37,'Footnotes list'!$D$9:$E$58,2,FALSE) ) )","v":""},null,null,null,null,{"$f":"IF(TRIM(O37)=\"\", \"\", IF(VLOOKUP(O37,'Footnotes list'!$D$9:$E$58,2,FALSE)=0,\"\",VLOOKUP(O37,'Footnotes list'!$D$9:$E$58,2,FALSE) ) )","v":""},null,null,null,null,{"$f":"IF(TRIM(T37)=\"\", \"\", IF(VLOOKUP(T37,'Footnotes list'!$D$9:$E$58,2,FALSE)=0,\"\",VLOOKUP(T37,'Footnotes list'!$D$9:$E$58,2,FALSE) ) )","v":""},null,null,null,null,{"$f":"IF(TRIM(Y37)=\"\", \"\", IF(VLOOKUP(Y37,'Footnotes list'!$D$9:$E$58,2,FALSE)=0,\"\",VLOOKUP(Y37,'Footnotes list'!$D$9:$E$58,2,FALSE) ) )","v":""},null,null,null,null,{"$f":"IF(TRIM(AD37)=\"\", \"\", IF(VLOOKUP(AD37,'Footnotes list'!$D$9:$E$58,2,FALSE)=0,\"\",VLOOKUP(AD37,'Footnotes list'!$D$9:$E$58,2,FALSE) ) )","v":""},null,null,null,null,{"$f":"IF(TRIM(AI37)=\"\", \"\", IF(VLOOKUP(AI37,'Footnotes list'!$D$9:$E$58,2,FALSE)=0,\"\",VLOOKUP(AI37,'Footnotes list'!$D$9:$E$58,2,FALSE) ) )","v":""},"@",null,null,null,"",null,null,null,null,{"$f":"IF(TRIM(AS37)=\"\", \"\", IF(VLOOKUP(AS37,'Footnotes list'!$D$9:$E$58,2,FALSE)=0,\"\",VLOOKUP(AS37,'Footnotes list'!$D$9:$E$58,2,FALSE) ) )","v":""},null,null,null,null,{"$f":"IF(TRIM(AX37)=\"\", \"\", IF(VLOOKUP(AX37,'Footnotes list'!$D$9:$E$58,2,FALSE)=0,\"\",VLOOKUP(AX37,'Footnotes list'!$D$9:$E$58,2,FALSE) ) )","v":""},null,null,null,null,{"$f":"IF(TRIM(BC37)=\"\", \"\", IF(VLOOKUP(BC37,'Footnotes list'!$D$9:$E$58,2,FALSE)=0,\"\",VLOOKUP(BC37,'Footnotes list'!$D$9:$E$58,2,FALSE) ) )","v":""},null,null,null,null,{"$f":"IF(TRIM(BH37)=\"\", \"\", IF(VLOOKUP(BH37,'Footnotes list'!$D$9:$E$58,2,FALSE)=0,\"\",VLOOKUP(BH37,'Footnotes list'!$D$9:$E$58,2,FALSE) ) )","v":""},"@",null,null,null,"","@",null,null,null,"","@",null,null,null,"","@",null,null,null,"","@",null,null,null,"","@",null,null,null,"","@",null,null,null,"","@",null,null,null,"","@",null,null,null,"","@",null,null,null,"","@",null,null,null,"",null,null,null,null,{"$f":"IF(TRIM(DP37)=\"\", \"\", IF(VLOOKUP(DP37,'Footnotes list'!$D$9:$E$58,2,FALSE)=0,\"\",VLOOKUP(DP37,'Footnotes list'!$D$9:$E$58,2,FALSE) ) )","v":""},"",null,null,null,{"$f":"IF(TRIM(DU37)=\"\", \"\", IF(VLOOKUP(DU37,'Footnotes list'!$D$9:$E$58,2,FALSE)=0,\"\",VLOOKUP(DU37,'Footnotes list'!$D$9:$E$58,2,FALSE) ) )","v":""},"@",null,null,null,"","@",null,null,null,"","@",null,null,null,"","@",null,null,null,"","@",null,null,null,"","@",null,null,null,"","@",null,null,null,"","",null,null,null,{"$f":"IF(TRIM(FI37)=\"\", \"\", IF(VLOOKUP(FI37,'Footnotes list'!$D$9:$E$58,2,FALSE)=0,\"\",VLOOKUP(FI37,'Footnotes list'!$D$9:$E$58,2,FALSE) ) )","v":""},null,null,null,null,{"$f":"IF(TRIM(FN37)=\"\", \"\", IF(VLOOKUP(FN37,'Footnotes list'!$D$9:$E$58,2,FALSE)=0,\"\",VLOOKUP(FN37,'Footnotes list'!$D$9:$E$58,2,FALSE) ) )","v":""}]
["S11_S12","P51G_CREP_FC","O","Total O - Public administration and defence, compulsory social security",null,null,null,null,null,null,{"$f":"IF(TRIM(J38)=\"\", \"\", IF(VLOOKUP(J38,'Footnotes list'!$D$9:$E$58,2,FALSE)=0,\"\",VLOOKUP(J38,'Footnotes list'!$D$9:$E$58,2,FALSE) ) )","v":""},null,null,null,null,{"$f":"IF(TRIM(O38)=\"\", \"\", IF(VLOOKUP(O38,'Footnotes list'!$D$9:$E$58,2,FALSE)=0,\"\",VLOOKUP(O38,'Footnotes list'!$D$9:$E$58,2,FALSE) ) )","v":""},null,null,null,null,{"$f":"IF(TRIM(T38)=\"\", \"\", IF(VLOOKUP(T38,'Footnotes list'!$D$9:$E$58,2,FALSE)=0,\"\",VLOOKUP(T38,'Footnotes list'!$D$9:$E$58,2,FALSE) ) )","v":""},null,null,null,null,{"$f":"IF(TRIM(Y38)=\"\", \"\", IF(VLOOKUP(Y38,'Footnotes list'!$D$9:$E$58,2,FALSE)=0,\"\",VLOOKUP(Y38,'Footnotes list'!$D$9:$E$58,2,FALSE) ) )","v":""},null,null,null,null,{"$f":"IF(TRIM(AD38)=\"\", \"\", IF(VLOOKUP(AD38,'Footnotes list'!$D$9:$E$58,2,FALSE)=0,\"\",VLOOKUP(AD38,'Footnotes list'!$D$9:$E$58,2,FALSE) ) )","v":""},null,null,null,null,{"$f":"IF(TRIM(AI38)=\"\", \"\", IF(VLOOKUP(AI38,'Footnotes list'!$D$9:$E$58,2,FALSE)=0,\"\",VLOOKUP(AI38,'Footnotes list'!$D$9:$E$58,2,FALSE) ) )","v":""},"@",null,null,null,"",null,null,null,null,{"$f":"IF(TRIM(AS38)=\"\", \"\", IF(VLOOKUP(AS38,'Footnotes list'!$D$9:$E$58,2,FALSE)=0,\"\",VLOOKUP(AS38,'Footnotes list'!$D$9:$E$58,2,FALSE) ) )","v":""},null,null,null,null,{"$f":"IF(TRIM(AX38)=\"\", \"\", IF(VLOOKUP(AX38,'Footnotes list'!$D$9:$E$58,2,FALSE)=0,\"\",VLOOKUP(AX38,'Footnotes list'!$D$9:$E$58,2,FALSE) ) )","v":""},null,null,null,null,{"$f":"IF(TRIM(BC38)=\"\", \"\", IF(VLOOKUP(BC38,'Footnotes list'!$D$9:$E$58,2,FALSE)=0,\"\",VLOOKUP(BC38,'Footnotes list'!$D$9:$E$58,2,FALSE) ) )","v":""},null,null,null,null,{"$f":"IF(TRIM(BH38)=\"\", \"\", IF(VLOOKUP(BH38,'Footnotes list'!$D$9:$E$58,2,FALSE)=0,\"\",VLOOKUP(BH38,'Footnotes list'!$D$9:$E$58,2,FALSE) ) )","v":""},"@",null,null,null,"","@",null,null,null,"","@",null,null,null,"","@",null,null,null,"","@",null,null,null,"","@",null,null,null,"","@",null,null,null,"","@",null,null,null,"","@",null,null,null,"","@",null,null,null,"","@",null,null,null,"",null,null,null,null,{"$f":"IF(TRIM(DP38)=\"\", \"\", IF(VLOOKUP(DP38,'Footnotes list'!$D$9:$E$58,2,FALSE)=0,\"\",VLOOKUP(DP38,'Footnotes list'!$D$9:$E$58,2,FALSE) ) )","v":""},"",null,null,null,{"$f":"IF(TRIM(DU38)=\"\", \"\", IF(VLOOKUP(DU38,'Footnotes list'!$D$9:$E$58,2,FALSE)=0,\"\",VLOOKUP(DU38,'Footnotes list'!$D$9:$E$58,2,FALSE) ) )","v":""},"@",null,null,null,"","@",null,null,null,"","@",null,null,null,"","@",null,null,null,"","@",null,null,null,"","@",null,null,null,"","@",null,null,null,"","",null,null,null,{"$f":"IF(TRIM(FI38)=\"\", \"\", IF(VLOOKUP(FI38,'Footnotes list'!$D$9:$E$58,2,FALSE)=0,\"\",VLOOKUP(FI38,'Footnotes list'!$D$9:$E$58,2,FALSE) ) )","v":""},null,null,null,null,{"$f":"IF(TRIM(FN38)=\"\", \"\", IF(VLOOKUP(FN38,'Footnotes list'!$D$9:$E$58,2,FALSE)=0,\"\",VLOOKUP(FN38,'Footnotes list'!$D$9:$E$58,2,FALSE) ) )","v":""}]
["S11_S12","P51G_CREP_FC","P","Total P - Education",null,null,null,null,null,null,{"$f":"IF(TRIM(J39)=\"\", \"\", IF(VLOOKUP(J39,'Footnotes list'!$D$9:$E$58,2,FALSE)=0,\"\",VLOOKUP(J39,'Footnotes list'!$D$9:$E$58,2,FALSE) ) )","v":""},null,null,null,null,{"$f":"IF(TRIM(O39)=\"\", \"\", IF(VLOOKUP(O39,'Footnotes list'!$D$9:$E$58,2,FALSE)=0,\"\",VLOOKUP(O39,'Footnotes list'!$D$9:$E$58,2,FALSE) ) )","v":""},null,null,null,null,{"$f":"IF(TRIM(T39)=\"\", \"\", IF(VLOOKUP(T39,'Footnotes list'!$D$9:$E$58,2,FALSE)=0,\"\",VLOOKUP(T39,'Footnotes list'!$D$9:$E$58,2,FALSE) ) )","v":""},null,null,null,null,{"$f":"IF(TRIM(Y39)=\"\", \"\", IF(VLOOKUP(Y39,'Footnotes list'!$D$9:$E$58,2,FALSE)=0,\"\",VLOOKUP(Y39,'Footnotes list'!$D$9:$E$58,2,FALSE) ) )","v":""},null,null,null,null,{"$f":"IF(TRIM(AD39)=\"\", \"\", IF(VLOOKUP(AD39,'Footnotes list'!$D$9:$E$58,2,FALSE)=0,\"\",VLOOKUP(AD39,'Footnotes list'!$D$9:$E$58,2,FALSE) ) )","v":""},null,null,null,null,{"$f":"IF(TRIM(AI39)=\"\", \"\", IF(VLOOKUP(AI39,'Footnotes list'!$D$9:$E$58,2,FALSE)=0,\"\",VLOOKUP(AI39,'Footnotes list'!$D$9:$E$58,2,FALSE) ) )","v":""},"@",null,null,null,"",null,null,null,null,{"$f":"IF(TRIM(AS39)=\"\", \"\", IF(VLOOKUP(AS39,'Footnotes list'!$D$9:$E$58,2,FALSE)=0,\"\",VLOOKUP(AS39,'Footnotes list'!$D$9:$E$58,2,FALSE) ) )","v":""},null,null,null,null,{"$f":"IF(TRIM(AX39)=\"\", \"\", IF(VLOOKUP(AX39,'Footnotes list'!$D$9:$E$58,2,FALSE)=0,\"\",VLOOKUP(AX39,'Footnotes list'!$D$9:$E$58,2,FALSE) ) )","v":""},null,null,null,null,{"$f":"IF(TRIM(BC39)=\"\", \"\", IF(VLOOKUP(BC39,'Footnotes list'!$D$9:$E$58,2,FALSE)=0,\"\",VLOOKUP(BC39,'Footnotes list'!$D$9:$E$58,2,FALSE) ) )","v":""},null,null,null,null,{"$f":"IF(TRIM(BH39)=\"\", \"\", IF(VLOOKUP(BH39,'Footnotes list'!$D$9:$E$58,2,FALSE)=0,\"\",VLOOKUP(BH39,'Footnotes list'!$D$9:$E$58,2,FALSE) ) )","v":""},"@",null,null,null,"","@",null,null,null,"","@",null,null,null,"","@",null,null,null,"","@",null,null,null,"","@",null,null,null,"","@",null,null,null,"","@",null,null,null,"","@",null,null,null,"","@",null,null,null,"","@",null,null,null,"",null,null,null,null,{"$f":"IF(TRIM(DP39)=\"\", \"\", IF(VLOOKUP(DP39,'Footnotes list'!$D$9:$E$58,2,FALSE)=0,\"\",VLOOKUP(DP39,'Footnotes list'!$D$9:$E$58,2,FALSE) ) )","v":""},"",null,null,null,{"$f":"IF(TRIM(DU39)=\"\", \"\", IF(VLOOKUP(DU39,'Footnotes list'!$D$9:$E$58,2,FALSE)=0,\"\",VLOOKUP(DU39,'Footnotes list'!$D$9:$E$58,2,FALSE) ) )","v":""},"@",null,null,null,"","@",null,null,null,"","@",null,null,null,"","@",null,null,null,"","@",null,null,null,"","@",null,null,null,"","@",null,null,null,"","",null,null,null,{"$f":"IF(TRIM(FI39)=\"\", \"\", IF(VLOOKUP(FI39,'Footnotes list'!$D$9:$E$58,2,FALSE)=0,\"\",VLOOKUP(FI39,'Footnotes list'!$D$9:$E$58,2,FALSE) ) )","v":""},null,null,null,null,{"$f":"IF(TRIM(FN39)=\"\", \"\", IF(VLOOKUP(FN39,'Footnotes list'!$D$9:$E$58,2,FALSE)=0,\"\",VLOOKUP(FN39,'Footnotes list'!$D$9:$E$58,2,FALSE) ) )","v":""}]
["S11_S12","P51G_CREP_FC","G-I_K_L_N_Q-U","Total G + H + I + K + L + N + Q + R + S + T + U -Services (except information and communication, professional, scientific and technical activities, public administration and defence; compulsory social security and education)",null,null,null,null,null,null,{"$f":"IF(TRIM(J40)=\"\", \"\", IF(VLOOKUP(J40,'Footnotes list'!$D$9:$E$58,2,FALSE)=0,\"\",VLOOKUP(J40,'Footnotes list'!$D$9:$E$58,2,FALSE) ) )","v":""},null,null,null,null,{"$f":"IF(TRIM(O40)=\"\", \"\", IF(VLOOKUP(O40,'Footnotes list'!$D$9:$E$58,2,FALSE)=0,\"\",VLOOKUP(O40,'Footnotes list'!$D$9:$E$58,2,FALSE) ) )","v":""},null,null,null,null,{"$f":"IF(TRIM(T40)=\"\", \"\", IF(VLOOKUP(T40,'Footnotes list'!$D$9:$E$58,2,FALSE)=0,\"\",VLOOKUP(T40,'Footnotes list'!$D$9:$E$58,2,FALSE) ) )","v":""},null,null,null,null,{"$f":"IF(TRIM(Y40)=\"\", \"\", IF(VLOOKUP(Y40,'Footnotes list'!$D$9:$E$58,2,FALSE)=0,\"\",VLOOKUP(Y40,'Footnotes list'!$D$9:$E$58,2,FALSE) ) )","v":""},null,null,null,null,{"$f":"IF(TRIM(AD40)=\"\", \"\", IF(VLOOKUP(AD40,'Footnotes list'!$D$9:$E$58,2,FALSE)=0,\"\",VLOOKUP(AD40,'Footnotes list'!$D$9:$E$58,2,FALSE) ) )","v":""},null,null,null,null,{"$f":"IF(TRIM(AI40)=\"\", \"\", IF(VLOOKUP(AI40,'Footnotes list'!$D$9:$E$58,2,FALSE)=0,\"\",VLOOKUP(AI40,'Footnotes list'!$D$9:$E$58,2,FALSE) ) )","v":""},"@",null,null,null,"",null,null,null,null,{"$f":"IF(TRIM(AS40)=\"\", \"\", IF(VLOOKUP(AS40,'Footnotes list'!$D$9:$E$58,2,FALSE)=0,\"\",VLOOKUP(AS40,'Footnotes list'!$D$9:$E$58,2,FALSE) ) )","v":""},null,null,null,null,{"$f":"IF(TRIM(AX40)=\"\", \"\", IF(VLOOKUP(AX40,'Footnotes list'!$D$9:$E$58,2,FALSE)=0,\"\",VLOOKUP(AX40,'Footnotes list'!$D$9:$E$58,2,FALSE) ) )","v":""},null,null,null,null,{"$f":"IF(TRIM(BC40)=\"\", \"\", IF(VLOOKUP(BC40,'Footnotes list'!$D$9:$E$58,2,FALSE)=0,\"\",VLOOKUP(BC40,'Footnotes list'!$D$9:$E$58,2,FALSE) ) )","v":""},null,null,null,null,{"$f":"IF(TRIM(BH40)=\"\", \"\", IF(VLOOKUP(BH40,'Footnotes list'!$D$9:$E$58,2,FALSE)=0,\"\",VLOOKUP(BH40,'Footnotes list'!$D$9:$E$58,2,FALSE) ) )","v":""},"@",null,null,null,"","@",null,null,null,"","@",null,null,null,"","@",null,null,null,"","@",null,null,null,"","@",null,null,null,"","@",null,null,null,"","@",null,null,null,"","@",null,null,null,"","@",null,null,null,"","@",null,null,null,"",null,null,null,null,{"$f":"IF(TRIM(DP40)=\"\", \"\", IF(VLOOKUP(DP40,'Footnotes list'!$D$9:$E$58,2,FALSE)=0,\"\",VLOOKUP(DP40,'Footnotes list'!$D$9:$E$58,2,FALSE) ) )","v":""},"",null,null,null,{"$f":"IF(TRIM(DU40)=\"\", \"\", IF(VLOOKUP(DU40,'Footnotes list'!$D$9:$E$58,2,FALSE)=0,\"\",VLOOKUP(DU40,'Footnotes list'!$D$9:$E$58,2,FALSE) ) )","v":""},"@",null,null,null,"","@",null,null,null,"","@",null,null,null,"","@",null,null,null,"","@",null,null,null,"","@",null,null,null,"","@",null,null,null,"",{"$f":"IF(COUNT(DR40)=1,SUM(DR40),\"\")","v":""},null,null,null,{"$f":"IF(TRIM(FI40)=\"\", \"\", IF(VLOOKUP(FI40,'Footnotes list'!$D$9:$E$58,2,FALSE)=0,\"\",VLOOKUP(FI40,'Footnotes list'!$D$9:$E$58,2,FALSE) ) )","v":""},null,null,null,null,{"$f":"IF(TRIM(FN40)=\"\", \"\", IF(VLOOKUP(FN40,'Footnotes list'!$D$9:$E$58,2,FALSE)=0,\"\",VLOOKUP(FN40,'Footnotes list'!$D$9:$E$58,2,FALSE) ) )","v":""}]
[]
[null,null,null,"Black: Not applicable"]
[null,null,null,"Grey: Automatic calculation. Formula can be overwritten (with \"unlock formulas\")"]
[null,null,null,"Cyan: Non Mandatory variables"]
[null,null,null,"Light yellow: Footnotes (only to be filled-in when relevant)"]

{"sheet":"CCM - CAPEX - EC","index":9,"n_rows":45,"n_cols":166,"rows_kept":45,"cut":false,"hidden":false,"merged":[[41,3,41,5],[42,3,42,5],[5,59,5,60],[5,4,5,5],[5,9,5,10],[18,4,39,4],[18,5,28,5],[29,5,39,5],[8,5,12,5],[14,5,15,5],[16,5,17,5],[5,14,5,15],[5,19,5,20],[5,24,5,25],[5,29,5,30],[5,154,5,155],[5,159,5,160],[5,164,5,165],[5,144,5,145],[5,149,5,150],[5,134,5,135],[5,139,5,140],[5,94,5,95],[5,99,5,100],[5,104,5,105],[5,109,5,110],[5,114,5,115],[5,119,5,120],[5,124,5,125],[5,129,5,130],[5,89,5,90],[5,34,5,35],[5,39,5,40],[5,44,5,45],[5,49,5,50],[5,54,5,55],[5,64,5,65],[5,69,5,70],[5,74,5,75],[5,79,5,80],[5,84,5,85],[4,107,4,110],[4,77,4,80],[4,82,4,85],[4,87,4,90],[4,92,4,95],[4,97,4,100],[4,102,4,105],[4,47,4,50],[4,52,4,55],[4,57,4,60],[4,62,4,65],[4,67,4,70],[4,72,4,75],[1,11,3,160],[1,161,3,165],[4,7,4,10],[4,12,4,15],[4,17,4,20],[4,22,4,25],[4,27,4,30],[4,32,4,35],[4,37,4,40],[4,42,4,45],[4,112,4,115],[4,117,4,120],[4,122,4,125],[4,126,4,160],[4,161,4,165]]}
["CCM_INV_EC"]
[null,null,null,"Country:",{"$f":"\"\" &'GETTING STARTED'!G9","v":""},{"$f":"\"\" &'GETTING STARTED'!E9","v":""}]
[null,null,null,"Year:",{"$f":"\"\" &'GETTING STARTED'!E10","v":""}]
[null,null,null,"Unit:","MIO_NAC","Million units of national currency"]
[null,null,null,"Characteristic / variable","Investments","GFCF/final consumption","CEP 01",null,null,null,null,"CEP 0101",null,null,null,null,"CEP 0102",null,null,null,null,"CEP 0201",null,null,null,null,"CEP 020101",null,null,null,null,"CEP 0202",null,null,null,null,"CEP 020201",null,null,null,null,"CEP 020202",null,null,null,null,"CEP 020203",null,null,null,null,"CEP 0402",null,null,null,null,"CEP 040203",null,null,null,null,"CEP 0501",null,null,null,null,"CEP 0502",null,null,null,null,"CEP 0503",null,null,null,null,"CEP 050301",null,null,null,null,"CEP 050302",null,null,null,null,"CEP 0701 + 0703 + 0705+0707 + 0709",null,null,null,null,"CEP 070101",null,null,null,null,"CEP 0702 + 0704 + 0706+ 0708",null,null,null,null,"CEP 0702",null,null,null,null,"CEP 0708",null,null,null,null,"CEP 08",null,null,null,null,"CEP_OTH",null,null,null,null,"TOT_CEP",null,null,null,null,"OUT OF SCOPE OF CEP/SEEA",null,null,null,null,null,null,null,null,null,null,null,null,null,null,null,null,null,null,null,null,null,null,null,null,null,null,null,null,null,null,null,null,null,null,"Climate change mitigation"]
[null,null,null,null,"CCM - CAPITAL EXPENDITURE",null,"Air and climate","Standard footnote","Confidentiality footnote","Explanatory footnote",null,"Reduction and control of greenhouse gases","Standard footnote","Confidentiality footnote","Explanatory footnote",null,"Reduction and control of other air pollutants","Standard footnote","Confidentiality footnote","Explanatory footnote",null,"Energy from renewable sources","Standard footnote","Confidentiality footnote","Explanatory footnote",null,"Production of energy from renewable sources","Standard footnote","Confidentiality footnote","Explanatory footnote",null,"Energy savings and management","Standard footnote","Confidentiality footnote","Explanatory footnote",null,"Energy savings through in-process modifications","Standard footnote","Confidentiality footnote","Explanatory footnote",null,"Energy efficient buildings; other efficient energy-demand technologies","Standard footnote","Confidentiality footnote","Explanatory footnote",null,"Monitoring and measurement for energy savings and management","Standard footnote","Confidentiality footnote","Explanatory footnote",null,"Materials recovery and savings","Standard footnote","Confidentiality footnote","Explanatory footnote",null,"Reduction of the intake of fossil fuels for non-energy use","Standard footnote","Confidentiality footnote","Explanatory footnote",null,"Protection of soil, surface and groundwater","Standard footnote","Confidentiality footnote","Explanatory footnote",null,"Protection of biodiversity and landscape","Standard footnote","Confidentiality footnote","Explanatory footnote",null,"Management of forest resources","Standard footnote","Confidentiality footnote","Explanatory footnote",null,"Reforestation, afforestation and forest-related land management ","Standard footnote","Confidentiality footnote","Explanatory footnote",null,"Protection against forest fires","Standard footnote","Confidentiality footnote","Explanatory footnote",null,"Research and development environmental protection","Standard footnote","Confidentiality footnote","Explanatory footnote",null,"R&D for reduction and control of greenhouse gases","Standard footnote","Confidentiality footnote","Explanatory footnote",null,"Research and development resource management","Standard footnote","Confidentiality footnote","Explanatory footnote",null,"R&D for energy","Standard footnote","Confidentiality footnote","Explanatory footnote",null,"R&D for forest management","Standard footnote","Confidentiality footnote","Explanatory footnote",null,"Cross-cutting and other environmental purposes","Standard footnote","Confidentiality footnote","Explanatory footnote",null,"Other CEP not listed","Standard footnote","Confidentiality footnote","Explanatory footnote",null,"\nTotal environmental purposes","Standard footnote","Confidentiality footnote","Explanatory footnote",null,"Production of nuclear energy","Standard footnote","Confidentiality footnote","Explanatory footnote",null,"R&D for nuclear energy","Standard footnote","Confidentiality footnote","Explanatory footnote",null,"Energy grids","Standard footnote","Confidentiality footnote","Explanatory footnote",null,"Low carbon transport activities","Standard footnote","Confidentiality footnote","Explanatory footnote",null,"Low carbon transport infrastructures","Standard footnote","Confidentiality footnote","Explanatory footnote",null,"Other climate change mitigation out of CEP scope","Standard footnote","Confidentiality footnote","Explanatory footnote",null,"Climate change mitigation out of CEP scope","Standard footnote","Confidentiality footnote","Explanatory footnote",null,"Climate change mitigation","Standard footnote","Confidentiality footnote","Explanatory footnote"]
["SECTOR","ENV_ECON","NACE_R2",null,null,null,"CEP01",null,null,null,null,"CEP0101",null,null,null,null,"CEP0102",null,null,null,null,"CEP0201",null,null,null,null,"CEP020101",null,null,null,null,"CEP0202",null,null,null,null,"CEP020201",null,null,null,null,"CEP020202",null,null,null,null,"CEP020203",null,null,null,null,"CEP0402",null,null,null,null,"CEP040203",null,null,null,null,"CEP0501",null,null,null,null,"CEP0502",null,null,null,null,"CEP0503",null,null,null,null,"CEP050301",null,null,null,null,"CEP050302",null,null,null,null,"CEP0701_03_05_07_09",null,null,null,null,"CEP070101",null,null,null,null,"CEP0702_04_06_08",null,null,null,null,"CEP0702",null,null,null,null,"CEP0708",null,null,null,null,"CEP08",null,null,null,null,"CEP_OTH",null,null,null,null,"TOT_CEP",null,null,null,null,"NUC_PRD",null,null,null,null,"NUC_RND",null,null,null,null,"NRG_GRID",null,null,null,null,"LWC_TRA_ACT",null,null,null,null,"LWC_TRA_INFR",null,null,null,null,"CCM_NCEP_OTH",null,null,null,null,"CCM_NCEP",null,null,null,null,"CCM"]
["S1","P3_P51G_EC","TOTAL","TOTAL","S1 TOTAL ECONOMY, of which:","Final consumption and GFCF",{"$f":"IF(COUNT(G9,G14)=1,SUM(G9,G14),\"\")","v":""},null,null,null,{"$f":"IF(TRIM(J8)=\"\", \"\", IF(VLOOKUP(J8,'Footnotes list'!$D$9:$E$58,2,FALSE)=0,\"\",VLOOKUP(J8,'Footnotes list'!$D$9:$E$58,2,FALSE) ) )","v":""},{"$f":"IF(COUNT(L9,L14)=1,SUM(L9,L14),\"\")","v":""},null,null,null,{"$f":"IF(TRIM(O8)=\"\", \"\", IF(VLOOKUP(O8,'Footnotes list'!$D$9:$E$58,2,FALSE)=0,\"\",VLOOKUP(O8,'Footnotes list'!$D$9:$E$58,2,FALSE) ) )","v":""},{"$f":"IF(COUNT(Q9,Q14)=1,SUM(Q9,Q14),\"\")","v":""},null,null,null,{"$f":"IF(TRIM(T8)=\"\", \"\", IF(VLOOKUP(T8,'Footnotes list'!$D$9:$E$58,2,FALSE)=0,\"\",VLOOKUP(T8,'Footnotes list'!$D$9:$E$58,2,FALSE) ) )","v":""},"@",null,null,null,"","@",null,null,null,"",{"$f":"IF(COUNT(AF9,AF14)=1,SUM(AF9,AF14),\"\")","v":""},null,null,null,{"$f":"IF(TRIM(AI8)=\"\", \"\", IF(VLOOKUP(AI8,'Footnotes list'!$D$9:$E$58,2,FALSE)=0,\"\",VLOOKUP(AI8,'Footnotes list'!$D$9:$E$58,2,FALSE) ) )","v":""},"@",null,null,null,"",{"$f":"IF(COUNT(AP9,AP14)=1,SUM(AP9,AP14),\"\")","v":""},null,null,null,{"$f":"IF(TRIM(AS8)=\"\", \"\", IF(VLOOKUP(AS8,'Footnotes list'!$D$9:$E$58,2,FALSE)=0,\"\",VLOOKUP(AS8,'Footnotes list'!$D$9:$E$58,2,FALSE) ) )","v":""},{"$f":"IF(COUNT(AU9,AU14)=1,SUM(AU9,AU14),\"\")","v":""},null,null,null,{"$f":"IF(TRIM(AX8)=\"\", \"\", IF(VLOOKUP(AX8,'Footnotes list'!$D$9:$E$58,2,FALSE)=0,\"\",VLOOKUP(AX8,'Footnotes list'!$D$9:$E$58,2,FALSE) ) )","v":""},{"$f":"IF(COUNT(AZ9,AZ14)=1,SUM(AZ9,AZ14),\"\")","v":""},null,null,null,{"$f":"IF(TRIM(BC8)=\"\", \"\", IF(VLOOKUP(BC8,'Footnotes list'!$D$9:$E$58,2,FALSE)=0,\"\",VLOOKUP(BC8,'Footnotes list'!$D$9:$E$58,2,FALSE) ) )","v":""},{"$f":"IF(COUNT(BE9,BE14)=1,SUM(BE9,BE14),\"\")","v":""},null,null,null,{"$f":"IF(TRIM(BH8)=\"\", \"\", IF(VLOOKUP(BH8,'Footnotes list'!$D$9:$E$58,2,FALSE)=0,\"\",VLOOKUP(BH8,'Footnotes list'!$D$9:$E$58,2,FALSE) ) )","v":""},"@",null,null,null,"","@",null,null,null,"","@",null,null,null,"","@",null,null,null,"","@",null,null,null,"","@",null,null,null,"","@",null,null,null,"","@",null,null,null,"","@",null,null,null,"","@",null,null,null,"","@",null,null,null,"",{"$f":"IF(COUNT(DM9,DM14)=2,SUM(DM9,DM14),\"\")","v":""},null,null,null,{"$f":"IF(TRIM(DP8)=\"\", \"\", IF(VLOOKUP(DP8,'Footnotes list'!$D$9:$E$58,2,FALSE)=0,\"\",VLOOKUP(DP8,'Footnotes list'!$D$9:$E$58,2,FALSE) ) )","v":""},{"$f":"IF(COUNT(G8,AF8,AZ8)=3,SUM(G8,AF8,AZ8,DM8),\"\")","v":""},null,null,null,{"$f":"IF(TRIM(DU8)=\"\", \"\", IF(VLOOKUP(DU8,'Footnotes list'!$D$9:$E$58,2,FALSE)=0,\"\",VLOOKUP(DU8,'Footnotes list'!$D$9:$E$58,2,FALSE) ) )","v":""},{"$f":"IF(COUNT(DW9)=1,SUM(DW9),\"\")","v":""},null,null,null,{"$f":"IF(TRIM(DZ8)=\"\", \"\", IF(VLOOKUP(DZ8,'Footnotes list'!$D$9:$E$58,2,FALSE)=0,\"\",VLOOKUP(DZ8,'Footnotes list'!$D$9:$E$58,2,FALSE) ) )","v":""},{"$f":"IF(COUNT(EB9)=1,SUM(EB9),\"\")","v":""},null,null,null,{"$f":"IF(TRIM(EE8)=\"\", \"\", IF(VLOOKUP(EE8,'Footnotes list'!$D$9:$E$58,2,FALSE)=0,\"\",VLOOKUP(EE8,'Footnotes list'!$D$9:$E$58,2,FALSE) ) )","v":""},{"$f":"IF(COUNT(EG9)=1,SUM(EG9),\"\")","v":""},null,null,null,{"$f":"IF(TRIM(EJ8)=\"\", \"\", IF(VLOOKUP(EJ8,'Footnotes list'!$D$9:$E$58,2,FALSE)=0,\"\",VLOOKUP(EJ8,'Footnotes list'!$D$9:$E$58,2,FALSE) ) )","v":""},{"$f":"IF(COUNT(EL9)=1,SUM(EL9),\"\")","v":""},null,null,null,{"$f":"IF(TRIM(EO8)=\"\", \"\", IF(VLOOKUP(EO8,'Footnotes list'!$D$9:$E$58,2,FALSE)=0,\"\",VLOOKUP(EO8,'Footnotes list'!$D$9:$E$58,2,FALSE) ) )","v":""},{"$f":"IF(COUNT(EQ9)=1,SUM(EQ9),\"\")","v":""},null,null,null,{"$f":"IF(TRIM(ET8)=\"\", \"\", IF(VLOOKUP(ET8,'Footnotes list'!$D$9:$E$58,2,FALSE)=0,\"\",VLOOKUP(ET8,'Footnotes list'!$D$9:$E$58,2,FALSE) ) )","v":""},{"$f":"IF(COUNT(EV9)=1,SUM(EV9),\"\")","v":""},null,null,null,{"$f":"IF(TRIM(EY8)=\"\", \"\", IF(VLOOKUP(EY8,'Footnotes list'!$D$9:$E$58,2,FALSE)=0,\"\",VLOOKUP(EY8,'Footnotes list'!$D$9:$E$58,2,FALSE) ) )","v":""},{"$f":"IF(COUNT(DW8,EB8,EG8,EL8,EQ8)=5,SUM(DW8,EB8,EG8,EL8,EQ8,EV8),\"\")","v":""},null,null,null,{"$f":"IF(TRIM(FD8)=\"\", \"\", IF(VLOOKUP(FD8,'Footnotes list'!$D$9:$E$58,2,FALSE)=0,\"\",VLOOKUP(FD8,'Footnotes list'!$D$9:$E$58,2,FALSE) ) )","v":""},{"$f":"IF(COUNT(DR8,FA8)=2,SUM(DR8,FA8),\"\")","v":""},null,null,null,{"$f":"IF(TRIM(FI8)=\"\", \"\", IF(VLOOKUP(FI8,'Footnotes list'!$D$9:$E$58,2,FALSE)=0,\"\",VLOOKUP(FI8,'Footnotes list'!$D$9:$E$58,2,FALSE) ) )","v":""}]
["S1","P51G_CA_EC","TOTAL","TOTAL","S1 TOTAL ECONOMY, of which:","GFCF for (characteristic) activities","@",null,null,null,"","@",null,null,null,"","@",null,null,null,"","@",null,null,null,"","@",null,null,null,"","@",null,null,null,"","@",null,null,null,"","@",null,null,null,"","@",null,null,null,"","@",null,null,null,"","@",null,null,null,"","@",null,null,null,"","@",null,null,null,"","@",null,null,null,"","@",null,null,null,"","@",null,null,null,"","@",null,null,null,"","@",null,null,null,"","@",null,null,null,"","@",null,null,null,"","@",null,null,null,"","@",null,null,null,"",{"$f":"IF(COUNT(DM10:DM12)=3,SUM(DM10:DM12),\"\")","v":""},null,null,null,{"$f":"IF(TRIM(DP9)=\"\", \"\", IF(VLOOKUP(DP9,'Footnotes list'!$D$9:$E$58,2,FALSE)=0,\"\",VLOOKUP(DP9,'Footnotes list'!$D$9:$E$58,2,FALSE) ) )","v":""},{"$f":"IF(COUNT(DM9)=1,DM9,\"\")","v":""},null,null,null,{"$f":"IF(TRIM(DU9)=\"\", \"\", IF(VLOOKUP(DU9,'Footnotes list'!$D$9:$E$58,2,FALSE)=0,\"\",VLOOKUP(DU9,'Footnotes list'!$D$9:$E$58,2,FALSE) ) )","v":""},{"$f":"IF(COUNT(DW10:DW12)=3,SUM(DW10:DW12),\"\")","v":""},null,null,null,{"$f":"IF(TRIM(DZ9)=\"\", \"\", IF(VLOOKUP(DZ9,'Footnotes list'!$D$9:$E$58,2,FALSE)=0,\"\",VLOOKUP(DZ9,'Footnotes list'!$D$9:$E$58,2,FALSE) ) )","v":""},{"$f":"IF(COUNT(EB10:EB12)=3,SUM(EB10:EB12),\"\")","v":""},null,null,null,{"$f":"IF(TRIM(EE9)=\"\", \"\", IF(VLOOKUP(EE9,'Footnotes list'!$D$9:$E$58,2,FALSE)=0,\"\",VLOOKUP(EE9,'Footnotes list'!$D$9:$E$58,2,FALSE) ) )","v":""},{"$f":"IF(COUNT(EG10:EG12)=3,SUM(EG10:EG12),\"\")","v":""},null,null,null,{"$f":"IF(TRIM(EJ9)=\"\", \"\", IF(VLOOKUP(EJ9,'Footnotes list'!$D$9:$E$58,2,FALSE)=0,\"\",VLOOKUP(EJ9,'Footnotes list'!$D$9:$E$58,2,FALSE) ) )","v":""},{"$f":"IF(COUNT(EL10:EL12)=3,SUM(EL10:EL12),\"\")","v":""},null,null,null,{"$f":"IF(TRIM(EO9)=\"\", \"\", IF(VLOOKUP(EO9,'Footnotes list'!$D$9:$E$58,2,FALSE)=0,\"\",VLOOKUP(EO9,'Footnotes list'!$D$9:$E$58,2,FALSE) ) )","v":""},{"$f":"IF(COUNT(EQ10:EQ12)=3,SUM(EQ10:EQ12),\"\")","v":""},null,null,null,{"$f":"IF(TRIM(ET9)=\"\", \"\", IF(VLOOKUP(ET9,'Footnotes list'!$D$9:$E$58,2,FALSE)=0,\"\",VLOOKUP(ET9,'Footnotes list'!$D$9:$E$58,2,FALSE) ) )","v":""},{"$f":"IF(COUNT(EV10:EV12)=3,SUM(EV10:EV12),\"\")","v":""},null,null,null,{"$f":"IF(TRIM(EY9)=\"\", \"\", IF(VLOOKUP(EY9,'Footnotes list'!$D$9:$E$58,2,FALSE)=0,\"\",VLOOKUP(EY9,'Footnotes list'!$D$9:$E$58,2,FALSE) ) )","v":""},{"$f":"IF(COUNT(DW9,EB9,EG9,EL9,EQ9)=5,SUM(DW9,EB9,EG9,EL9,EQ9,EV9),\"\")","v":""},null,null,null,{"$f":"IF(TRIM(FD9)=\"\", \"\", IF(VLOOKUP(FD9,'Footnotes list'!$D$9:$E$58,2,FALSE)=0,\"\",VLOOKUP(FD9,'Footnotes list'!$D$9:$E$58,2,FALSE) ) )","v":""},"",null,null,null,{"$f":"IF(TRIM(FI9)=\"\", \"\", IF(VLOOKUP(FI9,'Footnotes list'!$D$9:$E$58,2,FALSE)=0,\"\",VLOOKUP(FI9,'Footnotes list'!$D$9:$E$58,2,FALSE) ) )","v":""}]
["S11_S12","P51G_CA_EC","TOTAL","TOTAL","S11_S12 Corporations",null,"@",null,null,null,"","@",null,null,null,"","@",null,null,null,"","@",null,null,null,"","@",null,null,null,"","@",null,null,null,"","@",null,null,null,"","@",null,null,null,"","@",null,null,null,"","@",null,null,null,"","@",null,null,null,"","@",null,null,null,"","@",null,null,null,"","@",null,null,null,"","@",null,null,null,"","@",null,null,null,"","@",null,null,null,"","@",null,null,null,"","@",null,null,null,"","@",null,null,null,"","@",null,null,null,"","@",null,null,null,"",{"$f":"IF(COUNT(DM19:DM29)=11,SUM(DM19:DM29),\"\")","v":""},null,null,null,{"$f":"IF(TRIM(DP10)=\"\", \"\", IF(VLOOKUP(DP10,'Footnotes list'!$D$9:$E$58,2,FALSE)=0,\"\",VLOOKUP(DP10,'Footnotes list'!$D$9:$E$58,2,FALSE) ) )","v":""},{"$f":"IF(COUNT(DM10)=1,DM10,\"\")","v":""},null,null,null,{"$f":"IF(TRIM(DU10)=\"\", \"\", IF(VLOOKUP(DU10,'Footnotes list'!$D$9:$E$58,2,FALSE)=0,\"\",VLOOKUP(DU10,'Footnotes list'!$D$9:$E$58,2,FALSE) ) )","v":""},{"$f":"IF(COUNT(DW19:DW29)=11,SUM(DW19:DW29),\"\")","v":""},null,null,null,{"$f":"IF(TRIM(DZ10)=\"\", \"\", IF(VLOOKUP(DZ10,'Footnotes list'!$D$9:$E$58,2,FALSE)=0,\"\",VLOOKUP(DZ10,'Footnotes list'!$D$9:$E$58,2,FALSE) ) )","v":""},{"$f":"IF(COUNT(EB19:EB29)=11,SUM(EB19:EB29),\"\")","v":""},null,null,null,{"$f":"IF(TRIM(EE10)=\"\", \"\", IF(VLOOKUP(EE10,'Footnotes list'!$D$9:$E$58,2,FALSE)=0,\"\",VLOOKUP(EE10,'Footnotes list'!$D$9:$E$58,2,FALSE) ) )","v":""},{"$f":"IF(COUNT(EG19:EG29)=11,SUM(EG19:EG29),\"\")","v":""},null,null,null,{"$f":"IF(TRIM(EJ10)=\"\", \"\", IF(VLOOKUP(EJ10,'Footnotes list'!$D$9:$E$58,2,FALSE)=0,\"\",VLOOKUP(EJ10,'Footnotes list'!$D$9:$E$58,2,FALSE) ) )","v":""},{"$f":"IF(COUNT(EL19:EL29)=11,SUM(EL19:EL29),\"\")","v":""},null,null,null,{"$f":"IF(TRIM(EO10)=\"\", \"\", IF(VLOOKUP(EO10,'Footnotes list'!$D$9:$E$58,2,FALSE)=0,\"\",VLOOKUP(EO10,'Footnotes list'!$D$9:$E$58,2,FALSE) ) )","v":""},{"$f":"IF(COUNT(EQ19:EQ29)=11,SUM(EQ19:EQ29),\"\")","v":""},null,null,null,{"$f":"IF(TRIM(ET10)=\"\", \"\", IF(VLOOKUP(ET10,'Footnotes list'!$D$9:$E$58,2,FALSE)=0,\"\",VLOOKUP(ET10,'Footnotes list'!$D$9:$E$58,2,FALSE) ) )","v":""},{"$f":"IF(COUNT(EV19:EV29)=11,SUM(EV19:EV29),\"\")","v":""},null,null,null,{"$f":"IF(TRIM(EY10)=\"\", \"\", IF(VLOOKUP(EY10,'Footnotes list'!$D$9:$E$58,2,FALSE)=0,\"\",VLOOKUP(EY10,'Footnotes list'!$D$9:$E$58,2,FALSE) ) )","v":""},{"$f":"IF(COUNT(DW10,EB10,EG10,EL10,EQ10)=5,SUM(DW10,EB10,EG10,EL10,EQ10,EV10),\"\")","v":""},null,null,null,{"$f":"IF(TRIM(FD10)=\"\", \"\", IF(VLOOKUP(FD10,'Footnotes list'!$D$9:$E$58,2,FALSE)=0,\"\",VLOOKUP(FD10,'Footnotes list'!$D$9:$E$58,2,FALSE) ) )","v":""},"",null,null,null,{"$f":"IF(TRIM(FI10)=\"\", \"\", IF(VLOOKUP(FI10,'Footnotes list'!$D$9:$E$58,2,FALSE)=0,\"\",VLOOKUP(FI10,'Footnotes list'!$D$9:$E$58,2,FALSE) ) )","v":""}]
["S13","P51G_CA_EC","TOTAL","TOTAL","S13 General Government",null,"@",null,null,null,"","@",null,null,null,"","@",null,null,null,"","@",null,null,null,"","@",null,null,null,"","@",null,null,null,"","@",null,null,null,"","@",null,null,null,"","@",null,null,null,"","@",null,null,null,"","@",null,null,null,"","@",null,null,null,"","@",null,null,null,"","@",null,null,null,"","@",null,null,null,"","@",null,null,null,"","@",null,null,null,"","@",null,null,null,"","@",null,null,null,"","@",null,null,null,"","@",null,null,null,"","@",null,null,null,"",null,null,null,null,{"$f":"IF(TRIM(DP11)=\"\", \"\", IF(VLOOKUP(DP11,'Footnotes list'!$D$9:$E$58,2,FALSE)=0,\"\",VLOOKUP(DP11,'Footnotes list'!$D$9:$E$58,2,FALSE) ) )","v":""},"",null,null,null,{"$f":"IF(TRIM(DU11)=\"\", \"\", IF(VLOOKUP(DU11,'Footnotes list'!$D$9:$E$58,2,FALSE)=0,\"\",VLOOKUP(DU11,'Footnotes list'!$D$9:$E$58,2,FALSE) ) )","v":""},null,null,null,null,{"$f":"IF(TRIM(DZ11)=\"\", \"\", IF(VLOOKUP(DZ11,'Footnotes list'!$D$9:$E$58,2,FALSE)=0,\"\",VLOOKUP(DZ11,'Footnotes list'!$D$9:$E$58,2,FALSE) ) )","v":""},null,null,null,null,{"$f":"IF(TRIM(EE11)=\"\", \"\", IF(VLOOKUP(EE11,'Footnotes list'!$D$9:$E$58,2,FALSE)=0,\"\",VLOOKUP(EE11,'Footnotes list'!$D$9:$E$58,2,FALSE) ) )","v":""},null,null,null,null,{"$f":"IF(TRIM(EJ11)=\"\", \"\", IF(VLOOKUP(EJ11,'Footnotes list'!$D$9:$E$58,2,FALSE)=0,\"\",VLOOKUP(EJ11,'Footnotes list'!$D$9:$E$58,2,FALSE) ) )","v":""},null,null,null,null,{"$f":"IF(TRIM(EO11)=\"\", \"\", IF(VLOOKUP(EO11,'Footnotes list'!$D$9:$E$58,2,FALSE)=0,\"\",VLOOKUP(EO11,'Footnotes list'!$D$9:$E$58,2,FALSE) ) )","v":""},null,null,null,null,{"$f":"IF(TRIM(ET11)=\"\", \"\", IF(VLOOKUP(ET11,'Footnotes list'!$D$9:$E$58,2,FALSE)=0,\"\",VLOOKUP(ET11,'Footnotes list'!$D$9:$E$58,2,FALSE) ) )","v":""},null,null,null,null,{"$f":"IF(TRIM(EY11)=\"\", \"\", IF(VLOOKUP(EY11,'Footnotes list'!$D$9:$E$58,2,FALSE)=0,\"\",VLOOKUP(EY11,'Footnotes list'!$D$9:$E$58,2,FALSE) ) )","v":""},"",null,null,null,{"$f":"IF(TRIM(FD11)=\"\", \"\", IF(VLOOKUP(FD11,'Footnotes list'!$D$9:$E$58,2,FALSE)=0,\"\",VLOOKUP(FD11,'Footnotes list'!$D$9:$E$58,2,FALSE) ) )","v":""},"",null,null,null,{"$f":"IF(TRIM(FI11)=\"\", \"\", IF(VLOOKUP(FI11,'Footnotes list'!$D$9:$E$58,2,FALSE)=0,\"\",VLOOKUP(FI11,'Footnotes list'!$D$9:$E$58,2,FALSE) ) )","v":""}]
["S14_S15","P51G_CA_EC","TOTAL","TOTAL","S14_S15 Households and NPISH",null,"@",null,null,null,"","@",null,null,null,"","@",null,null,null,"","@",null,null,null,"","@",null,null,null,"","@",null,null,null,"","@",null,null,null,"","@",null,null,null,"","@",null,null,null,"","@",null,null,null,"","@",null,null,null,"","@",null,null,null,"","@",null,null,null,"","@",null,null,null,"","@",null,null,null,"","@",null,null,null,"","@",null,null,null,"","@",null,null,null,"","@",null,null,null,"","@",null,null,null,"","@",null,null,null,"","@",null,null,null,"",null,null,null,null,{"$f":"IF(TRIM(DP12)=\"\", \"\", IF(VLOOKUP(DP12,'Footnotes list'!$D$9:$E$58,2,FALSE)=0,\"\",VLOOKUP(DP12,'Footnotes list'!$D$9:$E$58,2,FALSE) ) )","v":""},"",null,null,null,{"$f":"IF(TRIM(DU12)=\"\", \"\", IF(VLOOKUP(DU12,'Footnotes list'!$D$9:$E$58,2,FALSE)=0,\"\",VLOOKUP(DU12,'Footnotes list'!$D$9:$E$58,2,FALSE) ) )","v":""},null,null,null,null,{"$f":"IF(TRIM(DZ12)=\"\", \"\", IF(VLOOKUP(DZ12,'Footnotes list'!$D$9:$E$58,2,FALSE)=0,\"\",VLOOKUP(DZ12,'Footnotes list'!$D$9:$E$58,2,FALSE) ) )","v":""},null,null,null,null,{"$f":"IF(TRIM(EE12)=\"\", \"\", IF(VLOOKUP(EE12,'Footnotes list'!$D$9:$E$58,2,FALSE)=0,\"\",VLOOKUP(EE12,'Footnotes list'!$D$9:$E$58,2,FALSE) ) )","v":""},null,null,null,null,{"$f":"IF(TRIM(EJ12)=\"\", \"\", IF(VLOOKUP(EJ12,'Footnotes list'!$D$9:$E$58,2,FALSE)=0,\"\",VLOOKUP(EJ12,'Footnotes list'!$D$9:$E$58,2,FALSE) ) )","v":""},null,null,null,null,{"$f":"IF(TRIM(EO12)=\"\", \"\", IF(VLOOKUP(EO12,'Footnotes list'!$D$9:$E$58,2,FALSE)=0,\"\",VLOOKUP(EO12,'Footnotes list'!$D$9:$E$58,2,FALSE) ) )","v":""},null,null,null,null,{"$f":"IF(TRIM(ET12)=\"\", \"\", IF(VLOOKUP(ET12,'Footnotes list'!$D$9:$E$58,2,FALSE)=0,\"\",VLOOKUP(ET12,'Footnotes list'!$D$9:$E$58,2,FALSE) ) )","v":""},null,null,null,null,{"$f":"IF(TRIM(EY12)=\"\", \"\", IF(VLOOKUP(EY12,'Footnotes list'!$D$9:$E$58,2,FALSE)=0,\"\",VLOOKUP(EY12,'Footnotes list'!$D$9:$E$58,2,FALSE) ) )","v":""},"",null,null,null,{"$f":"IF(TRIM(FD12)=\"\", \"\", IF(VLOOKUP(FD12,'Footnotes list'!$D$9:$E$58,2,FALSE)=0,\"\",VLOOKUP(FD12,'Footnotes list'!$D$9:$E$58,2,FALSE) ) )","v":""},"",null,null,null,{"$f":"IF(TRIM(FI12)=\"\", \"\", IF(VLOOKUP(FI12,'Footnotes list'!$D$9:$E$58,2,FALSE)=0,\"\",VLOOKUP(FI12,'Footnotes list'!$D$9:$E$58,2,FALSE) ) )","v":""}]
["S15","P51G_CA_EC","TOTAL",null,"of which S15 NPISH",null,"@",null,null,null,"","@",null,null,null,"","@",null,null,null,"","@",null,null,null,"","@",null,null,null,"","@",null,null,null,"","@",null,null,null,"","@",null,null,null,"","@",null,null,null,"","@",null,null,null,"","@",null,null,null,"","@",null,null,null,"","@",null,null,null,"","@",null,null,null,"","@",null,null,null,"","@",null,null,null,"","@",null,null,null,"","@",null,null,null,"","@",null,null,null,"","@",null,null,null,"","@",null,null,null,"","@",null,null,null,"",null,null,null,null,{"$f":"IF(TRIM(DP13)=\"\", \"\", IF(VLOOKUP(DP13,'Footnotes list'!$D$9:$E$58,2,FALSE)=0,\"\",VLOOKUP(DP13,'Footnotes list'!$D$9:$E$58,2,FALSE) ) )","v":""},{"$f":"IF(COUNT(DM13)=1,DM13,\"\")","v":""},null,null,null,{"$f":"IF(TRIM(DU13)=\"\", \"\", IF(VLOOKUP(DU13,'Footnotes list'!$D$9:$E$58,2,FALSE)=0,\"\",VLOOKUP(DU13,'Footnotes list'!$D$9:$E$58,2,FALSE) ) )","v":""},null,null,null,null,{"$f":"IF(TRIM(DZ13)=\"\", \"\", IF(VLOOKUP(DZ13,'Footnotes list'!$D$9:$E$58,2,FALSE)=0,\"\",VLOOKUP(DZ13,'Footnotes list'!$D$9:$E$58,2,FALSE) ) )","v":""},null,null,null,null,{"$f":"IF(TRIM(EE13)=\"\", \"\", IF(VLOOKUP(EE13,'Footnotes list'!$D$9:$E$58,2,FALSE)=0,\"\",VLOOKUP(EE13,'Footnotes list'!$D$9:$E$58,2,FALSE) ) )","v":""},null,null,null,null,{"$f":"IF(TRIM(EJ13)=\"\", \"\", IF(VLOOKUP(EJ13,'Footnotes list'!$D$9:$E$58,2,FALSE)=0,\"\",VLOOKUP(EJ13,'Footnotes list'!$D$9:$E$58,2,FALSE) ) )","v":""},null,null,null,null,{"$f":"IF(TRIM(EO13)=\"\", \"\", IF(VLOOKUP(EO13,'Footnotes list'!$D$9:$E$58,2,FALSE)=0,\"\",VLOOKUP(EO13,'Footnotes list'!$D$9:$E$58,2,FALSE) ) )","v":""},null,null,null,null,{"$f":"IF(TRIM(ET13)=\"\", \"\", IF(VLOOKUP(ET13,'Footnotes list'!$D$9:$E$58,2,FALSE)=0,\"\",VLOOKUP(ET13,'Footnotes list'!$D$9:$E$58,2,FALSE) ) )","v":""},null,null,null,null,{"$f":"IF(TRIM(EY13)=\"\", \"\", IF(VLOOKUP(EY13,'Footnotes list'!$D$9:$E$58,2,FALSE)=0,\"\",VLOOKUP(EY13,'Footnotes list'!$D$9:$E$58,2,FALSE) ) )","v":""},{"$f":"IF(COUNT(DW13,EB13,EG13,EL13,EQ13)=5,SUM(DW13,EB13,EG13,EL13,EQ13,EV13),\"\")","v":""},null,null,null,{"$f":"IF(TRIM(FD13)=\"\", \"\", IF(VLOOKUP(FD13,'Footnotes list'!$D$9:$E$58,2,FALSE)=0,\"\",VLOOKUP(FD13,'Footnotes list'!$D$9:$E$58,2,FALSE) ) )","v":""},"",null,null,null,{"$f":"IF(TRIM(FI13)=\"\", \"\", IF(VLOOKUP(FI13,'Footnotes list'!$D$9:$E$58,2,FALSE)=0,\"\",VLOOKUP(FI13,'Footnotes list'!$D$9:$E$58,2,FALSE) ) )","v":""}]
["S1","P3_P51G_CREP_EC","TOTAL","TOTAL","S1 TOTAL ECONOMY, of which:","Final consumption and GFCF in products (cleaner/resource efficient products and specific goods)",{"$f":"IF(COUNT(G15:G17)=3,SUM(G15:G17),\"\")","v":""},null,null,null,{"$f":"IF(TRIM(J14)=\"\", \"\", IF(VLOOKUP(J14,'Footnotes list'!$D$9:$E$58,2,FALSE)=0,\"\",VLOOKUP(J14,'Footnotes list'!$D$9:$E$58,2,FALSE) ) )","v":""},{"$f":"IF(COUNT(L15:L17)=3,SUM(L15:L17),\"\")","v":""},null,null,null,{"$f":"IF(TRIM(O14)=\"\", \"\", IF(VLOOKUP(O14,'Footnotes list'!$D$9:$E$58,2,FALSE)=0,\"\",VLOOKUP(O14,'Footnotes list'!$D$9:$E$58,2,FALSE) ) )","v":""},{"$f":"IF(COUNT(Q15:Q17)=3,SUM(Q15:Q17),\"\")","v":""},null,null,null,{"$f":"IF(TRIM(T14)=\"\", \"\", IF(VLOOKUP(T14,'Footnotes list'!$D$9:$E$58,2,FALSE)=0,\"\",VLOOKUP(T14,'Footnotes list'!$D$9:$E$58,2,FALSE) ) )","v":""},{"$f":"IF(COUNT(V15:V17)=3,SUM(V15:V17),\"\")","v":""},null,null,null,{"$f":"IF(TRIM(Y14)=\"\", \"\", IF(VLOOKUP(Y14,'Footnotes list'!$D$9:$E$58,2,FALSE)=0,\"\",VLOOKUP(Y14,'Footnotes list'!$D$9:$E$58,2,FALSE) ) )","v":""},{"$f":"IF(COUNT(AA15:AA17)=3,SUM(AA15:AA17),\"\")","v":""},null,null,null,{"$f":"IF(TRIM(AD14)=\"\", \"\", IF(VLOOKUP(AD14,'Footnotes list'!$D$9:$E$58,2,FALSE)=0,\"\",VLOOKUP(AD14,'Footnotes list'!$D$9:$E$58,2,FALSE) ) )","v":""},{"$f":"IF(COUNT(AF15:AF17)=3,SUM(AF15:AF17),\"\")","v":""},null,null,null,{"$f":"IF(TRIM(AI14)=\"\", \"\", IF(VLOOKUP(AI14,'Footnotes list'!$D$9:$E$58,2,FALSE)=0,\"\",VLOOKUP(AI14,'Footnotes list'!$D$9:$E$58,2,FALSE) ) )","v":""},"@",null,null,null,"",{"$f":"IF(COUNT(AP15:AP17)=3,SUM(AP15:AP17),\"\")","v":""},null,null,null,{"$f":"IF(TRIM(AS14)=\"\", \"\", IF(VLOOKUP(AS14,'Footnotes list'!$D$9:$E$58,2,FALSE)=0,\"\",VLOOKUP(AS14,'Footnotes list'!$D$9:$E$58,2,FALSE) ) )","v":""},{"$f":"IF(COUNT(AU15:AU17)=3,SUM(AU15:AU17),\"\")","v":""},null,null,null,{"$f":"IF(TRIM(AX14)=\"\", \"\", IF(VLOOKUP(AX14,'Footnotes list'!$D$9:$E$58,2,FALSE)=0,\"\",VLOOKUP(AX14,'Footnotes list'!$D$9:$E$58,2,FALSE) ) )","v":""},{"$f":"IF(COUNT(AZ15:AZ17)=3,SUM(AZ15:AZ17),\"\")","v":""},null,null,null,{"$f":"IF(TRIM(BC14)=\"\", \"\", IF(VLOOKUP(BC14,'Footnotes list'!$D$9:$E$58,2,FALSE)=0,\"\",VLOOKUP(BC14,'Footnotes list'!$D$9:$E$58,2,FALSE) ) )","v":""},{"$f":"IF(COUNT(BE15:BE17)=3,SUM(BE15:BE17),\"\")","v":""},null,null,null,{"$f":"IF(TRIM(BH14)=\"\", \"\", IF(VLOOKUP(BH14,'Footnotes list'!$D$9:$E$58,2,FALSE)=0,\"\",VLOOKUP(BH14,'Footnotes list'!$D$9:$E$58,2,FALSE) ) )","v":""},"@",null,null,null,"","@",null,null,null,"","@",null,null,null,"","@",null,null,null,"","@",null,null,null,"","@",null,null,null,"","@",null,null,null,"","@",null,null,null,"","@",null,null,null,"","@",null,null,null,"","@",null,null,null,"",{"$f":"IF(COUNT(DM15:DM17)=3,SUM(DM15:DM17),\"\")","v":""},null,null,null,{"$f":"IF(TRIM(DP14)=\"\", \"\", IF(VLOOKUP(DP14,'Footnotes list'!$D$9:$E$58,2,FALSE)=0,\"\",VLOOKUP(DP14,'Footnotes list'!$D$9:$E$58,2,FALSE) ) )","v":""},{"$f":"IF(COUNT(G14,V14,AF14,AZ14)=4,SUM(G14,V14,AF14,AZ14,DM14),\"\")","v":""},null,null,null,{"$f":"IF(TRIM(DU14)=\"\", \"\", IF(VLOOKUP(DU14,'Footnotes list'!$D$9:$E$58,2,FALSE)=0,\"\",VLOOKUP(DU14,'Footnotes list'!$D$9:$E$58,2,FALSE) ) )","v":""},"@",null,null,null,"","@",null,null,null,"","@",null,null,null,"","@",null,null,null,"","@",null,null,null,"","@",null,null,null,"","@",null,null,null,"",{"$f":"IF(COUNT(DR14)=1,SUM(DR14),\"\")","v":""},null,null,null,{"$f":"IF(TRIM(FI14)=\"\", \"\", IF(VLOOKUP(FI14,'Footnotes list'!$D$9:$E$58,2,FALSE)=0,\"\",VLOOKUP(FI14,'Footnotes list'!$D$9:$E$58,2,FALSE) ) )","v":""}]
["S11_S12","P51G_CREP_EC","TOTAL","TOTAL","S11_S12 Corporations","GFCF in products",{"$f":"IF(COUNT(G30:G40)=11,SUM(G30:G40),\"\")","v":""},null,null,null,{"$f":"IF(TRIM(J15)=\"\", \"\", IF(VLOOKUP(J15,'Footnotes list'!$D$9:$E$58,2,FALSE)=0,\"\",VLOOKUP(J15,'Footnotes list'!$D$9:$E$58,2,FALSE) ) )","v":""},{"$f":"IF(COUNT(L30:L40)=11,SUM(L30:L40),\"\")","v":""},null,null,null,{"$f":"IF(TRIM(O15)=\"\", \"\", IF(VLOOKUP(O15,'Footnotes list'!$D$9:$E$58,2,FALSE)=0,\"\",VLOOKUP(O15,'Footnotes list'!$D$9:$E$58,2,FALSE) ) )","v":""},{"$f":"IF(COUNT(Q30:Q40)=11,SUM(Q30:Q40),\"\")","v":""},null,null,null,{"$f":"IF(TRIM(T15)=\"\", \"\", IF(VLOOKUP(T15,'Footnotes list'!$D$9:$E$58,2,FALSE)=0,\"\",VLOOKUP(T15,'Footnotes list'!$D$9:$E$58,2,FALSE) ) )","v":""},{"$f":"IF(COUNT(V30:V40)=11,SUM(V30:V40),\"\")","v":""},null,null,null,{"$f":"IF(TRIM(Y15)=\"\", \"\", IF(VLOOKUP(Y15,'Footnotes list'!$D$9:$E$58,2,FALSE)=0,\"\",VLOOKUP(Y15,'Footnotes list'!$D$9:$E$58,2,FALSE) ) )","v":""},{"$f":"IF(COUNT(AA30:AA40)=11,SUM(AA30:AA40),\"\")","v":""},null,null,null,{"$f":"IF(TRIM(AD15)=\"\", \"\", IF(VLOOKUP(AD15,'Footnotes list'!$D$9:$E$58,2,FALSE)=0,\"\",VLOOKUP(AD15,'Footnotes list'!$D$9:$E$58,2,FALSE) ) )","v":""},{"$f":"IF(COUNT(AF30:AF40)=11,SUM(AF30:AF40),\"\")","v":""},null,null,null,{"$f":"IF(TRIM(AI15)=\"\", \"\", IF(VLOOKUP(AI15,'Footnotes list'!$D$9:$E$58,2,FALSE)=0,\"\",VLOOKUP(AI15,'Footnotes list'!$D$9:$E$58,2,FALSE) ) )","v":""},"@",null,null,null,"",{"$f":"IF(COUNT(AP30:AP40)=11,SUM(AP30:AP40),\"\")","v":""},null,null,null,{"$f":"IF(TRIM(AS15)=\"\", \"\", IF(VLOOKUP(AS15,'Footnotes list'!$D$9:$E$58,2,FALSE)=0,\"\",VLOOKUP(AS15,'Footnotes list'!$D$9:$E$58,2,FALSE) ) )","v":""},{"$f":"IF(COUNT(AU30:AU40)=11,SUM(AU30:AU40),\"\")","v":""},null,null,null,{"$f":"IF(TRIM(AX15)=\"\", \"\", IF(VLOOKUP(AX15,'Footnotes list'!$D$9:$E$58,2,FALSE)=0,\"\",VLOOKUP(AX15,'Footnotes list'!$D$9:$E$58,2,FALSE) ) )","v":""},{"$f":"IF(COUNT(AZ30:AZ40)=11,SUM(AZ30:AZ40),\"\")","v":""},null,null,null,{"$f":"IF(TRIM(BC15)=\"\", \"\", IF(VLOOKUP(BC15,'Footnotes list'!$D$9:$E$58,2,FALSE)=0,\"\",VLOOKUP(BC15,'Footnotes list'!$D$9:$E$58,2,FALSE) ) )","v":""},{"$f":"IF(COUNT(BE30:BE40)=11,SUM(BE30:BE40),\"\")","v":""},null,null,null,{"$f":"IF(TRIM(BH15)=\"\", \"\", IF(VLOOKUP(BH15,'Footnotes list'!$D$9:$E$58,2,FALSE)=0,\"\",VLOOKUP(BH15,'Footnotes list'!$D$9:$E$58,2,FALSE) ) )","v":""},"@",null,null,null,"","@",null,null,null,"","@",null,null,null,"","@",null,null,null,"","@",null,null,null,"","@",null,null,null,"","@",null,null,null,"","@",null,null,null,"","@",null,null,null,"","@",null,null,null,"","@",null,null,null,"",{"$f":"IF(COUNT(DM30:DM40)=11,SUM(DM30:DM40),\"\")","v":""},null,null,null,{"$f":"IF(TRIM(DP15)=\"\", \"\", IF(VLOOKUP(DP15,'Footnotes list'!$D$9:$E$58,2,FALSE)=0,\"\",VLOOKUP(DP15,'Footnotes list'!$D$9:$E$58,2,FALSE) ) )","v":""},{"$f":"IF(COUNT(G15,V15,AF15,AZ15)=4,SUM(G15,V15,AF15,AZ15,DM15),\"\")","v":""},null,null,null,{"$f":"IF(TRIM(DU15)=\"\", \"\", IF(VLOOKUP(DU15,'Footnotes list'!$D$9:$E$58,2,FALSE)=0,\"\",VLOOKUP(DU15,'Footnotes list'!$D$9:$E$58,2,FALSE) ) )","v":""},"@",null,null,null,"","@",null,null,null,"","@",null,null,null,"","@",null,null,null,"","@",null,null,null,"","@",null,null,null,"","@",null,null,null,"",{"$f":"IF(COUNT(DR15)=1,SUM(DR15),\"\")","v":""},null,null,null,{"$f":"IF(TRIM(FI15)=\"\", \"\", IF(VLOOKUP(FI15,'Footnotes list'!$D$9:$E$58,2,FALSE)=0,\"\",VLOOKUP(FI15,'Footnotes list'!$D$9:$E$58,2,FALSE) ) )","v":""}]
["S13","P51G_CREP_EC","TOTAL","TOTAL","S13 General Government",null,null,null,null,null,{"$f":"IF(TRIM(J16)=\"\", \"\", IF(VLOOKUP(J16,'Footnotes list'!$D$9:$E$58,2,FALSE)=0,\"\",VLOOKUP(J16,'Footnotes list'!$D$9:$E$58,2,FALSE) ) )","v":""},null,null,null,null,{"$f":"IF(TRIM(O16)=\"\", \"\", IF(VLOOKUP(O16,'Footnotes list'!$D$9:$E$58,2,FALSE)=0,\"\",VLOOKUP(O16,'Footnotes list'!$D$9:$E$58,2,FALSE) ) )","v":""},null,null,null,null,{"$f":"IF(TRIM(T16)=\"\", \"\", IF(VLOOKUP(T16,'Footnotes list'!$D$9:$E$58,2,FALSE)=0,\"\",VLOOKUP(T16,'Footnotes list'!$D$9:$E$58,2,FALSE) ) )","v":""},null,null,null,null,{"$f":"IF(TRIM(Y16)=\"\", \"\", IF(VLOOKUP(Y16,'Footnotes list'!$D$9:$E$58,2,FALSE)=0,\"\",VLOOKUP(Y16,'Footnotes list'!$D$9:$E$58,2,FALSE) ) )","v":""},null,null,null,null,{"$f":"IF(TRIM(AD16)=\"\", \"\", IF(VLOOKUP(AD16,'Footnotes list'!$D$9:$E$58,2,FALSE)=0,\"\",VLOOKUP(AD16,'Footnotes list'!$D$9:$E$58,2,FALSE) ) )","v":""},null,null,null,null,{"$f":"IF(TRIM(AI16)=\"\", \"\", IF(VLOOKUP(AI16,'Footnotes list'!$D$9:$E$58,2,FALSE)=0,\"\",VLOOKUP(AI16,'Footnotes list'!$D$9:$E$58,2,FALSE) ) )","v":""},"@",null,null,null,"",null,null,null,null,{"$f":"IF(TRIM(AS16)=\"\", \"\", IF(VLOOKUP(AS16,'Footnotes list'!$D$9:$E$58,2,FALSE)=0,\"\",VLOOKUP(AS16,'Footnotes list'!$D$9:$E$58,2,FALSE) ) )","v":""},null,null,null,null,{"$f":"IF(TRIM(AX16)=\"\", \"\", IF(VLOOKUP(AX16,'Footnotes list'!$D$9:$E$58,2,FALSE)=0,\"\",VLOOKUP(AX16,'Footnotes list'!$D$9:$E$58,2,FALSE) ) )","v":""},null,null,null,null,{"$f":"IF(TRIM(BC16)=\"\", \"\", IF(VLOOKUP(BC16,'Footnotes list'!$D$9:$E$58,2,FALSE)=0,\"\",VLOOKUP(BC16,'Footnotes list'!$D$9:$E$58,2,FALSE) ) )","v":""},null,null,null,null,{"$f":"IF(TRIM(BH16)=\"\", \"\", IF(VLOOKUP(BH16,'Footnotes list'!$D$9:$E$58,2,FALSE)=0,\"\",VLOOKUP(BH16,'Footnotes list'!$D$9:$E$58,2,FALSE) ) )","v":""},"@",null,null,null,"","@",null,null,null,"","@",null,null,null,"","@",null,null,null,"","@",null,null,null,"","@",null,null,null,"","@",null,null,null,"","@",null,null,null,"","@",null,null,null,"","@",null,null,null,"","@",null,null,null,"",null,null,null,null,{"$f":"IF(TRIM(DP16)=\"\", \"\", IF(VLOOKUP(DP16,'Footnotes list'!$D$9:$E$58,2,FALSE)=0,\"\",VLOOKUP(DP16,'Footnotes list'!$D$9:$E$58,2,FALSE) ) )","v":""},"",null,null,null,{"$f":"IF(TRIM(DU16)=\"\", \"\", IF(VLOOKUP(DU16,'Footnotes list'!$D$9:$E$58,2,FALSE)=0,\"\",VLOOKUP(DU16,'Footnotes list'!$D$9:$E$58,2,FALSE) ) )","v":""},"@",null,null,null,"","@",null,null,null,"","@",null,null,null,"","@",null,null,null,"","@",null,null,null,"","@",null,null,null,"","@",null,null,null,"","",null,null,null,{"$f":"IF(TRIM(FI16)=\"\", \"\", IF(VLOOKUP(FI16,'Footnotes list'!$D$9:$E$58,2,FALSE)=0,\"\",VLOOKUP(FI16,'Footnotes list'!$D$9:$E$58,2,FALSE) ) )","v":""}]
["S14_S15","P3_P51G_CREP_EC","TOTAL","TOTAL","S14_S15 Households and NPISH"," Final consumption and GFCF in products",null,null,null,null,{"$f":"IF(TRIM(J17)=\"\", \"\", IF(VLOOKUP(J17,'Footnotes list'!$D$9:$E$58,2,FALSE)=0,\"\",VLOOKUP(J17,'Footnotes list'!$D$9:$E$58,2,FALSE) ) )","v":""},null,null,null,null,{"$f":"IF(TRIM(O17)=\"\", \"\", IF(VLOOKUP(O17,'Footnotes list'!$D$9:$E$58,2,FALSE)=0,\"\",VLOOKUP(O17,'Footnotes list'!$D$9:$E$58,2,FALSE) ) )","v":""},null,null,null,null,{"$f":"IF(TRIM(T17)=\"\", \"\", IF(VLOOKUP(T17,'Footnotes list'!$D$9:$E$58,2,FALSE)=0,\"\",VLOOKUP(T17,'Footnotes list'!$D$9:$E$58,2,FALSE) ) )","v":""},null,null,null,null,{"$f":"IF(TRIM(Y17)=\"\", \"\", IF(VLOOKUP(Y17,'Footnotes list'!$D$9:$E$58,2,FALSE)=0,\"\",VLOOKUP(Y17,'Footnotes list'!$D$9:$E$58,2,FALSE) ) )","v":""},null,null,null,null,{"$f":"IF(TRIM(AD17)=\"\", \"\", IF(VLOOKUP(AD17,'Footnotes list'!$D$9:$E$58,2,FALSE)=0,\"\",VLOOKUP(AD17,'Footnotes list'!$D$9:$E$58,2,FALSE) ) )","v":""},null,null,null,null,{"$f":"IF(TRIM(AI17)=\"\", \"\", IF(VLOOKUP(AI17,'Footnotes list'!$D$9:$E$58,2,FALSE)=0,\"\",VLOOKUP(AI17,'Footnotes list'!$D$9:$E$58,2,FALSE) ) )","v":""},"@",null,null,null,"",null,null,null,null,{"$f":"IF(TRIM(AS17)=\"\", \"\", IF(VLOOKUP(AS17,'Footnotes list'!$D$9:$E$58,2,FALSE)=0,\"\",VLOOKUP(AS17,'Footnotes list'!$D$9:$E$58,2,FALSE) ) )","v":""},null,null,null,null,{"$f":"IF(TRIM(AX17)=\"\", \"\", IF(VLOOKUP(AX17,'Footnotes list'!$D$9:$E$58,2,FALSE)=0,\"\",VLOOKUP(AX17,'Footnotes list'!$D$9:$E$58,2,FALSE) ) )","v":""},null,null,null,null,{"$f":"IF(TRIM(BC17)=\"\", \"\", IF(VLOOKUP(BC17,'Footnotes list'!$D$9:$E$58,2,FALSE)=0,\"\",VLOOKUP(BC17,'Footnotes list'!$D$9:$E$58,2,FALSE) ) )","v":""},null,null,null,null,{"$f":"IF(TRIM(BH17)=\"\", \"\", IF(VLOOKUP(BH17,'Footnotes list'!$D$9:$E$58,2,FALSE)=0,\"\",VLOOKUP(BH17,'Footnotes list'!$D$9:$E$58,2,FALSE) ) )","v":""},"@",null,null,null,"","@",null,null,null,"","@",null,null,null,"","@",null,null,null,"","@",null,null,null,"","@",null,null,null,"","@",null,null,null,"","@",null,null,null,"","@",null,null,null,"","@",null,null,null,"","@",null,null,null,"",null,null,null,null,{"$f":"IF(TRIM(DP17)=\"\", \"\", IF(VLOOKUP(DP17,'Footnotes list'!$D$9:$E$58,2,FALSE)=0,\"\",VLOOKUP(DP17,'Footnotes list'!$D$9:$E$58,2,FALSE) ) )","v":""},"",null,null,null,{"$f":"IF(TRIM(DU17)=\"\", \"\", IF(VLOOKUP(DU17,'Footnotes list'!$D$9:$E$58,2,FALSE)=0,\"\",VLOOKUP(DU17,'Footnotes list'!$D$9:$E$58,2,FALSE) ) )","v":""},"@",null,null,null,"","@",null,null,null,"","@",null,null,null,"","@",null,null,null,"","@",null,null,null,"","@",null,null,null,"","@",null,null,null,"","",null,null,null,{"$f":"IF(TRIM(FI17)=\"\", \"\", IF(VLOOKUP(FI17,'Footnotes list'!$D$9:$E$58,2,FALSE)=0,\"\",VLOOKUP(FI17,'Footnotes list'!$D$9:$E$58,2,FALSE) ) )","v":""}]
["S15","P3_P51G_CREP_EC","TOTAL",null,"of which S15 NPISH",null,null,null,null,null,{"$f":"IF(TRIM(J18)=\"\", \"\", IF(VLOOKUP(J18,'Footnotes list'!$D$9:$E$58,2,FALSE)=0,\"\",VLOOKUP(J18,'Footnotes list'!$D$9:$E$58,2,FALSE) ) )","v":""},null,null,null,null,{"$f":"IF(TRIM(O18)=\"\", \"\", IF(VLOOKUP(O18,'Footnotes list'!$D$9:$E$58,2,FALSE)=0,\"\",VLOOKUP(O18,'Footnotes list'!$D$9:$E$58,2,FALSE) ) )","v":""},null,null,null,null,{"$f":"IF(TRIM(T18)=\"\", \"\", IF(VLOOKUP(T18,'Footnotes list'!$D$9:$E$58,2,FALSE)=0,\"\",VLOOKUP(T18,'Footnotes list'!$D$9:$E$58,2,FALSE) ) )","v":""},null,null,null,null,{"$f":"IF(TRIM(Y18)=\"\", \"\", IF(VLOOKUP(Y18,'Footnotes list'!$D$9:$E$58,2,FALSE)=0,\"\",VLOOKUP(Y18,'Footnotes list'!$D$9:$E$58,2,FALSE) ) )","v":""},null,null,null,null,{"$f":"IF(TRIM(AD18)=\"\", \"\", IF(VLOOKUP(AD18,'Footnotes list'!$D$9:$E$58,2,FALSE)=0,\"\",VLOOKUP(AD18,'Footnotes list'!$D$9:$E$58,2,FALSE) ) )","v":""},null,null,null,null,{"$f":"IF(TRIM(AI18)=\"\", \"\", IF(VLOOKUP(AI18,'Footnotes list'!$D$9:$E$58,2,FALSE)=0,\"\",VLOOKUP(AI18,'Footnotes list'!$D$9:$E$58,2,FALSE) ) )","v":""},"@",null,null,null,"",null,null,null,null,{"$f":"IF(TRIM(AS18)=\"\", \"\", IF(VLOOKUP(AS18,'Footnotes list'!$D$9:$E$58,2,FALSE)=0,\"\",VLOOKUP(AS18,'Footnotes list'!$D$9:$E$58,2,FALSE) ) )","v":""},null,null,null,null,{"$f":"IF(TRIM(AX18)=\"\", \"\", IF(VLOOKUP(AX18,'Footnotes list'!$D$9:$E$58,2,FALSE)=0,\"\",VLOOKUP(AX18,'Footnotes list'!$D$9:$E$58,2,FALSE) ) )","v":""},null,null,null,null,{"$f":"IF(TRIM(BC18)=\"\", \"\", IF(VLOOKUP(BC18,'Footnotes list'!$D$9:$E$58,2,FALSE)=0,\"\",VLOOKUP(BC18,'Footnotes list'!$D$9:$E$58,2,FALSE) ) )","v":""},null,null,null,null,{"$f":"IF(TRIM(BH18)=\"\", \"\", IF(VLOOKUP(BH18,'Footnotes list'!$D$9:$E$58,2,FALSE)=0,\"\",VLOOKUP(BH18,'Footnotes list'!$D$9:$E$58,2,FALSE) ) )","v":""},"@",null,null,null,"","@",null,null,null,"","@",null,null,null,"","@",null,null,null,"","@",null,null,null,"","@",null,null,null,"","@",null,null,null,"","@",null,null,null,"","@",null,null,null,"","@",null,null,null,"","@",null,null,null,"",null,null,null,null,{"$f":"IF(TRIM(DP18)=\"\", \"\", IF(VLOOKUP(DP18,'Footnotes list'!$D$9:$E$58,2,FALSE)=0,\"\",VLOOKUP(DP18,'Footnotes list'!$D$9:$E$58,2,FALSE) ) )","v":""},"",null,null,null,{"$f":"IF(TRIM(DU18)=\"\", \"\", IF(VLOOKUP(DU18,'Footnotes list'!$D$9:$E$58,2,FALSE)=0,\"\",VLOOKUP(DU18,'Footnotes list'!$D$9:$E$58,2,FALSE) ) )","v":""},"@",null,null,null,"","@",null,null,null,"","@",null,null,null,"","@",null,null,null,"","@",null,null,null,"","@",null,null,null,"","@",null,null,null,"",{"$f":"IF(COUNT(DR18)=1,SUM(DR18),\"\")","v":""},null,null,null,{"$f":"IF(TRIM(FI18)=\"\", \"\", IF(VLOOKUP(FI18,'Footnotes list'!$D$9:$E$58,2,FALSE)=0,\"\",VLOOKUP(FI18,'Footnotes list'!$D$9:$E$58,2,FALSE) ) )","v":""}]
["S11_S12","P51G_CA_EC","A","Total A - Agriculture, forestry and fishing","S11_S12 Corporations\nBy NACE","GFCF for (characteristic) activities","@",null,null,null,"","@",null,null,null,"","@",null,null,null,"","@",null,null,null,"","@",null,null,null,"","@",null,null,null,"","@",null,null,null,"","@",null,null,null,"","@",null,null,null,"","@",null,null,null,"","@",null,null,null,"","@",null,null,null,"","@",null,null,null,"","@",null,null,null,"","@",null,null,null,"","@",null,null,null,"","@",null,null,null,"","@",null,null,null,"","@",null,null,null,"","@",null,null,null,"","@",null,null,null,"","@",null,null,null,"",null,null,null,null,{"$f":"IF(TRIM(DP19)=\"\", \"\", IF(VLOOKUP(DP19,'Footnotes list'!$D$9:$E$58,2,FALSE)=0,\"\",VLOOKUP(DP19,'Footnotes list'!$D$9:$E$58,2,FALSE) ) )","v":""},{"$f":"IF(COUNT(DM19)=1,DM19,\"\")","v":""},null,null,null,{"$f":"IF(TRIM(DU19)=\"\", \"\", IF(VLOOKUP(DU19,'Footnotes list'!$D$9:$E$58,2,FALSE)=0,\"\",VLOOKUP(DU19,'Footnotes list'!$D$9:$E$58,2,FALSE) ) )","v":""},null,null,null,null,{"$f":"IF(TRIM(DZ19)=\"\", \"\", IF(VLOOKUP(DZ19,'Footnotes list'!$D$9:$E$58,2,FALSE)=0,\"\",VLOOKUP(DZ19,'Footnotes list'!$D$9:$E$58,2,FALSE) ) )","v":""},null,null,null,null,{"$f":"IF(TRIM(EE19)=\"\", \"\", IF(VLOOKUP(EE19,'Footnotes list'!$D$9:$E$58,2,FALSE)=0,\"\",VLOOKUP(EE19,'Footnotes list'!$D$9:$E$58,2,FALSE) ) )","v":""},null,null,null,null,{"$f":"IF(TRIM(EJ19)=\"\", \"\", IF(VLOOKUP(EJ19,'Footnotes list'!$D$9:$E$58,2,FALSE)=0,\"\",VLOOKUP(EJ19,'Footnotes list'!$D$9:$E$58,2,FALSE) ) )","v":""},null,null,null,null,{"$f":"IF(TRIM(EO19)=\"\", \"\", IF(VLOOKUP(EO19,'Footnotes list'!$D$9:$E$58,2,FALSE)=0,\"\",VLOOKUP(EO19,'Footnotes list'!$D$9:$E$58,2,FALSE) ) )","v":""},null,null,null,null,{"$f":"IF(TRIM(ET19)=\"\", \"\", IF(VLOOKUP(ET19,'Footnotes list'!$D$9:$E$58,2,FALSE)=0,\"\",VLOOKUP(ET19,'Footnotes list'!$D$9:$E$58,2,FALSE) ) )","v":""},null,null,null,null,{"$f":"IF(TRIM(EY19)=\"\", \"\", IF(VLOOKUP(EY19,'Footnotes list'!$D$9:$E$58,2,FALSE)=0,\"\",VLOOKUP(EY19,'Footnotes list'!$D$9:$E$58,2,FALSE) ) )","v":""},{"$f":"IF(COUNT(DW19,EB19,EG19,EL19,EQ19)=5,SUM(DW19,EB19,EG19,EL19,EQ19,EV19),\"\")","v":""},null,null,null,{"$f":"IF(TRIM(FD19)=\"\", \"\", IF(VLOOKUP(FD19,'Footnotes list'!$D$9:$E$58,2,FALSE)=0,\"\",VLOOKUP(FD19,'Footnotes list'!$D$9:$E$58,2,FALSE) ) )","v":""},{"$f":"IF(COUNT(DR19,FA19)=2,SUM(DR19,FA19),\"\")","v":""},null,null,null,{"$f":"IF(TRIM(FI19)=\"\", \"\", IF(VLOOKUP(FI19,'Footnotes list'!$D$9:$E$58,2,FALSE)=0,\"\",VLOOKUP(FI19,'Footnotes list'!$D$9:$E$58,2,FALSE) ) )","v":""}]
["S11_S12","P51G_CA_EC","B","Total B - Mining and quarrying",null,null,"@",null,null,null,"","@",null,null,null,"","@",null,null,null,"","@",null,null,null,"","@",null,null,null,"","@",null,null,null,"","@",null,null,null,"","@",null,null,null,"","@",null,null,null,"","@",null,null,null,"","@",null,null,null,"","@",null,null,null,"","@",null,null,null,"","@",null,null,null,"","@",null,null,null,"","@",null,null,null,"","@",null,null,null,"","@",null,null,null,"","@",null,null,null,"","@",null,null,null,"","@",null,null,null,"","@",null,null,null,"",null,null,null,null,{"$f":"IF(TRIM(DP20)=\"\", \"\", IF(VLOOKUP(DP20,'Footnotes list'!$D$9:$E$58,2,FALSE)=0,\"\",VLOOKUP(DP20,'Footnotes list'!$D$9:$E$58,2,FALSE) ) )","v":""},{"$f":"IF(COUNT(DM20)=1,DM20,\"\")","v":""},null,null,null,{"$f":"IF(TRIM(DU20)=\"\", \"\", IF(VLOOKUP(DU20,'Footnotes list'!$D$9:$E$58,2,FALSE)=0,\"\",VLOOKUP(DU20,'Footnotes list'!$D$9:$E$58,2,FALSE) ) )","v":""},null,null,null,null,{"$f":"IF(TRIM(DZ20)=\"\", \"\", IF(VLOOKUP(DZ20,'Footnotes list'!$D$9:$E$58,2,FALSE)=0,\"\",VLOOKUP(DZ20,'Footnotes list'!$D$9:$E$58,2,FALSE) ) )","v":""},null,null,null,null,{"$f":"IF(TRIM(EE20)=\"\", \"\", IF(VLOOKUP(EE20,'Footnotes list'!$D$9:$E$58,2,FALSE)=0,\"\",VLOOKUP(EE20,'Footnotes list'!$D$9:$E$58,2,FALSE) ) )","v":""},null,null,null,null,{"$f":"IF(TRIM(EJ20)=\"\", \"\", IF(VLOOKUP(EJ20,'Footnotes list'!$D$9:$E$58,2,FALSE)=0,\"\",VLOOKUP(EJ20,'Footnotes list'!$D$9:$E$58,2,FALSE) ) )","v":""},null,null,null,null,{"$f":"IF(TRIM(EO20)=\"\", \"\", IF(VLOOKUP(EO20,'Footnotes list'!$D$9:$E$58,2,FALSE)=0,\"\",VLOOKUP(EO20,'Footnotes list'!$D$9:$E$58,2,FALSE) ) )","v":""},null,null,null,null,{"$f":"IF(TRIM(ET20)=\"\", \"\", IF(VLOOKUP(ET20,'Footnotes list'!$D$9:$E$58,2,FALSE)=0,\"\",VLOOKUP(ET20,'Footnotes list'!$D$9:$E$58,2,FALSE) ) )","v":""},null,null,null,null,{"$f":"IF(TRIM(EY20)=\"\", \"\", IF(VLOOKUP(EY20,'Footnotes list'!$D$9:$E$58,2,FALSE)=0,\"\",VLOOKUP(EY20,'Footnotes list'!$D$9:$E$58,2,FALSE) ) )","v":""},{"$f":"IF(COUNT(DW20,EB20,EG20,EL20,EQ20)=5,SUM(DW20,EB20,EG20,EL20,EQ20,EV20),\"\")","v":""},null,null,null,{"$f":"IF(TRIM(FD20)=\"\", \"\", IF(VLOOKUP(FD20,'Footnotes list'!$D$9:$E$58,2,FALSE)=0,\"\",VLOOKUP(FD20,'Footnotes list'!$D$9:$E$58,2,FALSE) ) )","v":""},{"$f":"IF(COUNT(DR20,FA20)=2,SUM(DR20,FA20),\"\")","v":""},null,null,null,{"$f":"IF(TRIM(FI20)=\"\", \"\", IF(VLOOKUP(FI20,'Footnotes list'!$D$9:$E$58,2,FALSE)=0,\"\",VLOOKUP(FI20,'Footnotes list'!$D$9:$E$58,2,FALSE) ) )","v":""}]
["S11_S12","P51G_CA_EC","C","Total C - Manufacturing",null,null,"@",null,null,null,"","@",null,null,null,"","@",null,null,null,"","@",null,null,null,"","@",null,null,null,"","@",null,null,null,"","@",null,null,null,"","@",null,null,null,"","@",null,null,null,"","@",null,null,null,"","@",null,null,null,"","@",null,null,null,"","@",null,null,null,"","@",null,null,null,"","@",null,null,null,"","@",null,null,null,"","@",null,null,null,"","@",null,null,null,"","@",null,null,null,"","@",null,null,null,"","@",null,null,null,"","@",null,null,null,"",null,null,null,null,{"$f":"IF(TRIM(DP21)=\"\", \"\", IF(VLOOKUP(DP21,'Footnotes list'!$D$9:$E$58,2,FALSE)=0,\"\",VLOOKUP(DP21,'Footnotes list'!$D$9:$E$58,2,FALSE) ) )","v":""},"",null,null,null,{"$f":"IF(TRIM(DU21)=\"\", \"\", IF(VLOOKUP(DU21,'Footnotes list'!$D$9:$E$58,2,FALSE)=0,\"\",VLOOKUP(DU21,'Footnotes list'!$D$9:$E$58,2,FALSE) ) )","v":""},null,null,null,null,{"$f":"IF(TRIM(DZ21)=\"\", \"\", IF(VLOOKUP(DZ21,'Footnotes list'!$D$9:$E$58,2,FALSE)=0,\"\",VLOOKUP(DZ21,'Footnotes list'!$D$9:$E$58,2,FALSE) ) )","v":""},null,null,null,null,{"$f":"IF(TRIM(EE21)=\"\", \"\", IF(VLOOKUP(EE21,'Footnotes list'!$D$9:$E$58,2,FALSE)=0,\"\",VLOOKUP(EE21,'Footnotes list'!$D$9:$E$58,2,FALSE) ) )","v":""},null,null,null,null,{"$f":"IF(TRIM(EJ21)=\"\", \"\", IF(VLOOKUP(EJ21,'Footnotes list'!$D$9:$E$58,2,FALSE)=0,\"\",VLOOKUP(EJ21,'Footnotes list'!$D$9:$E$58,2,FALSE) ) )","v":""},null,null,null,null,{"$f":"IF(TRIM(EO21)=\"\", \"\", IF(VLOOKUP(EO21,'Footnotes list'!$D$9:$E$58,2,FALSE)=0,\"\",VLOOKUP(EO21,'Footnotes list'!$D$9:$E$58,2,FALSE) ) )","v":""},null,null,null,null,{"$f":"IF(TRIM(ET21)=\"\", \"\", IF(VLOOKUP(ET21,'Footnotes list'!$D$9:$E$58,2,FALSE)=0,\"\",VLOOKUP(ET21,'Footnotes list'!$D$9:$E$58,2,FALSE) ) )","v":""},null,null,null,null,{"$f":"IF(TRIM(EY21)=\"\", \"\", IF(VLOOKUP(EY21,'Footnotes list'!$D$9:$E$58,2,FALSE)=0,\"\",VLOOKUP(EY21,'Footnotes list'!$D$9:$E$58,2,FALSE) ) )","v":""},"",null,null,null,{"$f":"IF(TRIM(FD21)=\"\", \"\", IF(VLOOKUP(FD21,'Footnotes list'!$D$9:$E$58,2,FALSE)=0,\"\",VLOOKUP(FD21,'Footnotes list'!$D$9:$E$58,2,FALSE) ) )","v":""},"",null,null,null,{"$f":"IF(TRIM(FI21)=\"\", \"\", IF(VLOOKUP(FI21,'Footnotes list'!$D$9:$E$58,2,FALSE)=0,\"\",VLOOKUP(FI21,'Footnotes list'!$D$9:$E$58,2,FALSE) ) )","v":""}]
["S11_S12","P51G_CA_EC","D","Total D - Electricity, gas, steam and air conditioning supply",null,null,"@",null,null,null,"","@",null,null,null,"","@",null,null,null,"","@",null,null,null,"","@",null,null,null,"","@",null,null,null,"","@",null,null,null,"","@",null,null,null,"","@",null,null,null,"","@",null,null,null,"","@",null,null,null,"","@",null,null,null,"","@",null,null,null,"","@",null,null,null,"","@",null,null,null,"","@",null,null,null,"","@",null,null,null,"","@",null,null,null,"","@",null,null,null,"","@",null,null,null,"","@",null,null,null,"","@",null,null,null,"",null,null,null,null,{"$f":"IF(TRIM(DP22)=\"\", \"\", IF(VLOOKUP(DP22,'Footnotes list'!$D$9:$E$58,2,FALSE)=0,\"\",VLOOKUP(DP22,'Footnotes list'!$D$9:$E$58,2,FALSE) ) )","v":""},"",null,null,null,{"$f":"IF(TRIM(DU22)=\"\", \"\", IF(VLOOKUP(DU22,'Footnotes list'!$D$9:$E$58,2,FALSE)=0,\"\",VLOOKUP(DU22,'Footnotes list'!$D$9:$E$58,2,FALSE) ) )","v":""},null,null,null,null,{"$f":"IF(TRIM(DZ22)=\"\", \"\", IF(VLOOKUP(DZ22,'Footnotes list'!$D$9:$E$58,2,FALSE)=0,\"\",VLOOKUP(DZ22,'Footnotes list'!$D$9:$E$58,2,FALSE) ) )","v":""},null,null,null,null,{"$f":"IF(TRIM(EE22)=\"\", \"\", IF(VLOOKUP(EE22,'Footnotes list'!$D$9:$E$58,2,FALSE)=0,\"\",VLOOKUP(EE22,'Footnotes list'!$D$9:$E$58,2,FALSE) ) )","v":""},null,null,null,null,{"$f":"IF(TRIM(EJ22)=\"\", \"\", IF(VLOOKUP(EJ22,'Footnotes list'!$D$9:$E$58,2,FALSE)=0,\"\",VLOOKUP(EJ22,'Footnotes list'!$D$9:$E$58,2,FALSE) ) )","v":""},null,null,null,null,{"$f":"IF(TRIM(EO22)=\"\", \"\", IF(VLOOKUP(EO22,'Footnotes list'!$D$9:$E$58,2,FALSE)=0,\"\",VLOOKUP(EO22,'Footnotes list'!$D$9:$E$58,2,FALSE) ) )","v":""},null,null,null,null,{"$f":"IF(TRIM(ET22)=\"\", \"\", IF(VLOOKUP(ET22,'Footnotes list'!$D$9:$E$58,2,FALSE)=0,\"\",VLOOKUP(ET22,'Footnotes list'!$D$9:$E$58,2,FALSE) ) )","v":""},null,null,null,null,{"$f":"IF(TRIM(EY22)=\"\", \"\", IF(VLOOKUP(EY22,'Footnotes list'!$D$9:$E$58,2,FALSE)=0,\"\",VLOOKUP(EY22,'Footnotes list'!$D$9:$E$58,2,FALSE) ) )","v":""},"",null,null,null,{"$f":"IF(TRIM(FD22)=\"\", \"\", IF(VLOOKUP(FD22,'Footnotes list'!$D$9:$E$58,2,FALSE)=0,\"\",VLOOKUP(FD22,'Footnotes list'!$D$9:$E$58,2,FALSE) ) )","v":""},"",null,null,null,{"$f":"IF(TRIM(FI22)=\"\", \"\", IF(VLOOKUP(FI22,'Footnotes list'!$D$9:$E$58,2,FALSE)=0,\"\",VLOOKUP(FI22,'Footnotes list'!$D$9:$E$58,2,FALSE) ) )","v":""}]
["S11_S12","P51G_CA_EC","E","Total E - Water supply; sewerage, waste management and remediation activities",null,null,"@",null,null,null,"","@",null,null,null,"","@",null,null,null,"","@",null,null,null,"","@",null,null,null,"","@",null,null,null,"","@",null,null,null,"","@",null,null,null,"","@",null,null,null,"","@",null,null,null,"","@",null,null,null,"","@",null,null,null,"","@",null,null,null,"","@",null,null,null,"","@",null,null,null,"","@",null,null,null,"","@",null,null,null,"","@",null,null,null,"","@",null,null,null,"","@",null,null,null,"","@",null,null,null,"","@",null,null,null,"",null,null,null,null,{"$f":"IF(TRIM(DP23)=\"\", \"\", IF(VLOOKUP(DP23,'Footnotes list'!$D$9:$E$58,2,FALSE)=0,\"\",VLOOKUP(DP23,'Footnotes list'!$D$9:$E$58,2,FALSE) ) )","v":""},"",null,null,null,{"$f":"IF(TRIM(DU23)=\"\", \"\", IF(VLOOKUP(DU23,'Footnotes list'!$D$9:$E$58,2,FALSE)=0,\"\",VLOOKUP(DU23,'Footnotes list'!$D$9:$E$58,2,FALSE) ) )","v":""},null,null,null,null,{"$f":"IF(TRIM(DZ23)=\"\", \"\", IF(VLOOKUP(DZ23,'Footnotes list'!$D$9:$E$58,2,FALSE)=0,\"\",VLOOKUP(DZ23,'Footnotes list'!$D$9:$E$58,2,FALSE) ) )","v":""},null,null,null,null,{"$f":"IF(TRIM(EE23)=\"\", \"\", IF(VLOOKUP(EE23,'Footnotes list'!$D$9:$E$58,2,FALSE)=0,\"\",VLOOKUP(EE23,'Footnotes list'!$D$9:$E$58,2,FALSE) ) )","v":""},null,null,null,null,{"$f":"IF(TRIM(EJ23)=\"\", \"\", IF(VLOOKUP(EJ23,'Footnotes list'!$D$9:$E$58,2,FALSE)=0,\"\",VLOOKUP(EJ23,'Footnotes list'!$D$9:$E$58,2,FALSE) ) )","v":""},null,null,null,null,{"$f":"IF(TRIM(EO23)=\"\", \"\", IF(VLOOKUP(EO23,'Footnotes list'!$D$9:$E$58,2,FALSE)=0,\"\",VLOOKUP(EO23,'Footnotes list'!$D$9:$E$58,2,FALSE) ) )","v":""},null,null,null,null,{"$f":"IF(TRIM(ET23)=\"\", \"\", IF(VLOOKUP(ET23,'Footnotes list'!$D$9:$E$58,2,FALSE)=0,\"\",VLOOKUP(ET23,'Footnotes list'!$D$9:$E$58,2,FALSE) ) )","v":""},null,null,null,null,{"$f":"IF(TRIM(EY23)=\"\", \"\", IF(VLOOKUP(EY23,'Footnotes list'!$D$9:$E$58,2,FALSE)=0,\"\",VLOOKUP(EY23,'Footnotes list'!$D$9:$E$58,2,FALSE) ) )","v":""},"",null,null,null,{"$f":"IF(TRIM(FD23)=\"\", \"\", IF(VLOOKUP(FD23,'Footnotes list'!$D$9:$E$58,2,FALSE)=0,\"\",VLOOKUP(FD23,'Footnotes list'!$D$9:$E$58,2,FALSE) ) )","v":""},"",null,null,null,{"$f":"IF(TRIM(FI23)=\"\", \"\", IF(VLOOKUP(FI23,'Footnotes list'!$D$9:$E$58,2,FALSE)=0,\"\",VLOOKUP(FI23,'Footnotes list'!$D$9:$E$58,2,FALSE) ) )","v":""}]
["S11_S12","P51G_CA_EC","F","Total F - Construction",null,null,"@",null,null,null,"","@",null,null,null,"","@",null,null,null,"","@",null,null,null,"","@",null,null,null,"","@",null,null,null,"","@",null,null,null,"","@",null,null,null,"","@",null,null,null,"","@",null,null,null,"","@",null,null,null,"","@",null,null,null,"","@",null,null,null,"","@",null,null,null,"","@",null,null,null,"","@",null,null,null,"","@",null,null,null,"","@",null,null,null,"","@",null,null,null,"","@",null,null,null,"","@",null,null,null,"","@",null,null,null,"",null,null,null,null,{"$f":"IF(TRIM(DP24)=\"\", \"\", IF(VLOOKUP(DP24,'Footnotes list'!$D$9:$E$58,2,FALSE)=0,\"\",VLOOKUP(DP24,'Footnotes list'!$D$9:$E$58,2,FALSE) ) )","v":""},"",null,null,null,{"$f":"IF(TRIM(DU24)=\"\", \"\", IF(VLOOKUP(DU24,'Footnotes list'!$D$9:$E$58,2,FALSE)=0,\"\",VLOOKUP(DU24,'Footnotes list'!$D$9:$E$58,2,FALSE) ) )","v":""},null,null,null,null,{"$f":"IF(TRIM(DZ24)=\"\", \"\", IF(VLOOKUP(DZ24,'Footnotes list'!$D$9:$E$58,2,FALSE)=0,\"\",VLOOKUP(DZ24,'Footnotes list'!$D$9:$E$58,2,FALSE) ) )","v":""},null,null,null,null,{"$f":"IF(TRIM(EE24)=\"\", \"\", IF(VLOOKUP(EE24,'Footnotes list'!$D$9:$E$58,2,FALSE)=0,\"\",VLOOKUP(EE24,'Footnotes list'!$D$9:$E$58,2,FALSE) ) )","v":""},null,null,null,null,{"$f":"IF(TRIM(EJ24)=\"\", \"\", IF(VLOOKUP(EJ24,'Footnotes list'!$D$9:$E$58,2,FALSE)=0,\"\",VLOOKUP(EJ24,'Footnotes list'!$D$9:$E$58,2,FALSE) ) )","v":""},null,null,null,null,{"$f":"IF(TRIM(EO24)=\"\", \"\", IF(VLOOKUP(EO24,'Footnotes list'!$D$9:$E$58,2,FALSE)=0,\"\",VLOOKUP(EO24,'Footnotes list'!$D$9:$E$58,2,FALSE) ) )","v":""},null,null,null,null,{"$f":"IF(TRIM(ET24)=\"\", \"\", IF(VLOOKUP(ET24,'Footnotes list'!$D$9:$E$58,2,FALSE)=0,\"\",VLOOKUP(ET24,'Footnotes list'!$D$9:$E$58,2,FALSE) ) )","v":""},null,null,null,null,{"$f":"IF(TRIM(EY24)=\"\", \"\", IF(VLOOKUP(EY24,'Footnotes list'!$D$9:$E$58,2,FALSE)=0,\"\",VLOOKUP(EY24,'Footnotes list'!$D$9:$E$58,2,FALSE) ) )","v":""},"",null,null,null,{"$f":"IF(TRIM(FD24)=\"\", \"\", IF(VLOOKUP(FD24,'Footnotes list'!$D$9:$E$58,2,FALSE)=0,\"\",VLOOKUP(FD24,'Footnotes list'!$D$9:$E$58,2,FALSE) ) )","v":""},"",null,null,null,{"$f":"IF(TRIM(FI24)=\"\", \"\", IF(VLOOKUP(FI24,'Footnotes list'!$D$9:$E$58,2,FALSE)=0,\"\",VLOOKUP(FI24,'Footnotes list'!$D$9:$E$58,2,FALSE) ) )","v":""}]
["S11_S12","P51G_CA_EC","J","Total J - Information and communication",null,null,"@",null,null,null,"","@",null,null,null,"","@",null,null,null,"","@",null,null,null,"","@",null,null,null,"","@",null,null,null,"","@",null,null,null,"","@",null,null,null,"","@",null,null,null,"","@",null,null,null,"","@",null,null,null,"","@",null,null,null,"","@",null,null,null,"","@",null,null,null,"","@",null,null,null,"","@",null,null,null,"","@",null,null,null,"","@",null,null,null,"","@",null,null,null,"","@",null,null,null,"","@",null,null,null,"","@",null,null,null,"",null,null,null,null,{"$f":"IF(TRIM(DP25)=\"\", \"\", IF(VLOOKUP(DP25,'Footnotes list'!$D$9:$E$58,2,FALSE)=0,\"\",VLOOKUP(DP25,'Footnotes list'!$D$9:$E$58,2,FALSE) ) )","v":""},"",null,null,null,{"$f":"IF(TRIM(DU25)=\"\", \"\", IF(VLOOKUP(DU25,'Footnotes list'!$D$9:$E$58,2,FALSE)=0,\"\",VLOOKUP(DU25,'Footnotes list'!$D$9:$E$58,2,FALSE) ) )","v":""},null,null,null,null,{"$f":"IF(TRIM(DZ25)=\"\", \"\", IF(VLOOKUP(DZ25,'Footnotes list'!$D$9:$E$58,2,FALSE)=0,\"\",VLOOKUP(DZ25,'Footnotes list'!$D$9:$E$58,2,FALSE) ) )","v":""},null,null,null,null,{"$f":"IF(TRIM(EE25)=\"\", \"\", IF(VLOOKUP(EE25,'Footnotes list'!$D$9:$E$58,2,FALSE)=0,\"\",VLOOKUP(EE25,'Footnotes list'!$D$9:$E$58,2,FALSE) ) )","v":""},null,null,null,null,{"$f":"IF(TRIM(EJ25)=\"\", \"\", IF(VLOOKUP(EJ25,'Footnotes list'!$D$9:$E$58,2,FALSE)=0,\"\",VLOOKUP(EJ25,'Footnotes list'!$D$9:$E$58,2,FALSE) ) )","v":""},null,null,null,null,{"$f":"IF(TRIM(EO25)=\"\", \"\", IF(VLOOKUP(EO25,'Footnotes list'!$D$9:$E$58,2,FALSE)=0,\"\",VLOOKUP(EO25,'Footnotes list'!$D$9:$E$58,2,FALSE) ) )","v":""},null,null,null,null,{"$f":"IF(TRIM(ET25)=\"\", \"\", IF(VLOOKUP(ET25,'Footnotes list'!$D$9:$E$58,2,FALSE)=0,\"\",VLOOKUP(ET25,'Footnotes list'!$D$9:$E$58,2,FALSE) ) )","v":""},null,null,null,null,{"$f":"IF(TRIM(EY25)=\"\", \"\", IF(VLOOKUP(EY25,'Footnotes list'!$D$9:$E$58,2,FALSE)=0,\"\",VLOOKUP(EY25,'Footnotes list'!$D$9:$E$58,2,FALSE) ) )","v":""},"",null,null,null,{"$f":"IF(TRIM(FD25)=\"\", \"\", IF(VLOOKUP(FD25,'Footnotes list'!$D$9:$E$58,2,FALSE)=0,\"\",VLOOKUP(FD25,'Footnotes list'!$D$9:$E$58,2,FALSE) ) )","v":""},"",null,null,null,{"$f":"IF(TRIM(FI25)=\"\", \"\", IF(VLOOKUP(FI25,'Footnotes list'!$D$9:$E$58,2,FALSE)=0,\"\",VLOOKUP(FI25,'Footnotes list'!$D$9:$E$58,2,FALSE) ) )","v":""}]
["S11_S12","P51G_CA_EC","M","Total M - Professional, scientific and technical activities",null,null,"@",null,null,null,"","@",null,null,null,"","@",null,null,null,"","@",null,null,null,"","@",null,null,null,"","@",null,null,null,"","@",null,null,null,"","@",null,null,null,"","@",null,null,null,"","@",null,null,null,"","@",null,null,null,"","@",null,null,null,"","@",null,null,null,"","@",null,null,null,"","@",null,null,null,"","@",null,null,null,"","@",null,null,null,"","@",null,null,null,"","@",null,null,null,"","@",null,null,null,"","@",null,null,null,"","@",null,null,null,"",null,null,null,null,{"$f":"IF(TRIM(DP26)=\"\", \"\", IF(VLOOKUP(DP26,'Footnotes list'!$D$9:$E$58,2,FALSE)=0,\"\",VLOOKUP(DP26,'Footnotes list'!$D$9:$E$58,2,FALSE) ) )","v":""},"",null,null,null,{"$f":"IF(TRIM(DU26)=\"\", \"\", IF(VLOOKUP(DU26,'Footnotes list'!$D$9:$E$58,2,FALSE)=0,\"\",VLOOKUP(DU26,'Footnotes list'!$D$9:$E$58,2,FALSE) ) )","v":""},null,null,null,null,{"$f":"IF(TRIM(DZ26)=\"\", \"\", IF(VLOOKUP(DZ26,'Footnotes list'!$D$9:$E$58,2,FALSE)=0,\"\",VLOOKUP(DZ26,'Footnotes list'!$D$9:$E$58,2,FALSE) ) )","v":""},null,null,null,null,{"$f":"IF(TRIM(EE26)=\"\", \"\", IF(VLOOKUP(EE26,'Footnotes list'!$D$9:$E$58,2,FALSE)=0,\"\",VLOOKUP(EE26,'Footnotes list'!$D$9:$E$58,2,FALSE) ) )","v":""},null,null,null,null,{"$f":"IF(TRIM(EJ26)=\"\", \"\", IF(VLOOKUP(EJ26,'Footnotes list'!$D$9:$E$58,2,FALSE)=0,\"\",VLOOKUP(EJ26,'Footnotes list'!$D$9:$E$58,2,FALSE) ) )","v":""},null,null,null,null,{"$f":"IF(TRIM(EO26)=\"\", \"\", IF(VLOOKUP(EO26,'Footnotes list'!$D$9:$E$58,2,FALSE)=0,\"\",VLOOKUP(EO26,'Footnotes list'!$D$9:$E$58,2,FALSE) ) )","v":""},null,null,null,null,{"$f":"IF(TRIM(ET26)=\"\", \"\", IF(VLOOKUP(ET26,'Footnotes list'!$D$9:$E$58,2,FALSE)=0,\"\",VLOOKUP(ET26,'Footnotes list'!$D$9:$E$58,2,FALSE) ) )","v":""},null,null,null,null,{"$f":"IF(TRIM(EY26)=\"\", \"\", IF(VLOOKUP(EY26,'Footnotes list'!$D$9:$E$58,2,FALSE)=0,\"\",VLOOKUP(EY26,'Footnotes list'!$D$9:$E$58,2,FALSE) ) )","v":""},"",null,null,null,{"$f":"IF(TRIM(FD26)=\"\", \"\", IF(VLOOKUP(FD26,'Footnotes list'!$D$9:$E$58,2,FALSE)=0,\"\",VLOOKUP(FD26,'Footnotes list'!$D$9:$E$58,2,FALSE) ) )","v":""},"",null,null,null,{"$f":"IF(TRIM(FI26)=\"\", \"\", IF(VLOOKUP(FI26,'Footnotes list'!$D$9:$E$58,2,FALSE)=0,\"\",VLOOKUP(FI26,'Footnotes list'!$D$9:$E$58,2,FALSE) ) )","v":""}]
["S11_S12","P51G_CA_EC","O","Total O - Public administration and defence, compulsory social security",null,null,"@",null,null,null,"","@",null,null,null,"","@",null,null,null,"","@",null,null,null,"","@",null,null,null,"","@",null,null,null,"","@",null,null,null,"","@",null,null,null,"","@",null,null,null,"","@",null,null,null,"","@",null,null,null,"","@",null,null,null,"","@",null,null,null,"","@",null,null,null,"","@",null,null,null,"","@",null,null,null,"","@",null,null,null,"","@",null,null,null,"","@",null,null,null,"","@",null,null,null,"","@",null,null,null,"","@",null,null,null,"",null,null,null,null,{"$f":"IF(TRIM(DP27)=\"\", \"\", IF(VLOOKUP(DP27,'Footnotes list'!$D$9:$E$58,2,FALSE)=0,\"\",VLOOKUP(DP27,'Footnotes list'!$D$9:$E$58,2,FALSE) ) )","v":""},"",null,null,null,{"$f":"IF(TRIM(DU27)=\"\", \"\", IF(VLOOKUP(DU27,'Footnotes list'!$D$9:$E$58,2,FALSE)=0,\"\",VLOOKUP(DU27,'Footnotes list'!$D$9:$E$58,2,FALSE) ) )","v":""},null,null,null,null,{"$f":"IF(TRIM(DZ27)=\"\", \"\", IF(VLOOKUP(DZ27,'Footnotes list'!$D$9:$E$58,2,FALSE)=0,\"\",VLOOKUP(DZ27,'Footnotes list'!$D$9:$E$58,2,FALSE) ) )","v":""},null,null,null,null,{"$f":"IF(TRIM(EE27)=\"\", \"\", IF(VLOOKUP(EE27,'Footnotes list'!$D$9:$E$58,2,FALSE)=0,\"\",VLOOKUP(EE27,'Footnotes list'!$D$9:$E$58,2,FALSE) ) )","v":""},null,null,null,null,{"$f":"IF(TRIM(EJ27)=\"\", \"\", IF(VLOOKUP(EJ27,'Footnotes list'!$D$9:$E$58,2,FALSE)=0,\"\",VLOOKUP(EJ27,'Footnotes list'!$D$9:$E$58,2,FALSE) ) )","v":""},null,null,null,null,{"$f":"IF(TRIM(EO27)=\"\", \"\", IF(VLOOKUP(EO27,'Footnotes list'!$D$9:$E$58,2,FALSE)=0,\"\",VLOOKUP(EO27,'Footnotes list'!$D$9:$E$58,2,FALSE) ) )","v":""},null,null,null,null,{"$f":"IF(TRIM(ET27)=\"\", \"\", IF(VLOOKUP(ET27,'Footnotes list'!$D$9:$E$58,2,FALSE)=0,\"\",VLOOKUP(ET27,'Footnotes list'!$D$9:$E$58,2,FALSE) ) )","v":""},null,null,null,null,{"$f":"IF(TRIM(EY27)=\"\", \"\", IF(VLOOKUP(EY27,'Footnotes list'!$D$9:$E$58,2,FALSE)=0,\"\",VLOOKUP(EY27,'Footnotes list'!$D$9:$E$58,2,FALSE) ) )","v":""},"",null,null,null,{"$f":"IF(TRIM(FD27)=\"\", \"\", IF(VLOOKUP(FD27,'Footnotes list'!$D$9:$E$58,2,FALSE)=0,\"\",VLOOKUP(FD27,'Footnotes list'!$D$9:$E$58,2,FALSE) ) )","v":""},"",null,null,null,{"$f":"IF(TRIM(FI27)=\"\", \"\", IF(VLOOKUP(FI27,'Footnotes list'!$D$9:$E$58,2,FALSE)=0,\"\",VLOOKUP(FI27,'Footnotes list'!$D$9:$E$58,2,FALSE) ) )","v":""}]
["S11_S12","P51G_CA_EC","P","Total P - Education",null,null,"@",null,null,null,"","@",null,null,null,"","@",null,null,null,"","@",null,null,null,"","@",null,null,null,"","@",null,null,null,"","@",null,null,null,"","@",null,null,null,"","@",null,null,null,"","@",null,null,null,"","@",null,null,null,"","@",null,null,null,"","@",null,null,null,"","@",null,null,null,"","@",null,null,null,"","@",null,null,null,"","@",null,null,null,"","@",null,null,null,"","@",null,null,null,"","@",null,null,null,"","@",null,null,null,"","@",null,null,null,"",null,null,null,null,{"$f":"IF(TRIM(DP28)=\"\", \"\", IF(VLOOKUP(DP28,'Footnotes list'!$D$9:$E$58,2,FALSE)=0,\"\",VLOOKUP(DP28,'Footnotes list'!$D$9:$E$58,2,FALSE) ) )","v":""},"",null,null,null,{"$f":"IF(TRIM(DU28)=\"\", \"\", IF(VLOOKUP(DU28,'Footnotes list'!$D$9:$E$58,2,FALSE)=0,\"\",VLOOKUP(DU28,'Footnotes list'!$D$9:$E$58,2,FALSE) ) )","v":""},null,null,null,null,{"$f":"IF(TRIM(DZ28)=\"\", \"\", IF(VLOOKUP(DZ28,'Footnotes list'!$D$9:$E$58,2,FALSE)=0,\"\",VLOOKUP(DZ28,'Footnotes list'!$D$9:$E$58,2,FALSE) ) )","v":""},null,null,null,null,{"$f":"IF(TRIM(EE28)=\"\", \"\", IF(VLOOKUP(EE28,'Footnotes list'!$D$9:$E$58,2,FALSE)=0,\"\",VLOOKUP(EE28,'Footnotes list'!$D$9:$E$58,2,FALSE) ) )","v":""},null,null,null,null,{"$f":"IF(TRIM(EJ28)=\"\", \"\", IF(VLOOKUP(EJ28,'Footnotes list'!$D$9:$E$58,2,FALSE)=0,\"\",VLOOKUP(EJ28,'Footnotes list'!$D$9:$E$58,2,FALSE) ) )","v":""},null,null,null,null,{"$f":"IF(TRIM(EO28)=\"\", \"\", IF(VLOOKUP(EO28,'Footnotes list'!$D$9:$E$58,2,FALSE)=0,\"\",VLOOKUP(EO28,'Footnotes list'!$D$9:$E$58,2,FALSE) ) )","v":""},null,null,null,null,{"$f":"IF(TRIM(ET28)=\"\", \"\", IF(VLOOKUP(ET28,'Footnotes list'!$D$9:$E$58,2,FALSE)=0,\"\",VLOOKUP(ET28,'Footnotes list'!$D$9:$E$58,2,FALSE) ) )","v":""},null,null,null,null,{"$f":"IF(TRIM(EY28)=\"\", \"\", IF(VLOOKUP(EY28,'Footnotes list'!$D$9:$E$58,2,FALSE)=0,\"\",VLOOKUP(EY28,'Footnotes list'!$D$9:$E$58,2,FALSE) ) )","v":""},"",null,null,null,{"$f":"IF(TRIM(FD28)=\"\", \"\", IF(VLOOKUP(FD28,'Footnotes list'!$D$9:$E$58,2,FALSE)=0,\"\",VLOOKUP(FD28,'Footnotes list'!$D$9:$E$58,2,FALSE) ) )","v":""},"",null,null,null,{"$f":"IF(TRIM(FI28)=\"\", \"\", IF(VLOOKUP(FI28,'Footnotes list'!$D$9:$E$58,2,FALSE)=0,\"\",VLOOKUP(FI28,'Footnotes list'!$D$9:$E$58,2,FALSE) ) )","v":""}]
["S11_S12","P51G_CA_EC","G-I_K_L_N_Q-U","Total G + H + I + K + L + N + Q + R + S + T + U -Services (except information and communication, professional, scientific and technical activities, public administration and defence; compulsory social security and education)",null,null,"@",null,null,null,"","@",null,null,null,"","@",null,null,null,"","@",null,null,null,"","@",null,null,null,"","@",null,null,null,"","@",null,null,null,"","@",null,null,null,"","@",null,null,null,"","@",null,null,null,"","@",null,null,null,"","@",null,null,null,"","@",null,null,null,"","@",null,null,null,"","@",null,null,null,"","@",null,null,null,"","@",null,null,null,"","@",null,null,null,"","@",null,null,null,"","@",null,null,null,"","@",null,null,null,"","@",null,null,null,"",null,null,null,null,{"$f":"IF(TRIM(DP29)=\"\", \"\", IF(VLOOKUP(DP29,'Footnotes list'!$D$9:$E$58,2,FALSE)=0,\"\",VLOOKUP(DP29,'Footnotes list'!$D$9:$E$58,2,FALSE) ) )","v":""},{"$f":"IF(COUNT(DM29)=1,DM29,\"\")","v":""},null,null,null,{"$f":"IF(TRIM(DU29)=\"\", \"\", IF(VLOOKUP(DU29,'Footnotes list'!$D$9:$E$58,2,FALSE)=0,\"\",VLOOKUP(DU29,'Footnotes list'!$D$9:$E$58,2,FALSE) ) )","v":""},null,null,null,null,{"$f":"IF(TRIM(DZ29)=\"\", \"\", IF(VLOOKUP(DZ29,'Footnotes list'!$D$9:$E$58,2,FALSE)=0,\"\",VLOOKUP(DZ29,'Footnotes list'!$D$9:$E$58,2,FALSE) ) )","v":""},null,null,null,null,{"$f":"IF(TRIM(EE29)=\"\", \"\", IF(VLOOKUP(EE29,'Footnotes list'!$D$9:$E$58,2,FALSE)=0,\"\",VLOOKUP(EE29,'Footnotes list'!$D$9:$E$58,2,FALSE) ) )","v":""},null,null,null,null,{"$f":"IF(TRIM(EJ29)=\"\", \"\", IF(VLOOKUP(EJ29,'Footnotes list'!$D$9:$E$58,2,FALSE)=0,\"\",VLOOKUP(EJ29,'Footnotes list'!$D$9:$E$58,2,FALSE) ) )","v":""},null,null,null,null,{"$f":"IF(TRIM(EO29)=\"\", \"\", IF(VLOOKUP(EO29,'Footnotes list'!$D$9:$E$58,2,FALSE)=0,\"\",VLOOKUP(EO29,'Footnotes list'!$D$9:$E$58,2,FALSE) ) )","v":""},null,null,null,null,{"$f":"IF(TRIM(ET29)=\"\", \"\", IF(VLOOKUP(ET29,'Footnotes list'!$D$9:$E$58,2,FALSE)=0,\"\",VLOOKUP(ET29,'Footnotes list'!$D$9:$E$58,2,FALSE) ) )","v":""},null,null,null,null,{"$f":"IF(TRIM(EY29)=\"\", \"\", IF(VLOOKUP(EY29,'Footnotes list'!$D$9:$E$58,2,FALSE)=0,\"\",VLOOKUP(EY29,'Footnotes list'!$D$9:$E$58,2,FALSE) ) )","v":""},{"$f":"IF(COUNT(DW29,EB29,EG29,EL29,EQ29)=5,SUM(DW29,EB29,EG29,EL29,EQ29,EV29),\"\")","v":""},null,null,null,{"$f":"IF(TRIM(FD29)=\"\", \"\", IF(VLOOKUP(FD29,'Footnotes list'!$D$9:$E$58,2,FALSE)=0,\"\",VLOOKUP(FD29,'Footnotes list'!$D$9:$E$58,2,FALSE) ) )","v":""},"",null,null,null,{"$f":"IF(TRIM(FI29)=\"\", \"\", IF(VLOOKUP(FI29,'Footnotes list'!$D$9:$E$58,2,FALSE)=0,\"\",VLOOKUP(FI29,'Footnotes list'!$D$9:$E$58,2,FALSE) ) )","v":""}]
["S11_S12","P51G_CREP_EC","A","Total A - Agriculture, forestry and fishing",null,"GFCF in cleaner/ resource efficient goods",null,null,null,null,{"$f":"IF(TRIM(J30)=\"\", \"\", IF(VLOOKUP(J30,'Footnotes list'!$D$9:$E$58,2,FALSE)=0,\"\",VLOOKUP(J30,'Footnotes list'!$D$9:$E$58,2,FALSE) ) )","v":""},null,null,null,null,{"$f":"IF(TRIM(O30)=\"\", \"\", IF(VLOOKUP(O30,'Footnotes list'!$D$9:$E$58,2,FALSE)=0,\"\",VLOOKUP(O30,'Footnotes list'!$D$9:$E$58,2,FALSE) ) )","v":""},null,null,null,null,{"$f":"IF(TRIM(T30)=\"\", \"\", IF(VLOOKUP(T30,'Footnotes list'!$D$9:$E$58,2,FALSE)=0,\"\",VLOOKUP(T30,'Footnotes list'!$D$9:$E$58,2,FALSE) ) )","v":""},null,null,null,null,{"$f":"IF(TRIM(Y30)=\"\", \"\", IF(VLOOKUP(Y30,'Footnotes list'!$D$9:$E$58,2,FALSE)=0,\"\",VLOOKUP(Y30,'Footnotes list'!$D$9:$E$58,2,FALSE) ) )","v":""},null,null,null,null,{"$f":"IF(TRIM(AD30)=\"\", \"\", IF(VLOOKUP(AD30,'Footnotes list'!$D$9:$E$58,2,FALSE)=0,\"\",VLOOKUP(AD30,'Footnotes list'!$D$9:$E$58,2,FALSE) ) )","v":""},null,null,null,null,{"$f":"IF(TRIM(AI30)=\"\", \"\", IF(VLOOKUP(AI30,'Footnotes list'!$D$9:$E$58,2,FALSE)=0,\"\",VLOOKUP(AI30,'Footnotes list'!$D$9:$E$58,2,FALSE) ) )","v":""},"@",null,null,null,"",null,null,null,null,{"$f":"IF(TRIM(AS30)=\"\", \"\", IF(VLOOKUP(AS30,'Footnotes list'!$D$9:$E$58,2,FALSE)=0,\"\",VLOOKUP(AS30,'Footnotes list'!$D$9:$E$58,2,FALSE) ) )","v":""},null,null,null,null,{"$f":"IF(TRIM(AX30)=\"\", \"\", IF(VLOOKUP(AX30,'Footnotes list'!$D$9:$E$58,2,FALSE)=0,\"\",VLOOKUP(AX30,'Footnotes list'!$D$9:$E$58,2,FALSE) ) )","v":""},null,null,null,null,{"$f":"IF(TRIM(BC30)=\"\", \"\", IF(VLOOKUP(BC30,'Footnotes list'!$D$9:$E$58,2,FALSE)=0,\"\",VLOOKUP(BC30,'Footnotes list'!$D$9:$E$58,2,FALSE) ) )","v":""},null,null,null,null,{"$f":"IF(TRIM(BH30)=\"\", \"\", IF(VLOOKUP(BH30,'Footnotes list'!$D$9:$E$58,2,FALSE)=0,\"\",VLOOKUP(BH30,'Footnotes list'!$D$9:$E$58,2,FALSE) ) )","v":""},"@",null,null,null,"","@",null,null,null,"","@",null,null,null,"","@",null,null,null,"","@",null,null,null,"","@",null,null,null,"","@",null,null,null,"","@",null,null,null,"","@",null,null,null,"","@",null,null,null,"","@",null,null,null,"",null,null,null,null,{"$f":"IF(TRIM(DP30)=\"\", \"\", IF(VLOOKUP(DP30,'Footnotes list'!$D$9:$E$58,2,FALSE)=0,\"\",VLOOKUP(DP30,'Footnotes list'!$D$9:$E$58,2,FALSE) ) )","v":""},{"$f":"IF(COUNT(G30,V30,AF30,AZ30)=4,SUM(G30,V30,AF30,AZ30,DM30),\"\")","v":""},null,null,null,{"$f":"IF(TRIM(DU30)=\"\", \"\", IF(VLOOKUP(DU30,'Footnotes list'!$D$9:$E$58,2,FALSE)=0,\"\",VLOOKUP(DU30,'Footnotes list'!$D$9:$E$58,2,FALSE) ) )","v":""},"@",null,null,null,"","@",null,null,null,"","@",null,null,null,"","@",null,null,null,"","@",null,null,null,"","@",null,null,null,"","@",null,null,null,"",{"$f":"IF(COUNT(DR30)=1,SUM(DR30),\"\")","v":""},null,null,null,{"$f":"IF(TRIM(FI30)=\"\", \"\", IF(VLOOKUP(FI30,'Footnotes list'!$D$9:$E$58,2,FALSE)=0,\"\",VLOOKUP(FI30,'Footnotes list'!$D$9:$E$58,2,FALSE) ) )","v":""}]
["S11_S12","P51G_CREP_EC","B","Total B - Mining and quarrying",null,null,null,null,null,null,{"$f":"IF(TRIM(J31)=\"\", \"\", IF(VLOOKUP(J31,'Footnotes list'!$D$9:$E$58,2,FALSE)=0,\"\",VLOOKUP(J31,'Footnotes list'!$D$9:$E$58,2,FALSE) ) )","v":""},null,null,null,null,{"$f":"IF(TRIM(O31)=\"\", \"\", IF(VLOOKUP(O31,'Footnotes list'!$D$9:$E$58,2,FALSE)=0,\"\",VLOOKUP(O31,'Footnotes list'!$D$9:$E$58,2,FALSE) ) )","v":""},null,null,null,null,{"$f":"IF(TRIM(T31)=\"\", \"\", IF(VLOOKUP(T31,'Footnotes list'!$D$9:$E$58,2,FALSE)=0,\"\",VLOOKUP(T31,'Footnotes list'!$D$9:$E$58,2,FALSE) ) )","v":""},null,null,null,null,{"$f":"IF(TRIM(Y31)=\"\", \"\", IF(VLOOKUP(Y31,'Footnotes list'!$D$9:$E$58,2,FALSE)=0,\"\",VLOOKUP(Y31,'Footnotes list'!$D$9:$E$58,2,FALSE) ) )","v":""},null,null,null,null,{"$f":"IF(TRIM(AD31)=\"\", \"\", IF(VLOOKUP(AD31,'Footnotes list'!$D$9:$E$58,2,FALSE)=0,\"\",VLOOKUP(AD31,'Footnotes list'!$D$9:$E$58,2,FALSE) ) )","v":""},null,null,null,null,{"$f":"IF(TRIM(AI31)=\"\", \"\", IF(VLOOKUP(AI31,'Footnotes list'!$D$9:$E$58,2,FALSE)=0,\"\",VLOOKUP(AI31,'Footnotes list'!$D$9:$E$58,2,FALSE) ) )","v":""},"@",null,null,null,"",null,null,null,null,{"$f":"IF(TRIM(AS31)=\"\", \"\", IF(VLOOKUP(AS31,'Footnotes list'!$D$9:$E$58,2,FALSE)=0,\"\",VLOOKUP(AS31,'Footnotes list'!$D$9:$E$58,2,FALSE) ) )","v":""},null,null,null,null,{"$f":"IF(TRIM(AX31)=\"\", \"\", IF(VLOOKUP(AX31,'Footnotes list'!$D$9:$E$58,2,FALSE)=0,\"\",VLOOKUP(AX31,'Footnotes list'!$D$9:$E$58,2,FALSE) ) )","v":""},null,null,null,null,{"$f":"IF(TRIM(BC31)=\"\", \"\", IF(VLOOKUP(BC31,'Footnotes list'!$D$9:$E$58,2,FALSE)=0,\"\",VLOOKUP(BC31,'Footnotes list'!$D$9:$E$58,2,FALSE) ) )","v":""},null,null,null,null,{"$f":"IF(TRIM(BH31)=\"\", \"\", IF(VLOOKUP(BH31,'Footnotes list'!$D$9:$E$58,2,FALSE)=0,\"\",VLOOKUP(BH31,'Footnotes list'!$D$9:$E$58,2,FALSE) ) )","v":""},"@",null,null,null,"","@",null,null,null,"","@",null,null,null,"","@",null,null,null,"","@",null,null,null,"","@",null,null,null,"","@",null,null,null,"","@",null,null,null,"","@",null,null,null,"","@",null,null,null,"","@",null,null,null,"",null,null,null,null,{"$f":"IF(TRIM(DP31)=\"\", \"\", IF(VLOOKUP(DP31,'Footnotes list'!$D$9:$E$58,2,FALSE)=0,\"\",VLOOKUP(DP31,'Footnotes list'!$D$9:$E$58,2,FALSE) ) )","v":""},{"$f":"IF(COUNT(G31,V31,AF31,AZ31)=4,SUM(G31,V31,AF31,AZ31,DM31),\"\")","v":""},null,null,null,{"$f":"IF(TRIM(DU31)=\"\", \"\", IF(VLOOKUP(DU31,'Footnotes list'!$D$9:$E$58,2,FALSE)=0,\"\",VLOOKUP(DU31,'Footnotes list'!$D$9:$E$58,2,FALSE) ) )","v":""},"@",null,null,null,"","@",null,null,null,"","@",null,null,null,"","@",null,null,null,"","@",null,null,null,"","@",null,null,null,"","@",null,null,null,"",{"$f":"IF(COUNT(DR31)=1,SUM(DR31),\"\")","v":""},null,null,null,{"$f":"IF(TRIM(FI31)=\"\", \"\", IF(VLOOKUP(FI31,'Footnotes list'!$D$9:$E$58,2,FALSE)=0,\"\",VLOOKUP(FI31,'Footnotes list'!$D$9:$E$58,2,FALSE) ) )","v":""}]
["S11_S12","P51G_CREP_EC","C","Total C - Manufacturing",null,null,null,null,null,null,{"$f":"IF(TRIM(J32)=\"\", \"\", IF(VLOOKUP(J32,'Footnotes list'!$D$9:$E$58,2,FALSE)=0,\"\",VLOOKUP(J32,'Footnotes list'!$D$9:$E$58,2,FALSE) ) )","v":""},null,null,null,null,{"$f":"IF(TRIM(O32)=\"\", \"\", IF(VLOOKUP(O32,'Footnotes list'!$D$9:$E$58,2,FALSE)=0,\"\",VLOOKUP(O32,'Footnotes list'!$D$9:$E$58,2,FALSE) ) )","v":""},null,null,null,null,{"$f":"IF(TRIM(T32)=\"\", \"\", IF(VLOOKUP(T32,'Footnotes list'!$D$9:$E$58,2,FALSE)=0,\"\",VLOOKUP(T32,'Footnotes list'!$D$9:$E$58,2,FALSE) ) )","v":""},null,null,null,null,{"$f":"IF(TRIM(Y32)=\"\", \"\", IF(VLOOKUP(Y32,'Footnotes list'!$D$9:$E$58,2,FALSE)=0,\"\",VLOOKUP(Y32,'Footnotes list'!$D$9:$E$58,2,FALSE) ) )","v":""},null,null,null,null,{"$f":"IF(TRIM(AD32)=\"\", \"\", IF(VLOOKUP(AD32,'Footnotes list'!$D$9:$E$58,2,FALSE)=0,\"\",VLOOKUP(AD32,'Footnotes list'!$D$9:$E$58,2,FALSE) ) )","v":""},null,null,null,null,{"$f":"IF(TRIM(AI32)=\"\", \"\", IF(VLOOKUP(AI32,'Footnotes list'!$D$9:$E$58,2,FALSE)=0,\"\",VLOOKUP(AI32,'Footnotes list'!$D$9:$E$58,2,FALSE) ) )","v":""},"@",null,null,null,"",null,null,null,null,{"$f":"IF(TRIM(AS32)=\"\", \"\", IF(VLOOKUP(AS32,'Footnotes list'!$D$9:$E$58,2,FALSE)=0,\"\",VLOOKUP(AS32,'Footnotes list'!$D$9:$E$58,2,FALSE) ) )","v":""},null,null,null,null,{"$f":"IF(TRIM(AX32)=\"\", \"\", IF(VLOOKUP(AX32,'Footnotes list'!$D$9:$E$58,2,FALSE)=0,\"\",VLOOKUP(AX32,'Footnotes list'!$D$9:$E$58,2,FALSE) ) )","v":""},null,null,null,null,{"$f":"IF(TRIM(BC32)=\"\", \"\", IF(VLOOKUP(BC32,'Footnotes list'!$D$9:$E$58,2,FALSE)=0,\"\",VLOOKUP(BC32,'Footnotes list'!$D$9:$E$58,2,FALSE) ) )","v":""},null,null,null,null,{"$f":"IF(TRIM(BH32)=\"\", \"\", IF(VLOOKUP(BH32,'Footnotes list'!$D$9:$E$58,2,FALSE)=0,\"\",VLOOKUP(BH32,'Footnotes list'!$D$9:$E$58,2,FALSE) ) )","v":""},"@",null,null,null,"","@",null,null,null,"","@",null,null,null,"","@",null,null,null,"","@",null,null,null,"","@",null,null,null,"","@",null,null,null,"","@",null,null,null,"","@",null,null,null,"","@",null,null,null,"","@",null,null,null,"",null,null,null,null,{"$f":"IF(TRIM(DP32)=\"\", \"\", IF(VLOOKUP(DP32,'Footnotes list'!$D$9:$E$58,2,FALSE)=0,\"\",VLOOKUP(DP32,'Footnotes list'!$D$9:$E$58,2,FALSE) ) )","v":""},"",null,null,null,{"$f":"IF(TRIM(DU32)=\"\", \"\", IF(VLOOKUP(DU32,'Footnotes list'!$D$9:$E$58,2,FALSE)=0,\"\",VLOOKUP(DU32,'Footnotes list'!$D$9:$E$58,2,FALSE) ) )","v":""},"@",null,null,null,"","@",null,null,null,"","@",null,null,null,"","@",null,null,null,"","@",null,null,null,"","@",null,null,null,"","@",null,null,null,"","",null,null,null,{"$f":"IF(TRIM(FI32)=\"\", \"\", IF(VLOOKUP(FI32,'Footnotes list'!$D$9:$E$58,2,FALSE)=0,\"\",VLOOKUP(FI32,'Footnotes list'!$D$9:$E$58,2,FALSE) ) )","v":""}]
["S11_S12","P51G_CREP_EC","D","Total D - Electricity, gas, steam and air conditioning supply",null,null,null,null,null,null,{"$f":"IF(TRIM(J33)=\"\", \"\", IF(VLOOKUP(J33,'Footnotes list'!$D$9:$E$58,2,FALSE)=0,\"\",VLOOKUP(J33,'Footnotes list'!$D$9:$E$58,2,FALSE) ) )","v":""},null,null,null,null,{"$f":"IF(TRIM(O33)=\"\", \"\", IF(VLOOKUP(O33,'Footnotes list'!$D$9:$E$58,2,FALSE)=0,\"\",VLOOKUP(O33,'Footnotes list'!$D$9:$E$58,2,FALSE) ) )","v":""},null,null,null,null,{"$f":"IF(TRIM(T33)=\"\", \"\", IF(VLOOKUP(T33,'Footnotes list'!$D$9:$E$58,2,FALSE)=0,\"\",VLOOKUP(T33,'Footnotes list'!$D$9:$E$58,2,FALSE) ) )","v":""},null,null,null,null,{"$f":"IF(TRIM(Y33)=\"\", \"\", IF(VLOOKUP(Y33,'Footnotes list'!$D$9:$E$58,2,FALSE)=0,\"\",VLOOKUP(Y33,'Footnotes list'!$D$9:$E$58,2,FALSE) ) )","v":""},null,null,null,null,{"$f":"IF(TRIM(AD33)=\"\", \"\", IF(VLOOKUP(AD33,'Footnotes list'!$D$9:$E$58,2,FALSE)=0,\"\",VLOOKUP(AD33,'Footnotes list'!$D$9:$E$58,2,FALSE) ) )","v":""},null,null,null,null,{"$f":"IF(TRIM(AI33)=\"\", \"\", IF(VLOOKUP(AI33,'Footnotes list'!$D$9:$E$58,2,FALSE)=0,\"\",VLOOKUP(AI33,'Footnotes list'!$D$9:$E$58,2,FALSE) ) )","v":""},"@",null,null,null,"",null,null,null,null,{"$f":"IF(TRIM(AS33)=\"\", \"\", IF(VLOOKUP(AS33,'Footnotes list'!$D$9:$E$58,2,FALSE)=0,\"\",VLOOKUP(AS33,'Footnotes list'!$D$9:$E$58,2,FALSE) ) )","v":""},null,null,null,null,{"$f":"IF(TRIM(AX33)=\"\", \"\", IF(VLOOKUP(AX33,'Footnotes list'!$D$9:$E$58,2,FALSE)=0,\"\",VLOOKUP(AX33,'Footnotes list'!$D$9:$E$58,2,FALSE) ) )","v":""},null,null,null,null,{"$f":"IF(TRIM(BC33)=\"\", \"\", IF(VLOOKUP(BC33,'Footnotes list'!$D$9:$E$58,2,FALSE)=0,\"\",VLOOKUP(BC33,'Footnotes list'!$D$9:$E$58,2,FALSE) ) )","v":""},null,null,null,null,{"$f":"IF(TRIM(BH33)=\"\", \"\", IF(VLOOKUP(BH33,'Footnotes list'!$D$9:$E$58,2,FALSE)=0,\"\",VLOOKUP(BH33,'Footnotes list'!$D$9:$E$58,2,FALSE) ) )","v":""},"@",null,null,null,"","@",null,null,null,"","@",null,null,null,"","@",null,null,null,"","@",null,null,null,"","@",null,null,null,"","@",null,null,null,"","@",null,null,null,"","@",null,null,null,"","@",null,null,null,"","@",null,null,null,"",null,null,null,null,{"$f":"IF(TRIM(DP33)=\"\", \"\", IF(VLOOKUP(DP33,'Footnotes list'!$D$9:$E$58,2,FALSE)=0,\"\",VLOOKUP(DP33,'Footnotes list'!$D$9:$E$58,2,FALSE) ) )","v":""},"",null,null,null,{"$f":"IF(TRIM(DU33)=\"\", \"\", IF(VLOOKUP(DU33,'Footnotes list'!$D$9:$E$58,2,FALSE)=0,\"\",VLOOKUP(DU33,'Footnotes list'!$D$9:$E$58,2,FALSE) ) )","v":""},"@",null,null,null,"","@",null,null,null,"","@",null,null,null,"","@",null,null,null,"","@",null,null,null,"","@",null,null,null,"","@",null,null,null,"","",null,null,null,{"$f":"IF(TRIM(FI33)=\"\", \"\", IF(VLOOKUP(FI33,'Footnotes list'!$D$9:$E$58,2,FALSE)=0,\"\",VLOOKUP(FI33,'Footnotes list'!$D$9:$E$58,2,FALSE) ) )","v":""}]
["S11_S12","P51G_CREP_EC","E","Total E - Water supply; sewerage, waste management and remediation activities",null,null,null,null,null,null,{"$f":"IF(TRIM(J34)=\"\", \"\", IF(VLOOKUP(J34,'Footnotes list'!$D$9:$E$58,2,FALSE)=0,\"\",VLOOKUP(J34,'Footnotes list'!$D$9:$E$58,2,FALSE) ) )","v":""},null,null,null,null,{"$f":"IF(TRIM(O34)=\"\", \"\", IF(VLOOKUP(O34,'Footnotes list'!$D$9:$E$58,2,FALSE)=0,\"\",VLOOKUP(O34,'Footnotes list'!$D$9:$E$58,2,FALSE) ) )","v":""},null,null,null,null,{"$f":"IF(TRIM(T34)=\"\", \"\", IF(VLOOKUP(T34,'Footnotes list'!$D$9:$E$58,2,FALSE)=0,\"\",VLOOKUP(T34,'Footnotes list'!$D$9:$E$58,2,FALSE) ) )","v":""},null,null,null,null,{"$f":"IF(TRIM(Y34)=\"\", \"\", IF(VLOOKUP(Y34,'Footnotes list'!$D$9:$E$58,2,FALSE)=0,\"\",VLOOKUP(Y34,'Footnotes list'!$D$9:$E$58,2,FALSE) ) )","v":""},null,null,null,null,{"$f":"IF(TRIM(AD34)=\"\", \"\", IF(VLOOKUP(AD34,'Footnotes list'!$D$9:$E$58,2,FALSE)=0,\"\",VLOOKUP(AD34,'Footnotes list'!$D$9:$E$58,2,FALSE) ) )","v":""},null,null,null,null,{"$f":"IF(TRIM(AI34)=\"\", \"\", IF(VLOOKUP(AI34,'Footnotes list'!$D$9:$E$58,2,FALSE)=0,\"\",VLOOKUP(AI34,'Footnotes list'!$D$9:$E$58,2,FALSE) ) )","v":""},"@",null,null,null,"",null,null,null,null,{"$f":"IF(TRIM(AS34)=\"\", \"\", IF(VLOOKUP(AS34,'Footnotes list'!$D$9:$E$58,2,FALSE)=0,\"\",VLOOKUP(AS34,'Footnotes list'!$D$9:$E$58,2,FALSE) ) )","v":""},null,null,null,null,{"$f":"IF(TRIM(AX34)=\"\", \"\", IF(VLOOKUP(AX34,'Footnotes list'!$D$9:$E$58,2,FALSE)=0,\"\",VLOOKUP(AX34,'Footnotes list'!$D$9:$E$58,2,FALSE) ) )","v":""},null,null,null,null,{"$f":"IF(TRIM(BC34)=\"\", \"\", IF(VLOOKUP(BC34,'Footnotes list'!$D$9:$E$58,2,FALSE)=0,\"\",VLOOKUP(BC34,'Footnotes list'!$D$9:$E$58,2,FALSE) ) )","v":""},null,null,null,null,{"$f":"IF(TRIM(BH34)=\"\", \"\", IF(VLOOKUP(BH34,'Footnotes list'!$D$9:$E$58,2,FALSE)=0,\"\",VLOOKUP(BH34,'Footnotes list'!$D$9:$E$58,2,FALSE) ) )","v":""},"@",null,null,null,"","@",null,null,null,"","@",null,null,null,"","@",null,null,null,"","@",null,null,null,"","@",null,null,null,"","@",null,null,null,"","@",null,null,null,"","@",null,null,null,"","@",null,null,null,"","@",null,null,null,"",null,null,null,null,{"$f":"IF(TRIM(DP34)=\"\", \"\", IF(VLOOKUP(DP34,'Footnotes list'!$D$9:$E$58,2,FALSE)=0,\"\",VLOOKUP(DP34,'Footnotes list'!$D$9:$E$58,2,FALSE) ) )","v":""},"",null,null,null,{"$f":"IF(TRIM(DU34)=\"\", \"\", IF(VLOOKUP(DU34,'Footnotes list'!$D$9:$E$58,2,FALSE)=0,\"\",VLOOKUP(DU34,'Footnotes list'!$D$9:$E$58,2,FALSE) ) )","v":""},"@",null,null,null,"","@",null,null,null,"","@",null,null,null,"","@",null,null,null,"","@",null,null,null,"","@",null,null,null,"","@",null,null,null,"","",null,null,null,{"$f":"IF(TRIM(FI34)=\"\", \"\", IF(VLOOKUP(FI34,'Footnotes list'!$D$9:$E$58,2,FALSE)=0,\"\",VLOOKUP(FI34,'Footnotes list'!$D$9:$E$58,2,FALSE) ) )","v":""}]
["S11_S12","P51G_CREP_EC","F","Total F - Construction",null,null,null,null,null,null,{"$f":"IF(TRIM(J35)=\"\", \"\", IF(VLOOKUP(J35,'Footnotes list'!$D$9:$E$58,2,FALSE)=0,\"\",VLOOKUP(J35,'Footnotes list'!$D$9:$E$58,2,FALSE) ) )","v":""},null,null,null,null,{"$f":"IF(TRIM(O35)=\"\", \"\", IF(VLOOKUP(O35,'Footnotes list'!$D$9:$E$58,2,FALSE)=0,\"\",VLOOKUP(O35,'Footnotes list'!$D$9:$E$58,2,FALSE) ) )","v":""},null,null,null,null,{"$f":"IF(TRIM(T35)=\"\", \"\", IF(VLOOKUP(T35,'Footnotes list'!$D$9:$E$58,2,FALSE)=0,\"\",VLOOKUP(T35,'Footnotes list'!$D$9:$E$58,2,FALSE) ) )","v":""},null,null,null,null,{"$f":"IF(TRIM(Y35)=\"\", \"\", IF(VLOOKUP(Y35,'Footnotes list'!$D$9:$E$58,2,FALSE)=0,\"\",VLOOKUP(Y35,'Footnotes list'!$D$9:$E$58,2,FALSE) ) )","v":""},null,null,null,null,{"$f":"IF(TRIM(AD35)=\"\", \"\", IF(VLOOKUP(AD35,'Footnotes list'!$D$9:$E$58,2,FALSE)=0,\"\",VLOOKUP(AD35,'Footnotes list'!$D$9:$E$58,2,FALSE) ) )","v":""},null,null,null,null,{"$f":"IF(TRIM(AI35)=\"\", \"\", IF(VLOOKUP(AI35,'Footnotes list'!$D$9:$E$58,2,FALSE)=0,\"\",VLOOKUP(AI35,'Footnotes list'!$D$9:$E$58,2,FALSE) ) )","v":""},"@",null,null,null,"",null,null,null,null,{"$f":"IF(TRIM(AS35)=\"\", \"\", IF(VLOOKUP(AS35,'Footnotes list'!$D$9:$E$58,2,FALSE)=0,\"\",VLOOKUP(AS35,'Footnotes list'!$D$9:$E$58,2,FALSE) ) )","v":""},null,null,null,null,{"$f":"IF(TRIM(AX35)=\"\", \"\", IF(VLOOKUP(AX35,'Footnotes list'!$D$9:$E$58,2,FALSE)=0,\"\",VLOOKUP(AX35,'Footnotes list'!$D$9:$E$58,2,FALSE) ) )","v":""},null,null,null,null,{"$f":"IF(TRIM(BC35)=\"\", \"\", IF(VLOOKUP(BC35,'Footnotes list'!$D$9:$E$58,2,FALSE)=0,\"\",VLOOKUP(BC35,'Footnotes list'!$D$9:$E$58,2,FALSE) ) )","v":""},null,null,null,null,{"$f":"IF(TRIM(BH35)=\"\", \"\", IF(VLOOKUP(BH35,'Footnotes list'!$D$9:$E$58,2,FALSE)=0,\"\",VLOOKUP(BH35,'Footnotes list'!$D$9:$E$58,2,FALSE) ) )","v":""},"@",null,null,null,"","@",null,null,null,"","@",null,null,null,"","@",null,null,null,"","@",null,null,null,"","@",null,null,null,"","@",null,null,null,"","@",null,null,null,"","@",null,null,null,"","@",null,null,null,"","@",null,null,null,"",null,null,null,null,{"$f":"IF(TRIM(DP35)=\"\", \"\", IF(VLOOKUP(DP35,'Footnotes list'!$D$9:$E$58,2,FALSE)=0,\"\",VLOOKUP(DP35,'Footnotes list'!$D$9:$E$58,2,FALSE) ) )","v":""},"",null,null,null,{"$f":"IF(TRIM(DU35)=\"\", \"\", IF(VLOOKUP(DU35,'Footnotes list'!$D$9:$E$58,2,FALSE)=0,\"\",VLOOKUP(DU35,'Footnotes list'!$D$9:$E$58,2,FALSE) ) )","v":""},"@",null,null,null,"","@",null,null,null,"","@",null,null,null,"","@",null,null,null,"","@",null,null,null,"","@",null,null,null,"","@",null,null,null,"","",null,null,null,{"$f":"IF(TRIM(FI35)=\"\", \"\", IF(VLOOKUP(FI35,'Footnotes list'!$D$9:$E$58,2,FALSE)=0,\"\",VLOOKUP(FI35,'Footnotes list'!$D$9:$E$58,2,FALSE) ) )","v":""}]
["S11_S12","P51G_CREP_EC","J","Total J - Information and communication",null,null,null,null,null,null,{"$f":"IF(TRIM(J36)=\"\", \"\", IF(VLOOKUP(J36,'Footnotes list'!$D$9:$E$58,2,FALSE)=0,\"\",VLOOKUP(J36,'Footnotes list'!$D$9:$E$58,2,FALSE) ) )","v":""},null,null,null,null,{"$f":"IF(TRIM(O36)=\"\", \"\", IF(VLOOKUP(O36,'Footnotes list'!$D$9:$E$58,2,FALSE)=0,\"\",VLOOKUP(O36,'Footnotes list'!$D$9:$E$58,2,FALSE) ) )","v":""},null,null,null,null,{"$f":"IF(TRIM(T36)=\"\", \"\", IF(VLOOKUP(T36,'Footnotes list'!$D$9:$E$58,2,FALSE)=0,\"\",VLOOKUP(T36,'Footnotes list'!$D$9:$E$58,2,FALSE) ) )","v":""},null,null,null,null,{"$f":"IF(TRIM(Y36)=\"\", \"\", IF(VLOOKUP(Y36,'Footnotes list'!$D$9:$E$58,2,FALSE)=0,\"\",VLOOKUP(Y36,'Footnotes list'!$D$9:$E$58,2,FALSE) ) )","v":""},null,null,null,null,{"$f":"IF(TRIM(AD36)=\"\", \"\", IF(VLOOKUP(AD36,'Footnotes list'!$D$9:$E$58,2,FALSE)=0,\"\",VLOOKUP(AD36,'Footnotes list'!$D$9:$E$58,2,FALSE) ) )","v":""},null,null,null,null,{"$f":"IF(TRIM(AI36)=\"\", \"\", IF(VLOOKUP(AI36,'Footnotes list'!$D$9:$E$58,2,FALSE)=0,\"\",VLOOKUP(AI36,'Footnotes list'!$D$9:$E$58,2,FALSE) ) )","v":""},"@",null,null,null,"",null,null,null,null,{"$f":"IF(TRIM(AS36)=\"\", \"\", IF(VLOOKUP(AS36,'Footnotes list'!$D$9:$E$58,2,FALSE)=0,\"\",VLOOKUP(AS36,'Footnotes list'!$D$9:$E$58,2,FALSE) ) )","v":""},null,null,null,null,{"$f":"IF(TRIM(AX36)=\"\", \"\", IF(VLOOKUP(AX36,'Footnotes list'!$D$9:$E$58,2,FALSE)=0,\"\",VLOOKUP(AX36,'Footnotes list'!$D$9:$E$58,2,FALSE) ) )","v":""},null,null,null,null,{"$f":"IF(TRIM(BC36)=\"\", \"\", IF(VLOOKUP(BC36,'Footnotes list'!$D$9:$E$58,2,FALSE)=0,\"\",VLOOKUP(BC36,'Footnotes list'!$D$9:$E$58,2,FALSE) ) )","v":""},null,null,null,null,{"$f":"IF(TRIM(BH36)=\"\", \"\", IF(VLOOKUP(BH36,'Footnotes list'!$D$9:$E$58,2,FALSE)=0,\"\",VLOOKUP(BH36,'Footnotes list'!$D$9:$E$58,2,FALSE) ) )","v":""},"@",null,null,null,"","@",null,null,null,"","@",null,null,null,"","@",null,null,null,"","@",null,null,null,"","@",null,null,null,"","@",null,null,null,"","@",null,null,null,"","@",null,null,null,"","@",null,null,null,"","@",null,null,null,"",null,null,null,null,{"$f":"IF(TRIM(DP36)=\"\", \"\", IF(VLOOKUP(DP36,'Footnotes list'!$D$9:$E$58,2,FALSE)=0,\"\",VLOOKUP(DP36,'Footnotes list'!$D$9:$E$58,2,FALSE) ) )","v":""},"",null,null,null,{"$f":"IF(TRIM(DU36)=\"\", \"\", IF(VLOOKUP(DU36,'Footnotes list'!$D$9:$E$58,2,FALSE)=0,\"\",VLOOKUP(DU36,'Footnotes list'!$D$9:$E$58,2,FALSE) ) )","v":""},"@",null,null,null,"","@",null,null,null,"","@",null,null,null,"","@",null,null,null,"","@",null,null,null,"","@",null,null,null,"","@",null,null,null,"","",null,null,null,{"$f":"IF(TRIM(FI36)=\"\", \"\", IF(VLOOKUP(FI36,'Footnotes list'!$D$9:$E$58,2,FALSE)=0,\"\",VLOOKUP(FI36,'Footnotes list'!$D$9:$E$58,2,FALSE) ) )","v":""}]
["S11_S12","P51G_CREP_EC","M","Total M - Professional, scientific and technical activities",null,null,null,null,null,null,{"$f":"IF(TRIM(J37)=\"\", \"\", IF(VLOOKUP(J37,'Footnotes list'!$D$9:$E$58,2,FALSE)=0,\"\",VLOOKUP(J37,'Footnotes list'!$D$9:$E$58,2,FALSE) ) )","v":""},null,null,null,null,{"$f":"IF(TRIM(O37)=\"\", \"\", IF(VLOOKUP(O37,'Footnotes list'!$D$9:$E$58,2,FALSE)=0,\"\",VLOOKUP(O37,'Footnotes list'!$D$9:$E$58,2,FALSE) ) )","v":""},null,null,null,null,{"$f":"IF(TRIM(T37)=\"\", \"\", IF(VLOOKUP(T37,'Footnotes list'!$D$9:$E$58,2,FALSE)=0,\"\",VLOOKUP(T37,'Footnotes list'!$D$9:$E$58,2,FALSE) ) )","v":""},null,null,null,null,{"$f":"IF(TRIM(Y37)=\"\", \"\", IF(VLOOKUP(Y37,'Footnotes list'!$D$9:$E$58,2,FALSE)=0,\"\",VLOOKUP(Y37,'Footnotes list'!$D$9:$E$58,2,FALSE) ) )","v":""},null,null,null,null,{"$f":"IF(TRIM(AD37)=\"\", \"\", IF(VLOOKUP(AD37,'Footnotes list'!$D$9:$E$58,2,FALSE)=0,\"\",VLOOKUP(AD37,'Footnotes list'!$D$9:$E$58,2,FALSE) ) )","v":""},null,null,null,null,{"$f":"IF(TRIM(AI37)=\"\", \"\", IF(VLOOKUP(AI37,'Footnotes list'!$D$9:$E$58,2,FALSE)=0,\"\",VLOOKUP(AI37,'Footnotes list'!$D$9:$E$58,2,FALSE) ) )","v":""},"@",null,null,null,"",null,null,null,null,{"$f":"IF(TRIM(AS37)=\"\", \"\", IF(VLOOKUP(AS37,'Footnotes list'!$D$9:$E$58,2,FALSE)=0,\"\",VLOOKUP(AS37,'Footnotes list'!$D$9:$E$58,2,FALSE) ) )","v":""},null,null,null,null,{"$f":"IF(TRIM(AX37)=\"\", \"\", IF(VLOOKUP(AX37,'Footnotes list'!$D$9:$E$58,2,FALSE)=0,\"\",VLOOKUP(AX37,'Footnotes list'!$D$9:$E$58,2,FALSE) ) )","v":""},null,null,null,null,{"$f":"IF(TRIM(BC37)=\"\", \"\", IF(VLOOKUP(BC37,'Footnotes list'!$D$9:$E$58,2,FALSE)=0,\"\",VLOOKUP(BC37,'Footnotes list'!$D$9:$E$58,2,FALSE) ) )","v":""},null,null,null,null,{"$f":"IF(TRIM(BH37)=\"\", \"\", IF(VLOOKUP(BH37,'Footnotes list'!$D$9:$E$58,2,FALSE)=0,\"\",VLOOKUP(BH37,'Footnotes list'!$D$9:$E$58,2,FALSE) ) )","v":""},"@",null,null,null,"","@",null,null,null,"","@",null,null,null,"","@",null,null,null,"","@",null,null,null,"","@",null,null,null,"","@",null,null,null,"","@",null,null,null,"","@",null,null,null,"","@",null,null,null,"","@",null,null,null,"",null,null,null,null,{"$f":"IF(TRIM(DP37)=\"\", \"\", IF(VLOOKUP(DP37,'Footnotes list'!$D$9:$E$58,2,FALSE)=0,\"\",VLOOKUP(DP37,'Footnotes list'!$D$9:$E$58,2,FALSE) ) )","v":""},"",null,null,null,{"$f":"IF(TRIM(DU37)=\"\", \"\", IF(VLOOKUP(DU37,'Footnotes list'!$D$9:$E$58,2,FALSE)=0,\"\",VLOOKUP(DU37,'Footnotes list'!$D$9:$E$58,2,FALSE) ) )","v":""},"@",null,null,null,"","@",null,null,null,"","@",null,null,null,"","@",null,null,null,"","@",null,null,null,"","@",null,null,null,"","@",null,null,null,"","",null,null,null,{"$f":"IF(TRIM(FI37)=\"\", \"\", IF(VLOOKUP(FI37,'Footnotes list'!$D$9:$E$58,2,FALSE)=0,\"\",VLOOKUP(FI37,'Footnotes list'!$D$9:$E$58,2,FALSE) ) )","v":""}]
["S11_S12","P51G_CREP_EC","O","Total O - Public administration and defence, compulsory social security",null,null,null,null,null,null,{"$f":"IF(TRIM(J38)=\"\", \"\", IF(VLOOKUP(J38,'Footnotes list'!$D$9:$E$58,2,FALSE)=0,\"\",VLOOKUP(J38,'Footnotes list'!$D$9:$E$58,2,FALSE) ) )","v":""},null,null,null,null,{"$f":"IF(TRIM(O38)=\"\", \"\", IF(VLOOKUP(O38,'Footnotes list'!$D$9:$E$58,2,FALSE)=0,\"\",VLOOKUP(O38,'Footnotes list'!$D$9:$E$58,2,FALSE) ) )","v":""},null,null,null,null,{"$f":"IF(TRIM(T38)=\"\", \"\", IF(VLOOKUP(T38,'Footnotes list'!$D$9:$E$58,2,FALSE)=0,\"\",VLOOKUP(T38,'Footnotes list'!$D$9:$E$58,2,FALSE) ) )","v":""},null,null,null,null,{"$f":"IF(TRIM(Y38)=\"\", \"\", IF(VLOOKUP(Y38,'Footnotes list'!$D$9:$E$58,2,FALSE)=0,\"\",VLOOKUP(Y38,'Footnotes list'!$D$9:$E$58,2,FALSE) ) )","v":""},null,null,null,null,{"$f":"IF(TRIM(AD38)=\"\", \"\", IF(VLOOKUP(AD38,'Footnotes list'!$D$9:$E$58,2,FALSE)=0,\"\",VLOOKUP(AD38,'Footnotes list'!$D$9:$E$58,2,FALSE) ) )","v":""},null,null,null,null,{"$f":"IF(TRIM(AI38)=\"\", \"\", IF(VLOOKUP(AI38,'Footnotes list'!$D$9:$E$58,2,FALSE)=0,\"\",VLOOKUP(AI38,'Footnotes list'!$D$9:$E$58,2,FALSE) ) )","v":""},"@",null,null,null,"",null,null,null,null,{"$f":"IF(TRIM(AS38)=\"\", \"\", IF(VLOOKUP(AS38,'Footnotes list'!$D$9:$E$58,2,FALSE)=0,\"\",VLOOKUP(AS38,'Footnotes list'!$D$9:$E$58,2,FALSE) ) )","v":""},null,null,null,null,{"$f":"IF(TRIM(AX38)=\"\", \"\", IF(VLOOKUP(AX38,'Footnotes list'!$D$9:$E$58,2,FALSE)=0,\"\",VLOOKUP(AX38,'Footnotes list'!$D$9:$E$58,2,FALSE) ) )","v":""},null,null,null,null,{"$f":"IF(TRIM(BC38)=\"\", \"\", IF(VLOOKUP(BC38,'Footnotes list'!$D$9:$E$58,2,FALSE)=0,\"\",VLOOKUP(BC38,'Footnotes list'!$D$9:$E$58,2,FALSE) ) )","v":""},null,null,null,null,{"$f":"IF(TRIM(BH38)=\"\", \"\", IF(VLOOKUP(BH38,'Footnotes list'!$D$9:$E$58,2,FALSE)=0,\"\",VLOOKUP(BH38,'Footnotes list'!$D$9:$E$58,2,FALSE) ) )","v":""},"@",null,null,null,"","@",null,null,null,"","@",null,null,null,"","@",null,null,null,"","@",null,null,null,"","@",null,null,null,"","@",null,null,null,"","@",null,null,null,"","@",null,null,null,"","@",null,null,null,"","@",null,null,null,"",null,null,null,null,{"$f":"IF(TRIM(DP38)=\"\", \"\", IF(VLOOKUP(DP38,'Footnotes list'!$D$9:$E$58,2,FALSE)=0,\"\",VLOOKUP(DP38,'Footnotes list'!$D$9:$E$58,2,FALSE) ) )","v":""},"",null,null,null,{"$f":"IF(TRIM(DU38)=\"\", \"\", IF(VLOOKUP(DU38,'Footnotes list'!$D$9:$E$58,2,FALSE)=0,\"\",VLOOKUP(DU38,'Footnotes list'!$D$9:$E$58,2,FALSE) ) )","v":""},"@",null,null,null,"","@",null,null,null,"","@",null,null,null,"","@",null,null,null,"","@",null,null,null,"","@",null,null,null,"","@",null,null,null,"","",null,null,null,{"$f":"IF(TRIM(FI38)=\"\", \"\", IF(VLOOKUP(FI38,'Footnotes list'!$D$9:$E$58,2,FALSE)=0,\"\",VLOOKUP(FI38,'Footnotes list'!$D$9:$E$58,2,FALSE) ) )","v":""}]
["S11_S12","P51G_CREP_EC","P","Total P - Education",null,null,null,null,null,null,{"$f":"IF(TRIM(J39)=\"\", \"\", IF(VLOOKUP(J39,'Footnotes list'!$D$9:$E$58,2,FALSE)=0,\"\",VLOOKUP(J39,'Footnotes list'!$D$9:$E$58,2,FALSE) ) )","v":""},null,null,null,null,{"$f":"IF(TRIM(O39)=\"\", \"\", IF(VLOOKUP(O39,'Footnotes list'!$D$9:$E$58,2,FALSE)=0,\"\",VLOOKUP(O39,'Footnotes list'!$D$9:$E$58,2,FALSE) ) )","v":""},null,null,null,null,{"$f":"IF(TRIM(T39)=\"\", \"\", IF(VLOOKUP(T39,'Footnotes list'!$D$9:$E$58,2,FALSE)=0,\"\",VLOOKUP(T39,'Footnotes list'!$D$9:$E$58,2,FALSE) ) )","v":""},null,null,null,null,{"$f":"IF(TRIM(Y39)=\"\", \"\", IF(VLOOKUP(Y39,'Footnotes list'!$D$9:$E$58,2,FALSE)=0,\"\",VLOOKUP(Y39,'Footnotes list'!$D$9:$E$58,2,FALSE) ) )","v":""},null,null,null,null,{"$f":"IF(TRIM(AD39)=\"\", \"\", IF(VLOOKUP(AD39,'Footnotes list'!$D$9:$E$58,2,FALSE)=0,\"\",VLOOKUP(AD39,'Footnotes list'!$D$9:$E$58,2,FALSE) ) )","v":""},null,null,null,null,{"$f":"IF(TRIM(AI39)=\"\", \"\", IF(VLOOKUP(AI39,'Footnotes list'!$D$9:$E$58,2,FALSE)=0,\"\",VLOOKUP(AI39,'Footnotes list'!$D$9:$E$58,2,FALSE) ) )","v":""},"@",null,null,null,"",null,null,null,null,{"$f":"IF(TRIM(AS39)=\"\", \"\", IF(VLOOKUP(AS39,'Footnotes list'!$D$9:$E$58,2,FALSE)=0,\"\",VLOOKUP(AS39,'Footnotes list'!$D$9:$E$58,2,FALSE) ) )","v":""},null,null,null,null,{"$f":"IF(TRIM(AX39)=\"\", \"\", IF(VLOOKUP(AX39,'Footnotes list'!$D$9:$E$58,2,FALSE)=0,\"\",VLOOKUP(AX39,'Footnotes list'!$D$9:$E$58,2,FALSE) ) )","v":""},null,null,null,null,{"$f":"IF(TRIM(BC39)=\"\", \"\", IF(VLOOKUP(BC39,'Footnotes list'!$D$9:$E$58,2,FALSE)=0,\"\",VLOOKUP(BC39,'Footnotes list'!$D$9:$E$58,2,FALSE) ) )","v":""},null,null,null,null,{"$f":"IF(TRIM(BH39)=\"\", \"\", IF(VLOOKUP(BH39,'Footnotes list'!$D$9:$E$58,2,FALSE)=0,\"\",VLOOKUP(BH39,'Footnotes list'!$D$9:$E$58,2,FALSE) ) )","v":""},"@",null,null,null,"","@",null,null,null,"","@",null,null,null,"","@",null,null,null,"","@",null,null,null,"","@",null,null,null,"","@",null,null,null,"","@",null,null,null,"","@",null,null,null,"","@",null,null,null,"","@",null,null,null,"",null,null,null,null,{"$f":"IF(TRIM(DP39)=\"\", \"\", IF(VLOOKUP(DP39,'Footnotes list'!$D$9:$E$58,2,FALSE)=0,\"\",VLOOKUP(DP39,'Footnotes list'!$D$9:$E$58,2,FALSE) ) )","v":""},"",null,null,null,{"$f":"IF(TRIM(DU39)=\"\", \"\", IF(VLOOKUP(DU39,'Footnotes list'!$D$9:$E$58,2,FALSE)=0,\"\",VLOOKUP(DU39,'Footnotes list'!$D$9:$E$58,2,FALSE) ) )","v":""},"@",null,null,null,"","@",null,null,null,"","@",null,null,null,"","@",null,null,null,"","@",null,null,null,"","@",null,null,null,"","@",null,null,null,"","",null,null,null,{"$f":"IF(TRIM(FI39)=\"\", \"\", IF(VLOOKUP(FI39,'Footnotes list'!$D$9:$E$58,2,FALSE)=0,\"\",VLOOKUP(FI39,'Footnotes list'!$D$9:$E$58,2,FALSE) ) )","v":""}]
["S11_S12","P51G_CREP_EC","G-I_K_L_N_Q-U","Total G + H + I + K + L + N + Q + R + S + T + U -Services (except information and communication, professional, scientific and technical activities, public administration and defence; compulsory social security and education)",null,null,null,null,null,null,{"$f":"IF(TRIM(J40)=\"\", \"\", IF(VLOOKUP(J40,'Footnotes list'!$D$9:$E$58,2,FALSE)=0,\"\",VLOOKUP(J40,'Footnotes list'!$D$9:$E$58,2,FALSE) ) )","v":""},null,null,null,null,{"$f":"IF(TRIM(O40)=\"\", \"\", IF(VLOOKUP(O40,'Footnotes list'!$D$9:$E$58,2,FALSE)=0,\"\",VLOOKUP(O40,'Footnotes list'!$D$9:$E$58,2,FALSE) ) )","v":""},null,null,null,null,{"$f":"IF(TRIM(T40)=\"\", \"\", IF(VLOOKUP(T40,'Footnotes list'!$D$9:$E$58,2,FALSE)=0,\"\",VLOOKUP(T40,'Footnotes list'!$D$9:$E$58,2,FALSE) ) )","v":""},null,null,null,null,{"$f":"IF(TRIM(Y40)=\"\", \"\", IF(VLOOKUP(Y40,'Footnotes list'!$D$9:$E$58,2,FALSE)=0,\"\",VLOOKUP(Y40,'Footnotes list'!$D$9:$E$58,2,FALSE) ) )","v":""},null,null,null,null,{"$f":"IF(TRIM(AD40)=\"\", \"\", IF(VLOOKUP(AD40,'Footnotes list'!$D$9:$E$58,2,FALSE)=0,\"\",VLOOKUP(AD40,'Footnotes list'!$D$9:$E$58,2,FALSE) ) )","v":""},null,null,null,null,{"$f":"IF(TRIM(AI40)=\"\", \"\", IF(VLOOKUP(AI40,'Footnotes list'!$D$9:$E$58,2,FALSE)=0,\"\",VLOOKUP(AI40,'Footnotes list'!$D$9:$E$58,2,FALSE) ) )","v":""},"@",null,null,null,"",null,null,null,null,{"$f":"IF(TRIM(AS40)=\"\", \"\", IF(VLOOKUP(AS40,'Footnotes list'!$D$9:$E$58,2,FALSE)=0,\"\",VLOOKUP(AS40,'Footnotes list'!$D$9:$E$58,2,FALSE) ) )","v":""},null,null,null,null,{"$f":"IF(TRIM(AX40)=\"\", \"\", IF(VLOOKUP(AX40,'Footnotes list'!$D$9:$E$58,2,FALSE)=0,\"\",VLOOKUP(AX40,'Footnotes list'!$D$9:$E$58,2,FALSE) ) )","v":""},null,null,null,null,{"$f":"IF(TRIM(BC40)=\"\", \"\", IF(VLOOKUP(BC40,'Footnotes list'!$D$9:$E$58,2,FALSE)=0,\"\",VLOOKUP(BC40,'Footnotes list'!$D$9:$E$58,2,FALSE) ) )","v":""},null,null,null,null,{"$f":"IF(TRIM(BH40)=\"\", \"\", IF(VLOOKUP(BH40,'Footnotes list'!$D$9:$E$58,2,FALSE)=0,\"\",VLOOKUP(BH40,'Footnotes list'!$D$9:$E$58,2,FALSE) ) )","v":""},"@",null,null,null,"","@",null,null,null,"","@",null,null,null,"","@",null,null,null,"","@",null,null,null,"","@",null,null,null,"","@",null,null,null,"","@",null,null,null,"","@",null,null,null,"","@",null,null,null,"","@",null,null,null,"",null,null,null,null,{"$f":"IF(TRIM(DP40)=\"\", \"\", IF(VLOOKUP(DP40,'Footnotes list'!$D$9:$E$58,2,FALSE)=0,\"\",VLOOKUP(DP40,'Footnotes list'!$D$9:$E$58,2,FALSE) ) )","v":""},"",null,null,null,{"$f":"IF(TRIM(DU40)=\"\", \"\", IF(VLOOKUP(DU40,'Footnotes list'!$D$9:$E$58,2,FALSE)=0,\"\",VLOOKUP(DU40,'Footnotes list'!$D$9:$E$58,2,FALSE) ) )","v":""},"@",null,null,null,"","@",null,null,null,"","@",null,null,null,"","@",null,null,null,"","@",null,null,null,"","@",null,null,null,"","@",null,null,null,"",{"$f":"IF(COUNT(DR40)=1,SUM(DR40),\"\")","v":""},null,null,null,{"$f":"IF(TRIM(FI40)=\"\", \"\", IF(VLOOKUP(FI40,'Footnotes list'!$D$9:$E$58,2,FALSE)=0,\"\",VLOOKUP(FI40,'Footnotes list'!$D$9:$E$58,2,FALSE) ) )","v":""}]
[]
[null,null,null,"Black: Not applicable"]
[null,null,null,"Grey: Automatic calculation. Formula can be overwritten (with \"unlock formulas\")"]
[null,null,null,"Cyan: Non Mandatory variables"]
[null,null,null,"Light yellow: Footnotes (only to be filled-in when relevant)"]

{"sheet":"ErrorLog","index":10,"n_rows":259,"n_cols":7,"rows_kept":259,"cut":false,"hidden":false,"merged":[]}
["Link to Error","Validation Rule","Cell","Sheet","Description","Severity","Former Color"]
[null,null,null,null,null,null,16777215]
[null,null,null,null,null,null,16777215]
[null,null,null,null,null,null,16777215]
[null,null,null,null,null,null,16777215]
[null,null,null,null,null,null,16777215]
[null,null,null,null,null,null,16777215]
[null,null,null,null,null,null,12566463]
[null,null,null,null,null,null,12566463]
[null,null,null,null,null,null,12566463]
[null,null,null,null,null,null,16777215]
[null,null,null,null,null,null,12566463]
[null,null,null,null,null,null,12566463]
[null,null,null,null,null,null,16777215]
[null,null,null,null,null,null,16777215]
[null,null,null,null,null,null,16777215]
[null,null,null,null,null,null,16777215]
[null,null,null,null,null,null,16777215]
[null,null,null,null,null,null,16777215]
[null,null,null,null,null,null,16777215]
[null,null,null,null,null,null,16777215]
[null,null,null,null,null,null,16777215]
[null,null,null,null,null,null,16777215]
[null,null,null,null,null,null,16777215]
[null,null,null,null,null,null,16777215]
[null,null,null,null,null,null,16777215]
[null,null,null,null,null,null,16777215]
[null,null,null,null,null,null,16777215]
[null,null,null,null,null,null,16777215]
[null,null,null,null,null,null,16777215]
[null,null,null,null,null,null,16777215]
[null,null,null,null,null,null,16777215]
[null,null,null,null,null,null,16777215]
[null,null,null,null,null,null,16777215]
[null,null,null,null,null,null,16777215]
[null,null,null,null,null,null,16777215]
[null,null,null,null,null,null,16777215]
[null,null,null,null,null,null,12566463]
[null,null,null,null,null,null,12566463]
[null,null,null,null,null,null,12566463]
[null,null,null,null,null,null,12566463]
[null,null,null,null,null,null,16777215]
[null,null,null,null,null,null,16777215]
[null,null,null,null,null,null,16777215]
[null,null,null,null,null,null,16777215]
[null,null,null,null,null,null,16777215]
[null,null,null,null,null,null,16777215]
[null,null,null,null,null,null,16777215]
[null,null,null,null,null,null,16777215]
[null,null,null,null,null,null,16777215]
[null,null,null,null,null,null,16777215]
[null,null,null,null,null,null,16777215]
[null,null,null,null,null,null,16777215]
[null,null,null,null,null,null,16777215]
[null,null,null,null,null,null,16777215]
[null,null,null,null,null,null,16777215]
[null,null,null,null,null,null,16777215]
[null,null,null,null,null,null,16777215]
[null,null,null,null,null,null,16777215]
[null,null,null,null,null,null,16777215]
[null,null,null,null,null,null,16777215]
[null,null,null,null,null,null,16777215]
[null,null,null,null,null,null,16777215]
[null,null,null,null,null,null,16777215]
[null,null,null,null,null,null,16777215]
[null,null,null,null,null,null,12566463]
[null,null,null,null,null,null,12566463]
[null,null,null,null,null,null,12566463]
[null,null,null,null,null,null,16777215]
[null,null,null,null,null,null,12566463]
[null,null,null,null,null,null,12566463]
[null,null,null,null,null,null,16777215]
[null,null,null,null,null,null,16777215]
[null,null,null,null,null,null,16777215]
[null,null,null,null,null,null,16777215]
[null,null,null,null,null,null,16777215]
[null,null,null,null,null,null,16777215]
[null,null,null,null,null,null,16777215]
[null,null,null,null,null,null,16777215]
[null,null,null,null,null,null,16777215]
[null,null,null,null,null,null,16777215]
[null,null,null,null,null,null,16777215]
[null,null,null,null,null,null,16777215]
[null,null,null,null,null,null,16777215]
[null,null,null,null,null,null,16777215]
[null,null,null,null,null,null,16777215]
[null,null,null,null,null,null,16777215]
[null,null,null,null,null,null,16777215]
[null,null,null,null,null,null,16777215]
[null,null,null,null,null,null,16777215]
[null,null,null,null,null,null,16777215]
[null,null,null,null,null,null,16777215]
[null,null,null,null,null,null,16777215]
[null,null,null,null,null,null,12566463]
[null,null,null,null,null,null,12566463]
[null,null,null,null,null,null,12566463]
[null,null,null,null,null,null,16777215]
[null,null,null,null,null,null,12566463]
[null,null,null,null,null,null,12566463]
[null,null,null,null,null,null,16777215]
[null,null,null,null,null,null,16777215]
[null,null,null,null,null,null,16777215]
[null,null,null,null,null,null,16777215]
[null,null,null,null,null,null,16777215]
[null,null,null,null,null,null,16777215]
[null,null,null,null,null,null,16777215]
[null,null,null,null,null,null,16777215]
[null,null,null,null,null,null,16777215]
[null,null,null,null,null,null,16777215]
[null,null,null,null,null,null,16777215]
[null,null,null,null,null,null,16777215]
[null,null,null,null,null,null,16777215]
[null,null,null,null,null,null,16777215]
[null,null,null,null,null,null,16777215]
[null,null,null,null,null,null,16777215]
[null,null,null,null,null,null,16777215]
[null,null,null,null,null,null,16777215]
[null,null,null,null,null,null,16777215]
[null,null,null,null,null,null,16777215]
[null,null,null,null,null,null,16777215]
[null,null,null,null,null,null,16777215]
[null,null,null,null,null,null,12566463]
[null,null,null,null,null,null,12566463]
[null,null,null,null,null,null,12566463]
[null,null,null,null,null,null,16777215]
[null,null,null,null,null,null,12566463]
[null,null,null,null,null,null,12566463]
[null,null,null,null,null,null,12566463]
[null,null,null,null,null,null,16777215]
[null,null,null,null,null,null,12566463]
[null,null,null,null,null,null,12566463]
[null,null,null,null,null,null,12566463]
[null,null,null,null,null,null,16777215]
[null,null,null,null,null,null,16777215]
[null,null,null,null,null,null,16777215]
[null,null,null,null,null,null,16777215]
[null,null,null,null,null,null,16777215]
[null,null,null,null,null,null,16777215]
[null,null,null,null,null,null,16777215]
[null,null,null,null,null,null,16777215]
[null,null,null,null,null,null,16777215]
[null,null,null,null,null,null,16777215]
[null,null,null,null,null,null,16777215]
[null,null,null,null,null,null,16777215]
[null,null,null,null,null,null,16777215]
[null,null,null,null,null,null,16777215]
[null,null,null,null,null,null,16777215]
[null,null,null,null,null,null,16777215]
[null,null,null,null,null,null,16777215]
[null,null,null,null,null,null,16777215]
[null,null,null,null,null,null,16777215]
[null,null,null,null,null,null,16777215]
[null,null,null,null,null,null,16777215]
[null,null,null,null,null,null,16777215]
[null,null,null,null,null,null,16777215]
[null,null,null,null,null,null,16777215]
[null,null,null,null,null,null,16777215]
[null,null,null,null,null,null,16777215]
[null,null,null,null,null,null,16777215]
[null,null,null,null,null,null,16777215]
[null,null,null,null,null,null,16777215]
[null,null,null,null,null,null,16777215]
[null,null,null,null,null,null,16777215]
[null,null,null,null,null,null,16777215]
[null,null,null,null,null,null,16777215]
[null,null,null,null,null,null,16777215]
[null,null,null,null,null,null,12566463]
[null,null,null,null,null,null,12566463]
[null,null,null,null,null,null,12566463]
[null,null,null,null,null,null,16777215]
[null,null,null,null,null,null,16777215]
[null,null,null,null,null,null,16777215]
[null,null,null,null,null,null,16777215]
[null,null,null,null,null,null,16777215]
[null,null,null,null,null,null,16777215]
[null,null,null,null,null,null,16777215]
[null,null,null,null,null,null,16777215]
[null,null,null,null,null,null,16777215]
[null,null,null,null,null,null,16777215]
[null,null,null,null,null,null,16777215]
[null,null,null,null,null,null,16777215]
[null,null,null,null,null,null,12566463]
[null,null,null,null,null,null,12566463]
[null,null,null,null,null,null,12566463]
[null,null,null,null,null,null,16777215]
[null,null,null,null,null,null,16777215]
[null,null,null,null,null,null,16777215]
[null,null,null,null,null,null,16777215]
[null,null,null,null,null,null,16777215]
[null,null,null,null,null,null,16777215]
[null,null,null,null,null,null,16777215]
[null,null,null,null,null,null,16777215]
[null,null,null,null,null,null,16777215]
[null,null,null,null,null,null,16777215]
[null,null,null,null,null,null,16777215]
[null,null,null,null,null,null,12566463]
[null,null,null,null,null,null,12566463]
[null,null,null,null,null,null,12566463]
[null,null,null,null,null,null,16777215]
[null,null,null,null,null,null,16777215]
[null,null,null,null,null,null,16777215]
[null,null,null,null,null,null,16777215]
[null,null,null,null,null,null,16777215]
[null,null,null,null,null,null,16777215]
[null,null,null,null,null,null,16777215]
[null,null,null,null,null,null,16777215]
[null,null,null,null,null,null,16777215]
[null,null,null,null,null,null,16777215]
[null,null,null,null,null,null,16777215]
[null,null,null,null,null,null,12566463]
[null,null,null,null,null,null,12566463]
[null,null,null,null,null,null,12566463]
[null,null,null,null,null,null,12566463]
[null,null,null,null,null,null,12566463]
[null,null,null,null,null,null,12566463]
[null,null,null,null,null,null,12566463]
[null,null,null,null,null,null,12566463]
[null,null,null,null,null,null,12566463]
[null,null,null,null,null,null,12566463]
[null,null,null,null,null,null,12566463]
[null,null,null,null,null,null,12566463]
[null,null,null,null,null,null,12566463]
[null,null,null,null,null,null,12566463]
[null,null,null,null,null,null,12566463]
[null,null,null,null,null,null,12566463]
[null,null,null,null,null,null,12566463]
[null,null,null,null,null,null,12566463]
[null,null,null,null,null,null,12566463]
[null,null,null,null,null,null,12566463]
[null,null,null,null,null,null,12566463]
[null,null,null,null,null,null,12566463]
[null,null,null,null,null,null,12566463]
[null,null,null,null,null,null,12566463]
[null,null,null,null,null,null,12566463]
[null,null,null,null,null,null,12566463]
[null,null,null,null,null,null,12566463]
[null,null,null,null,null,null,12566463]
[null,null,null,null,null,null,12566463]
[null,null,null,null,null,null,12566463]
[null,null,null,null,null,null,16777164]
[null,null,null,null,null,null,16777215]
[null,null,null,null,null,null,16777164]
[null,null,null,null,null,null,16777164]
[null,null,null,null,null,null,16777215]
[null,null,null,null,null,null,16777164]
[null,null,null,null,null,null,16777215]
[null,null,null,null,null,null,16777215]
[null,null,null,null,null,null,16777215]
[null,null,null,null,null,null,16777215]
[null,null,null,null,null,null,16777215]
[null,null,null,null,null,null,16777215]
[null,null,null,null,null,null,16777164]
[null,null,null,null,null,null,16777164]
[null,null,null,null,null,null,16777164]
[null,null,null,null,null,null,12566463]
[null,null,null,null,null,null,12566463]
[null,null,null,null,null,null,16777164]
[null,null,null,null,null,null,16777164]
[null,null,null,null,null,null,16777164]

{"sheet":"Codes and labels","index":11,"n_rows":45,"n_cols":14,"rows_kept":45,"cut":false,"hidden":true,"merged":[[8,2,8,3],[7,2,7,3],[1,7,1,8],[1,2,1,3],[2,2,2,3],[3,2,3,3],[6,7,6,8],[5,7,5,8],[4,7,4,8],[3,7,3,8],[2,7,2,8],[6,2,6,3],[5,2,5,3],[4,2,4,3],[11,7,11,8],[10,7,10,8],[9,7,9,8],[8,7,8,8],[7,7,7,8],[16,7,16,8],[15,7,15,8],[14,7,14,8],[13,7,13,8],[12,7,12,8],[21,7,21,8],[20,7,20,8],[19,7,19,8],[18,7,18,8],[17,7,17,8],[26,7,26,8],[25,7,25,8],[24,7,24,8],[23,7,23,8],[22,7,22,8],[31,7,31,8],[30,7,30,8],[29,7,29,8],[28,7,28,8],[27,7,27,8],[44,7,44,8],[43,7,43,8],[42,7,42,8],[41,7,41,8],[40,7,40,8],[34,7,34,8],[33,7,33,8],[32,7,32,8],[39,7,39,8],[38,7,38,8],[37,7,37,8],[36,7,36,8],[35,7,35,8]]}
[]
[null,"TOT_EGSS","Total EGSS",null,null,null,"TOTAL","Total output, of which:",null,null,null,"CEP01","CEP 01","Air and climate"]
[null,"ANC","ancillary activities",null,null,null,"A","Total A - Agriculture, forestry and fishing, of which",null,null,null,"CEP0101","CEP 0101","Reduction and control of greenhouse gases"]
[null,"NMKT","non-market activities",null,null,null,"B","Total B - Mining and quarrying, of which",null,null,null,"CEP0102","CEP 0102","Reduction and control of other pollutants"]
[null,"OWN_USE","activities for own final use",null,null,null,"C","Total C - Manufacturing, of which:",null,null,null,"CEP0201","CEP 0201","Energy from renewable sources"]
[null,"MKT","market activities, including:",null,null,null,"C10-C12","Total  C10 - C12 - Manufacture of food products, beverages and tobacco products, of which:",null,null,null,"CEP020101","CEP 020101","Production of renewebale energy"]
[null,"ES_CS","environmental specific services",null,null,null,"C13-C15","Total C13 - C15 Manufacture of textiles, wearing apparel, leather and related products, of which:",null,null,null,"CEP0202","CEP 0202","Energy saving and management"]
[null,"C_REP","cleaner and resource efficient products",null,null,null,"C16-C18","Total C16 - C18 Manufacture of wood and paper products, and printing, of which:",null,null,null,"CEP020201","CEP 020201","Energy savings through in-process modifications"]
[null,"ES_CP","other environmental specific products",null,null,null,"C19","Total C19 - Manufacture of coke and refined petroleum products, of which:",null,null,null,"CEP020202","CEP 020202","Energy efficient buildings and other efficient energy demand technologies"]
[null,null,null,null,null,null,"C20","Total C20 - Manufacture of chemicals and chemical products, of which:",null,null,null,"CEP0301","CEP 0301","Wastewater management"]
[null,null,null,null,null,null,"C21","Total C21 - Manufacture of basic pharmaceutical products and pharmaceutical preparations, of which:",null,null,null,"CEP0302","CEP 0302","Water savings and management of natural water ressources"]
[null,null,null,null,null,null,"C22_C23","Total C22 - C23 Manufacture of rubber and plastic products, and other non-metallic mineral products, of which:",null,null,null,"CEP0401","CEP 0401","Waste management"]
[null,null,null,null,null,null,"C24_C25","Total C24 - C25 Manufacture of basic metals and fabricated metal products, except machinery and equipment, of which:",null,null,null,"CEP0402","CEP 0402","Materials recovery and savings"]
[null,null,null,null,null,null,"C26","Total C26 - Manufacture of computer, electronic and optical products, of which:",null,null,null,"CEP0501","CEP 0501","Protection of soil, surface and groundwater"]
[null,null,null,null,null,null,"C27","Total C27 - Manufacture of electrical equipment, of which:",null,null,null,"CEP0502","CEP 0502","Protection of biodiversity and landscape"]
[null,null,null,null,null,null,"C28","Total C28 - Manufacture of machinery and equipment n.e.c., of which:",null,null,null,"CEP0503","CEP 0503","Management of forest resources"]
[null,null,null,null,null,null,"C29_C30","Total C29 - C30 Manufacture of transport equipment, of which:",null,null,null,"CEP050301","CEP 050301","Reforestation, afforestation and forest-related land management "]
[null,null,null,null,null,null,"C31-C33","Total C31 - C33 Manufacture of furniture; other manufacturing; repair and installation of machinery and equipment, of which:",null,null,null,"CEP06","CEP 06","Noise and radiation"]
[null,null,null,null,null,null,"D","Total D- Electricity, gas, steam and air conditioning supply, of which:",null,null,null,"CEP0701_3_5_07_09","CEP 0701 + 0703 + 0705 + 0707 + 0709","R&D for reduction and control of air emissions; wasterwater management; waste management; soil, surface, groundwater and biodiversity; noise and radiation"]
[null,null,null,null,null,null,"E","Total E - Water supply; sewerage, waste management and remediation activities, of which:",null,null,null,"CEP0701","CEP 0701","R&D for reduction and control of air emissions"]
[null,null,null,null,null,null,"E36","Total E36 - Water collection, treatment and supply, of which:",null,null,null,"CEP070101","CEP 070101","R&D for reduction and control of greenhouse gases"]
[null,null,null,null,null,null,"E37","Total E37 - Sewerage, of which:",null,null,null,"CEP0703","CEP 0703","R&D for wasterwater management"]
[null,null,null,null,null,null,"E38","Total E38 - Waste collection, treatment and disposal activities; materials recovery, of which:",null,null,null,"CEP0705","CEP 0705","R&D for waste management"]
[null,null,null,null,null,null,"E39","Total E39 - Remediation activities and other waste management services, of which:",null,null,null,"CEP0707","CEP 0707","R&D for soil, surface, groundwater and biodiversity"]
[null,null,null,null,null,null,"F","Total F Construction, of which:",null,null,null,"CEP0709","CEP 0709","R&D for noise and radiation"]
[null,null,null,null,null,null,"G","Total G - Wholesale and retail trade, of which:",null,null,null,"CEP0702_04_06_08","CEP 0702 + 0704 + 0706 + 0708","R&D for energy; water resources; materials recovery and savings; forest management"]
[null,null,null,null,null,null,"H","Total H - Transportation and storage, of which:",null,null,null,"CEP0702","CEP 0702","R&D for energy"]
[null,null,null,null,null,null,"I","Total I - Accommodation and food service activities, of which:",null,null,null,"CEP0704","CEP 0704","R&D for water resources"]
[null,null,null,null,null,null,"J","Total J - Information and communication, of which:",null,null,null,"CEP0706","CEP 0706","R&D for materials recovery and savings"]
[null,null,null,null,null,null,"K","Total K - Financial and insurance activities, of which:",null,null,null,"CEP0708","CEP 0708","R&D for forest management"]
[null,null,null,null,null,null,"L","Total L - Real estate activities, of which:",null,null,null,"CEP08","CEP 08","Cross-cutting and other environmental purposes"]
[null,null,null,null,null,null,"M","Total M - Professional, scientific and technical activities, of which:",null,null,null,"TOT_CEP","TOT_CEP","Total CEP"]
[null,null,null,null,null,null,"M69_M70","Total M69-M70 - Legal and accounting activities; Activities of head offices; management consultancy activities, of which:",null,null,null,"CEP020202_NZEB","CEP 020202_NZEB","Part of output related to energy-efficiency measures undertaken for the construction of the NZEBs"]
[null,null,null,null,null,null,"M71","Total M71 - Architectural and engineering activities; technical testing and analysis, of which:",null,null,null,"CEP_NOT_LIST",null,"CEP not listed"]
[null,null,null,null,null,null,"M72","Total M72 - Scientific research and development, of which:",null,null,null,"NUC_PROD",null,"Production of nuclear energy"]
[null,null,null,null,null,null,"M73-M75","Total M73-M75 - Advertising and market research; Other professional, scientific and technical activities; Veterinary activities, of which:",null,null,null,"NUC_R&D",null,"R&D for nuclear energy"]
[null,null,null,null,null,null,"N","Total N - Administrative and support service activities, of which:",null,null,null,"NRG_GRID",null,"Energy grids"]
[null,null,null,null,null,null,"O","Total O - Public administration and defence, compulsory social security, of which:",null,null,null,"LOWC_TR_AC",null,"Low carbon transport activities"]
[null,null,null,null,null,null,"P","Total P - Education, of which:",null,null,null,"LOWC_TR_INF",null,"Low carbon transport infrastructures"]
[null,null,null,null,null,null,"Q","Total Q - Human health and social work activities, of which:",null,null,null,"CCM_NON_CEP_OTH",null,"Other climate change mitigation out of CEP scope"]
[null,null,null,null,null,null,"R","Total R - Arts, entertainment and recreation, of which:",null,null,null,"CCM_NON_CEP",null,"Climate change mitigation out of CEP scope"]
[null,null,null,null,null,null,"S","Total S - Other service activities, of which:",null,null,null,"CCM ",null,"Climate change mitigation"]
[null,null,null,null,null,null,"T","Total T - Activities of households as employers; undifferentiated goods- and services-producing activities of households for own use, of which:"]
[null,null,null,null,null,null,"U","Total U - Activities of extraterritorial organizations and bodies, of which:"]
[null,null,null,null,null,null,"G-I_K_L_N_Q-U","Total G + H + I + K + L + N + Q + R + S + T + U -Services (except information and communication, professional, scientific and technical activities, public administration and defence; compulsory social security and education), of which:"]

{"sheet":"Lists","index":12,"n_rows":42,"n_cols":13,"rows_kept":42,"cut":false,"hidden":true,"merged":[[1,9,1,10],[5,9,5,10],[10,9,10,10],[15,9,15,10]]}
["Country label","Country code",null,"Valid flags (obs_status)","Label",null,"Valid flags (obs_conf)","Label",null,"Textual variables","String",null,"CCM-2026-DC"]
["Belgium","BE",null,"B","break in time series",null,"C","confidential",null,"Institutional names"]
["Bulgaria","BG",null,"E","estimated data",null,"D","secondary confidentiality set by the sender",null,"Eurostat Text","Statistical Office of the European Union"]
["Czechia","CZ",null,"P","provisional",null,"N","Not to be published",null,"Directorate Text","Directorate E: Sectoral and regional statistics"]
["Denmark","DK",null,"BE",null,null,null,null,null,"Unit Text","Unit E-2: Environmental statistics and accounts; sustainable development"]
["Germany","DE",null,"BP",null,null,null,null,null,"Data collection information"]
["Estonia","EE",null,"EP",null,null,null,null,null,"Data Collection Title","Annual reporting of Climate Change Mitigation investments (CCM)"]
["Ireland","IE",null,"BEP",null,null,null,null,null,"Data Collection Year",2026]
["Greece","EL",null,null,null,null,null,null,null,"Launching date","30 June 2026"]
["Spain","ES",null,null,null,null,null,null,null,"Submission deadline","October 31st 2026"]
["France","FR",null,null,null,null,null,null,null,"EDAMIS data"]
["Croatia","HR",null,null,null,null,null,null,null,"Domain name","EGSS"]
["Italy","IT",null,null,null,null,null,null,null,"Dataset name","ENVDATA_CCM_A"]
["Cyprus","CY",null,null,null,null,null,null,null,"Web page","https://webgate.ec.europa.eu/edamis4/contact-form"]
["Latvia","LV",null,null,null,null,null,null,null,"Functional e-mail","ESTAT-DATA-METADATA-SERVICES@ec.europa.eu"]
["Lithuania","LT",null,null,null,null,null,null,null,"E2 information"]
["Luxembourg","LU",null,null,null,null,null,null,null,"Telephone","(+352) 4301 36162"]
["Hungary","HU",null,null,null,null,null,null,null,"Contact","ESTAT-EGSS@ec.europa.eu"]
["Malta","MT",null,null,null,null,null,null,null,"Methodology URL","https://ec.europa.eu/eurostat/web/environment/methodology"]
["Netherlands","NL",null,null,null,null,null,null,null,"Legislation URL"]
["Austria","AT"]
["Poland","PL"]
["Portugal","PT"]
["Romania","RO"]
["Slovenia","SI"]
["Slovakia","SK"]
["Finland","FI"]
["Sweden","SE"]
["Iceland","IS"]
["Liechtenstein","LI"]
["Norway","NO"]
["Switzerland","CH"]
["Montenegro","ME"]
["North Macedonia","MK"]
["Albania","AL"]
["Serbia","RS"]
["Türkiye","TR"]
["Bosnia and Herzegovina","BA"]
["Kosovo (UNSCR 1244)","XK"]
[]
[]
["EGSS-2024-DC","CDD"]

{"sheet":"Lists (Specific)","index":13,"n_rows":20,"n_cols":1,"rows_kept":20,"cut":false,"hidden":true,"merged":[]}
["Reference years"]
[2008]
[2009]
[2010]
[2011]
[2012]
[2013]
[2014]
[2015]
[2016]
[2017]
[2018]
[2019]
[2020]
[2021]
[2022]
[2023]
[2024]
[2025]
[2026]

{"sheet":"Changelog","index":14,"n_rows":18,"n_cols":8,"rows_kept":18,"cut":false,"hidden":true,"merged":[]}
["Change","Changed by","Change","SheetName","Cell","Version","Date","REMARKS"]
["First draft of the Questionnaire based on PEDS Q","ICEDD/BN",null,"All \"reporting\" sheets",null,1,"2023-06-06","Option Explicit in all modules"]
["Output ready and layout","ICEDD/MO",null,"All \"reporting\" sheets",null,2,"2023-07-05"]
["All Checks implemented","ICEDD/BN","Parameters updates and crosschecking","All \"Parameters\" sheets",null,3,"2023-09-11"]
["Bugs","ICEDD/BN","Sub FillWithValue/Summations","Summation, Exports",null,4,"2023-09-12"]
["Unhide formulas","ICEDD/BN","unhide protected formulas","All \"reporting\" sheets",null,5,"2023-09-12"]
["Check In Footnotes List + Column DR locked","ICEDD/BN","add a non standard rule","All \"reporting\" sheets + module A2",null,6,"2023-09-13","Bug in NotStandardValidationRuleDispatcher (column 2 -> Column 1)"]
["Unit in sheet EMPLOYMENT corrected to FTE","ESTAT",null,"EMPLOYMENT",null,"6b","2023-10-04"]
["missing drop down lists for footnotes","ESTAT","added footnote drop down lists in line 9-11, 314, 315","All \"reporting\" sheets",null,"6b","2024-04-24"]
["Formulars for sums of NACE integrated in several sheets","ESTAT","added formulars where only values were inserted in the sum cells for NACE","All \"reporting\" sheets",null,"6c","2024-05-08"]
["drop down for \"reporting year\" reset","ESTAT","list was missing as #REF error occurred","GETTING STARTED",null,"6c","2024-05-08"]
["CCM - investment tab, new CEP classification, update dates in Lists, introduction of a new button (show/hide non mandatory)","ICEDD/CBA","Addition of CCM - investment tab, replacement of CEPA by the new CEP in existing reporting tabs, update of the Index to include the CCM - investment, , introduction of a new button (show/hide non mandatory) in all reporting sheets.","Lists + All \"reporting\" sheets + INDEX",null,"2.6","2024-08-28"]
["Validation rules, drop down for \"reporting year\" reset, update Basic instructions + Methodology","ICEDD/CBA","Update Validation rules and Codes and Labels (new CEP + CCM - investment), add a conversion table between CEP and CEPA-CReMA","GETTING STARTED + Validation rules + Codes and labels + Basic instructions+CEP_CEPA-CReMA+Methodology",null,"3.1","2024-09-05"]
["Other environmental products","ICEDD/CBA","Add other environmental products under market output/employment/GVA/exports + update validation rules","Validation rules + All \"reporting\" sheets exc. 'CCM - INVESTMENT'",null,"3.2","2024-09-06"]
["Update validation rules","ICEDD/CBA","Correcting validation rules while testing ",null,null,"3.3"]
["Update validation rules","ICEDD/CBA","Correcting validation rules while testing ",null,null,"3.4"]
["DIMESA comments","ICEDD/CBA","CEP01 as mandatory and 0101/0102 as voluntary, CCM investments. ","All \"reporting\" sheets",null,"3.5"]
["update for new CCM collection","ESTAT","new launch data and name of data collection adapted to CCM","Lists",null,null,"2026-05-08"]

{"sheet":"MustNotBeNegative","index":15,"n_rows":3,"n_cols":6,"rows_kept":3,"cut":false,"hidden":true,"merged":[]}
["Severity","SheetName","TopLeftCell","BottomRightCell","RowStep","ColumnStep"]
["Warning","CCM - CAPEX - FC","G8","FK40",1,5]
["Warning","CCM - CAPEX - EC","G8","FF40",1,5]

{"sheet":"MacroBehaviour","index":16,"n_rows":3,"n_cols":7,"rows_kept":3,"cut":false,"hidden":true,"merged":[[0,0,0,2],[0,4,0,6]]}
["COMMON TO ALL (OR MOST)  QUESTIONNAIRE",null,null,null,"SPECIFIC TO THIS QUESTIONNAIRE"]
["Parameter","Value","(Valid values)",null,"Parameter","Value","(Valid values)"]
["DevelopementMode",true,"TRUE (during development)\nFALSE (For real reporting and testing)"]

{"sheet":"Mandatory","index":17,"n_rows":26,"n_cols":10,"rows_kept":26,"cut":false,"hidden":true,"merged":[]}
["Error","SheetName","Top Left Cell",null,"Row Step","Column Step","Empty Is Valid If Footnote Exists","Footnote Shift From Value","Comment"]
["Error","GETTING STARTED","E9","E10",1,999,"NO",999,"STANDARD FOR ALL QUESTIONNAIRES","x"]
["Error","GETTING STARTED","D15","D23",2,999,"NO",999,null,"x"]
["Error","CCM - CAPEX - FC","G8","G12",1,999,"YES",3,"Final consumption and GFCF, GFCF for (characteristic) activities - CEP01","x"]
["Error","CCM - CAPEX - FC","G14","G17",1,999,"YES",3,"Final consumption & GFCF in cleaner/ resource efficient (durable) goods, CEP01","x"]
["Error","CCM - CAPEX - FC","G19","G40",1,999,"YES",3,"Breakdown by NACE, CEP01","x"]
["Error","CCM - CAPEX - FC","V8","V12",1,999,"YES",3,"Final consumption and GFCF, GFCF for (characteristic) activities - CEP0201","x"]
["Error","CCM - CAPEX - FC","V14","V17",1,999,"YES",3,"Final consumption & GFCF in cleaner/ resource efficient (durable) goods, CEP01","x"]
["Error","CCM - CAPEX - FC","V19","V40",1,999,"YES",3,"Breakdown by NACE, CEP0201","x"]
["Error","CCM - CAPEX - FC","AF8","AF12",1,999,"YES",3,"Final consumption and GFCF, GFCF for (characteristic) activities - CEP0202","x"]
["Error","CCM - CAPEX - FC","AF14","AF17",1,999,"YES",3,"Final consumption & GFCF in cleaner/ resource efficient (durable) goods, CEP0202","x"]
["Error","CCM - CAPEX - FC","AF19","AF40",1,999,"YES",3,"Breakdown by NACE, CEP0202","x"]
["Error","CCM - CAPEX - FC","AZ8","AZ12",1,999,"YES",3,"Final consumption and GFCF, GFCF for (characteristic) activities - CEP0402","x"]
["Error","CCM - CAPEX - FC","AZ14","AZ17",1,999,"YES",3,"Final consumption & GFCF in cleaner/ resource efficient (durable) goods, CEP0402","x"]
["Error","CCM - CAPEX - FC","AZ19","AZ40",1,999,"YES",3,"Breakdown by NACE, CEP0402","x"]
["Error","CCM - CAPEX - FC","BJ8","BT12",1,5,"YES",3,"Final consumption and GFCF, GFCF for (characteristic) activities - CEP0501, 0502, 0503","x"]
["Error","CCM - CAPEX - FC","BJ19","BT29",1,5,"YES",3,"Breakdown by NACE, CEP0501, 0502, 0503","x"]
["Error","CCM - CAPEX - FC","CI8","CI12",1,999,"YES",3,"Final consumption and GFCF, GFCF for (characteristic) activities - CEP(0701+0703+0705+0707+0709)","x"]
["Error","CCM - CAPEX - FC","CI19","CI29",1,999,"YES",3,"Breakdown by NACE, CEP(0701+0703+0705+0707+0709)","x"]
["Error","CCM - CAPEX - FC","CS8","CS12",1,999,"YES",3,"Final consumption and GFCF, GFCF for (characteristic) activities - CEP(0702+0704+0706+0708)","x"]
["Error","CCM - CAPEX - FC","CS19","CS29",1,999,"YES",3,"Breakdown by NACE, CEP(0702+0704+0706+0708)","x"]
["Error","CCM - CAPEX - FC","DH8","DH12",1,999,"YES",3,"Final consumption and GFCF, GFCF for (characteristic) activities - CEP08","x"]
["Error","CCM - CAPEX - FC","DH19","DH29",1,999,"YES",3,"Breakdown by NACE, CEP08","x"]
["Error","CCM - CAPEX - FC","DR8","DR12",1,999,"YES",3,"Final consumption and GFCF, GFCF for (characteristic) activities - TOT_CEP","x"]
["Error","CCM - CAPEX - FC","DR14","DR17",1,999,"YES",3,"Final consumption & GFCF in cleaner/ resource efficient (durable) goods, TOT_CEP","x"]
["Error","CCM - CAPEX - FC","DR19","DR40",1,999,"YES",3,"Breakdown by NACE, TOT_CEP","x"]

{"sheet":"IsNumeric","index":18,"n_rows":24,"n_cols":9,"rows_kept":24,"cut":false,"hidden":true,"merged":[]}
["Severity","SheetName","TopLeftCell","BottomRightCell","RowStep","ColumnStep"]
["Error","CCM - CAPEX - FC","G8","FK13",1,5,null,null,"it is meant to check that there are numerical values"]
["Error","CCM - CAPEX - FC","G19","FK29",1,5]
["Error","CCM - CAPEX - FC","G14","AF18",1,5]
["Error","CCM - CAPEX - FC","G30","AF40",1,5]
["Error","CCM - CAPEX - FC","AP14","BE18",1,5]
["Error","CCM - CAPEX - FC","AP30","BE40",1,5]
["Error","CCM - CAPEX - FC","DM14","DR18",1,5]
["Error","CCM - CAPEX - FC","DM30","DR40",1,5]
["Error","CCM - CAPEX - FC","FF14","FK18",1,5]
["Error","CCM - CAPEX - FC","FF30","FK40",1,5]
["Error","CCM - CAPEX - EC","G8","Q8",1,5]
["Error","CCM - CAPEX - EC","AF8","AF8",1,5]
["Error","CCM - CAPEX - EC","AP8","BE8",1,5]
["Error","CCM - CAPEX - EC","DM8","FF13",1,5]
["Error","CCM - CAPEX - EC","G14","AF18",1,5]
["Error","CCM - CAPEX - EC","AP14","BE18",1,5]
["Error","CCM - CAPEX - EC","DM14","DR18",1,5]
["Error","CCM - CAPEX - EC","FF14","FF18",1,5]
["Error","CCM - CAPEX - EC","DM19","FF29",1,5]
["Error","CCM - CAPEX - EC","G30","AF40",1,5]
["Error","CCM - CAPEX - EC","AP30","BE40",1,5]
["Error","CCM - CAPEX - EC","DM30","DR40",1,5]
["Error","CCM - CAPEX - EC","FF30","FF40",1,5]

{"sheet":"Summations","index":19,"n_rows":223,"n_cols":13,"rows_kept":223,"cut":false,"hidden":true,"merged":[[124,5,124,6]]}
["Severity","Sheet Name","List of Cells\n (first block)","First Total Cell (first block)","Last Total Cell\n(Last block)","Row Block Repetition Step","Column Block Repetition Step","Greater or Equal","Valid Tolerance","Only if all data is available","Non compliance Is Valid If Footnote Exists","Footnote Shift From Value","Display text in error"]
["Error","CCM - CAPEX - FC","G8, V8, AF8, AZ8, BJ8, BO8, BT8, CI8, CS8, DH8, DM8","DR8","DR13",1,999,"EQ",0.1,"YES","NO",3,"TOT_CEP <> CEP01 + CEP0201 + CEP0202 + CEP0402 + CEP0501 + CEP0502 + CEP0503 + (CEP0701 + CEP0703 + CEP0705 + CEP0707 + CEP0709) + (CEP0702 + CEP0704 + CEP0706 + CEP0708) + CEP08 + CEP_OTH"]
["Error","CCM - CAPEX - FC","G8, V8, AF8, AZ8, BJ8, BO8, BT8, CI8, CS8, DH8, DM8","DR8","DR13",1,999,"GE",0.1,"NO","NO",3,"TOT_CEP < CEP01 + CEP0201 + CEP0202 + CEP0402 + CEP0501 + CEP0502 + CEP0503 + (CEP0701 + CEP0703 + CEP0705 + CEP0707 + CEP0709) + (CEP0702 + CEP0704 + CEP0706 + CEP0708) + CEP08 + CEP_OTH"]
["Error","CCM - CAPEX - FC","G19, V19, AF19, AZ19, BJ19, BO19, BT19, CI19, CS19, DH19, DM19","DR19","DR29",1,999,"EQ",0.1,"YES","NO",3,"TOT_CEP <> CEP01 + CEP0201 + CEP0202 + CEP0402 + CEP0501 + CEP0502 + CEP0503 + (CEP0701 + CEP0703 + CEP0705 + CEP0707 + CEP0709) + (CEP0702 + CEP0704 + CEP0706 + CEP0708) + CEP08 + CEP_OTH"]
["Error","CCM - CAPEX - FC","G19, V19, AF19, AZ19, BJ19, BO19, BT19, CI19, CS19, DH19, DM19","DR19","DR29",1,999,"GE",0.1,"NO","NO",3,"TOT_CEP < CEP01 + CEP0201 + CEP0202 + CEP0402 + CEP0501 + CEP0502 + CEP0503 + (CEP0701 + CEP0703 + CEP0705 + CEP0707 + CEP0709) + (CEP0702 + CEP0704 + CEP0706 + CEP0708) + CEP08 + CEP_OTH"]
["Error","CCM - CAPEX - FC","G14,V14,AF14,AZ14,DM14","DR14","DR18",1,999,"EQ",0.1,"YES","NO",3,"TOT_CEP <> CEP01 + CEP0201 + CEP0202 + CEP0402 + CEP0501 + CEP0502 + CEP0503 + (CEP0701 + CEP0703 + CEP0705 + CEP0707 + CEP0709) + (CEP0702 + CEP0704 + CEP0706 + CEP0708) + CEP08 + CEP_OTH"]
["Error","CCM - CAPEX - FC","G14,V14,AF14,AZ14,DM14","DR14","DR18",1,999,"GE",0.1,"NO","NO",3,"TOT_CEP < CEP01 + CEP0201 + CEP0202 + CEP0402 + CEP0501 + CEP0502 + CEP0503 + (CEP0701 + CEP0703 + CEP0705 + CEP0707 + CEP0709) + (CEP0702 + CEP0704 + CEP0706 + CEP0708) + CEP08 + CEP_OTH"]
["Error","CCM - CAPEX - FC","G30,V30,AF30,AZ30,DM30","DR30","DR40",1,999,"EQ",0.1,"YES","NO",3,"TOT_CEP <> CEP01 + CEP0201 + CEP0202 + CEP0402 + CEP0501 + CEP0502 + CEP0503 + (CEP0701 + CEP0703 + CEP0705 + CEP0707 + CEP0709) + (CEP0702 + CEP0704 + CEP0706 + CEP0708) + CEP08 + CEP_OTH"]
["Error","CCM - CAPEX - FC","G30,V30,AF30,AZ30,DM30","DR30","DR40",1,999,"GE",0.1,"NO","NO",3,"TOT_CEP < CEP01 + CEP0201 + CEP0202 + CEP0402 + CEP0501 + CEP0502 + CEP0503 + (CEP0701 + CEP0703 + CEP0705 + CEP0707 + CEP0709) + (CEP0702 + CEP0704 + CEP0706 + CEP0708) + CEP08 + CEP_OTH"]
["Error","CCM - CAPEX - FC","DW8, EB8, EG8, EL8, EQ8, EV8","FA8","FA13",1,999,"EQ",0.1,"YES","NO",3,"CCM_NCEP <> NUC_PRD + NUC_RND + NRG_GRID + LWC_TRA_ACT + LWC_TRA_INFR + CCM_NCEP_OTH"]
["Error","CCM - CAPEX - FC","DW8, EB8, EG8, EL8, EQ8, EV8","FA8","FA13",1,999,"GE",0.1,"NO","NO",3,"CCM_NCEP < NUC_PRD + NUC_RND + NRG_GRID + LWC_TRA_ACT + LWC_TRA_INFR + CCM_NCEP_OTH"]
["Error","CCM - CAPEX - FC","DW19, EB19, EG19, EL19, EQ19, EV19","FA19","FA29",1,999,"EQ",0.1,"YES","NO",3,"CCM_NCEP <> NUC_PRD + NUC_RND + NRG_GRID + LWC_TRA_ACT + LWC_TRA_INFR + CCM_NCEP_OTH"]
["Error","CCM - CAPEX - FC","DW19, EB19, EG19, EL19, EQ19, EV19","FA19","FA29",1,999,"GE",0.1,"NO","NO",3,"CCM_NCEP < NUC_PRD + NUC_RND + NRG_GRID + LWC_TRA_ACT + LWC_TRA_INFR + CCM_NCEP_OTH"]
["Error","CCM - CAPEX - FC","DR8, FA8","FF8","FF13",1,999,"EQ",0.1,"YES","NO",3,"CCM <> TOT_CEP + CCM_NCEP"]
["Error","CCM - CAPEX - FC","DR8, FA8","FF8","FF13",1,999,"GE",0.1,"NO","NO",3,"CCM < TOT_CEP + CCM_NCEP"]
["Error","CCM - CAPEX - FC","DR14","FF14","FF18",1,999,"EQ",0.1,"YES","NO",3,"CCM <> TOT_CEP + CCM_NCEP"]
["Error","CCM - CAPEX - FC","DR19, FA19","FF19","FF29",1,999,"EQ",0.1,"YES","NO",3,"CCM <> TOT_CEP + CCM_NCEP"]
["Error","CCM - CAPEX - FC","DR19, FA19","FF19","FF29",1,999,"GE",0.1,"NO","NO",3,"CCM < TOT_CEP + CCM_NCEP"]
["Error","CCM - CAPEX - FC","DR30","FF30","FF40",1,999,"EQ",0.1,"YES","NO",3,"CCM <> TOT_CEP + CCM_NCEP"]
["Error","CCM - CAPEX - FC","L8,Q8","G8","G40",1,999,"EQ",0.1,"YES","NO",3,"CEP01 <> CEP0101 + CEP0102"]
["Error","CCM - CAPEX - FC","L8,Q8","G8","G40",1,999,"GE",0.1,"NO","NO",3,"CEP01 < CEP0101 + CEP0102"]
["Error","CCM - CAPEX - FC","AK8, AP8, AU8","AF8","AF13",1,999,"GE",0.1,"NO","NO",3,"CEP0202 < CEP020201 + CEP020202 + CEP020203"]
["Error","CCM - CAPEX - FC","AK19, AP19, AU19","AF19","AF29",1,999,"GE",0.1,"NO","NO",3,"CEP0202 < CEP020201 + CEP020202 + CEP020203"]
["Error","CCM - CAPEX - FC","AP14, AU14","AF14","AF18",1,999,"GE",0.1,"NO","NO",3,"CEP0202 < CEP020201 + CEP020202 + CEP020203"]
["Error","CCM - CAPEX - FC","AP30, AU30","AF30","AF40",1,999,"GE",0.1,"NO","NO",3,"CEP0202 < CEP020201 + CEP020202 + CEP020203"]
["Error","CCM - CAPEX - FC","AA8","V8","V40",1,999,"GE",0.1,"NO","NO",3,"CEP0201 < CEP020101"]
["Error","CCM - CAPEX - FC","BE8","AZ8","AZ40",1,999,"GE",0.1,"NO","NO",3,"CEP0402 < CEP040203"]
["Error","CCM - CAPEX - FC","BY8, CD8","BT8","BT13",1,999,"GE",0.1,"NO","NO",3,"CEP0503 < CEP050301 + CEP050302"]
["Error","CCM - CAPEX - FC","BY19, CD19","BT19","BT29",1,999,"GE",0.1,"NO","NO",3,"CEP0503 < CEP050301 + CEP050302"]
["Error","CCM - CAPEX - FC","CN8","CI8","CI13",1,999,"GE",0.1,"NO","NO",3,"CEP 0701_03_05_07_09 < CEP070101"]
["Error","CCM - CAPEX - FC","CN19","CI19","CI29",1,999,"GE",0.1,"NO","NO",3,"CEP 0701_03_05_07_09 < CEP070101"]
["Error","CCM - CAPEX - FC","CX8, DC8","CS8","CS13",1,999,"GE",0.1,"NO","NO",3,"CEP0702_04_06_08  < CEP0702 + CEP0708"]
["Error","CCM - CAPEX - FC","CX19, DC19","CS19","CS29",1,999,"GE",0.1,"NO","NO",3,"CEP0702_04_06_08  < CEP0702 + CEP0708"]
["Error","CCM - CAPEX - FC","G9, G14","G8","Q8",999,5,"EQ",0.1,"YES","NO",3,"Final consumption and GFCF <> GFCF for (characteristic) activities + Final consumption and GFCF for S1"]
["Error","CCM - CAPEX - FC","G9, G14","G8","Q8",999,5,"GE",0.1,"NO","NO",3,"Final consumption and GFCF < GFCF for (characteristic) activities + Final consumption and GFCF for S1"]
["Error","CCM - CAPEX - FC","V9,V14","V8","AA8",999,5,"EQ",0.1,"YES","NO",3,"Final consumption and GFCF <> GFCF for (characteristic) activities + Final consumption and GFCF for S1"]
["Error","CCM - CAPEX - FC","V9,V14","V8","AA8",999,5,"GE",0.1,"NO","NO",3,"Final consumption and GFCF < GFCF for (characteristic) activities + Final consumption and GFCF for S1"]
["Error","CCM - CAPEX - FC","AF9, AF14","AF8","AF8",999,5,"EQ",0.1,"YES","NO",3,"Final consumption and GFCF <> GFCF for (characteristic) activities + Final consumption and GFCF for S1"]
["Error","CCM - CAPEX - FC","AF9, AF14","AF8","AF8",999,5,"GE",0.1,"NO","NO",3,"Final consumption and GFCF < GFCF for (characteristic) activities + Final consumption and GFCF for S1"]
["Error","CCM - CAPEX - FC","AK9","AK8","AK8",999,5,"EQ",0.1,"YES","NO",3,"Final consumption and GFCF <> GFCF for (characteristic) activities + Final consumption and GFCF for S1"]
["Error","CCM - CAPEX - FC","AP9, AP14","AP8","BE8",999,5,"EQ",0.1,"YES","NO",3,"Final consumption and GFCF <> GFCF for (characteristic) activities + Final consumption and GFCF for S1"]
["Error","CCM - CAPEX - FC","AP9, AP14","AP8","BE8",999,5,"GE",0.1,"NO","NO",3,"Final consumption and GFCF < GFCF for (characteristic) activities + Final consumption and GFCF for S1"]
["Error","CCM - CAPEX - FC","BJ9","BJ8","DH8",999,5,"EQ",0.1,"YES","NO",3,"Final consumption and GFCF <> GFCF for (characteristic) activities + Final consumption and GFCF for S1"]
["Error","CCM - CAPEX - FC","DM9, DM14","DM8","DR8",999,5,"EQ",0.1,"YES","NO",3,"Final consumption and GFCF <> GFCF for (characteristic) activities + Final consumption and GFCF for S1"]
["Error","CCM - CAPEX - FC","DM9, DM14","DM8","DR8",999,5,"GE",0.1,"NO","NO",3,"Final consumption and GFCF < GFCF for (characteristic) activities + Final consumption and GFCF for S1"]
["Error","CCM - CAPEX - FC","DW9","DW8","FA8",999,5,"EQ",0.1,"YES","NO",3,"Final consumption and GFCF <> GFCF for (characteristic) activities + Final consumption and GFCF for S1"]
["Error","CCM - CAPEX - FC","FF9, FF14","FF8","FK8",999,5,"EQ",0.1,"YES","NO",3,"Final consumption and GFCF <> GFCF for (characteristic) activities + Final consumption and GFCF for S1"]
["Error","CCM - CAPEX - FC","FF9, FF14","FF8","FK8",999,5,"GE",0.1,"NO","NO",3,"Final consumption and GFCF < GFCF for (characteristic) activities + Final consumption and GFCF for S1"]
["Error","CCM - CAPEX - FC","G10, G11, G12","G9","AF14",5,5,"EQ",0.1,"YES","NO",3,"S1 <> S13 + S11_S12 + S14_S15"]
["Error","CCM - CAPEX - FC","G10, G11, G12","G9","AF14",5,5,"GE",0.1,"NO","NO",3,"S1 < S13 + S11_S12 + S14_S15"]
["Error","CCM - CAPEX - FC","AP10, AP11, AP12","AP9","BE14",5,5,"EQ",0.1,"YES","NO",3,"S1 <> S13 + S11_S12 + S14_S15"]
["Error","CCM - CAPEX - FC","AP10, AP11, AP12","AP9","BE14",5,5,"GE",0.1,"NO","NO",3,"S1 < S13 + S11_S12 + S14_S15"]
["Error","CCM - CAPEX - FC","DM10, DM11, DM12","DM9","DR14",5,5,"EQ",0.1,"YES","NO",3,"S1 <> S13 + S11_S12 + S14_S15"]
["Error","CCM - CAPEX - FC","DM10, DM11, DM12","DM9","DR14",5,5,"GE",0.1,"NO","NO",3,"S1 < S13 + S11_S12 + S14_S15"]
["Error","CCM - CAPEX - FC","FF10, FF11, FF12","FF9","FK14",5,5,"EQ",0.1,"YES","NO",3,"S1 <> S13 + S11_S12 + S14_S15"]
["Error","CCM - CAPEX - FC","FF10, FF11, FF12","FF9","FK14",5,5,"GE",0.1,"NO","NO",3,"S1 < S13 + S11_S12 + S14_S15"]
["Error","CCM - CAPEX - FC","G13","G12","AF17",5,5,"GE",0.1,"NO","NO",3,"S14_S15 < S15"]
["Error","CCM - CAPEX - FC","AP13","AP12","BE17",5,5,"GE",0.1,"NO","NO",3,"S14_S15 < S15"]
["Error","CCM - CAPEX - FC","DM13","DM12","DR17",5,5,"GE",0.1,"NO","NO",3,"S14_S15 < S15"]
["Error","CCM - CAPEX - FC","FF13","FF12","FK17",5,5,"GE",0.1,"NO","NO",3,"S14_S15 < S15"]
["Error","CCM - CAPEX - FC","G19, G20, G21, G22, G23, G24, G25, G26, G27, G28, G29","G10","FK10",5,5,"EQ",0.1,"YES","NO",3,"TOTAL <> A + B + C + D + E + F +  J +  M + O + P  + G-I_K_L_N_Q-U"]
["Error","CCM - CAPEX - FC","G19, G20, G21, G22, G23, G24, G25, G26, G27, G28, G29","G10","FK10",5,5,"GE",0.1,"NO","NO",3,"TOTAL < A + B + C + D + E + F +  J +  M + O + P  + G-I_K_L_N_Q-U"]
["Error","CCM - CAPEX - FC","G30, G31, G32, G33, G34, G35, G36, G37, G38, G39, G40","G15","AF15",5,5,"EQ",0.1,"YES","NO",3,"TOTAL <> A + B + C + D + E + F +  J +  M + O + P  + G-I_K_L_N_Q-U"]
["Error","CCM - CAPEX - FC","G30, G31, G32, G33, G34, G35, G36, G37, G38, G39, G40","G15","AF15",5,5,"GE",0.1,"NO","NO",3,"TOTAL < A + B + C + D + E + F +  J +  M + O + P  + G-I_K_L_N_Q-U"]
["Error","CCM - CAPEX - FC","AP30, AP31, AP32, AP33, AP34, AP35, AP36, AP37, AP38, AP39, AP40","AP15","BE15",5,5,"EQ",0.1,"YES","NO",3,"TOTAL <> A + B + C + D + E + F +  J +  M + O + P  + G-I_K_L_N_Q-U"]
["Error","CCM - CAPEX - FC","AP30, AP31, AP32, AP33, AP34, AP35, AP36, AP37, AP38, AP39, AP40","AP15","BE15",5,5,"GE",0.1,"NO","NO",3,"TOTAL < A + B + C + D + E + F +  J +  M + O + P  + G-I_K_L_N_Q-U"]
["Error","CCM - CAPEX - FC","DM30, DM31, DM32, DM33, DM34, DM35, DM36, DM37, DM38, DM39, DM40","DM15","DR15",5,5,"EQ",0.1,"YES","NO",3,"TOTAL <> A + B + C + D + E + F +  J +  M + O + P  + G-I_K_L_N_Q-U"]
["Error","CCM - CAPEX - FC","DM30, DM31, DM32, DM33, DM34, DM35, DM36, DM37, DM38, DM39, DM40","DM15","DR15",5,5,"GE",0.1,"NO","NO",3,"TOTAL < A + B + C + D + E + F +  J +  M + O + P  + G-I_K_L_N_Q-U"]
["Error","CCM - CAPEX - FC","FF30, FF31, FF32, FF33, FF34, FF35, FF36, FF37, FF38, FF39, FF40","FF15","FK15",5,5,"EQ",0.1,"YES","NO",3,"TOTAL <> A + B + C + D + E + F +  J +  M + O + P  + G-I_K_L_N_Q-U"]
["Error","CCM - CAPEX - FC","FF30, FF31, FF32, FF33, FF34, FF35, FF36, FF37, FF38, FF39, FF40","FF15","FK15",5,5,"GE",0.1,"NO","NO",3,"TOTAL < A + B + C + D + E + F +  J +  M + O + P  + G-I_K_L_N_Q-U"]
["Error","CCM - CAPEX - EC","G8, AF8, AZ8, DM8","DR8","DR8",1,999,"EQ",0.1,"YES","NO",3,"TOT_CEP <> CEP01 + CEP0201 + CEP0202 + CEP0402 + CEP0501 + CEP0502 + CEP0503 + (CEP0701 + CEP0703 + CEP0705 + CEP0707 + CEP0709) + (CEP0702 + CEP0704 + CEP0706 + CEP0708) + CEP08 + CEP_OTH"]
["Error","CCM - CAPEX - EC","G8, AF8, AZ8, DM8","DR8","DR8",1,999,"GE",0.1,"NO","NO",3,"TOT_CEP < CEP01 + CEP0201 + CEP0202 + CEP0402 + CEP0501 + CEP0502 + CEP0503 + (CEP0701 + CEP0703 + CEP0705 + CEP0707 + CEP0709) + (CEP0702 + CEP0704 + CEP0706 + CEP0708) + CEP08 + CEP_OTH"]
["Error","CCM - CAPEX - EC","DM9","DR9","DR13",1,999,"EQ",0.1,"YES","NO",3,"TOT_CEP <> CEP01 + CEP0201 + CEP0202 + CEP0402 + CEP0501 + CEP0502 + CEP0503 + (CEP0701 + CEP0703 + CEP0705 + CEP0707 + CEP0709) + (CEP0702 + CEP0704 + CEP0706 + CEP0708) + CEP08 + CEP_OTH"]
["Error","CCM - CAPEX - EC","DM19","DR19","DR29",1,999,"EQ",0.1,"YES","NO",3,"TOT_CEP <> CEP01 + CEP0201 + CEP0202 + CEP0402 + CEP0501 + CEP0502 + CEP0503 + (CEP0701 + CEP0703 + CEP0705 + CEP0707 + CEP0709) + (CEP0702 + CEP0704 + CEP0706 + CEP0708) + CEP08 + CEP_OTH"]
["Error","CCM - CAPEX - EC","G14,V14,AF14,AZ14,DM14","DR14","DR18",1,999,"EQ",0.1,"YES","NO",3,"TOT_CEP <> CEP01 + CEP0201 + CEP0202 + CEP0402 + CEP0501 + CEP0502 + CEP0503 + (CEP0701 + CEP0703 + CEP0705 + CEP0707 + CEP0709) + (CEP0702 + CEP0704 + CEP0706 + CEP0708) + CEP08 + CEP_OTH"]
["Error","CCM - CAPEX - EC","G14,V14,AF14,AZ14,DM14","DR14","DR18",1,999,"GE",0.1,"NO","NO",3,"TOT_CEP < CEP01 + CEP0201 + CEP0202 + CEP0402 + CEP0501 + CEP0502 + CEP0503 + (CEP0701 + CEP0703 + CEP0705 + CEP0707 + CEP0709) + (CEP0702 + CEP0704 + CEP0706 + CEP0708) + CEP08 + CEP_OTH"]
["Error","CCM - CAPEX - EC","G30,V30,AF30,AZ30,DM30","DR30","DR40",1,999,"EQ",0.1,"YES","NO",3,"TOT_CEP <> CEP01 + CEP0201 + CEP0202 + CEP0402 + CEP0501 + CEP0502 + CEP0503 + (CEP0701 + CEP0703 + CEP0705 + CEP0707 + CEP0709) + (CEP0702 + CEP0704 + CEP0706 + CEP0708) + CEP08 + CEP_OTH"]
["Error","CCM - CAPEX - EC","G30,V30,AF30,AZ30,DM30","DR30","DR40",1,999,"GE",0.1,"NO","NO",3,"TOT_CEP < CEP01 + CEP0201 + CEP0202 + CEP0402 + CEP0501 + CEP0502 + CEP0503 + (CEP0701 + CEP0703 + CEP0705 + CEP0707 + CEP0709) + (CEP0702 + CEP0704 + CEP0706 + CEP0708) + CEP08 + CEP_OTH"]
["Error","CCM - CAPEX - EC","DW8, EB8, EG8, EL8, EQ8, EV8","FA8","FA13",1,999,"EQ",0.1,"YES","NO",3,"CCM_NCEP <> NUC_PRD + NUC_RND + NRG_GRID + LWC_TRA_ACT + LWC_TRA_INFR + CCM_NCEP_OTH"]
["Error","CCM - CAPEX - EC","DW8, EB8, EG8, EL8, EQ8, EV8","FA8","FA13",1,999,"GE",0.1,"NO","NO",3,"CCM_NCEP < NUC_PRD + NUC_RND + NRG_GRID + LWC_TRA_ACT + LWC_TRA_INFR + CCM_NCEP_OTH"]
["Error","CCM - CAPEX - EC","DW19, EB19, EG19, EL19, EQ19, EV19","FA19","FA29",1,999,"EQ",0.1,"YES","NO",3,"CCM_NCEP <> NUC_PRD + NUC_RND + NRG_GRID + LWC_TRA_ACT + LWC_TRA_INFR + CCM_NCEP_OTH"]
["Error","CCM - CAPEX - EC","DW19, EB19, EG19, EL19, EQ19, EV19","FA19","FA29",1,999,"GE",0.1,"NO","NO",3,"CCM_NCEP < NUC_PRD + NUC_RND + NRG_GRID + LWC_TRA_ACT + LWC_TRA_INFR + CCM_NCEP_OTH"]
["Error","CCM - CAPEX - EC","DR8, FA8","FF8","FF13",1,999,"EQ",0.1,"YES","NO",3,"CCM <> TOT_CEP + CCM_NCEP"]
["Error","CCM - CAPEX - EC","DR8, FA8","FF8","FF13",1,999,"GE",0.1,"NO","NO",3,"CCM < TOT_CEP + CCM_NCEP"]
["Error","CCM - CAPEX - EC","DR14","FF14","FF18",1,999,"EQ",0.1,"YES","NO",3,"CCM <> TOT_CEP + CCM_NCEP"]
["Error","CCM - CAPEX - EC","DR19, FA19","FF19","FF29",1,999,"EQ",0.1,"YES","NO",3,"CCM <> TOT_CEP + CCM_NCEP"]
["Error","CCM - CAPEX - EC","DR19, FA19","FF19","FF29",1,999,"GE",0.1,"NO","NO",3,"CCM < TOT_CEP + CCM_NCEP"]
["Error","CCM - CAPEX - EC","DR30","FF30","FF40",1,999,"EQ",0.1,"YES","NO",3,"CCM <> TOT_CEP + CCM_NCEP"]
["Error","CCM - CAPEX - EC","L8,Q8","G8","G8",1,999,"EQ",0.1,"YES","NO",3,"CEP01 <> CEP0101 + CEP0102"]
["Error","CCM - CAPEX - EC","L8,Q8","G8","G8",1,999,"GE",0.1,"NO","NO",3,"CEP01 < CEP0101 + CEP0102"]
["Error","CCM - CAPEX - EC","L14,Q14","G14","G18",1,999,"EQ",0.1,"YES","NO",3,"CEP01 <> CEP0101 + CEP0102"]
["Error","CCM - CAPEX - EC","L14,Q14","G14","G18",1,999,"GE",0.1,"NO","NO",3,"CEP01 < CEP0101 + CEP0102"]
["Error","CCM - CAPEX - EC","L30,Q30","G30","G40",1,999,"EQ",0.1,"YES","NO",3,"CEP01 <> CEP0101 + CEP0102"]
["Error","CCM - CAPEX - EC","L30,Q30","G30","G40",1,999,"GE",0.1,"NO","NO",3,"CEP01 < CEP0101 + CEP0102"]
["Error","CCM - CAPEX - EC","AP8, AU8","AF8","AF8",1,999,"GE",0.1,"NO","NO",3,"CEP0202 < CEP020202 + CEP020203"]
["Error","CCM - CAPEX - EC","AP14, AU14","AF14","AF18",1,999,"GE",0.1,"NO","NO",3,"CEP0202 < CEP020202 + CEP020203"]
["Error","CCM - CAPEX - EC","AP30, AU30","AF30","AF40",1,999,"GE",0.1,"NO","NO",3,"CEP0202 < CEP020202 + CEP020203"]
["Error","CCM - CAPEX - EC","BE8","AZ8","AZ8",1,999,"GE",0.1,"NO","NO",3,"CEP0402 < CEP040203"]
["Error","CCM - CAPEX - EC","BE14","AZ14","AZ18",1,999,"GE",0.1,"NO","NO",3,"CEP0402 < CEP040203"]
["Error","CCM - CAPEX - EC","BE30","AZ30","AZ40",1,999,"GE",0.1,"NO","NO",3,"CEP0402 < CEP040203"]
["Error","CCM - CAPEX - EC","G14","G8","Q8",999,5,"EQ",0.1,"YES","NO",3,"Final consumption and GFCF <> GFCF for (characteristic) activities + Final consumption and GFCF for S1"]
["Error","CCM - CAPEX - EC","AF14","AF8","AF8",999,5,"EQ",0.1,"YES","NO",3,"Final consumption and GFCF <> GFCF for (characteristic) activities + Final consumption and GFCF for S1"]
["Error","CCM - CAPEX - EC","AP14","AP8","BE8",999,5,"EQ",0.1,"YES","NO",3,"Final consumption and GFCF <> GFCF for (characteristic) activities + Final consumption and GFCF for S1"]
["Error","CCM - CAPEX - EC","DM9, DM14","DM8","DR8",999,5,"EQ",0.1,"YES","NO",3,"Final consumption and GFCF <> GFCF for (characteristic) activities + Final consumption and GFCF for S1"]
["Error","CCM - CAPEX - EC","DM9, DM14","DM8","DR8",999,5,"GE",0.1,"NO","NO",3,"Final consumption and GFCF <> GFCF for (characteristic) activities + Final consumption and GFCF for S1"]
["Error","CCM - CAPEX - EC","DW9","DW8","FA8",999,5,"EQ",0.1,"YES","NO",3,"Final consumption and GFCF <> GFCF for (characteristic) activities + Final consumption and GFCF for S1"]
["Error","CCM - CAPEX - EC","FF9, FF14","FF8","FF8",999,5,"EQ",0.1,"YES","NO",3,"Final consumption and GFCF <> GFCF for (characteristic) activities + Final consumption and GFCF for S1"]
["Error","CCM - CAPEX - EC","FF9, FF14","FF8","FF8",999,5,"GE",0.1,"NO","NO",3,"Final consumption and GFCF < GFCF for (characteristic) activities + Final consumption and GFCF for S1"]
["Error","CCM - CAPEX - EC","DM10, DM11, DM12","DM9","FF14",5,5,"EQ",0.1,"YES","NO",3,"S1 <> S13 + S11_S12 + S14_S15"]
["Error","CCM - CAPEX - EC","DM10, DM11, DM12","DM9","FF14",5,5,"GE",0.1,"NO","NO",3,"S1 < S13 + S11_S12 + S14_S15"]
["Error","CCM - CAPEX - EC","G13","G12","FF17",5,5,"GE",0.1,"NO","NO",3,"S14_S15 < S15"]
["Error","CCM - CAPEX - EC","DM19, DM20, DM21, DM22, DM23, DM24, DM25, DM26, DM27, DM28, DM29","DM10","FF10",5,5,"EQ",0.1,"YES","NO",3,"TOTAL <> A + B + C + D + E + F +  J +  M + O + P  + G-I_K_L_N_Q-U"]
["Error","CCM - CAPEX - EC","DM19, DM20, DM21, DM22, DM23, DM24, DM25, DM26, DM27, DM28, DM29","DM10","FF10",5,5,"GE",0.1,"NO","NO",3,"TOTAL < A + B + C + D + E + F +  J +  M + O + P  + G-I_K_L_N_Q-U"]
["Error","CCM - CAPEX - EC","G30, G31, G32, G33, G34, G35, G36, G37, G38, G39, G40","G15","AF15",5,5,"EQ",0.1,"YES","NO",3,"TOTAL <> A + B + C + D + E + F +  J +  M + O + P  + G-I_K_L_N_Q-U"]
["Error","CCM - CAPEX - EC","G30, G31, G32, G33, G34, G35, G36, G37, G38, G39, G40","G15","AF15",5,5,"GE",0.1,"NO","NO",3,"TOTAL < A + B + C + D + E + F +  J +  M + O + P  + G-I_K_L_N_Q-U"]
["Error","CCM - CAPEX - EC","AP30, AP31, AP32, AP33, AP34, AP35, AP36, AP37, AP38, AP39, AP40","AP15","BE15",5,5,"EQ",0.1,"YES","NO",3,"TOTAL <> A + B + C + D + E + F +  J +  M + O + P  + G-I_K_L_N_Q-U"]
["Error","CCM - CAPEX - EC","AP30, AP31, AP32, AP33, AP34, AP35, AP36, AP37, AP38, AP39, AP40","AP15","BE15",5,5,"GE",0.1,"NO","NO",3,"TOTAL < A + B + C + D + E + F +  J +  M + O + P  + G-I_K_L_N_Q-U"]
["Error","CCM - CAPEX - EC","DM30, DM31, DM32, DM33, DM34, DM35, DM36, DM37, DM38, DM39, DM40","DM15","DR15",5,5,"EQ",0.1,"YES","NO",3,"TOTAL <> A + B + C + D + E + F +  J +  M + O + P  + G-I_K_L_N_Q-U"]
["Error","CCM - CAPEX - EC","DM30, DM31, DM32, DM33, DM34, DM35, DM36, DM37, DM38, DM39, DM40","DM15","DR15",5,5,"GE",0.1,"NO","NO",3,"TOTAL < A + B + C + D + E + F +  J +  M + O + P  + G-I_K_L_N_Q-U"]
["Error","CCM - CAPEX - EC","FF30, FF31, FF32, FF33, FF34, FF35, FF36, FF37, FF38, FF39, FF40","FF15","FF15",5,5,"EQ",0.1,"YES","NO",3,"TOTAL <> A + B + C + D + E + F +  J +  M + O + P  + G-I_K_L_N_Q-U"]
["Error","CCM - CAPEX - EC","FF30, FF31, FF32, FF33, FF34, FF35, FF36, FF37, FF38, FF39, FF40","FF15","FF15",5,5,"GE",0.1,"NO","NO",3,"TOTAL < A + B + C + D + E + F +  J +  M + O + P  + G-I_K_L_N_Q-U"]
[]
[]
[]
[null,null,null,null,null,"Must be > 0 for a not relevant dimension. Else you get an infinite loop",null,"EQ or GE or GT","GT does not admit Tolerance","NO or YES",null,"Not Applicable if the previous column is \"NO\""]
[]
["DESCRIPTION"]
["This sheet is meant to define the validation for summations in a row or in a column."]
["- A block is defined as a sequence of addendums in the same row or column"]
["- Only the first block must be explicitly defined"]
["- The block can be repeated at regular patterns through rows and columns at the same time"]
[]
[]
["PARAMETRES"]
["SheetName",null,"Name of the sheet to be validated (e.g. Table 1)"]
["List of Cells\n (first block)",null,"First cell in the first block to be validated"]
["First TotalCell (first block)"]
["Last TotalCell (Last block)"]
["Row Block Repetition Step"]
["Column Block Repetition Step"]
["Greater or Equal"]
["Valid Threshold"]
["Only if all data is available"]
["Display text in error",null,"Valid values: EQ (Strictly equal); GE (Greater or Equal); GT (Strictly greater - No threshold will be considered)"]
[]
[]
[]
[]
[]
[]
[]
[]
[]
[]
[]
[]
[]
[]
[]
[]
[]
[]
[]
[]
[]
[]
[]
[]
[]
[]
[]
[]
[]
[]
[]
[]
[]
[]
[]
[]
[]
[]
[]
[]
[]
[]
[]
[]
[]
[]
[]
[]
[]
[]
[]
[]
[]
[]
[]
[]
[]
[]
[]
[]
[]
[]
[]
[]
[]
[]
[]
[]
[]
[]
[]
[]
[]
[]
[]
[]
[]
[]
[null,null,null,{"$f":"SUM(Summations!B3º)","v":{"$error":"#NAME?"}}]

{"sheet":"Locks","index":20,"n_rows":22,"n_cols":7,"rows_kept":22,"cut":false,"hidden":true,"merged":[]}
["Sheet Name","Top Left Cell","Bottom Right Cell","Row Step","Column Step","Lock Type","Focus Back To"]
["CCM - CAPEX - FC","G8","FK10",1,5,"Formulas","G8"]
["CCM - CAPEX - FC","DR8","DR40",1,5,"Formulas","G8"]
["CCM - CAPEX - FC","FF8","FF40",1,5,"Formulas","G8"]
["CCM - CAPEX - FC","G14","AF15",1,5,"Formulas","G8"]
["CCM - CAPEX - FC","AP14","BE15",1,5,"Formulas","G8"]
["CCM - CAPEX - FC","DM14","DM15",1,5,"Formulas","G8"]
["CCM - CAPEX - FC","FK14","FK15",1,5,"Formulas","G8"]
["CCM - CAPEX - FC","FA11","FA13",1,5,"Formulas","G8"]
["CCM - CAPEX - FC","FA19","FA29",1,5,"Formulas","G8"]
["CCM - CAPEX - EC","G8","Q8",1,5,"Formulas","G8"]
["CCM - CAPEX - EC","AF8","AF8",1,5,"Formulas","G8"]
["CCM - CAPEX - EC","AP8","BE8",1,5,"Formulas","G8"]
["CCM - CAPEX - EC","DM8","FF8",1,5,"Formulas","G8"]
["CCM - CAPEX - EC","G14","AF15",1,5,"Formulas","G8"]
["CCM - CAPEX - EC","AP14","BE15",1,5,"Formulas","G8"]
["CCM - CAPEX - EC","DM9","EV10",1,5,"Formulas","G8"]
["CCM - CAPEX - EC","DM14","DM15",1,5,"Formulas","G8"]
["CCM - CAPEX - EC","DR8","DR40",1,5,"Formulas","G8"]
["CCM - CAPEX - EC","FF8","FF40",1,5,"Formulas","G8"]
["CCM - CAPEX - EC","FA8","FA13",1,5,"Formulas","G8"]
["CCM - CAPEX - EC","FA19","FA29",1,5,"Formulas","G8"]

{"sheet":"StandardFootnotes","index":21,"n_rows":5,"n_cols":7,"rows_kept":5,"cut":false,"hidden":true,"merged":[]}
["Severity","SheetName","Top Left Cell","Bottom Right Cell","Row Step","Column Step","Footnote type \n(CONF/STATUS)"]
["Error","CCM - CAPEX - EC","H8","FJ40",1,5,"STATUS"]
["Error","CCM - CAPEX - FC","H8","FO40",1,5,"STATUS"]
["Error","CCM - CAPEX - EC","I8","FJ40",1,5,"CONF"]
["Error","CCM - CAPEX - FC","I8","FO40",1,5,"CONF"]

{"sheet":"Fill (Specific)","index":22,"n_rows":55,"n_cols":9,"rows_kept":55,"cut":false,"hidden":true,"merged":[]}
["SheetName","TopLeftCell","BottomRightCell","RowStep","ColumnStep","Value","Replace"]
["CCM - CAPEX - EC","G8","Q8",1,5,0,"NO",null,"Fill with 0"]
["CCM - CAPEX - EC","AF8","AF8",1,5,0,"NO"]
["CCM - CAPEX - EC","AP8","BE8",1,5,0,"NO"]
["CCM - CAPEX - EC","DM8","FF13",1,5,0,"NO"]
["CCM - CAPEX - EC","G14","AF18",1,5,0,"NO"]
["CCM - CAPEX - EC","AP14","BE18",1,5,0,"NO"]
["CCM - CAPEX - EC","DM14","DR18",1,5,0,"NO"]
["CCM - CAPEX - EC","FF14","FF18",1,5,0,"NO"]
["CCM - CAPEX - EC","DM19","FF29",1,5,0,"NO"]
["CCM - CAPEX - EC","G30","AF40",1,5,0,"NO"]
["CCM - CAPEX - EC","AP30","BE40",1,5,0,"NO"]
["CCM - CAPEX - EC","DM30","DR40",1,5,0,"NO"]
["CCM - CAPEX - EC","FF30","FF40",1,5,0,"NO"]
["CCM - CAPEX - EC","G8","Q8",1,5,null,"YES",null,"Clean values"]
["CCM - CAPEX - EC","AF8","AF8",1,5,null,"YES"]
["CCM - CAPEX - EC","AP8","BE8",1,5,null,"YES"]
["CCM - CAPEX - EC","DM8","FF13",1,5,null,"YES"]
["CCM - CAPEX - EC","G14","AF18",1,5,null,"YES"]
["CCM - CAPEX - EC","AP14","BE18",1,5,null,"YES"]
["CCM - CAPEX - EC","DM14","DR18",1,5,null,"YES"]
["CCM - CAPEX - EC","FF14","FF18",1,5,null,"YES"]
["CCM - CAPEX - EC","DM19","FF29",1,5,null,"YES"]
["CCM - CAPEX - EC","G30","AF40",1,5,null,"YES"]
["CCM - CAPEX - EC","AP30","BE40",1,5,null,"YES"]
["CCM - CAPEX - EC","DM30","DR40",1,5,null,"YES"]
["CCM - CAPEX - EC","FF30","FF40",1,5,null,"YES"]
["CCM - CAPEX - EC","H8","FJ40",1,5,null,"YES",null,"Clean Standart footnotes"]
["CCM - CAPEX - EC","I8","FJ40",1,5,null,"YES",null,"Clean Confidentiality footnotes"]
["CCM - CAPEX - EC","J8","FJ40",1,5,null,"YES",null,"Clean Explanatory footnotes"]
["CCM - CAPEX - FC","G8","FK13",1,5,0,"NO",null,"Fill with 0"]
["CCM - CAPEX - FC","G19","FK29",1,5,0,"NO"]
["CCM - CAPEX - FC","G14","AF18",1,5,0,"NO"]
["CCM - CAPEX - FC","G30","AF40",1,5,0,"NO"]
["CCM - CAPEX - FC","AP14","AZ18",1,5,0,"NO"]
["CCM - CAPEX - FC","AP30","AZ40",1,5,0,"NO"]
["CCM - CAPEX - FC","BE16","BE40",1,5,0,"NO"]
["CCM - CAPEX - FC","DM14","DR18",1,5,0,"NO"]
["CCM - CAPEX - FC","DM30","DR40",1,5,0,"NO"]
["CCM - CAPEX - FC","FF14","FK18",1,5,0,"NO"]
["CCM - CAPEX - FC","FF30","FK40",1,5,0,"NO"]
["CCM - CAPEX - FC","G8","FK13",1,5,null,"YES",null,"Clean values"]
["CCM - CAPEX - FC","G19","FK29",1,5,null,"YES"]
["CCM - CAPEX - FC","G14","AF18",1,5,null,"YES"]
["CCM - CAPEX - FC","G30","AF40",1,5,null,"YES"]
["CCM - CAPEX - FC","BE16","BE40",1,5,null,"YES"]
["CCM - CAPEX - FC","AP14","AZ18",1,5,null,"YES"]
["CCM - CAPEX - FC","AP30","AZ40",1,5,null,"YES"]
["CCM - CAPEX - FC","DM14","DR18",1,5,null,"YES"]
["CCM - CAPEX - FC","DM30","DR40",1,5,null,"YES"]
["CCM - CAPEX - FC","FF14","FK18",1,5,null,"YES"]
["CCM - CAPEX - FC","FF30","FK40",1,5,null,"YES"]
["CCM - CAPEX - FC","H8","FO40",1,5,null,"YES",null,"Clean Standart footnotes"]
["CCM - CAPEX - FC","I8","FO40",1,5,null,"YES",null,"Clean Confidentiality footnotes"]
["CCM - CAPEX - FC","J8","FO40",1,5,null,"YES",null,"Clean Explanatory footnotes"]

{"sheet":"NotInFootNotesList (Specific)","index":23,"n_rows":3,"n_cols":10,"rows_kept":3,"cut":false,"hidden":true,"merged":[]}
["SEVERITY","SheetName","TopLeftCell","BottomRightCell","RowStep","ColumnStep","Footnotes List Sheet","FNLTopRow","FNLColumnId","FNLColumnLabel"]
["Error","CCM - CAPEX - EC","J8","FJ40",1,5,"Footnotes list",9,4,5]
["Error","CCM - CAPEX - FC","J8","FO40",1,5,"Footnotes list",9,4,5]

{"sheet":"CrossChecks (Specific)","index":24,"n_rows":1,"n_cols":9,"rows_kept":1,"cut":false,"hidden":true,"merged":[]}
["SEVERITY","SheetName","TopLeftCell","BottomRightCell","RowStep","ColumnStep","Sheet1","Sheet2","Display text error"]

{"sheet":"NotStandardRules","index":25,"n_rows":3,"n_cols":1,"rows_kept":3,"cut":false,"hidden":true,"merged":[]}
["Validation Rule"]
["NotInFootnotesList"]
["ConsistencyCrossChecks"]

{"sheet":"x Pre-filling parameters","index":26,"n_rows":3,"n_cols":11,"rows_kept":3,"cut":false,"hidden":true,"merged":[]}
["Sheet From","Sheet To","Top Left Cell","Bottom Right Cell","Row Step","Column Step","Confidentiality flag\n(YES/NO)","Replace locked cells\n(YES/NO)","Hide sheet after pasting\n(YES/NO)","Footnote Call-out (number) exists\n(YES/NO)"]
["Table_1 (COPY-PASTING)","Table_1","G8","DL106",1,5,"YES","NO","NO","YES","Waste detail"]
["Table_1 (COPY-PASTING)","Table_1","G107","DL118",1,5,"YES","NO","NO","YES","GRAND TOTALS"]

{"sheet":"x ContentInHiddenSheets","index":27,"n_rows":2,"n_cols":6,"rows_kept":2,"cut":false,"hidden":true,"merged":[]}
["Severity","SheetName","Top Left Cell","Bottom Right Cell","Row Step","Column Step"]
["Error","Table_1","G8","AL18",1,1]

{"sheet":"x Between2Cells","index":28,"n_rows":8,"n_cols":8,"rows_kept":8,"cut":false,"hidden":true,"merged":[]}
["Severity","SheetName","Top Left Cell","Bottom Right Cell","Row Step","Column Step","Cell A\n(first block)","Cell B\n(first block)"]
["Error","Table_1","G8","G18",1,999,"K8","O8"]
[]
[]
[]
[]
[]
["The tested cell must have a value in between CellA and CellB values, disregarding which value (CellA or CellB) is higher."]

{"sheet":"x ForbiddenStrings","index":29,"n_rows":5,"n_cols":8,"rows_kept":5,"cut":false,"hidden":true,"merged":[]}
["Severity","SheetName","TopLeftCell","BottomRightCell","RowStep","ColumnStep","ForbiddenString","Display text in error"]
["Warning","Footnotes list","E9","E58",1,999,"not available","Please verify the explanatory note sufficiently explains why the data is not available"]
["Warning","Footnotes list","E9","E58",1,999,"not reported","Please verify the explanatory note sufficiently explains why the data is not available"]
["Warning","Footnotes list","E9","E58",1,999,"unavailable data","Please verify the explanatory note sufficiently explains why the data is not available"]
["Warning","Footnotes list","E9","E58",1,999,"no data available","Please verify the explanatory note sufficiently explains why the data is not available"]

{"sheet":"x MandatoryAtLeast","index":30,"n_rows":17,"n_cols":6,"rows_kept":17,"cut":false,"hidden":true,"merged":[]}
["Severity","Sheet Name","List of Cells","Mandatory at least X cells","Mandatory at most X cells","Display text in error"]
["Error","Table_1","G8,G9,G10,G15,G16,G17",2,999,"At least two cells must be filled-in"]
["Error","Table_1","K8,O8,S8",1,999]
["Error","Table_3","AA10",1,999]
[]
[]
[]
["DESCRIPTION"]
["This sheet is meant to define the list of cells, of which at least one (or more, as indicated in column D) must be filled-in"]
[]
[]
["PARAMETRES"]
["SheetName",null,"Name of the sheet to be validated (e.g. Table 1)"]
["List of Cells",null,"First cell in the first block to be validated"]
["Mandatory at least X cells",null,"Number of cells in the list that, at least, must be filled in"]
["Mandatory at most Y cells",null,"Maximum number of cells in the list that must be filled in"]
["Display text in error",null,"Valid values: EQ (Strictly equal); GE (Greater or Equal); GT (Strictly greater - No threshold will be considered)"]

{"sheet":"x Thresholds","index":31,"n_rows":2,"n_cols":10,"rows_kept":2,"cut":false,"hidden":true,"merged":[]}
["Severity","SheetName","Top Left Cell","Bottom Right Cell","Row Step","Column Step","Lower value","Upper value","Error Is Valid If Footnote Exists","Footnote Shift From Value"]
["Error","Table_2","G8","J14",1,1,0,100,"NO",999]

{"sheet":"x IsFormula","index":32,"n_rows":7,"n_cols":6,"rows_kept":7,"cut":false,"hidden":true,"merged":[]}
["Severity","Sheet Name","Top Left Cell","Bottom Right Cell","Row Step","Column Step"]
["Info","Table_1","G18","AI18",999,4]
["Info","Table_1","G10","W10",999,4]
["Info","Table_1","AE10","AI10",999,4]
["Info","Table_1a","G13","K13",999,4]
["Info","Table_1a","G16","K16",999,4]
["Info","Table_3","G17","AQ17",999,4]

{"sheet":"x FootnoteContent","index":33,"n_rows":4,"n_cols":7,"rows_kept":4,"cut":false,"hidden":true,"merged":[]}
["Severity","SheetName","TopLeftCell","BottomRightCell","RowStep","ColumnStep","DistanceFromReferenceToText"]
["Error","Table_1","I8","AK18",1,4,1]
["Error","Table_1a","I8","M16",1,4,1]
["Error","Table_3","I10","AS17",1,4,1]